Workbook

Sheet Garantías_TTE_AS_PR
B1: Capacity contracting guarantee simulator (Simulador de garantías de contratación de capacidad)
C5: Type of service | D5: Individualized services
C6: Service
C8: Product
C9: =IF(OR(D8="Intraday. ≤23h duration",D8="Intraday",AND(D6="PVB exit to consumer",LEFT(D8,11)="Intraday")),"Intraday product hours","") ->  | G9: =IF(D8="Intradiario. Duración ≤23h","Horas","") -> 
C10: =IF(OR(D6="PVB entry from transport network",D6="PVB exit"),"Infrastructure","") -> 
C11: Nature
C12: Start of service date
C13: Contracting capacity | G13: =IF($D$6="","",(IF(VLOOKUP($D$6,Parametros!W4:Y45,2,FALSE)="","",VLOOKUP($D$6,Parametros!W4:Y45,2,FALSE)))) -> 
C14: =IF(OR(D6="DAR (unloading, LNG storage and regasification)",D6="DARE (unloading, LNG storage, regasification and PVB entry)"),"Percentage destined to bundled product","") ->  | G14: =IF(OR(D6="DAR (descarga, almacenamiento GNL y regasificación)",D6="DARE (descarga, almacenamiento GNL, regasificación y entrada al PVB)"),"%","") -> 
C15: =IF(OR(D6="DAR (unloading, LNG storage and regasification)",D6="DARE (unloading, LNG storage, regasification and PVB entry)",D6="AR (LNG storage and regasification)",D6="ARE (LNG storage, regasification and PVB entry)"),"Temporal horizon of regasification","") ->  | G15: =IF(OR(D6="DAR (descarga, almacenamiento GNL y regasificación)",D6="DARE (descarga, almacenamiento GNL, regasificación y entrada al PVB)",D6="AR (almacenamiento GNL y regasificación)",D6="ARE (almacenamiento GNL, regasificación y entrada al PVB)"),"Días","") -> 
C16: =IF(OR(D6="DAR (unloading, LNG storage and regasification)",D6="DARE (unloading, LNG storage, regasification and PVB entry)",D6="AR (LNG storage and regasification)",D6="ARE (LNG storage, regasification and PVB entry)"),"Regasification start date","") -> 
C17: =IF(OR(D6="",D6="PVB exit to consumer"),"","Auction premium") ->  | G17: =IF($C$17="","",VLOOKUP($D$6,Parametros!W4:Y45,3,FALSE)) -> 
C18: Nº of days to consider on Tv | D18: =IF(OR(D13="",D12="",D11=""),"",(IF(OR(D6="DAR (unloading, LNG storage and regasification)",D6="DARE (unloading, LNG storage, regasification and PVB entry)",D6="AR (LNG storage and regasification)",D6="ARE (LNG storage, regasification and PVB entry)"),D15,((IF(OR(D6="Tanker unloading",D6="LNG terminal-to-tanker bunkering",D6="LNG ship-to-ship transfer",D6="Ship cooling"),1,(IF(D6="PVB exit to consumer",(IF(OR(MID(D8,1,SEARCH("-",D8,1)-2)="Undefined",MID(D8,1,SEARCH("-",D8,1)-2)="Annual",MID(D8,1,SEARCH("-",D8,1)-2)="Quarterly"),30,(IF(MID(D8,1,SEARCH("-",D8,1)-2)="Monthly",(_xlfn.DAYS(EOMONTH(D12,0),D12)+1),(IF(OR(MID(D8,1,SEARCH("-",D8,1)-2)="Daily",MID(D8,1,SEARCH("-",D8,1)-2)="Intraday"),1,"")))))),(IF(OR(D8="Annual",D8="Quarterly"),30,(IF(D8="Monthly",(_xlfn.DAYS(EOMONTH(D12,0),D12)+1),(IF(OR(D8="Daily",D8="Intraday",D8="Intraday. 24h duration",D8="Intraday. ≤23h duration"),1,"")))))))))))))) ->  | I18: Total guarantees
C20: Formula | D20: =IF(OR(D12="",$D$13="",D11=""),"",(IF(OR(D6="AR (LNG storage and regasification)",D6="AR (LNG storage and regasification)",D6="DARE (unloading, LNG storage, regasification and PVB entry)",D6="DAR (unloading, LNG storage and regasification)"),VLOOKUP(CONCATENATE(Garantías_TTE_AS_PR!$D$6,Garantías_TTE_AS_PR!$D$8,Garantías_TTE_AS_PR!$D$10),Parametros!$E$2:$T$511,16,FALSE),CONCATENATE(VLOOKUP(CONCATENATE(Garantías_TTE_AS_PR!$D$6,Garantías_TTE_AS_PR!$D$8,Garantías_TTE_AS_PR!$D$10),Parametros!$E$2:$T$511,2,FALSE),CHAR(10),VLOOKUP(CONCATENATE(Garantías_TTE_AS_PR!$D$6,Garantías_TTE_AS_PR!$D$8,Garantías_TTE_AS_PR!$D$10),Parametros!$E$2:$T$511,16,FALSE))))) ->  | I20: =SUM($L$27:$L$1001) -> 0
C21: Required guarantees | D21: =IF(OR(D13="",$D$8="",D12="",D11="",AND(D6="AR (LNG storage and regasification)",D15=""),AND(D6="ARE (LNG storage, regasification and PVB entry)",D15=""),AND(D6="DAR (unloading, LNG storage and regasification)",OR(D15="",D16="")),AND(D6="DARE (unloading, LNG storage, regasification and PVB entry)",OR(D15="",D16=""))),"",VLOOKUP($D$6&$D$8&$D$10,Parametros!$E$4:$T$511,14,FALSE)) -> 
C22: End of validation date | D22: =IF(OR(D21="",D8=""),"",IF(OR(D6="DAR (unloading, LNG storage and regasification)",D6="DARE (unloading, LNG storage, regasification and PVB entry)"),EOMONTH(D16+D15-1,0)+30,((IF(D6="PVB exit to consumer",IF(MID(D8,1,SEARCH("-",D8,1)-2)="Undefined","31/12/2222",IF(MID(D8,1,SEARCH("-",D8,1)-2)="Annual",EOMONTH(D12,11)+30,(IF(MID(D8,1,SEARCH("-",D8,1)-2)="Quarterly",EOMONTH(D12,2)+30,(IF(MID(D8,1,SEARCH("-",D8,1)-2)="Monthly",EOMONTH(D12,0)+30,(IF(MID(D8,1,SEARCH("-",D8,1)-2)="Daily",EOMONTH(D12,0)+30,(IF(MID(D8,1,SEARCH("-",D8,1)-2)="Intraday",EOMONTH(D12,0)+30,9)))))))))),(IF(D8="Annual",EOMONTH(D12,11)+30,(IF(D8="Quarterly",EOMONTH(D12,2)+30,(IF(OR(D8="Monthly",D8="Monthly frequency (Slots)",D8="Annual frequency (Slots)"),EOMONTH(D12,0)+30,(IF(OR(D8="Daily",D8="Intraday",D8="Intraday. 24h duration",D8="Intraday. ≤23h duration"),EOMONTH(D12,0)+30,""))))))))))))) -> 
L23: Fecha actualización: | M23: 1/10/2024
B25: ID | C25: Service | D25: Product | E25: Nature | F25: Infrastructure | G25: Capacity | I25: Premium | K25: Service start date | L25: Guarantees (€) | M25: End of validation date garantía
G26: Amount | H26: Unit | I26: Amount | J26: Unit

Sheet Parametros (hidden)
A1: Administración por SERVICIO/PRODUCTO | V1: Administración por SERVICIO | AA1: Administración de peajes | AQ1: Administración PEAJES. Almacenamientos subterráneos (AASS) | BA1: Administración Factor de Riesgo | BD1: Administración de parámetros | BH1: Tipos de servicios | BJ1: Gestión tramaños de buques para descargas | BN1: Naturaleza | BP1: Infrastructure | BS1: AASS - Ciclos
A2: Tipo servicio | B2: Servicio | C2: Tipo duración | D2: Infraestructura | E2: Servicio/producto | F2: Fórmula | G2: Qa | H2: Auction premium | I2: Tf | J2: Tv | K2: Cregas | L2: Cunit | M2: M | N2: DEN | O2: Días/horas | P2: FR | Q2: Int | R2: Resultado | U2: Tve | V2: Tipo servicio | W2: Servicio | X2: Un. Servicio | Y2: Un. Facturación | AA2: Para buscar | AB2: Tipo servicio | AC2: Servicio | AD2: Tamaño/Peaje | AE2: Infraestructura | AF2: Término por cap. Contratada | AH2: Término por volumen | AJ2: Término por cliente | AL2: Otros costes de regasificación | AN2: Cargos unitarios | AQ2: Productos estándar capacidad | AR2: Mes | AT2: Intraday (05) | AU2: Daily (04) | AV2: Montly (03) | AW2: Quarterly (02) | AX2: Annual (01) | AY2: Undefined | BA2: Periodo | BB2: F | BD2: Parámetro | BE2: Característica | BH2: Tipos de servicios | BJ2: Código buques | BK2: Rango inferior (kWh) | BL2: Rango superior (inclusive) (kWh) | BN2: Naturaleza | BP2: Entrada | BQ2: Salida | BS2: Mes | BT2: Ciclo
AF3: Valor | AG3: Unidad | AH3: Valor | AI3: Unidad | AJ3: Valor | AK3: Unidad | AL3: Valor | AM3: Unidad | AN3: Valor | AO3: Unidad | BE3: Valor | BF3: Unidades | BV3: Fechas año bisiesto | BX3: Año natural bisiesto
A4: Individualized services | B4: Regasification | C4: Annual | D4: =IF(Garantías_TTE_AS_PR!$D$10="","",Garantías_TTE_AS_PR!$D$10) ->  | E4: =B4&C4 -> RegasificationAnnual | F4: [(TCR x M + prima)/den + TVR] x Qa x D x FR | G4: =Garantías_TTE_AS_PR!$D$13 -> 0 | H4: =Garantías_TTE_AS_PR!$D$17 -> 0 | I4: =VLOOKUP(B4,$AC$4:$AH$219,4,FALSE) -> 0.019877 | J4: =VLOOKUP(B4,$AC$4:$AH$219,6,FALSE) -> 0.000219 | K4: =VLOOKUP(B4,$AC$4:$AL$219,10,FALSE) -> 0 | L4: =VLOOKUP(B4,$AC$4:$AN$220,12,FALSE) -> 0 | M4: =IF(C4="Annual",VLOOKUP(MONTH(Garantías_TTE_AS_PR!$D$12),$AS$36:$AY$47,6),(IF(C4="Quarterly",VLOOKUP(MONTH(Garantías_TTE_AS_PR!$D$12),$AS$36:$AY$47,5),(IF(C4="Monthly",VLOOKUP(MONTH(Garantías_TTE_AS_PR!$D$12),$AS$36:$AY$47,4),(IF(OR(C4="Daily",C4="Intraday. 24h duration"),VLOOKUP(MONTH(Garantías_TTE_AS_PR!$D$12),$AS$36:$AY$47,3),(IF(OR(C4="Intraday",C4="Intraday. ≤23h duration"),VLOOKUP(MONTH(Garantías_TTE_AS_PR!$D$12),$AS$36:$AY$47,2),""))))))))) -> 1 | N4: =IF(Garantías_TTE_AS_PR!$D$8="Annual",IFERROR(_xlfn.IFS(AND(Garantías_TTE_AS_PR!$D$12>=$BV$4,Garantías_TTE_AS_PR!$D$12<$BW$4),$BE$6,AND(Garantías_TTE_AS_PR!$D$12>=$BV$5,Garantías_TTE_AS_PR!$D$12<$BW$5),$BE$6,AND(Garantías_TTE_AS_PR!$D$12>=$BV$6,Garantías_TTE_AS_PR!$D$12<$BW$6),$BE$6,AND(Garantías_TTE_AS_PR!$D$12>=$BV$7,Garantías_TTE_AS_PR!$D$12<$BW$7),$BE$6,AND(Garantías_TTE_AS_PR!$D$12>=$BV$8,Garantías_TTE_AS_PR!$D$12<$BW$8),$BE$6),$BE$5),(IF(OR(YEAR(Garantías_TTE_AS_PR!$D$12)=2020,YEAR(Garantías_TTE_AS_PR!$D$12)=2024,YEAR(Garantías_TTE_AS_PR!$D$12)=2028,YEAR(Garantías_TTE_AS_PR!$D$12)=2032,YEAR(Garantías_TTE_AS_PR!$D$12)=2036,YEAR(Garantías_TTE_AS_PR!$D$12)=2040,YEAR(Garantías_TTE_AS_PR!$D$12)=2044,YEAR(Garantías_TTE_AS_PR!$D$12)=2048),$BE$6,$BE$5))) -> 365 | O4: =Garantías_TTE_AS_PR!$D$18 ->  | P4: =VLOOKUP(C4,$BA$4:$BB$51,2,FALSE) -> 2 | Q4: =IF(Garantías_TTE_AS_PR!$D$11="Firm",1,IF(Garantías_TTE_AS_PR!$D$11="Uninterruptible",1,1)) -> 1 | R4: =ROUND((((I4*M4)*Q4+H4)/N4+J4)*O4*G4*P4,2) ->  | S4: =B4&C4 -> RegasificationAnnual | T4: =CONCATENATE("[(",I4," x ",M4," + ",H4,")", " / ",N4," + ",J4,")] x ",TEXT(G4,"#.##0")," x ",O4," x ",P4) -> [(0,019877 x 1 + 0) / 365 + 0,000219)] x 0 x x 2 | V4: Bundled services | W4: Underground natural gas storage, injection, extraction | X4: kWh | Y4: €/(kWh/day)/year | AA4: =IF(AC4="","",CONCATENATE(AC4,AD4,AE4)) -> Underground natural gas storage | AB4: Individualized | AC4: Underground natural gas storage | AF4: 0.002556 | AG4: €/(kWh/día)/año | AH4: 0 | AI4: €/kWh | AR4: January | AS4: 1 | AT4: 2.4 | AU4: 1.6 | AV4: 1.3 | AW4: 1 | AX4: 1 | AY4: 1 | BA4: Undefined | BB4: 2 | BD4: IEH | BE4: 0.000936 | BF4: c€/kWh | BH4: Bundled services | BJ4: S | BK4: 0 | BL4: 272160000 | BN4: Firm | BP4: CI Tarifa | BQ4: VIP Pirineos | BS4: 1 | BT4: Extraction | BV4: 2023-03-01 | BW4: 2024-03-01 | BX4: 2024-01-01 | BY4: 2024-12-31
A5: Individualized services | B5: Regasification | C5: Quarterly | D5: =IF(Garantías_TTE_AS_PR!$D$10="","",Garantías_TTE_AS_PR!$D$10) ->  | E5: =B5&C5 -> RegasificationQuarterly | F5: [(TCR x M + prima)/den + TVR] x Qa x D x FR | G5: =Garantías_TTE_AS_PR!$D$13 -> 0 | H5: =Garantías_TTE_AS_PR!$D$17 -> 0 | I5: =VLOOKUP(B5,$AC$4:$AH$219,4,FALSE) -> 0.019877 | J5: 0.000219 | K5: 0 | L5: 0 | M5: =IF(C5="Annual",VLOOKUP(MONTH(Garantías_TTE_AS_PR!$D$12),$AS$36:$AY$47,6),(IF(C5="Quarterly",VLOOKUP(MONTH(Garantías_TTE_AS_PR!$D$12),$AS$36:$AY$47,5),(IF(C5="Monthly",VLOOKUP(MONTH(Garantías_TTE_AS_PR!$D$12),$AS$36:$AY$47,4),(IF(OR(C5="Daily",C5="Intraday. 24h duration"),VLOOKUP(MONTH(Garantías_TTE_AS_PR!$D$12),$AS$36:$AY$47,3),(IF(OR(C5="Intraday",C5="Intraday. ≤23h duration"),VLOOKUP(MONTH(Garantías_TTE_AS_PR!$D$12),$AS$36:$AY$47,2),""))))))))) -> 1.2 | N5: =IF(Garantías_TTE_AS_PR!$D$8="Quarterly",IFERROR(_xlfn.IFS(AND(Garantías_TTE_AS_PR!$D$12>=$BX$4,Garantías_TTE_AS_PR!$D$12<$BY$4),$BE$6,AND(Garantías_TTE_AS_PR!$D$12>=$BX$5,Garantías_TTE_AS_PR!$D$12<$BY$5),$BE$6,AND(Garantías_TTE_AS_PR!$D$12>=$BX$6,Garantías_TTE_AS_PR!$D$12<$BY$6),$BE$6,AND(Garantías_TTE_AS_PR!$D$12>=$BX$7,Garantías_TTE_AS_PR!$D$12<$BY$7),$BE$6,AND(Garantías_TTE_AS_PR!$D$12>=$BX$8,Garantías_TTE_AS_PR!$D$12<$BY$8),$BE$6),$BE$5),(IF(OR(YEAR(Garantías_TTE_AS_PR!$D$12)=2020,YEAR(Garantías_TTE_AS_PR!$D$12)=2024,YEAR(Garantías_TTE_AS_PR!$D$12)=2028,YEAR(Garantías_TTE_AS_PR!$D$12)=2032,YEAR(Garantías_TTE_AS_PR!$D$12)=2036,YEAR(Garantías_TTE_AS_PR!$D$12)=2040,YEAR(Garantías_TTE_AS_PR!$D$12)=2044,YEAR(Garantías_TTE_AS_PR!$D$12)=2048),$BE$6,$BE$5))) -> 365 | O5: =Garantías_TTE_AS_PR!$D$18 ->  | P5: 2 | Q5: =IF(Garantías_TTE_AS_PR!$D$11="Firm",1,IF(Garantías_TTE_AS_PR!$D$11="Uninterruptible",1,1)) -> 1 | R5: =ROUND((((I5*M5)*Q5+H5)/N5+J5)*O5*G5*P5,2) ->  | S5: RegasificationQuarterly | T5: =CONCATENATE("[(",I5," x ",M5," + ",H5,")", " / ",N5," + ",J5,")] x ",TEXT(G5,"#.##0")," x ",O5," x ",P5) -> [(0,019877 x 1,2 + 0) / 365 + 0,000219)] x 0 x x 2 | V5: Bundled services | W5: DAR (unloading, LNG storage and regasification) | X5: kWh | Y5: €/ship | AA5: =IF(AC5="","",CONCATENATE(AC5,AD5,AE5)) -> Injection | AB5: Individualized | AC5: Injection | AF5: 0.096387 | AG5: €/(kWh/día)/año | AH5: 0 | AI5: €/kWh | AR5: February | AS5: 2 | AT5: 2.1 | AU5: 1.3 | AV5: 1.1 | AW5: 1 | AX5: 1 | AY5: 1 | BA5: Annual | BB5: 2 | BD5: Días año no bisiesto | BE5: 365 | BF5: Días | BH5: Individualized services | BJ5: M | BK5: 272160000 | BL5: 510300000 | BN5: Uninterruptible | BP5: CI Almería | BQ5: VIP Ibérico | BS5: 2 | BT5: Extraction | BV5: 2027-03-01 | BW5: 2028-03-01 | BX5: 2028-01-01 | BY5: 2028-12-31
A6: Individualized services | B6: Regasification | C6: Monthly | D6: =IF(Garantías_TTE_AS_PR!$D$10="","",Garantías_TTE_AS_PR!$D$10) ->  | E6: =B6&C6 -> RegasificationMonthly | F6: [(TCR x M + prima)/den + TVR] x Qa x D x FR | G6: =Garantías_TTE_AS_PR!$D$13 -> 0 | H6: =Garantías_TTE_AS_PR!$D$17 -> 0 | I6: =VLOOKUP(B6,$AC$4:$AH$219,4,FALSE) -> 0.019877 | J6: 0.000219 | K6: 0 | L6: 0 | M6: =IF(C6="Annual",VLOOKUP(MONTH(Garantías_TTE_AS_PR!$D$12),$AS$36:$AY$47,6),(IF(C6="Quarterly",VLOOKUP(MONTH(Garantías_TTE_AS_PR!$D$12),$AS$36:$AY$47,5),(IF(C6="Monthly",VLOOKUP(MONTH(Garantías_TTE_AS_PR!$D$12),$AS$36:$AY$47,4),(IF(OR(C6="Daily",C6="Intraday. 24h duration"),VLOOKUP(MONTH(Garantías_TTE_AS_PR!$D$12),$AS$36:$AY$47,3),(IF(OR(C6="Intraday",C6="Intraday. ≤23h duration"),VLOOKUP(MONTH(Garantías_TTE_AS_PR!$D$12),$AS$36:$AY$47,2),""))))))))) -> 1.3 | N6: =IF(Garantías_TTE_AS_PR!$D$8="Monthly",IFERROR(_xlfn.IFS(AND(Garantías_TTE_AS_PR!$D$12>=$BX$4,Garantías_TTE_AS_PR!$D$12<$BY$4),$BE$6,AND(Garantías_TTE_AS_PR!$D$12>=$BX$5,Garantías_TTE_AS_PR!$D$12<$BY$5),$BE$6,AND(Garantías_TTE_AS_PR!$D$12>=$BX$6,Garantías_TTE_AS_PR!$D$12<$BY$6),$BE$6,AND(Garantías_TTE_AS_PR!$D$12>=$BX$7,Garantías_TTE_AS_PR!$D$12<$BY$7),$BE$6,AND(Garantías_TTE_AS_PR!$D$12>=$BX$8,Garantías_TTE_AS_PR!$D$12<$BY$8),$BE$6),$BE$5),(IF(OR(YEAR(Garantías_TTE_AS_PR!$D$12)=2020,YEAR(Garantías_TTE_AS_PR!$D$12)=2024,YEAR(Garantías_TTE_AS_PR!$D$12)=2028,YEAR(Garantías_TTE_AS_PR!$D$12)=2032,YEAR(Garantías_TTE_AS_PR!$D$12)=2036,YEAR(Garantías_TTE_AS_PR!$D$12)=2040,YEAR(Garantías_TTE_AS_PR!$D$12)=2044,YEAR(Garantías_TTE_AS_PR!$D$12)=2048),$BE$6,$BE$5))) -> 365 | O6: =Garantías_TTE_AS_PR!$D$18 ->  | P6: 1 | Q6: =IF(Garantías_TTE_AS_PR!$D$11="Firm",1,IF(Garantías_TTE_AS_PR!$D$11="Uninterruptible",1,1)) -> 1 | S6: RegasificationMonthly | T6: [(0,019877 x 1,3 + 0) / 365 + 0,000219)] x 0 x x 1 | V6: Bundled services | W6: DARE (unloading, LNG storage, regasification and PVB entry) | X6: kWh | Y6: €/ship | AA6: Extraction | AB6: Individualized | AC6: Extraction | AF6: 0,071538 | AG6: €/(kWh/día)/año | AH6: 0 | AI6: €/kWh | AR6: March | AS6: 3 | AT6: 1.9 | AU6: 1.2 | AV6: 1 | AW6: 1 | AX6: 1 | AY6: 1 | BA6: Quarterly | BB6: 2 | BD6: Días año bisiesto | BE6: 366 | BF6: Días | BJ6: L | BK6: 510300000 | BL6: 1020600000 | BP6: VIP Pirineos | BQ6: CI Tarifa | BS6: 3 | BT6: Extraction | BV6: 2031-03-01 | BW6: 2032-03-01 | BX6: 2032-01-01 | BY6: 2032-12-31
A7: Individualized services | B7: Regasification | C7: Daily | D7: =IF(Garantías_TTE_AS_PR!$D$10="","",Garantías_TTE_AS_PR!$D$10) ->  | E7: RegasificationDaily | F7: [(TCR x M + prima)/den + TVR] x Qa x D x FR | G7: =Garantías_TTE_AS_PR!$D$13 -> 0 | H7: =Garantías_TTE_AS_PR!$D$17 -> 0 | I7: 0.019877 | J7: 0.000219 | K7: 0 | L7: 0 | M7: =IF(C7="Annual",VLOOKUP(MONTH(Garantías_TTE_AS_PR!$D$12),$AS$36:$AY$47,6),(IF(C7="Quarterly",VLOOKUP(MONTH(Garantías_TTE_AS_PR!$D$12),$AS$36:$AY$47,5),(IF(C7="Monthly",VLOOKUP(MONTH(Garantías_TTE_AS_PR!$D$12),$AS$36:$AY$47,4),(IF(OR(C7="Daily",C7="Intraday. 24h duration"),VLOOKUP(MONTH(Garantías_TTE_AS_PR!$D$12),$AS$36:$AY$47,3),(IF(OR(C7="Intraday",C7="Intraday. ≤23h duration"),VLOOKUP(MONTH(Garantías_TTE_AS_PR!$D$12),$AS$36:$AY$47,2),""))))))))) -> 1.7 | N7: =IF(Garantías_TTE_AS_PR!$D$8="Daily",IFERROR(_xlfn.IFS(AND(Garantías_TTE_AS_PR!$D$12>=$BX$4,Garantías_TTE_AS_PR!$D$12<$BY$4),$BE$6,AND(Garantías_TTE_AS_PR!$D$12>=$BX$5,Garantías_TTE_AS_PR!$D$12<$BY$5),$BE$6,AND(Garantías_TTE_AS_PR!$D$12>=$BX$6,Garantías_TTE_AS_PR!$D$12<$BY$6),$BE$6,AND(Garantías_TTE_AS_PR!$D$12>=$BX$7,Garantías_TTE_AS_PR!$D$12<$BY$7),$BE$6,AND(Garantías_TTE_AS_PR!$D$12>=$BX$8,Garantías_TTE_AS_PR!$D$12<$BY$8),$BE$6),$BE$5),(IF(OR(YEAR(Garantías_TTE_AS_PR!$D$12)=2020,YEAR(Garantías_TTE_AS_PR!$D$12)=2024,YEAR(Garantías_TTE_AS_PR!$D$12)=2028,YEAR(Garantías_TTE_AS_PR!$D$12)=2032,YEAR(Garantías_TTE_AS_PR!$D$12)=2036,YEAR(Garantías_TTE_AS_PR!$D$12)=2040,YEAR(Garantías_TTE_AS_PR!$D$12)=2044,YEAR(Garantías_TTE_AS_PR!$D$12)=2048),$BE$6,$BE$5))) -> 365 | O7: =Garantías_TTE_AS_PR!$D$18 ->  | P7: =VLOOKUP(C7,$BA$4:$BB$51,2,FALSE) -> 1 | Q7: =IF(Garantías_TTE_AS_PR!$D$11="Firm",1,IF(Garantías_TTE_AS_PR!$D$11="Uninterruptible",1,1)) -> 1 | S7: RegasificationDaily | T7: [(0,019877 x 1,7 + 0) / 365 + 0,000219)] x 0 x x 1 | U7: =I7*M7/365+J7 -> 0.0003115778082 | V7: Bundled services | W7: AR (LNG storage and regasification) | X7: kWh | Y7: €/kWh/year | AA7: LNG storage | AB7: Individualized | AC7: LNG storage | AF7: 0.00056 | AG7: €/(kWh/día)/año | AH7: 3e-06 | AI7: €/kWh | AR7: April | AS7: 4 | AT7: 2.1 | AU7: 1.3 | AV7: 1.1 | AW7: 1 | AX7: 1 | AY7: 1 | BA7: Mensual | BB7: 1 | BD7: Horas año no bisiesto | BE7: 8760 | BF7: Horas | BJ7: XL | BK7: 1020600000 | BL7: 1469664000 | BP7: VIP Ibérico | BQ7: GNL | BS7: 4 | BT7: Injection | BV7: 2035-03-01 | BW7: 2036-03-01 | BX7: 2036-01-01 | BY7: 2036-12-31
A8: Individualized services | B8: Regasification | C8: Intraday. 24h duration | D8: =IF(Garantías_TTE_AS_PR!$D$10="","",Garantías_TTE_AS_PR!$D$10) ->  | E8: RegasificationIntraday. 24h duration | F8: [(TCR x M + prima)/den + TVR] x Qa x D x FR | G8: =Garantías_TTE_AS_PR!$D$13 -> 0 | H8: =Garantías_TTE_AS_PR!$D$17 -> 0 | I8: 0.019877 | J8: 0.000219 | K8: 0 | L8: 0 | M8: =IF(C8="Annual",VLOOKUP(MONTH(Garantías_TTE_AS_PR!$D$12),$AS$36:$AY$47,6),(IF(C8="Quarterly",VLOOKUP(MONTH(Garantías_TTE_AS_PR!$D$12),$AS$36:$AY$47,5),(IF(C8="Monthly",VLOOKUP(MONTH(Garantías_TTE_AS_PR!$D$12),$AS$36:$AY$47,4),(IF(OR(C8="Daily",C8="Intraday. 24h duration"),VLOOKUP(MONTH(Garantías_TTE_AS_PR!$D$12),$AS$36:$AY$47,3),(IF(OR(C8="Intraday",C8="Intraday. ≤23h duration"),VLOOKUP(MONTH(Garantías_TTE_AS_PR!$D$12),$AS$36:$AY$47,2),""))))))))) -> 1.7 | N8: =IF(Garantías_TTE_AS_PR!$D$8="Intraday. 24h duration",IFERROR(_xlfn.IFS(AND(Garantías_TTE_AS_PR!$D$12>=$BX$4,Garantías_TTE_AS_PR!$D$12<$BY$4),$BE$6,AND(Garantías_TTE_AS_PR!$D$12>=$BX$5,Garantías_TTE_AS_PR!$D$12<$BY$5),$BE$6,AND(Garantías_TTE_AS_PR!$D$12>=$BX$6,Garantías_TTE_AS_PR!$D$12<$BY$6),$BE$6,AND(Garantías_TTE_AS_PR!$D$12>=$BX$7,Garantías_TTE_AS_PR!$D$12<$BY$7),$BE$6,AND(Garantías_TTE_AS_PR!$D$12>=$BX$8,Garantías_TTE_AS_PR!$D$12<$BY$8),$BE$6),$BE$5),(IF(OR(YEAR(Garantías_TTE_AS_PR!$D$12)=2020,YEAR(Garantías_TTE_AS_PR!$D$12)=2024,YEAR(Garantías_TTE_AS_PR!$D$12)=2028,YEAR(Garantías_TTE_AS_PR!$D$12)=2032,YEAR(Garantías_TTE_AS_PR!$D$12)=2036,YEAR(Garantías_TTE_AS_PR!$D$12)=2040,YEAR(Garantías_TTE_AS_PR!$D$12)=2044,YEAR(Garantías_TTE_AS_PR!$D$12)=2048),$BE$6,$BE$5))) -> 365 | O8: =Garantías_TTE_AS_PR!$D$18 ->  | P8: 1 | Q8: =IF(Garantías_TTE_AS_PR!$D$11="Firm",1,IF(Garantías_TTE_AS_PR!$D$11="Uninterruptible",1,1)) -> 1 | S8: RegasificationIntraday. 24h duration | T8: [(0,019877 x 1,7 + 0) / 365 + 0,000219)] x 0 x x 1 | V8: Bundled services | W8: ARE (LNG storage, regasification and PVB entry) | X8: kWh | Y8: €/kWh/year | AA8: Regasification | AB8: Individualized | AC8: Regasification | AF8: 0.019877 | AG8: €/(kWh/día)/año | AH8: 0.000219 | AI8: €/kWh | AR8: May | AS8: 5 | AT8: 2.1 | AU8: 1.3 | AV8: 1.1 | AW8: 1 | AX8: 1 | AY8: 1 | BA8: Monthly | BB8: 1 | BD8: Horas año bisiesto | BE8: 8784 | BF8: Horas | BJ8: XXL | BK8: 1469664000 | BP8: GNL | BQ8: AASS | BS8: 5 | BT8: Injection | BV8: 2039-03-01 | BW8: 2040-03-01 | BX8: 2040-01-01 | BY8: 2040-12-31
A9: Individualized services | B9: Regasification | C9: Intraday. ≤23h duration | D9: =IF(Garantías_TTE_AS_PR!$D$10="","",Garantías_TTE_AS_PR!$D$10) ->  | E9: RegasificationIntraday. ≤23h duration | F9: [(TCR x M + prima) x (Qa x 24 / H) x H / den + TVR x Qa] x FR | G9: =Garantías_TTE_AS_PR!$D$13 -> 0 | H9: =Garantías_TTE_AS_PR!$D$17 -> 0 | I9: 0.019877 | J9: 0.000219 | K9: 0 | L9: 0 | M9: =IF(C9="Annual",VLOOKUP(MONTH(Garantías_TTE_AS_PR!$D$12),$AS$36:$AY$47,6),(IF(C9="Quarterly",VLOOKUP(MONTH(Garantías_TTE_AS_PR!$D$12),$AS$36:$AY$47,5),(IF(C9="Monthly",VLOOKUP(MONTH(Garantías_TTE_AS_PR!$D$12),$AS$36:$AY$47,4),(IF(OR(C9="Daily",C9="Intraday. 24h duration"),VLOOKUP(MONTH(Garantías_TTE_AS_PR!$D$12),$AS$36:$AY$47,3),(IF(OR(C9="Intraday",C9="Intraday. ≤23h duration"),VLOOKUP(MONTH(Garantías_TTE_AS_PR!$D$12),$AS$36:$AY$47,2),""))))))))) -> 6 | N9: =IF(Garantías_TTE_AS_PR!$D$8="Intraday. ≤23h duration",IFERROR(_xlfn.IFS(AND(Garantías_TTE_AS_PR!$D$12>=$BX$4,Garantías_TTE_AS_PR!$D$12<$BY$4),$BE$8,AND(Garantías_TTE_AS_PR!$D$12>=$BX$5,Garantías_TTE_AS_PR!$D$12<$BY$5),$BE$8,AND(Garantías_TTE_AS_PR!$D$12>=$BX$6,Garantías_TTE_AS_PR!$D$12<$BY$6),$BE$8,AND(Garantías_TTE_AS_PR!$D$12>=$BX$7,Garantías_TTE_AS_PR!$D$12<$BY$7),$BE$8,AND(Garantías_TTE_AS_PR!$D$12>=$BX$8,Garantías_TTE_AS_PR!$D$12<$BY$8),$BE$8),$BE$7),(IF(OR(YEAR(Garantías_TTE_AS_PR!$D$12)=2020,YEAR(Garantías_TTE_AS_PR!$D$12)=2024,YEAR(Garantías_TTE_AS_PR!$D$12)=2028,YEAR(Garantías_TTE_AS_PR!$D$12)=2032,YEAR(Garantías_TTE_AS_PR!$D$12)=2036,YEAR(Garantías_TTE_AS_PR!$D$12)=2040,YEAR(Garantías_TTE_AS_PR!$D$12)=2044,YEAR(Garantías_TTE_AS_PR!$D$12)=2048),$BE$8,$BE$7))) -> 8760 | O9: =Garantías_TTE_AS_PR!$D$9 -> 0 | P9: =VLOOKUP(C9,$BA$4:$BB$51,2,FALSE) -> 1 | Q9: =IF(Garantías_TTE_AS_PR!$D$11="Firm",1,IF(Garantías_TTE_AS_PR!$D$11="Uninterruptible",1,1)) -> 1 | R9: =ROUND((((I9*M9)*Q9+H9)/(N9/24)+J9)*G9*P9,2) -> 0 | S9: RegasificationIntraday. ≤23h duration | T9: =CONCATENATE("[(",I9," x ",M9," + ",H9,")"," x (",TEXT(G9,"#.##0")," x 24 / ",O9, ") x ",O9," / ",N9," + ",J9," x ",TEXT(G9,"#.##0"),")] x ",P9) -> [(0,019877 x 6 + 0) x (0 x 24 / 0) x 0 / 8760 + 0,000219 x 0)] x 1 | V9: Individualized services | W9: Underground natural gas storage | X9: kWh | Y9: €/(kWh/day)/year | AA9: LNG truck loading | AB9: Individualized | AC9: LNG truck loading | AF9: 0.022806 | AG9: €/(kWh/día)/año | AH9: 0.000331 | AI9: €/kWh | AL9: 0.000122 | AM9: €/kWh y año | AR9: June | AS9: 6 | AT9: 2.1 | AU9: 1.3 | AV9: 1.1 | AW9: 1 | AX9: 1 | AY9: 1 | BA9: Daily | BB9: 1 | BD9: Factor riesgo distribución | BE9: 2 | BF9: meses | BP9: YAC Marismas | BS9: 6 | BT9: Injection
A10: Individualized services | B10: LNG truck loading | C10: Annual | D10: =IF(Garantías_TTE_AS_PR!$D$10="","",Garantías_TTE_AS_PR!$D$10) ->  | E10: LNG truck loadingAnnual | F10: [(TCCC x M + prima)/den + TVCC + Ocreg + IEH] x Qa x D x FR | G10: =Garantías_TTE_AS_PR!$D$13 -> 0 | H10: =Garantías_TTE_AS_PR!$D$17 -> 0 | I10: 0.022806 | J10: 0.000331 | K10: 0.000122 | L10: 0 | M10: =IF(C10="Annual",VLOOKUP(MONTH(Garantías_TTE_AS_PR!$D$12),$AS$52:$AY$63,6),(IF(C10="Quarterly",VLOOKUP(MONTH(Garantías_TTE_AS_PR!$D$12),$AS$52:$AY$63,5),(IF(C10="Monthly",VLOOKUP(MONTH(Garantías_TTE_AS_PR!$D$12),$AS$52:$AY$63,4),(IF(OR(C10="Daily",C10="Intraday. 24h duration"),VLOOKUP(MONTH(Garantías_TTE_AS_PR!$D$12),$AS$52:$AY$63,3),(IF(OR(C10="Intraday",C10="Intraday. ≤23h duration"),VLOOKUP(MONTH(Garantías_TTE_AS_PR!$D$12),$AS$52:$AY$63,2),""))))))))) -> 1 | N10: =IF(Garantías_TTE_AS_PR!$D$8="Annual",IFERROR(_xlfn.IFS(AND(Garantías_TTE_AS_PR!$D$12>=$BV$4,Garantías_TTE_AS_PR!$D$12<$BW$4),$BE$6,AND(Garantías_TTE_AS_PR!$D$12>=$BV$5,Garantías_TTE_AS_PR!$D$12<$BW$5),$BE$6,AND(Garantías_TTE_AS_PR!$D$12>=$BV$6,Garantías_TTE_AS_PR!$D$12<$BW$6),$BE$6,AND(Garantías_TTE_AS_PR!$D$12>=$BV$7,Garantías_TTE_AS_PR!$D$12<$BW$7),$BE$6,AND(Garantías_TTE_AS_PR!$D$12>=$BV$8,Garantías_TTE_AS_PR!$D$12<$BW$8),$BE$6),$BE$5),(IF(OR(YEAR(Garantías_TTE_AS_PR!$D$12)=2020,YEAR(Garantías_TTE_AS_PR!$D$12)=2024,YEAR(Garantías_TTE_AS_PR!$D$12)=2028,YEAR(Garantías_TTE_AS_PR!$D$12)=2032,YEAR(Garantías_TTE_AS_PR!$D$12)=2036,YEAR(Garantías_TTE_AS_PR!$D$12)=2040,YEAR(Garantías_TTE_AS_PR!$D$12)=2044,YEAR(Garantías_TTE_AS_PR!$D$12)=2048),$BE$6,$BE$5))) -> 365 | O10: =Garantías_TTE_AS_PR!$D$18 ->  | P10: 2 | Q10: =IF(Garantías_TTE_AS_PR!$D$11="Firm",1,IF(Garantías_TTE_AS_PR!$D$11="Uninterruptible",1,1)) -> 1 | R10: =ROUND((((I10*M10)*Q10+H10)/N10+J10+K10+$BE$4)*O10*G10*P10,2) ->  | S10: LNG truck loadingAnnual | T10: =CONCATENATE("[(",I10," x ",M10," + ",H10,")", " / ",N10," + ",J10," + ",K10," + ",$BE$4,")] x ",TEXT(G10,"#.##0")," x ",O10," x ",P10) -> [(0,022806 x 1 + 0) / 365 + 0,000331 + 0,000122 + 0,000936)] x 0 x x 2 | V10: Individualized services | W10: LNG storage | X10: kWh | Y10: €/(kWh/day)/year | AA10: Virtual liquefaction | AB10: Individualized | AC10: Virtual liquefaction | AF10: 0.001365 | AG10: €/(kWh/día)/año | AH10: 0 | AI10: €/kWh | AR10: July | AS10: 7 | AT10: 2.4 | AU10: 1.6 | AV10: 1.3 | AW10: 1.3 | AX10: 1 | AY10: 1 | BA10: Intraday | BB10: 1 | BD10: Número días distribución | BE10: 30 | BF10: días | BP10: YAC Aznalcázar | BS10: 7 | BT10: Injection | BV10: 2023-11-01 | BW10: 2024-03-01
A11: Individualized services | B11: LNG truck loading | C11: Quarterly | D11: =IF(Garantías_TTE_AS_PR!$D$10="","",Garantías_TTE_AS_PR!$D$10) ->  | E11: LNG truck loadingQuarterly | F11: [(TCCC x M + prima)/den + TVCC + Ocreg + IEH] x Qa x D x FR | G11: =Garantías_TTE_AS_PR!$D$13 -> 0 | H11: =Garantías_TTE_AS_PR!$D$17 -> 0 | I11: 0.022806 | J11: 0.000331 | K11: 0.000122 | L11: 0 | M11: =IF(C11="Annual",VLOOKUP(MONTH(Garantías_TTE_AS_PR!$D$12),$AS$52:$AY$63,6),(IF(C11="Quarterly",VLOOKUP(MONTH(Garantías_TTE_AS_PR!$D$12),$AS$52:$AY$63,5),(IF(C11="Monthly",VLOOKUP(MONTH(Garantías_TTE_AS_PR!$D$12),$AS$52:$AY$63,4),(IF(OR(C11="Daily",C11="Intraday. 24h duration"),VLOOKUP(MONTH(Garantías_TTE_AS_PR!$D$12),$AS$52:$AY$63,3),(IF(OR(C11="Intraday",C11="Intraday. ≤23h duration"),VLOOKUP(MONTH(Garantías_TTE_AS_PR!$D$12),$AS$52:$AY$63,2),""))))))))) -> 1.1 | N11: =IF(Garantías_TTE_AS_PR!$D$8="Quarterly",IFERROR(_xlfn.IFS(AND(Garantías_TTE_AS_PR!$D$12>=$BX$4,Garantías_TTE_AS_PR!$D$12<$BY$4),$BE$6,AND(Garantías_TTE_AS_PR!$D$12>=$BX$5,Garantías_TTE_AS_PR!$D$12<$BY$5),$BE$6,AND(Garantías_TTE_AS_PR!$D$12>=$BX$6,Garantías_TTE_AS_PR!$D$12<$BY$6),$BE$6,AND(Garantías_TTE_AS_PR!$D$12>=$BX$7,Garantías_TTE_AS_PR!$D$12<$BY$7),$BE$6,AND(Garantías_TTE_AS_PR!$D$12>=$BX$8,Garantías_TTE_AS_PR!$D$12<$BY$8),$BE$6),$BE$5),(IF(OR(YEAR(Garantías_TTE_AS_PR!$D$12)=2020,YEAR(Garantías_TTE_AS_PR!$D$12)=2024,YEAR(Garantías_TTE_AS_PR!$D$12)=2028,YEAR(Garantías_TTE_AS_PR!$D$12)=2032,YEAR(Garantías_TTE_AS_PR!$D$12)=2036,YEAR(Garantías_TTE_AS_PR!$D$12)=2040,YEAR(Garantías_TTE_AS_PR!$D$12)=2044,YEAR(Garantías_TTE_AS_PR!$D$12)=2048),$BE$6,$BE$5))) -> 365 | O11: =Garantías_TTE_AS_PR!$D$18 ->  | P11: 2 | Q11: =IF(Garantías_TTE_AS_PR!$D$11="Firm",1,IF(Garantías_TTE_AS_PR!$D$11="Uninterruptible",1,1)) -> 1 | R11: =ROUND((((I11*M11)*Q11+H11)/N11+J11+K11+$BE$4)*O11*G11*P11,2) ->  | S11: LNG truck loadingQuarterly | T11: =CONCATENATE("[(",I11," x ",M11," + ",H11,")", " / ",N11," + ",J11," + ",K11," + ",$BE$4,")] x ",TEXT(G11,"#.##0")," x ",O11," x ",P11) -> [(0,022806 x 1,1 + 0) / 365 + 0,000331 + 0,000122 + 0,000936)] x 0 x x 2 | V11: Individualized services | W11: LNG truck loading | X11: kWh/d | Y11: €/(kWh/day)/year | AA11: Tanker unloadingS | AB11: Individualized | AC11: Tanker unloading | AD11: S | AF11: 4355 | AG11: €/buque | AH11: 2.6e-05 | AI11: €/kWh | AR11: August | AS11: 8 | AT11: 2.8 | AU11: 1.8 | AV11: 1.5 | AW11: 1.3 | AX11: 1 | AY11: 1 | BA11: Intraday. 24h duration | BB11: 1 | BK11: =IF(G16<=BL4,BJ4,(IF(AND(G16<=BL5,G16>BK5),BJ5,(IF(AND(G16<=BL6,G16>BK6),BJ6,(IF(AND(G16<=BL7,G16>BK7),BJ7,(IF(G16>#REF!,#REF!,""))))))))) -> S | BP11: YAC Poseidón | BS11: 8 | BT11: Injection | BV11: 2027-11-01 | BW11: 2028-03-01
A12: Individualized services | B12: LNG truck loading | C12: Monthly | D12: =IF(Garantías_TTE_AS_PR!$D$10="","",Garantías_TTE_AS_PR!$D$10) ->  | E12: LNG truck loadingMonthly | F12: [(TCCC x M + prima)/den + TVCC + Ocreg + IEH] x Qa x D x FR | G12: =Garantías_TTE_AS_PR!$D$13 -> 0 | H12: =Garantías_TTE_AS_PR!$D$17 -> 0 | I12: 0.022806 | J12: 0.000331 | K12: 0.000122 | L12: 0 | M12: =IF(C12="Annual",VLOOKUP(MONTH(Garantías_TTE_AS_PR!$D$12),$AS$52:$AY$63,6),(IF(C12="Quarterly",VLOOKUP(MONTH(Garantías_TTE_AS_PR!$D$12),$AS$52:$AY$63,5),(IF(C12="Monthly",VLOOKUP(MONTH(Garantías_TTE_AS_PR!$D$12),$AS$52:$AY$63,4),(IF(OR(C12="Daily",C12="Intraday. 24h duration"),VLOOKUP(MONTH(Garantías_TTE_AS_PR!$D$12),$AS$52:$AY$63,3),(IF(OR(C12="Intraday",C12="Intraday. ≤23h duration"),VLOOKUP(MONTH(Garantías_TTE_AS_PR!$D$12),$AS$52:$AY$63,2),""))))))))) -> 1.2 | N12: =IF(Garantías_TTE_AS_PR!$D$8="Monthly",IFERROR(_xlfn.IFS(AND(Garantías_TTE_AS_PR!$D$12>=$BX$4,Garantías_TTE_AS_PR!$D$12<$BY$4),$BE$6,AND(Garantías_TTE_AS_PR!$D$12>=$BX$5,Garantías_TTE_AS_PR!$D$12<$BY$5),$BE$6,AND(Garantías_TTE_AS_PR!$D$12>=$BX$6,Garantías_TTE_AS_PR!$D$12<$BY$6),$BE$6,AND(Garantías_TTE_AS_PR!$D$12>=$BX$7,Garantías_TTE_AS_PR!$D$12<$BY$7),$BE$6,AND(Garantías_TTE_AS_PR!$D$12>=$BX$8,Garantías_TTE_AS_PR!$D$12<$BY$8),$BE$6),$BE$5),(IF(OR(YEAR(Garantías_TTE_AS_PR!$D$12)=2020,YEAR(Garantías_TTE_AS_PR!$D$12)=2024,YEAR(Garantías_TTE_AS_PR!$D$12)=2028,YEAR(Garantías_TTE_AS_PR!$D$12)=2032,YEAR(Garantías_TTE_AS_PR!$D$12)=2036,YEAR(Garantías_TTE_AS_PR!$D$12)=2040,YEAR(Garantías_TTE_AS_PR!$D$12)=2044,YEAR(Garantías_TTE_AS_PR!$D$12)=2048),$BE$6,$BE$5))) -> 365 | O12: =Garantías_TTE_AS_PR!$D$18 ->  | P12: 1 | Q12: =IF(Garantías_TTE_AS_PR!$D$11="Firm",1,IF(Garantías_TTE_AS_PR!$D$11="Uninterruptible",1,1)) -> 1 | R12: =ROUND((((I12*M12)*Q12+H12)/N12+J12+K12+$BE$4)*O12*G12*P12,2) ->  | S12: LNG truck loadingMonthly | T12: [(0,022806 x 1,2 + 0) / 365 + 0,000331 + 0,000122 + 0,000936)] x 0 x x 1 | V12: Individualized services | W12: LNG terminal-to-tanker bunkering | X12: kWh | Y12: €/ship | AA12: Tanker unloadingM | AB12: Individualized | AC12: Tanker unloading | AD12: M | AF12: 4355 | AG12: €/buque | AH12: 2.6e-05 | AI12: €/kWh | AR12: September | AS12: 9 | AT12: 3 | AU12: 2 | AV12: 1.6 | AW12: 1.3 | AX12: 1 | AY12: 1 | BA12: Intraday. ≤23h duration | BB12: 1 | BK12: =VLOOKUP(CONCATENATE(DB,IF(G16<=BL4,BJ4,(IF(AND(G16<=BL5,G16>BK5),BJ5,(IF(AND(G16<=BL6,G16>BK6),BJ6,(IF(AND(G16<=BL7,G16>BK7),BJ7,(IF(G16>#REF!,#REF!,"")))))))))),$AA$4:$AJ$139,5,FALSE) -> 0 | BP12: YAC Viura | BS12: 9 | BT12: Injection | BV12: 2031-11-01 | BW12: 2032-03-01
A13: Individualized services | B13: LNG truck loading | C13: Daily | D13: =IF(Garantías_TTE_AS_PR!$D$10="","",Garantías_TTE_AS_PR!$D$10) ->  | E13: LNG truck loadingDaily | F13: [(TCCC x M + prima)/den + TVCC + Ocreg + IEH] x Qa x D x FR | G13: =Garantías_TTE_AS_PR!$D$13 -> 0 | H13: =Garantías_TTE_AS_PR!$D$17 -> 0 | I13: 0.022806 | J13: 0.000331 | K13: 0.000122 | L13: 0 | M13: =IF(C13="Annual",VLOOKUP(MONTH(Garantías_TTE_AS_PR!$D$12),$AS$52:$AY$63,6),(IF(C13="Quarterly",VLOOKUP(MONTH(Garantías_TTE_AS_PR!$D$12),$AS$52:$AY$63,5),(IF(C13="Monthly",VLOOKUP(MONTH(Garantías_TTE_AS_PR!$D$12),$AS$52:$AY$63,4),(IF(OR(C13="Daily",C13="Intraday. 24h duration"),VLOOKUP(MONTH(Garantías_TTE_AS_PR!$D$12),$AS$52:$AY$63,3),(IF(OR(C13="Intraday",C13="Intraday. ≤23h duration"),VLOOKUP(MONTH(Garantías_TTE_AS_PR!$D$12),$AS$52:$AY$63,2),""))))))))) -> 1.7 | N13: =IF(Garantías_TTE_AS_PR!$D$8="Daily",IFERROR(_xlfn.IFS(AND(Garantías_TTE_AS_PR!$D$12>=$BX$4,Garantías_TTE_AS_PR!$D$12<$BY$4),$BE$6,AND(Garantías_TTE_AS_PR!$D$12>=$BX$5,Garantías_TTE_AS_PR!$D$12<$BY$5),$BE$6,AND(Garantías_TTE_AS_PR!$D$12>=$BX$6,Garantías_TTE_AS_PR!$D$12<$BY$6),$BE$6,AND(Garantías_TTE_AS_PR!$D$12>=$BX$7,Garantías_TTE_AS_PR!$D$12<$BY$7),$BE$6,AND(Garantías_TTE_AS_PR!$D$12>=$BX$8,Garantías_TTE_AS_PR!$D$12<$BY$8),$BE$6),$BE$5),(IF(OR(YEAR(Garantías_TTE_AS_PR!$D$12)=2020,YEAR(Garantías_TTE_AS_PR!$D$12)=2024,YEAR(Garantías_TTE_AS_PR!$D$12)=2028,YEAR(Garantías_TTE_AS_PR!$D$12)=2032,YEAR(Garantías_TTE_AS_PR!$D$12)=2036,YEAR(Garantías_TTE_AS_PR!$D$12)=2040,YEAR(Garantías_TTE_AS_PR!$D$12)=2044,YEAR(Garantías_TTE_AS_PR!$D$12)=2048),$BE$6,$BE$5))) -> 365 | O13: =Garantías_TTE_AS_PR!$D$18 ->  | P13: =VLOOKUP(C13,$BA$4:$BB$51,2,FALSE) -> 1 | Q13: =IF(Garantías_TTE_AS_PR!$D$11="Firm",1,IF(Garantías_TTE_AS_PR!$D$11="Uninterruptible",1,1)) -> 1 | S13: LNG truck loadingDaily | T13: [(0,022806 x 1,7 + 0) / 365 + 0,000331 + 0,000122 + 0,000936)] x 0 x x 1 | V13: Individualized services | W13: Tanker unloading | X13: kWh | Y13: €/ship | AA13: Tanker unloadingL | AB13: Individualized | AC13: Tanker unloading | AD13: L | AF13: 5165 | AG13: €/buque | AH13: 2.6e-05 | AI13: €/kWh | AR13: October | AS13: 10 | AT13: 3 | AU13: 2 | AV13: 1.6 | AW13: 1.4 | AX13: 1 | AY13: 1 | BK13: 0 | BL13: 40000 | BP13: BIO Madrid | BS13: 10 | BT13: Injection | BV13: 2035-11-01 | BW13: 2036-03-01
A14: Individualized services | B14: LNG truck loading | C14: Intraday. 24h duration | D14: =IF(Garantías_TTE_AS_PR!$D$10="","",Garantías_TTE_AS_PR!$D$10) ->  | E14: LNG truck loadingIntraday. 24h duration | F14: [(TCCC x M + prima)/den + TVCC + Ocreg + IEH] x Qa x D x FR | G14: =Garantías_TTE_AS_PR!$D$13 -> 0 | H14: =Garantías_TTE_AS_PR!$D$17 -> 0 | I14: 0.022806 | J14: 0.000331 | K14: 0.000122 | L14: 0 | M14: =IF(C14="Annual",VLOOKUP(MONTH(Garantías_TTE_AS_PR!$D$12),$AS$52:$AY$63,6),(IF(C14="Quarterly",VLOOKUP(MONTH(Garantías_TTE_AS_PR!$D$12),$AS$52:$AY$63,5),(IF(C14="Monthly",VLOOKUP(MONTH(Garantías_TTE_AS_PR!$D$12),$AS$52:$AY$63,4),(IF(OR(C14="Daily",C14="Intraday. 24h duration"),VLOOKUP(MONTH(Garantías_TTE_AS_PR!$D$12),$AS$52:$AY$63,3),(IF(OR(C14="Intraday",C14="Intraday. ≤23h duration"),VLOOKUP(MONTH(Garantías_TTE_AS_PR!$D$12),$AS$52:$AY$63,2),""))))))))) -> 1.7 | N14: =IF(Garantías_TTE_AS_PR!$D$8="Intraday. 24h duration",IFERROR(_xlfn.IFS(AND(Garantías_TTE_AS_PR!$D$12>=$BX$4,Garantías_TTE_AS_PR!$D$12<$BY$4),$BE$6,AND(Garantías_TTE_AS_PR!$D$12>=$BX$5,Garantías_TTE_AS_PR!$D$12<$BY$5),$BE$6,AND(Garantías_TTE_AS_PR!$D$12>=$BX$6,Garantías_TTE_AS_PR!$D$12<$BY$6),$BE$6,AND(Garantías_TTE_AS_PR!$D$12>=$BX$7,Garantías_TTE_AS_PR!$D$12<$BY$7),$BE$6,AND(Garantías_TTE_AS_PR!$D$12>=$BX$8,Garantías_TTE_AS_PR!$D$12<$BY$8),$BE$6),$BE$5),(IF(OR(YEAR(Garantías_TTE_AS_PR!$D$12)=2020,YEAR(Garantías_TTE_AS_PR!$D$12)=2024,YEAR(Garantías_TTE_AS_PR!$D$12)=2028,YEAR(Garantías_TTE_AS_PR!$D$12)=2032,YEAR(Garantías_TTE_AS_PR!$D$12)=2036,YEAR(Garantías_TTE_AS_PR!$D$12)=2040,YEAR(Garantías_TTE_AS_PR!$D$12)=2044,YEAR(Garantías_TTE_AS_PR!$D$12)=2048),$BE$6,$BE$5))) -> 365 | O14: =Garantías_TTE_AS_PR!$D$18 ->  | P14: 1 | Q14: =IF(Garantías_TTE_AS_PR!$D$11="Firm",1,IF(Garantías_TTE_AS_PR!$D$11="Uninterruptible",1,1)) -> 1 | S14: LNG truck loadingIntraday. 24h duration | T14: [(0,022806 x 1,7 + 0) / 365 + 0,000331 + 0,000122 + 0,000936)] x 0 x x 1 | V14: Individualized services | W14: PVB entry from distribution network | X14: kWh/d | Y14: €/(kWh/day)/month | AA14: Tanker unloadingXL | AB14: Individualized | AC14: Tanker unloading | AD14: XL | AF14: 5333 | AG14: €/buque | AH14: 2.6e-05 | AI14: €/kWh | AR14: November | AS14: 11 | AT14: 2.8 | AU14: 1.8 | AV14: 1.5 | AW14: 1.4 | AX14: 1 | AY14: 1 | BK14: 40000 | BL14: 75000 | BP14: BIO La Galera | BS14: 11 | BT14: Extraction | BV14: 2039-11-01 | BW14: 2040-03-01
A15: Individualized services | B15: LNG truck loading | C15: Intraday. ≤23h duration | D15: =IF(Garantías_TTE_AS_PR!$D$10="","",Garantías_TTE_AS_PR!$D$10) ->  | E15: LNG truck loadingIntraday. ≤23h duration | F15: [(TCCC x M + prima) x (Qa x 24 / H) x H / den + (TVCC + OCreg + IEH ) x Qa] x FR | G15: =Garantías_TTE_AS_PR!$D$13 -> 0 | H15: =Garantías_TTE_AS_PR!$D$17 -> 0 | I15: 0.022806 | J15: 0.000331 | K15: 0.000122 | L15: 0 | M15: =IF(C15="Annual",VLOOKUP(MONTH(Garantías_TTE_AS_PR!$D$12),$AS$52:$AY$63,6),(IF(C15="Quarterly",VLOOKUP(MONTH(Garantías_TTE_AS_PR!$D$12),$AS$52:$AY$63,5),(IF(C15="Monthly",VLOOKUP(MONTH(Garantías_TTE_AS_PR!$D$12),$AS$52:$AY$63,4),(IF(OR(C15="Daily",C15="Intraday. 24h duration"),VLOOKUP(MONTH(Garantías_TTE_AS_PR!$D$12),$AS$52:$AY$63,3),(IF(OR(C15="Intraday",C15="Intraday. ≤23h duration"),VLOOKUP(MONTH(Garantías_TTE_AS_PR!$D$12),$AS$52:$AY$63,2),""))))))))) -> 6.7 | N15: =IF(Garantías_TTE_AS_PR!$D$8="Intraday. ≤23h duration",IFERROR(_xlfn.IFS(AND(Garantías_TTE_AS_PR!$D$12>=$BX$4,Garantías_TTE_AS_PR!$D$12<$BY$4),$BE$8,AND(Garantías_TTE_AS_PR!$D$12>=$BX$5,Garantías_TTE_AS_PR!$D$12<$BY$5),$BE$8,AND(Garantías_TTE_AS_PR!$D$12>=$BX$6,Garantías_TTE_AS_PR!$D$12<$BY$6),$BE$8,AND(Garantías_TTE_AS_PR!$D$12>=$BX$7,Garantías_TTE_AS_PR!$D$12<$BY$7),$BE$8,AND(Garantías_TTE_AS_PR!$D$12>=$BX$8,Garantías_TTE_AS_PR!$D$12<$BY$8),$BE$8),$BE$7),(IF(OR(YEAR(Garantías_TTE_AS_PR!$D$12)=2020,YEAR(Garantías_TTE_AS_PR!$D$12)=2024,YEAR(Garantías_TTE_AS_PR!$D$12)=2028,YEAR(Garantías_TTE_AS_PR!$D$12)=2032,YEAR(Garantías_TTE_AS_PR!$D$12)=2036,YEAR(Garantías_TTE_AS_PR!$D$12)=2040,YEAR(Garantías_TTE_AS_PR!$D$12)=2044,YEAR(Garantías_TTE_AS_PR!$D$12)=2048),$BE$8,$BE$7))) -> 8760 | O15: =Garantías_TTE_AS_PR!$D$9 -> 0 | P15: 1 | Q15: =IF(Garantías_TTE_AS_PR!$D$11="Firm",1,IF(Garantías_TTE_AS_PR!$D$11="Uninterruptible",1,1)) -> 1 | R15: =ROUND((((I15*M15)*Q15+H15)/(N15/24)+J15+K15+$BE$4)*G15*P15,2) -> 0 | S15: LNG truck loadingIntraday. ≤23h duration | T15: =CONCATENATE("[(",I15," x ",M15," + ",H15,")"," x (",TEXT(G15,"#.##0")," x 24 / ",O15, ") x ",O15," / ",N15," + (",J15," + ",K15," + ",$BE$4,") x ",TEXT(G15,"#.##0"),"] x ",P15) -> [(0,022806 x 6,7 + 0) x (0 x 24 / 0) x 0 / 8760 + (0,000331 + 0,000122 + 0,000936) x 0] x 1 | V15: Individualized services | W15: PVB entry from transport network | X15: kWh/d | Y15: €/(kWh/day)/month | AA15: Tanker unloadingXXL | AB15: Individualized | AC15: Tanker unloading | AD15: XXL | AF15: 5622 | AG15: €/buque | AH15: 2.6e-05 | AI15: €/kWh | AR15: December | AS15: 12 | AT15: 2.8 | AU15: 1.8 | AV15: 1.5 | AW15: 1.4 | AX15: 1 | AY15: 1 | BK15: 75000 | BL15: 150000 | BP15: AASS | BS15: 12 | BT15: Extraction
A16: Individualized services | B16: Tanker unloading | C16: Monthly frequency (Slots) | D16: =IF(Garantías_TTE_AS_PR!$D$10="","",Garantías_TTE_AS_PR!$D$10) ->  | E16: Tanker unloadingMonthly frequency (Slots) | F16: [((TFdescarga + prima) x nº operaciones) + TVdescarga x Q] x FR | G16: =Garantías_TTE_AS_PR!$D$13 -> 0 | H16: =Garantías_TTE_AS_PR!$D$17 -> 0 | I16: =VLOOKUP(CONCATENATE(DB,IF(G16<=$BL$4,$BJ$4,(IF(AND(G16<=$BL$5,G16>$BK$5),$BJ$5,(IF(AND(G16<=$BL$6,G16>$BK$6),$BJ$6,(IF(AND(G16<=$BL$7,G16>$BK$7),$BJ$7,(IF(G16>$BK$8,$BJ$8,"")))))))))),$AA$4:$AJ$139,6,FALSE) -> 4355 | J16: =VLOOKUP(CONCATENATE(DB,IF(G16<=BL4,BJ4,(IF(AND(G16<=BL5,G16>BK5),BJ5,(IF(AND(G16<=BL6,G16>BK6),BJ6,(IF(AND(G16<=BL7,G16>BK7),BJ7,(IF(G16>$BK$8,$BJ$8,"")))))))))),$AA$4:$AJ$139,8,FALSE) -> 2.6e-05 | K16: =VLOOKUP(CONCATENATE(DB,IF(G16<=BL4,BJ4,(IF(AND(G16<=BL5,G16>BK5),BJ5,(IF(AND(G16<=BL6,G16>BK6),BJ6,(IF(AND(G16<=BL7,G16>BK7),BJ7,(IF(G16>$BK$8,$BJ$8,"")))))))))),$AA$4:$AL$139,12,FALSE) -> 0 | L16: =VLOOKUP(CONCATENATE(DB,IF(G16<=BL4,BJ4,(IF(AND(G16<=BL5,G16>BK5),BJ5,(IF(AND(G16<=BL6,G16>BK6),BJ6,(IF(AND(G16<=BL7,G16>BK7),BJ7,(IF(G16>$BK$8,$BJ$8,"")))))))))),$AA$4:$AN$139,14,FALSE) -> 0 | M16: 1 | N16: =IF(Garantías_TTE_AS_PR!$D$8="Monthly frequency (Slots)",IFERROR(_xlfn.IFS(AND(Garantías_TTE_AS_PR!$D$12>=$BX$4,Garantías_TTE_AS_PR!$D$12<$BY$4),$BE$6,AND(Garantías_TTE_AS_PR!$D$12>=$BX$5,Garantías_TTE_AS_PR!$D$12<$BY$5),$BE$6,AND(Garantías_TTE_AS_PR!$D$12>=$BX$6,Garantías_TTE_AS_PR!$D$12<$BY$6),$BE$6,AND(Garantías_TTE_AS_PR!$D$12>=$BX$7,Garantías_TTE_AS_PR!$D$12<$BY$7),$BE$6,AND(Garantías_TTE_AS_PR!$D$12>=$BX$8,Garantías_TTE_AS_PR!$D$12<$BY$8),$BE$6),$BE$5),(IF(OR(YEAR(Garantías_TTE_AS_PR!$D$12)=2020,YEAR(Garantías_TTE_AS_PR!$D$12)=2024,YEAR(Garantías_TTE_AS_PR!$D$12)=2028,YEAR(Garantías_TTE_AS_PR!$D$12)=2032,YEAR(Garantías_TTE_AS_PR!$D$12)=2036,YEAR(Garantías_TTE_AS_PR!$D$12)=2040,YEAR(Garantías_TTE_AS_PR!$D$12)=2044,YEAR(Garantías_TTE_AS_PR!$D$12)=2048),$BE$6,$BE$5))) -> 365 | O16: 1 | P16: 1 | Q16: =IF(Garantías_TTE_AS_PR!$D$11="Firm",1,IF(Garantías_TTE_AS_PR!$D$11="Uninterruptible",1,1)) -> 1 | R16: =ROUND((I16*Q16+H16+(J16*G16))*P16,2) -> 4355 | S16: Tanker unloadingMonthly frequency (Slots) | T16: =CONCATENATE("[((",TEXT(I16,"#.##0")," + ",H16,") x 1) + ",J16," x ",TEXT(G16,"#.##0"),"] x ",P16) -> [((4.355 + 0) x 1) + 0,000026 x 0] x 1 | V16: Individualized services | W16: Extraction | X16: kWh/d | Y16: €/(kWh/day)/year | AA16: LNG terminal-to-tanker bunkering | AB16: Individualized | AC16: LNG terminal-to-tanker bunkering | AF16: 0 | AG16: €/buque | AH16: 1.3e-05 | AI16: €/kWh | BK16: 150000 | BL16: 216000 | BV16: 2023-12-01 | BW16: 2023-12-31
A17: Individualized services | B17: Tanker unloading | C17: Annual frequency (Slots) | D17: =IF(Garantías_TTE_AS_PR!$D$10="","",Garantías_TTE_AS_PR!$D$10) ->  | E17: Tanker unloadingAnnual frequency (Slots) | F17: [((TFdescarga + prima) x nº operaciones) + TVdescarga x Q] x FR | G17: =Garantías_TTE_AS_PR!$D$13 -> 0 | H17: =Garantías_TTE_AS_PR!$D$17 -> 0 | I17: =VLOOKUP(CONCATENATE(DB,IF(G17<=$BL$4,$BJ$4,(IF(AND(G17<=$BL$5,G17>$BK$5),$BJ$5,(IF(AND(G17<=$BL$6,G17>$BK$6),$BJ$6,(IF(AND(G17<=$BL$7,G17>$BK$7),$BJ$7,(IF(G17>$BK$8,$BJ$8,"")))))))))),$AA$4:$AJ$139,6,FALSE) -> 4355 | J17: =VLOOKUP(CONCATENATE(DB,IF(G17<=BL5,BJ5,(IF(AND(G17<=BL6,G17>BK6),BJ6,(IF(AND(G17<=BL7,G17>BK7),BJ7,(IF(AND(G17<=BL8,G17>BK8),BJ8,(IF(G17>$BK$8,$BJ$8,"")))))))))),$AA$4:$AJ$139,8,FALSE) -> 2.6e-05 | K17: =VLOOKUP(CONCATENATE(DB,IF(G17<=BL5,BJ5,(IF(AND(G17<=BL6,G17>BK6),BJ6,(IF(AND(G17<=BL7,G17>BK7),BJ7,(IF(AND(G17<=BL8,G17>BK8),BJ8,(IF(G17>$BK$8,$BJ$8,"")))))))))),$AA$4:$AL$139,12,FALSE) -> 0 | L17: =VLOOKUP(CONCATENATE(DB,IF(G17<=BL5,BJ5,(IF(AND(G17<=BL6,G17>BK6),BJ6,(IF(AND(G17<=BL7,G17>BK7),BJ7,(IF(AND(G17<=BL8,G17>BK8),BJ8,(IF(G17>$BK$8,$BJ$8,"")))))))))),$AA$4:$AN$139,14,FALSE) -> 0 | M17: 1 | N17: =IF(Garantías_TTE_AS_PR!$D$8="Annual frequency (Slots)",IFERROR(_xlfn.IFS(AND(Garantías_TTE_AS_PR!$D$12>=$BV$4,Garantías_TTE_AS_PR!$D$12<$BW$4),$BE$6,AND(Garantías_TTE_AS_PR!$D$12>=$BV$5,Garantías_TTE_AS_PR!$D$12<$BW$5),$BE$6,AND(Garantías_TTE_AS_PR!$D$12>=$BV$6,Garantías_TTE_AS_PR!$D$12<$BW$6),$BE$6,AND(Garantías_TTE_AS_PR!$D$12>=$BV$7,Garantías_TTE_AS_PR!$D$12<$BW$7),$BE$6,AND(Garantías_TTE_AS_PR!$D$12>=$BV$8,Garantías_TTE_AS_PR!$D$12<$BW$8),$BE$6),$BE$5),(IF(OR(YEAR(Garantías_TTE_AS_PR!$D$12)=2020,YEAR(Garantías_TTE_AS_PR!$D$12)=2024,YEAR(Garantías_TTE_AS_PR!$D$12)=2028,YEAR(Garantías_TTE_AS_PR!$D$12)=2032,YEAR(Garantías_TTE_AS_PR!$D$12)=2036,YEAR(Garantías_TTE_AS_PR!$D$12)=2040,YEAR(Garantías_TTE_AS_PR!$D$12)=2044,YEAR(Garantías_TTE_AS_PR!$D$12)=2048),$BE$6,$BE$5))) -> 365 | O17: 1 | P17: 1 | Q17: =IF(Garantías_TTE_AS_PR!$D$11="Firm",1,IF(Garantías_TTE_AS_PR!$D$11="Uninterruptible",1,1)) -> 1 | R17: =ROUND((I17*Q17+H17+(J17*G17))*P17,2) -> 4355 | S17: Tanker unloadingAnnual frequency (Slots) | T17: =CONCATENATE("[((",TEXT(I17,"#.##0")," + ",H17,") x 1) + ",J17," x ",TEXT(G17,"#.##0"),"] x ",P17) -> [((4.355 + 0) x 1) + 0,000026 x 0] x 1 | V17: Individualized services | W17: Injection | X17: kWh/d | Y17: €/(kWh/day)/year | AA17: Ship cooling | AB17: Individualized | AC17: Ship cooling | AF17: 0 | AG17: €/buque | AH17: 5.9e-05 | AI17: €/kWh | AQ17: Administración PEAJES. Almacenamiento GNL | BK17: 216000 | BV17: 2027-12-01 | BW17: 2027-12-31
A18: Individualized services | B18: LNG terminal-to-tanker bunkering | C18: Monthly frequency (Slots) | D18: =IF(Garantías_TTE_AS_PR!$D$10="","",Garantías_TTE_AS_PR!$D$10) ->  | E18: LNG terminal-to-tanker bunkeringMonthly frequency (Slots) | F18: [prima + TVcarga de buques x Qa] x FR | G18: =Garantías_TTE_AS_PR!$D$13 -> 0 | H18: =Garantías_TTE_AS_PR!$D$17 -> 0 | I18: =VLOOKUP(B18,$AC$4:$AH$219,4,FALSE) -> 0 | J18: =VLOOKUP(B18,$AC$4:$AH$219,6,FALSE) -> 1.3e-05 | K18: =VLOOKUP(B18,$AC$4:$AL$219,10,FALSE) -> 0 | L18: =VLOOKUP(B18,$AC$4:$AN$220,12,FALSE) -> 0 | M18: 1 | N18: =IF(Garantías_TTE_AS_PR!$D$8="Monthly frequency (Slots)",IFERROR(_xlfn.IFS(AND(Garantías_TTE_AS_PR!$D$12>=$BX$4,Garantías_TTE_AS_PR!$D$12<$BY$4),$BE$6,AND(Garantías_TTE_AS_PR!$D$12>=$BX$5,Garantías_TTE_AS_PR!$D$12<$BY$5),$BE$6,AND(Garantías_TTE_AS_PR!$D$12>=$BX$6,Garantías_TTE_AS_PR!$D$12<$BY$6),$BE$6,AND(Garantías_TTE_AS_PR!$D$12>=$BX$7,Garantías_TTE_AS_PR!$D$12<$BY$7),$BE$6,AND(Garantías_TTE_AS_PR!$D$12>=$BX$8,Garantías_TTE_AS_PR!$D$12<$BY$8),$BE$6),$BE$5),(IF(OR(YEAR(Garantías_TTE_AS_PR!$D$12)=2020,YEAR(Garantías_TTE_AS_PR!$D$12)=2024,YEAR(Garantías_TTE_AS_PR!$D$12)=2028,YEAR(Garantías_TTE_AS_PR!$D$12)=2032,YEAR(Garantías_TTE_AS_PR!$D$12)=2036,YEAR(Garantías_TTE_AS_PR!$D$12)=2040,YEAR(Garantías_TTE_AS_PR!$D$12)=2044,YEAR(Garantías_TTE_AS_PR!$D$12)=2048),$BE$6,$BE$5))) -> 365 | O18: 1 | P18: 1 | Q18: =IF(Garantías_TTE_AS_PR!$D$11="Firm",1,IF(Garantías_TTE_AS_PR!$D$11="Uninterruptible",1,1)) -> 1 | R18: =ROUND((I18*Q18+H18+(J18*G18))*P18,2) -> 0 | S18: LNG terminal-to-tanker bunkeringMonthly frequency (Slots) | T18: =CONCATENATE("[",H18," + ",J18," x ",TEXT(G18,"#.##0"),"] x ",P18) -> [0 + 0,000013 x 0] x 1 | V18: Individualized services | W18: Virtual liquefaction | X18: kWh/d | Y18: €/(kWh/day)/year | AA18: LNG ship-to-ship transfer | AB18: Individualized | AC18: LNG ship-to-ship transfer | AF18: 0 | AG18: €/buque | AH18: 0.000469 | AI18: €/kWh | AQ18: Productos estándar capacidad | AR18: Mes | AT18: Intraday (05) | AU18: Daily (04) | AV18: Montly (03) | AW18: Quarterly (02) | AX18: Annual (01) | AY18: Undefined | BK18: No incluido | BV18: 2031-12-01 | BW18: 2031-12-31
A19: Individualized services | B19: LNG terminal-to-tanker bunkering | C19: Annual frequency (Slots) | D19: =IF(Garantías_TTE_AS_PR!$D$10="","",Garantías_TTE_AS_PR!$D$10) ->  | E19: LNG terminal-to-tanker bunkeringAnnual frequency (Slots) | F19: [prima + TVcarga de buques x Qa] x FR | G19: =Garantías_TTE_AS_PR!$D$13 -> 0 | H19: =Garantías_TTE_AS_PR!$D$17 -> 0 | I19: 0 | J19: 1.3e-05 | K19: 0 | L19: 0 | M19: 1 | N19: =IF(Garantías_TTE_AS_PR!$D$8="Annual frequency (Slots)",IFERROR(_xlfn.IFS(AND(Garantías_TTE_AS_PR!$D$12>=$BV$4,Garantías_TTE_AS_PR!$D$12<$BW$4),$BE$6,AND(Garantías_TTE_AS_PR!$D$12>=$BV$5,Garantías_TTE_AS_PR!$D$12<$BW$5),$BE$6,AND(Garantías_TTE_AS_PR!$D$12>=$BV$6,Garantías_TTE_AS_PR!$D$12<$BW$6),$BE$6,AND(Garantías_TTE_AS_PR!$D$12>=$BV$7,Garantías_TTE_AS_PR!$D$12<$BW$7),$BE$6,AND(Garantías_TTE_AS_PR!$D$12>=$BV$8,Garantías_TTE_AS_PR!$D$12<$BW$8),$BE$6),$BE$5),(IF(OR(YEAR(Garantías_TTE_AS_PR!$D$12)=2020,YEAR(Garantías_TTE_AS_PR!$D$12)=2024,YEAR(Garantías_TTE_AS_PR!$D$12)=2028,YEAR(Garantías_TTE_AS_PR!$D$12)=2032,YEAR(Garantías_TTE_AS_PR!$D$12)=2036,YEAR(Garantías_TTE_AS_PR!$D$12)=2040,YEAR(Garantías_TTE_AS_PR!$D$12)=2044,YEAR(Garantías_TTE_AS_PR!$D$12)=2048),$BE$6,$BE$5))) -> 365 | O19: 1 | P19: 1 | Q19: =IF(Garantías_TTE_AS_PR!$D$11="Firm",1,IF(Garantías_TTE_AS_PR!$D$11="Uninterruptible",1,1)) -> 1 | R19: 0 | S19: LNG terminal-to-tanker bunkeringAnnual frequency (Slots) | T19: =CONCATENATE("[",H19," + ",J19," x ",TEXT(G19,"#.##0"),"] x ",P19) -> [0 + 0,000013 x 0] x 1 | V19: Individualized services | W19: Ship cooling | X19: kWh | Y19: €/ship | AA19: LNG storage | AB19: Individualized | AC19: LNG storage | AF19: 0 | AG19: €/(kWh/día)/año | AH19: 0 | AI19: €/kWh | BK19: 6.804 | BL19: PCS | BV19: 2035-12-01 | BW19: 2035-12-31
A20: Individualized services | B20: LNG ship-to-ship transfer | C20: Monthly frequency (Slots) | D20: =IF(Garantías_TTE_AS_PR!$D$10="","",Garantías_TTE_AS_PR!$D$10) ->  | E20: LNG ship-to-ship transferMonthly frequency (Slots) | F20: [prima + TVBuque a buque x Qa] x FR | G20: =Garantías_TTE_AS_PR!$D$13 -> 0 | H20: =Garantías_TTE_AS_PR!$D$17 -> 0 | I20: 0 | J20: 0.000469 | K20: 0 | L20: 0 | M20: 1 | N20: =IF(Garantías_TTE_AS_PR!$D$8="Monthly frequency (Slots)",IFERROR(_xlfn.IFS(AND(Garantías_TTE_AS_PR!$D$12>=$BX$4,Garantías_TTE_AS_PR!$D$12<$BY$4),$BE$6,AND(Garantías_TTE_AS_PR!$D$12>=$BX$5,Garantías_TTE_AS_PR!$D$12<$BY$5),$BE$6,AND(Garantías_TTE_AS_PR!$D$12>=$BX$6,Garantías_TTE_AS_PR!$D$12<$BY$6),$BE$6,AND(Garantías_TTE_AS_PR!$D$12>=$BX$7,Garantías_TTE_AS_PR!$D$12<$BY$7),$BE$6,AND(Garantías_TTE_AS_PR!$D$12>=$BX$8,Garantías_TTE_AS_PR!$D$12<$BY$8),$BE$6),$BE$5),(IF(OR(YEAR(Garantías_TTE_AS_PR!$D$12)=2020,YEAR(Garantías_TTE_AS_PR!$D$12)=2024,YEAR(Garantías_TTE_AS_PR!$D$12)=2028,YEAR(Garantías_TTE_AS_PR!$D$12)=2032,YEAR(Garantías_TTE_AS_PR!$D$12)=2036,YEAR(Garantías_TTE_AS_PR!$D$12)=2040,YEAR(Garantías_TTE_AS_PR!$D$12)=2044,YEAR(Garantías_TTE_AS_PR!$D$12)=2048),$BE$6,$BE$5))) -> 365 | O20: 1 | P20: 1 | Q20: =IF(Garantías_TTE_AS_PR!$D$11="Firm",1,IF(Garantías_TTE_AS_PR!$D$11="Uninterruptible",1,1)) -> 1 | R20: 0 | S20: LNG ship-to-ship transferMonthly frequency (Slots) | T20: =CONCATENATE("[",H20," + ",J20," x ",TEXT(G20,"#.##0"),"] x ",P20) -> [0 + 0,000469 x 0] x 1 | V20: Individualized services | W20: Regasification | X20: kWh/d | Y20: €/(kWh/day)/year | AA20: PVB entry from transport networkCI Tarifa | AB20: Individualized | AC20: PVB entry from transport network | AE20: CI Tarifa | AF20: 0.142168 | AG20: €/(kWh/día)/año | AH20: 0.000137 | AI20: €/kWh | AR20: January | AS20: 1 | AT20: 5 | AU20: 1.5 | AV20: 1.3 | AW20: 1.1 | AX20: 1 | AY20: 1 | BV20: 2039-12-01 | BW20: 2039-12-31
A21: Individualized services | B21: LNG ship-to-ship transfer | C21: Annual frequency (Slots) | D21: =IF(Garantías_TTE_AS_PR!$D$10="","",Garantías_TTE_AS_PR!$D$10) ->  | E21: LNG ship-to-ship transferAnnual frequency (Slots) | F21: [prima + TVBuque a buque x Qa] x FR | G21: =Garantías_TTE_AS_PR!$D$13 -> 0 | H21: =Garantías_TTE_AS_PR!$D$17 -> 0 | I21: 0 | J21: 0.000469 | K21: 0 | L21: 0 | M21: 1 | N21: =IF(Garantías_TTE_AS_PR!$D$8="Annual frequency (Slots)",IFERROR(_xlfn.IFS(AND(Garantías_TTE_AS_PR!$D$12>=$BV$4,Garantías_TTE_AS_PR!$D$12<$BW$4),$BE$6,AND(Garantías_TTE_AS_PR!$D$12>=$BV$5,Garantías_TTE_AS_PR!$D$12<$BW$5),$BE$6,AND(Garantías_TTE_AS_PR!$D$12>=$BV$6,Garantías_TTE_AS_PR!$D$12<$BW$6),$BE$6,AND(Garantías_TTE_AS_PR!$D$12>=$BV$7,Garantías_TTE_AS_PR!$D$12<$BW$7),$BE$6,AND(Garantías_TTE_AS_PR!$D$12>=$BV$8,Garantías_TTE_AS_PR!$D$12<$BW$8),$BE$6),$BE$5),(IF(OR(YEAR(Garantías_TTE_AS_PR!$D$12)=2020,YEAR(Garantías_TTE_AS_PR!$D$12)=2024,YEAR(Garantías_TTE_AS_PR!$D$12)=2028,YEAR(Garantías_TTE_AS_PR!$D$12)=2032,YEAR(Garantías_TTE_AS_PR!$D$12)=2036,YEAR(Garantías_TTE_AS_PR!$D$12)=2040,YEAR(Garantías_TTE_AS_PR!$D$12)=2044,YEAR(Garantías_TTE_AS_PR!$D$12)=2048),$BE$6,$BE$5))) -> 365 | O21: 1 | P21: 1 | Q21: =IF(Garantías_TTE_AS_PR!$D$11="Firm",1,IF(Garantías_TTE_AS_PR!$D$11="Uninterruptible",1,1)) -> 1 | R21: 0 | S21: LNG ship-to-ship transferAnnual frequency (Slots) | T21: [0 + 0,000469 x 0] x 1 | V21: Individualized services | W21: PVB exit | X21: kWh/d | Y21: €/(kWh/day)/month | AA21: PVB entry from transport networkCI Almería | AB21: Individualized | AC21: PVB entry from transport network | AE21: CI Almería | AF21: 0.133218 | AG21: €/(kWh/día)/año | AH21: 0.000137 | AI21: €/kWh | AR21: February | AS21: 2 | AT21: 5 | AU21: 1.5 | AV21: 1.3 | AW21: 1.1 | AX21: 1 | AY21: 1 | BK21: =BK13*$BK$19*1000 -> 0 | BL21: 272160000
A22: Individualized services | B22: Ship cooling | C22: Monthly frequency (Slots) | D22: =IF(Garantías_TTE_AS_PR!$D$10="","",Garantías_TTE_AS_PR!$D$10) ->  | E22: Ship coolingMonthly frequency (Slots) | F22: [prima + TVPuesta en frío x Qa] x FR | G22: =Garantías_TTE_AS_PR!$D$13 -> 0 | H22: =Garantías_TTE_AS_PR!$D$17 -> 0 | I22: 0 | J22: 5.9e-05 | K22: 0 | L22: 0 | M22: 1 | N22: =IF(Garantías_TTE_AS_PR!$D$8="Monthly frequency (Slots)",IFERROR(_xlfn.IFS(AND(Garantías_TTE_AS_PR!$D$12>=$BX$4,Garantías_TTE_AS_PR!$D$12<$BY$4),$BE$6,AND(Garantías_TTE_AS_PR!$D$12>=$BX$5,Garantías_TTE_AS_PR!$D$12<$BY$5),$BE$6,AND(Garantías_TTE_AS_PR!$D$12>=$BX$6,Garantías_TTE_AS_PR!$D$12<$BY$6),$BE$6,AND(Garantías_TTE_AS_PR!$D$12>=$BX$7,Garantías_TTE_AS_PR!$D$12<$BY$7),$BE$6,AND(Garantías_TTE_AS_PR!$D$12>=$BX$8,Garantías_TTE_AS_PR!$D$12<$BY$8),$BE$6),$BE$5),(IF(OR(YEAR(Garantías_TTE_AS_PR!$D$12)=2020,YEAR(Garantías_TTE_AS_PR!$D$12)=2024,YEAR(Garantías_TTE_AS_PR!$D$12)=2028,YEAR(Garantías_TTE_AS_PR!$D$12)=2032,YEAR(Garantías_TTE_AS_PR!$D$12)=2036,YEAR(Garantías_TTE_AS_PR!$D$12)=2040,YEAR(Garantías_TTE_AS_PR!$D$12)=2044,YEAR(Garantías_TTE_AS_PR!$D$12)=2048),$BE$6,$BE$5))) -> 365 | O22: 1 | P22: 1 | Q22: =IF(Garantías_TTE_AS_PR!$D$11="Firm",1,IF(Garantías_TTE_AS_PR!$D$11="Uninterruptible",1,1)) -> 1 | R22: 0 | S22: Ship coolingMonthly frequency (Slots) | T22: [0 + 0,000059 x 0] x 1 | V22: Individualized services | W22: PVB exit to consumer | X22: kWh/d | Y22: €/(kWh/day)/month | AA22: PVB entry from transport networkVIP Pirineos | AB22: Individualized | AC22: PVB entry from transport network | AE22: VIP Pirineos | AF22: 0.096817 | AG22: €/(kWh/día)/año | AH22: 0.000137 | AI22: €/kWh | AR22: March | AS22: 3 | AT22: 5 | AU22: 1.5 | AV22: 1.3 | AW22: 1.1 | AX22: 1 | AY22: 1 | BK22: 272160000 | BL22: 510300000 | BV22: 2024-01-01 | BW22: 2024-01-31
A23: Individualized services | B23: Ship cooling | C23: Annual frequency (Slots) | D23: =IF(Garantías_TTE_AS_PR!$D$10="","",Garantías_TTE_AS_PR!$D$10) ->  | E23: Ship coolingAnnual frequency (Slots) | F23: [prima + TVPuesta en frío x Qa] x FR | G23: =Garantías_TTE_AS_PR!$D$13 -> 0 | H23: =Garantías_TTE_AS_PR!$D$17 -> 0 | I23: 0 | J23: 5.9e-05 | K23: 0 | L23: 0 | M23: 1 | N23: =IF(Garantías_TTE_AS_PR!$D$8="Annual frequency (Slots)",IFERROR(_xlfn.IFS(AND(Garantías_TTE_AS_PR!$D$12>=$BV$4,Garantías_TTE_AS_PR!$D$12<$BW$4),$BE$6,AND(Garantías_TTE_AS_PR!$D$12>=$BV$5,Garantías_TTE_AS_PR!$D$12<$BW$5),$BE$6,AND(Garantías_TTE_AS_PR!$D$12>=$BV$6,Garantías_TTE_AS_PR!$D$12<$BW$6),$BE$6,AND(Garantías_TTE_AS_PR!$D$12>=$BV$7,Garantías_TTE_AS_PR!$D$12<$BW$7),$BE$6,AND(Garantías_TTE_AS_PR!$D$12>=$BV$8,Garantías_TTE_AS_PR!$D$12<$BW$8),$BE$6),$BE$5),(IF(OR(YEAR(Garantías_TTE_AS_PR!$D$12)=2020,YEAR(Garantías_TTE_AS_PR!$D$12)=2024,YEAR(Garantías_TTE_AS_PR!$D$12)=2028,YEAR(Garantías_TTE_AS_PR!$D$12)=2032,YEAR(Garantías_TTE_AS_PR!$D$12)=2036,YEAR(Garantías_TTE_AS_PR!$D$12)=2040,YEAR(Garantías_TTE_AS_PR!$D$12)=2044,YEAR(Garantías_TTE_AS_PR!$D$12)=2048),$BE$6,$BE$5))) -> 365 | O23: 1 | P23: 1 | Q23: =IF(Garantías_TTE_AS_PR!$D$11="Firm",1,IF(Garantías_TTE_AS_PR!$D$11="Uninterruptible",1,1)) -> 1 | R23: 0 | S23: Ship coolingAnnual frequency (Slots) | T23: [0 + 0,000059 x 0] x 1 | V23: Individualized services | W23: LNG ship-to-ship transfer | X23: kWh | Y23: €/ship | AA23: PVB entry from transport networkVIP Ibérico | AB23: Individualized | AC23: PVB entry from transport network | AE23: VIP Ibérico | AF23: 0.161398 | AG23: €/(kWh/día)/año | AH23: 0.000137 | AI23: €/kWh | AR23: April | AS23: 4 | AT23: 5 | AU23: 1.5 | AV23: 1.3 | AW23: 1.1 | AX23: 1 | AY23: 1 | BK23: 510300000 | BL23: 1020600000 | BV23: 2028-01-01 | BW23: 2028-01-31
A24: Individualized services | B24: PVB entry from transport network | C24: Annual | D24: =IF(Garantías_TTE_AS_PR!$D$10="","",Garantías_TTE_AS_PR!$D$10) ->  | E24: =B24&C24&D24 -> PVB entry from transport networkAnnual | F24: [(Tfr x M x Cint + prima ) / den + TV] x D x Qa x FR | G24: =Garantías_TTE_AS_PR!$D$13 -> 0 | H24: =Garantías_TTE_AS_PR!$D$17 -> 0 | I24: =VLOOKUP(CONCATENATE(B24,D24),$AA$4:$AH$219,6,FALSE) ->  | J24: =VLOOKUP(CONCATENATE(B24,D24),$AA$4:$AH$219,8,FALSE) ->  | K24: =VLOOKUP(CONCATENATE(B24,D24),$AA$4:$AL$219,12,FALSE) ->  | L24: =VLOOKUP(CONCATENATE(B24,D24),$AA$4:$AN$220,14,FALSE) ->  | M24: =IF(C24="Annual",VLOOKUP(MONTH(Garantías_TTE_AS_PR!$D$12),$AS$116:$AY$127,6),(IF(C24="Quarterly",VLOOKUP(MONTH(Garantías_TTE_AS_PR!$D$12),$AS$116:$AY$127,5),(IF(C24="Monthly",VLOOKUP(MONTH(Garantías_TTE_AS_PR!$D$12),$AS$116:$AY$127,4),(IF(C24="Daily",VLOOKUP(MONTH(Garantías_TTE_AS_PR!$D$12),$AS$116:$AY$127,3),(IF(C24="Intraday",IF(O24=24,VLOOKUP(MONTH(Garantías_TTE_AS_PR!$D$12),$AS$116:$AY$127,3),VLOOKUP(MONTH(Garantías_TTE_AS_PR!$D$12),$AS$116:$AY$127,2)),""))))))))) -> 1 | N24: =IF(Garantías_TTE_AS_PR!$D$8="Annual",IFERROR(_xlfn.IFS(AND(Garantías_TTE_AS_PR!$D$12>=$BV$4,Garantías_TTE_AS_PR!$D$12<$BW$4),$BE$6,AND(Garantías_TTE_AS_PR!$D$12>=$BV$5,Garantías_TTE_AS_PR!$D$12<$BW$5),$BE$6,AND(Garantías_TTE_AS_PR!$D$12>=$BV$6,Garantías_TTE_AS_PR!$D$12<$BW$6),$BE$6,AND(Garantías_TTE_AS_PR!$D$12>=$BV$7,Garantías_TTE_AS_PR!$D$12<$BW$7),$BE$6,AND(Garantías_TTE_AS_PR!$D$12>=$BV$8,Garantías_TTE_AS_PR!$D$12<$BW$8),$BE$6),$BE$5),(IF(OR(YEAR(Garantías_TTE_AS_PR!$D$12)=2020,YEAR(Garantías_TTE_AS_PR!$D$12)=2024,YEAR(Garantías_TTE_AS_PR!$D$12)=2028,YEAR(Garantías_TTE_AS_PR!$D$12)=2032,YEAR(Garantías_TTE_AS_PR!$D$12)=2036,YEAR(Garantías_TTE_AS_PR!$D$12)=2040,YEAR(Garantías_TTE_AS_PR!$D$12)=2044,YEAR(Garantías_TTE_AS_PR!$D$12)=2048),$BE$6,$BE$5))) -> 365 | O24: =Garantías_TTE_AS_PR!$D$18 ->  | P24: =VLOOKUP(C24,$BA$4:$BB$51,2,FALSE) -> 2 | Q24: =IF(Garantías_TTE_AS_PR!$D$11="Firm",1,IF(AND(Garantías_TTE_AS_PR!$D$11="Uninterruptible",D24="VIP Pirineos"),1,1)) -> 1 | R24: =ROUND(((((I24*M24*Q24+H24)/N24)+J24)*O24*G24*P24),2) ->  | S24: PVB entry from transport networkAnnual | T24: =CONCATENATE("[(",I24," x ",M24," x ",Q24,") + ",H24, ")"," / ",N24," + (",J24," x ",O24,")] x ",TEXT(G24,"#.##0")," x ",P24) ->  | V24: Individualized services | AA24: PVB entry from transport networkGNL | AB24: Individualized | AC24: PVB entry from transport network | AE24: GNL | AF24: 0.096286 | AG24: €/(kWh/día)/año | AH24: 0.000137 | AI24: €/kWh | AR24: May | AS24: 5 | AT24: 5 | AU24: 1.5 | AV24: 1.3 | AW24: 1.1 | AX24: 1 | AY24: 1 | BK24: 1020600000 | BL24: 1469664000 | BV24: 2032-01-01 | BW24: 2032-01-31
A25: Individualized services | B25: PVB entry from transport network | C25: Quarterly | D25: =IF(Garantías_TTE_AS_PR!$D$10="","",Garantías_TTE_AS_PR!$D$10) ->  | E25: PVB entry from transport networkQuarterly | F25: [(Tfr x M x Cint + prima ) / den + TV] x D x Qa x FR | G25: =Garantías_TTE_AS_PR!$D$13 -> 0 | H25: =Garantías_TTE_AS_PR!$D$17 -> 0 | I25: =VLOOKUP(CONCATENATE(B25,D25),$AA$4:$AH$219,6,FALSE) ->  | J25: =VLOOKUP(CONCATENATE(B25,D25),$AA$4:$AH$219,8,FALSE) ->  | K25: =VLOOKUP(CONCATENATE(B25,D25),$AA$4:$AL$219,12,FALSE) ->  | L25: =VLOOKUP(CONCATENATE(B25,D25),$AA$4:$AN$220,14,FALSE) ->  | M25: =IF(C25="Annual",VLOOKUP(MONTH(Garantías_TTE_AS_PR!$D$12),$AS$116:$AY$127,6),(IF(C25="Quarterly",VLOOKUP(MONTH(Garantías_TTE_AS_PR!$D$12),$AS$116:$AY$127,5),(IF(C25="Monthly",VLOOKUP(MONTH(Garantías_TTE_AS_PR!$D$12),$AS$116:$AY$127,4),(IF(C25="Daily",VLOOKUP(MONTH(Garantías_TTE_AS_PR!$D$12),$AS$116:$AY$127,3),(IF(C25="Intraday",IF(O25=24,VLOOKUP(MONTH(Garantías_TTE_AS_PR!$D$12),$AS$116:$AY$127,3),VLOOKUP(MONTH(Garantías_TTE_AS_PR!$D$12),$AS$116:$AY$127,2)),""))))))))) -> 1.1 | N25: =IF(Garantías_TTE_AS_PR!$D$8="Quarterly",IFERROR(_xlfn.IFS(AND(Garantías_TTE_AS_PR!$D$12>=$BX$4,Garantías_TTE_AS_PR!$D$12<$BY$4),$BE$6,AND(Garantías_TTE_AS_PR!$D$12>=$BX$5,Garantías_TTE_AS_PR!$D$12<$BY$5),$BE$6,AND(Garantías_TTE_AS_PR!$D$12>=$BX$6,Garantías_TTE_AS_PR!$D$12<$BY$6),$BE$6,AND(Garantías_TTE_AS_PR!$D$12>=$BX$7,Garantías_TTE_AS_PR!$D$12<$BY$7),$BE$6,AND(Garantías_TTE_AS_PR!$D$12>=$BX$8,Garantías_TTE_AS_PR!$D$12<$BY$8),$BE$6),$BE$5),(IF(OR(YEAR(Garantías_TTE_AS_PR!$D$12)=2020,YEAR(Garantías_TTE_AS_PR!$D$12)=2024,YEAR(Garantías_TTE_AS_PR!$D$12)=2028,YEAR(Garantías_TTE_AS_PR!$D$12)=2032,YEAR(Garantías_TTE_AS_PR!$D$12)=2036,YEAR(Garantías_TTE_AS_PR!$D$12)=2040,YEAR(Garantías_TTE_AS_PR!$D$12)=2044,YEAR(Garantías_TTE_AS_PR!$D$12)=2048),$BE$6,$BE$5))) -> 365 | O25: =Garantías_TTE_AS_PR!$D$18 ->  | P25: 2 | Q25: =IF(Garantías_TTE_AS_PR!$D$11="Firm",1,IF(AND(Garantías_TTE_AS_PR!$D$11="Uninterruptible",D25="VIP Pirineos"),1,1)) -> 1 | R25: =ROUND(((((I25*M25*Q25+H25)/N25)+J25)*O25*G25*P25),2) ->  | S25: PVB entry from transport networkQuarterly | T25: =CONCATENATE("[(",I25," x ",M25," x ",Q25,") + ",H25, ")"," / ",N25," + (",J25," x ",O25,")] x ",TEXT(G25,"#.##0")," x ",P25) ->  | AA25: PVB entry from transport networkYAC Marismas | AB25: Individualized | AC25: PVB entry from transport network | AE25: YAC Marismas | AF25: 0.129143 | AG25: €/(kWh/día)/año | AH25: 0.000137 | AI25: €/kWh | AR25: June | AS25: 6 | AT25: 5 | AU25: 1.5 | AV25: 1.3 | AW25: 1.1 | AX25: 1 | AY25: 1 | BK25: 1469664000 | BL25: 0 | BV25: 2036-01-01 | BW25: 2036-01-31
A26: Individualized services | B26: PVB entry from transport network | C26: Monthly | D26: =IF(Garantías_TTE_AS_PR!$D$10="","",Garantías_TTE_AS_PR!$D$10) ->  | E26: PVB entry from transport networkMonthly | F26: [(Tfr x M x Cint + prima ) / den + TV] x D x Qa x FR | G26: =Garantías_TTE_AS_PR!$D$13 -> 0 | H26: =Garantías_TTE_AS_PR!$D$17 -> 0 | I26: =VLOOKUP(CONCATENATE(B26,D26),$AA$4:$AH$219,6,FALSE) ->  | J26: =VLOOKUP(CONCATENATE(B26,D26),$AA$4:$AH$219,8,FALSE) ->  | K26: =VLOOKUP(CONCATENATE(B26,D26),$AA$4:$AL$219,12,FALSE) ->  | L26: =VLOOKUP(CONCATENATE(B26,D26),$AA$4:$AN$220,14,FALSE) ->  | M26: =IF(C26="Annual",VLOOKUP(MONTH(Garantías_TTE_AS_PR!$D$12),$AS$116:$AY$127,6),(IF(C26="Quarterly",VLOOKUP(MONTH(Garantías_TTE_AS_PR!$D$12),$AS$116:$AY$127,5),(IF(C26="Monthly",VLOOKUP(MONTH(Garantías_TTE_AS_PR!$D$12),$AS$116:$AY$127,4),(IF(C26="Daily",VLOOKUP(MONTH(Garantías_TTE_AS_PR!$D$12),$AS$116:$AY$127,3),(IF(C26="Intraday",IF(O26=24,VLOOKUP(MONTH(Garantías_TTE_AS_PR!$D$12),$AS$116:$AY$127,3),VLOOKUP(MONTH(Garantías_TTE_AS_PR!$D$12),$AS$116:$AY$127,2)),""))))))))) -> 1.2 | N26: =IF(Garantías_TTE_AS_PR!$D$8="Monthly",IFERROR(_xlfn.IFS(AND(Garantías_TTE_AS_PR!$D$12>=$BX$4,Garantías_TTE_AS_PR!$D$12<$BY$4),$BE$6,AND(Garantías_TTE_AS_PR!$D$12>=$BX$5,Garantías_TTE_AS_PR!$D$12<$BY$5),$BE$6,AND(Garantías_TTE_AS_PR!$D$12>=$BX$6,Garantías_TTE_AS_PR!$D$12<$BY$6),$BE$6,AND(Garantías_TTE_AS_PR!$D$12>=$BX$7,Garantías_TTE_AS_PR!$D$12<$BY$7),$BE$6,AND(Garantías_TTE_AS_PR!$D$12>=$BX$8,Garantías_TTE_AS_PR!$D$12<$BY$8),$BE$6),$BE$5),(IF(OR(YEAR(Garantías_TTE_AS_PR!$D$12)=2020,YEAR(Garantías_TTE_AS_PR!$D$12)=2024,YEAR(Garantías_TTE_AS_PR!$D$12)=2028,YEAR(Garantías_TTE_AS_PR!$D$12)=2032,YEAR(Garantías_TTE_AS_PR!$D$12)=2036,YEAR(Garantías_TTE_AS_PR!$D$12)=2040,YEAR(Garantías_TTE_AS_PR!$D$12)=2044,YEAR(Garantías_TTE_AS_PR!$D$12)=2048),$BE$6,$BE$5))) -> 365 | O26: =Garantías_TTE_AS_PR!$D$18 ->  | P26: 1 | Q26: =IF(Garantías_TTE_AS_PR!$D$11="Firm",1,IF(AND(Garantías_TTE_AS_PR!$D$11="Uninterruptible",D26="VIP Pirineos"),1,1)) -> 1 | S26: PVB entry from transport networkMonthly | V26: [(TCR x M + prima) x (Qa x 24 / H) x H / den + TVR x Qa] x FR | AA26: PVB entry from transport networkYAC Aznalcázar | AB26: Individualized | AC26: PVB entry from transport network | AE26: YAC Aznalcázar | AF26: 0.125902 | AG26: €/(kWh/día)/año | AH26: 0.000137 | AI26: €/kWh | AR26: July | AS26: 7 | AT26: 5 | AU26: 1.5 | AV26: 1.3 | AW26: 1.1 | AX26: 1 | AY26: 1 | BV26: 2040-01-01 | BW26: 2040-01-31
A27: Individualized services | B27: PVB entry from transport network | C27: Daily | D27: =IF(Garantías_TTE_AS_PR!$D$10="","",Garantías_TTE_AS_PR!$D$10) ->  | E27: PVB entry from transport networkDaily | F27: [(Tfr x M x Cint + prima ) / den + TV] x D x Qa x FR | G27: =Garantías_TTE_AS_PR!$D$13 -> 0 | H27: =Garantías_TTE_AS_PR!$D$17 -> 0 | I27: =VLOOKUP(CONCATENATE(B27,D27),$AA$4:$AH$219,6,FALSE) ->  | J27: =VLOOKUP(CONCATENATE(B27,D27),$AA$4:$AH$219,8,FALSE) ->  | K27: =VLOOKUP(CONCATENATE(B27,D27),$AA$4:$AL$219,12,FALSE) ->  | L27: =VLOOKUP(CONCATENATE(B27,D27),$AA$4:$AN$220,14,FALSE) ->  | M27: =IF(C27="Annual",VLOOKUP(MONTH(Garantías_TTE_AS_PR!$D$12),$AS$116:$AY$127,6),(IF(C27="Quarterly",VLOOKUP(MONTH(Garantías_TTE_AS_PR!$D$12),$AS$116:$AY$127,5),(IF(C27="Monthly",VLOOKUP(MONTH(Garantías_TTE_AS_PR!$D$12),$AS$116:$AY$127,4),(IF(C27="Daily",VLOOKUP(MONTH(Garantías_TTE_AS_PR!$D$12),$AS$116:$AY$127,3),(IF(C27="Intraday",IF(O27=24,VLOOKUP(MONTH(Garantías_TTE_AS_PR!$D$12),$AS$116:$AY$127,3),VLOOKUP(MONTH(Garantías_TTE_AS_PR!$D$12),$AS$116:$AY$127,2)),""))))))))) -> 1.6 | N27: =IF(Garantías_TTE_AS_PR!$D$8="Daily",IFERROR(_xlfn.IFS(AND(Garantías_TTE_AS_PR!$D$12>=$BX$4,Garantías_TTE_AS_PR!$D$12<$BY$4),$BE$6,AND(Garantías_TTE_AS_PR!$D$12>=$BX$5,Garantías_TTE_AS_PR!$D$12<$BY$5),$BE$6,AND(Garantías_TTE_AS_PR!$D$12>=$BX$6,Garantías_TTE_AS_PR!$D$12<$BY$6),$BE$6,AND(Garantías_TTE_AS_PR!$D$12>=$BX$7,Garantías_TTE_AS_PR!$D$12<$BY$7),$BE$6,AND(Garantías_TTE_AS_PR!$D$12>=$BX$8,Garantías_TTE_AS_PR!$D$12<$BY$8),$BE$6),$BE$5),(IF(OR(YEAR(Garantías_TTE_AS_PR!$D$12)=2020,YEAR(Garantías_TTE_AS_PR!$D$12)=2024,YEAR(Garantías_TTE_AS_PR!$D$12)=2028,YEAR(Garantías_TTE_AS_PR!$D$12)=2032,YEAR(Garantías_TTE_AS_PR!$D$12)=2036,YEAR(Garantías_TTE_AS_PR!$D$12)=2040,YEAR(Garantías_TTE_AS_PR!$D$12)=2044,YEAR(Garantías_TTE_AS_PR!$D$12)=2048),$BE$6,$BE$5))) -> 365 | O27: =Garantías_TTE_AS_PR!$D$18 ->  | P27: 1 | Q27: =IF(Garantías_TTE_AS_PR!$D$11="Firm",1,IF(AND(Garantías_TTE_AS_PR!$D$11="Uninterruptible",D27="VIP Pirineos"),(100-1.5)/100,1)) -> 1 | S27: PVB entry from transport networkDaily | AA27: PVB entry from transport networkYAC Poseidón | AB27: Individualized | AC27: PVB entry from transport network | AE27: YAC Poseidón | AF27: 0.133312 | AG27: €/(kWh/día)/año | AH27: 0.000137 | AI27: €/kWh | AR27: August | AS27: 8 | AT27: 5 | AU27: 1.5 | AV27: 1.3 | AW27: 1.1 | AX27: 1 | AY27: 1
A28: Individualized services | B28: PVB entry from transport network | C28: Intraday | D28: =IF(Garantías_TTE_AS_PR!$D$10="","",Garantías_TTE_AS_PR!$D$10) ->  | E28: PVB entry from transport networkIntraday | F28: [(Tfr x M x Cint + prima ) x (Qa x 24 / H) x H / den + (TV x Qa)] x FR | G28: =Garantías_TTE_AS_PR!$D$13 -> 0 | H28: =Garantías_TTE_AS_PR!$D$17 -> 0 | I28: =VLOOKUP(CONCATENATE(B28,D28),$AA$4:$AH$219,6,FALSE) ->  | J28: =VLOOKUP(CONCATENATE(B28,D28),$AA$4:$AH$219,8,FALSE) ->  | K28: =VLOOKUP(CONCATENATE(B28,D28),$AA$4:$AL$219,12,FALSE) ->  | L28: =VLOOKUP(CONCATENATE(B28,D28),$AA$4:$AN$220,14,FALSE) ->  | M28: =IF(C28="Annual",VLOOKUP(MONTH(Garantías_TTE_AS_PR!$D$12),$AS$116:$AY$127,6),(IF(C28="Quarterly",VLOOKUP(MONTH(Garantías_TTE_AS_PR!$D$12),$AS$116:$AY$127,5),(IF(C28="Monthly",VLOOKUP(MONTH(Garantías_TTE_AS_PR!$D$12),$AS$116:$AY$127,4),(IF(C28="Daily",VLOOKUP(MONTH(Garantías_TTE_AS_PR!$D$12),$AS$116:$AY$127,3),(IF(C28="Intraday",IF(O28=24,VLOOKUP(MONTH(Garantías_TTE_AS_PR!$D$12),$AS$116:$AY$127,3),VLOOKUP(MONTH(Garantías_TTE_AS_PR!$D$12),$AS$116:$AY$127,2)),""))))))))) -> 5.6 | N28: =IF(Garantías_TTE_AS_PR!$D$8="Intraday",IFERROR(_xlfn.IFS(AND(Garantías_TTE_AS_PR!$D$12>=$BX$4,Garantías_TTE_AS_PR!$D$12<$BY$4),$BE$8,AND(Garantías_TTE_AS_PR!$D$12>=$BX$5,Garantías_TTE_AS_PR!$D$12<$BY$5),$BE$8,AND(Garantías_TTE_AS_PR!$D$12>=$BX$6,Garantías_TTE_AS_PR!$D$12<$BY$6),$BE$8,AND(Garantías_TTE_AS_PR!$D$12>=$BX$7,Garantías_TTE_AS_PR!$D$12<$BY$7),$BE$8,AND(Garantías_TTE_AS_PR!$D$12>=$BX$8,Garantías_TTE_AS_PR!$D$12<$BY$8),$BE$8),$BE$7),(IF(OR(YEAR(Garantías_TTE_AS_PR!$D$12)=2020,YEAR(Garantías_TTE_AS_PR!$D$12)=2024,YEAR(Garantías_TTE_AS_PR!$D$12)=2028,YEAR(Garantías_TTE_AS_PR!$D$12)=2032,YEAR(Garantías_TTE_AS_PR!$D$12)=2036,YEAR(Garantías_TTE_AS_PR!$D$12)=2040,YEAR(Garantías_TTE_AS_PR!$D$12)=2044,YEAR(Garantías_TTE_AS_PR!$D$12)=2048),$BE$8,$BE$7))) -> 8760 | O28: =Garantías_TTE_AS_PR!$D$9 -> 0 | P28: 1 | Q28: =IF(Garantías_TTE_AS_PR!$D$11="Firm",1,IF(AND(Garantías_TTE_AS_PR!$D$11="Uninterruptible",D28="VIP Pirineos"),(100-5.2)/100,1)) -> 1 | R28: =ROUND((((I28*M28)*Q28+H28)/(N28/24)+J28)*G28*P28,2) ->  | S28: PVB entry from transport networkIntraday | T28: =CONCATENATE("[(",I28," x ",M28," x ",Q28,") + ",H28,") x (",G28," x 24 / ",O28,") x ",O28, " / ",N28," + (",J28," x ",G28,")] x ",P28) ->  | AA28: PVB entry from transport networkYAC Viura | AB28: Individualized | AC28: PVB entry from transport network | AE28: YAC Viura | AF28: 0.071965 | AG28: €/(kWh/día)/año | AH28: 0.000137 | AI28: €/kWh | AR28: September | AS28: 9 | AT28: 5 | AU28: 1.5 | AV28: 1.3 | AW28: 1.1 | AX28: 1 | AY28: 1 | BV28: 2024-02-01 | BW28: 2024-02-29
A29: Individualized services | B29: PVB entry from distribution network | C29: Annual | D29: =IF(Garantías_TTE_AS_PR!$D$10="","",Garantías_TTE_AS_PR!$D$10) ->  | E29: PVB entry from distribution networkAnnual | F29: [(Tfr x M x Cint) / den + (TV x D)] x Qa x FR | G29: =Garantías_TTE_AS_PR!$D$13 -> 0 | H29: =Garantías_TTE_AS_PR!$D$17 -> 0 | I29: =VLOOKUP(B29,$AA$4:$AH$219,6,FALSE) -> 0 | J29: =VLOOKUP(B29,$AA$4:$AH$219,8,FALSE) -> 0 | K29: =VLOOKUP(B29,$AC$4:$AL$219,10,FALSE) -> 0 | L29: =VLOOKUP(B29,$AC$4:$AN$220,12,FALSE) -> 0 | M29: =IF(C29="Annual",VLOOKUP(MONTH(Garantías_TTE_AS_PR!$D$12),$AS$84:$AY$95,6),(IF(C29="Quarterly",VLOOKUP(MONTH(Garantías_TTE_AS_PR!$D$12),$AS$84:$AY$95,5),(IF(C29="Monthly",VLOOKUP(MONTH(Garantías_TTE_AS_PR!$D$12),$AS$84:$AY$95,4),(IF(C29="Daily",VLOOKUP(MONTH(Garantías_TTE_AS_PR!$D$12),$AS$84:$AY$95,3),(IF(C29="Intraday",IF(O29=24,VLOOKUP(MONTH(Garantías_TTE_AS_PR!$D$12),$AS$84:$AY$95,3),VLOOKUP(MONTH(Garantías_TTE_AS_PR!$D$12),$AS$84:$AY$95,2)),""))))))))) -> 1 | N29: =IF(Garantías_TTE_AS_PR!$D$8="Annual",IFERROR(_xlfn.IFS(AND(Garantías_TTE_AS_PR!$D$12>=$BV$4,Garantías_TTE_AS_PR!$D$12<$BW$4),$BE$6,AND(Garantías_TTE_AS_PR!$D$12>=$BV$5,Garantías_TTE_AS_PR!$D$12<$BW$5),$BE$6,AND(Garantías_TTE_AS_PR!$D$12>=$BV$6,Garantías_TTE_AS_PR!$D$12<$BW$6),$BE$6,AND(Garantías_TTE_AS_PR!$D$12>=$BV$7,Garantías_TTE_AS_PR!$D$12<$BW$7),$BE$6,AND(Garantías_TTE_AS_PR!$D$12>=$BV$8,Garantías_TTE_AS_PR!$D$12<$BW$8),$BE$6),$BE$5),(IF(OR(YEAR(Garantías_TTE_AS_PR!$D$12)=2020,YEAR(Garantías_TTE_AS_PR!$D$12)=2024,YEAR(Garantías_TTE_AS_PR!$D$12)=2028,YEAR(Garantías_TTE_AS_PR!$D$12)=2032,YEAR(Garantías_TTE_AS_PR!$D$12)=2036,YEAR(Garantías_TTE_AS_PR!$D$12)=2040,YEAR(Garantías_TTE_AS_PR!$D$12)=2044,YEAR(Garantías_TTE_AS_PR!$D$12)=2048),$BE$6,$BE$5))) -> 365 | O29: =Garantías_TTE_AS_PR!$D$18 ->  | P29: 2 | Q29: =IF(Garantías_TTE_AS_PR!$D$11="Firm",1,IF(Garantías_TTE_AS_PR!$D$11="Uninterruptible",1,1)) -> 1 | R29: =ROUND((((I29*M29*Q29)+J29*O29)*G29*P29),2) ->  | S29: PVB entry from distribution networkAnnual | T29: =CONCATENATE("[(",I29," x ",M29," x ",Q29,") / ",N29," + (",J29," x ",O29,")] x ",TEXT(G29,"#.##0")," x ",P29) -> [(0 x 1 x 1) / 365 + (0 x )] x 0 x 2 | AA29: PVB entry from transport networkBIO Madrid | AB29: Individualized | AC29: PVB entry from transport network | AE29: BIO Madrid | AF29: 0.076985 | AG29: €/(kWh/día)/año | AH29: 0.000137 | AI29: €/kWh | AR29: October | AS29: 10 | AT29: 5 | AU29: 1.5 | AV29: 1.3 | AW29: 1.1 | AX29: 1 | AY29: 1 | BV29: 2028-02-01 | BW29: 2028-02-29
A30: Individualized services | B30: PVB entry from distribution network | C30: Quarterly | D30: =IF(Garantías_TTE_AS_PR!$D$10="","",Garantías_TTE_AS_PR!$D$10) ->  | E30: PVB entry from distribution networkQuarterly | F30: [(Tfr x M x Cint) / den + (TV x D)] x Qa x FR | G30: =Garantías_TTE_AS_PR!$D$13 -> 0 | H30: =Garantías_TTE_AS_PR!$D$17 -> 0 | I30: =VLOOKUP(B30,$AA$4:$AH$219,6,FALSE) -> 0 | J30: =VLOOKUP(B30,$AA$4:$AH$219,8,FALSE) -> 0 | K30: =VLOOKUP(B30,$AC$4:$AL$219,10,FALSE) -> 0 | L30: =VLOOKUP(B30,$AC$4:$AN$220,12,FALSE) -> 0 | M30: =IF(C30="Annual",VLOOKUP(MONTH(Garantías_TTE_AS_PR!$D$12),$AS$84:$AY$95,6),(IF(C30="Quarterly",VLOOKUP(MONTH(Garantías_TTE_AS_PR!$D$12),$AS$84:$AY$95,5),(IF(C30="Monthly",VLOOKUP(MONTH(Garantías_TTE_AS_PR!$D$12),$AS$84:$AY$95,4),(IF(C30="Daily",VLOOKUP(MONTH(Garantías_TTE_AS_PR!$D$12),$AS$84:$AY$95,3),(IF(C30="Intraday",IF(O30=24,VLOOKUP(MONTH(Garantías_TTE_AS_PR!$D$12),$AS$84:$AY$95,3),VLOOKUP(MONTH(Garantías_TTE_AS_PR!$D$12),$AS$84:$AY$95,2)),""))))))))) -> 1.35 | N30: =IF(Garantías_TTE_AS_PR!$D$8="Quarterly",IFERROR(_xlfn.IFS(AND(Garantías_TTE_AS_PR!$D$12>=$BX$4,Garantías_TTE_AS_PR!$D$12<$BY$4),$BE$6,AND(Garantías_TTE_AS_PR!$D$12>=$BX$5,Garantías_TTE_AS_PR!$D$12<$BY$5),$BE$6,AND(Garantías_TTE_AS_PR!$D$12>=$BX$6,Garantías_TTE_AS_PR!$D$12<$BY$6),$BE$6,AND(Garantías_TTE_AS_PR!$D$12>=$BX$7,Garantías_TTE_AS_PR!$D$12<$BY$7),$BE$6,AND(Garantías_TTE_AS_PR!$D$12>=$BX$8,Garantías_TTE_AS_PR!$D$12<$BY$8),$BE$6),$BE$5),(IF(OR(YEAR(Garantías_TTE_AS_PR!$D$12)=2020,YEAR(Garantías_TTE_AS_PR!$D$12)=2024,YEAR(Garantías_TTE_AS_PR!$D$12)=2028,YEAR(Garantías_TTE_AS_PR!$D$12)=2032,YEAR(Garantías_TTE_AS_PR!$D$12)=2036,YEAR(Garantías_TTE_AS_PR!$D$12)=2040,YEAR(Garantías_TTE_AS_PR!$D$12)=2044,YEAR(Garantías_TTE_AS_PR!$D$12)=2048),$BE$6,$BE$5))) -> 365 | O30: =Garantías_TTE_AS_PR!$D$18 ->  | P30: 2 | Q30: =IF(Garantías_TTE_AS_PR!$D$11="Firm",1,IF(Garantías_TTE_AS_PR!$D$11="Uninterruptible",1,1)) -> 1 | R30: =ROUND((((I30*M30*Q30)+J30*O30)*G30*P30),2) ->  | S30: PVB entry from distribution networkQuarterly | T30: =CONCATENATE("[(",I30," x ",M30," x ",Q30,") / ",N30," + (",J30," x ",O30,")] x ",TEXT(G30,"#.##0")," x ",P30) -> [(0 x 1,35 x 1) / 365 + (0 x )] x 0 x 2 | AA30: PVB entry from transport networkBIO La Galera | AB30: Individualized | AC30: PVB entry from transport network | AE30: BIO La Galera | AF30: 0.087691 | AG30: €/(kWh/día)/año | AH30: 0.000137 | AI30: €/kWh | AR30: November | AS30: 11 | AT30: 5 | AU30: 1.5 | AV30: 1.3 | AW30: 1.1 | AX30: 1 | AY30: 1 | BV30: 2032-02-01 | BW30: 2032-02-29
A31: Individualized services | B31: PVB entry from distribution network | C31: Monthly | D31: =IF(Garantías_TTE_AS_PR!$D$10="","",Garantías_TTE_AS_PR!$D$10) ->  | E31: PVB entry from distribution networkMonthly | F31: [(Tfr x M x Cint) / den + (TV x D)] x Qa x FR | G31: =Garantías_TTE_AS_PR!$D$13 -> 0 | H31: =Garantías_TTE_AS_PR!$D$17 -> 0 | I31: =VLOOKUP(B31,$AA$4:$AH$219,6,FALSE) -> 0 | J31: =VLOOKUP(B31,$AA$4:$AH$219,8,FALSE) -> 0 | K31: =VLOOKUP(B31,$AC$4:$AL$219,10,FALSE) -> 0 | L31: =VLOOKUP(B31,$AC$4:$AN$220,12,FALSE) -> 0 | M31: =IF(C31="Annual",VLOOKUP(MONTH(Garantías_TTE_AS_PR!$D$12),$AS$84:$AY$95,6),(IF(C31="Quarterly",VLOOKUP(MONTH(Garantías_TTE_AS_PR!$D$12),$AS$84:$AY$95,5),(IF(C31="Monthly",VLOOKUP(MONTH(Garantías_TTE_AS_PR!$D$12),$AS$84:$AY$95,4),(IF(C31="Daily",VLOOKUP(MONTH(Garantías_TTE_AS_PR!$D$12),$AS$84:$AY$95,3),(IF(C31="Intraday",IF(O31=24,VLOOKUP(MONTH(Garantías_TTE_AS_PR!$D$12),$AS$84:$AY$95,3),VLOOKUP(MONTH(Garantías_TTE_AS_PR!$D$12),$AS$84:$AY$95,2)),""))))))))) -> 1.73 | N31: =IF(Garantías_TTE_AS_PR!$D$8="Monthly",IFERROR(_xlfn.IFS(AND(Garantías_TTE_AS_PR!$D$12>=$BX$4,Garantías_TTE_AS_PR!$D$12<$BY$4),$BE$6,AND(Garantías_TTE_AS_PR!$D$12>=$BX$5,Garantías_TTE_AS_PR!$D$12<$BY$5),$BE$6,AND(Garantías_TTE_AS_PR!$D$12>=$BX$6,Garantías_TTE_AS_PR!$D$12<$BY$6),$BE$6,AND(Garantías_TTE_AS_PR!$D$12>=$BX$7,Garantías_TTE_AS_PR!$D$12<$BY$7),$BE$6,AND(Garantías_TTE_AS_PR!$D$12>=$BX$8,Garantías_TTE_AS_PR!$D$12<$BY$8),$BE$6),$BE$5),(IF(OR(YEAR(Garantías_TTE_AS_PR!$D$12)=2020,YEAR(Garantías_TTE_AS_PR!$D$12)=2024,YEAR(Garantías_TTE_AS_PR!$D$12)=2028,YEAR(Garantías_TTE_AS_PR!$D$12)=2032,YEAR(Garantías_TTE_AS_PR!$D$12)=2036,YEAR(Garantías_TTE_AS_PR!$D$12)=2040,YEAR(Garantías_TTE_AS_PR!$D$12)=2044,YEAR(Garantías_TTE_AS_PR!$D$12)=2048),$BE$6,$BE$5))) -> 365 | O31: =Garantías_TTE_AS_PR!$D$18 ->  | P31: 1 | Q31: =IF(Garantías_TTE_AS_PR!$D$11="Firm",1,IF(Garantías_TTE_AS_PR!$D$11="Uninterruptible",1,1)) -> 1 | S31: PVB entry from distribution networkMonthly | T31: [(0 x 1,73 x 1) / 365 + (0 x )] x 0 x 1 | AA31: PVB entry from transport networkAASS | AB31: Individualized | AC31: PVB entry from transport network | AE31: AASS | AF31: 0 | AG31: €/(kWh/día)/año | AH31: 0.000137 | AI31: €/kWh | AR31: December | AS31: 12 | AT31: 5 | AU31: 1.5 | AV31: 1.3 | AW31: 1.1 | AX31: 1 | AY31: 1 | BV31: 2036-02-01 | BW31: 2036-02-29
A32: Individualized services | B32: PVB entry from distribution network | C32: Daily | D32: =IF(Garantías_TTE_AS_PR!$D$10="","",Garantías_TTE_AS_PR!$D$10) ->  | E32: PVB entry from distribution networkDaily | F32: [(Tfr x M x Cint) / den + (TV x D)] x Qa x FR | G32: =Garantías_TTE_AS_PR!$D$13 -> 0 | H32: =Garantías_TTE_AS_PR!$D$17 -> 0 | I32: =VLOOKUP(B32,$AA$4:$AH$219,6,FALSE) -> 0 | J32: =VLOOKUP(B32,$AA$4:$AH$219,8,FALSE) -> 0 | K32: =VLOOKUP(B32,$AC$4:$AL$219,10,FALSE) -> 0 | L32: =VLOOKUP(B32,$AC$4:$AN$220,12,FALSE) -> 0 | M32: =IF(C32="Annual",VLOOKUP(MONTH(Garantías_TTE_AS_PR!$D$12),$AS$84:$AY$95,6),(IF(C32="Quarterly",VLOOKUP(MONTH(Garantías_TTE_AS_PR!$D$12),$AS$84:$AY$95,5),(IF(C32="Monthly",VLOOKUP(MONTH(Garantías_TTE_AS_PR!$D$12),$AS$84:$AY$95,4),(IF(C32="Daily",VLOOKUP(MONTH(Garantías_TTE_AS_PR!$D$12),$AS$84:$AY$95,3),(IF(C32="Intraday",IF(O32=24,VLOOKUP(MONTH(Garantías_TTE_AS_PR!$D$12),$AS$84:$AY$95,3),VLOOKUP(MONTH(Garantías_TTE_AS_PR!$D$12),$AS$84:$AY$95,2)),""))))))))) -> 2.13 | N32: =IF(Garantías_TTE_AS_PR!$D$8="Daily",IFERROR(_xlfn.IFS(AND(Garantías_TTE_AS_PR!$D$12>=$BX$4,Garantías_TTE_AS_PR!$D$12<$BY$4),$BE$6,AND(Garantías_TTE_AS_PR!$D$12>=$BX$5,Garantías_TTE_AS_PR!$D$12<$BY$5),$BE$6,AND(Garantías_TTE_AS_PR!$D$12>=$BX$6,Garantías_TTE_AS_PR!$D$12<$BY$6),$BE$6,AND(Garantías_TTE_AS_PR!$D$12>=$BX$7,Garantías_TTE_AS_PR!$D$12<$BY$7),$BE$6,AND(Garantías_TTE_AS_PR!$D$12>=$BX$8,Garantías_TTE_AS_PR!$D$12<$BY$8),$BE$6),$BE$5),(IF(OR(YEAR(Garantías_TTE_AS_PR!$D$12)=2020,YEAR(Garantías_TTE_AS_PR!$D$12)=2024,YEAR(Garantías_TTE_AS_PR!$D$12)=2028,YEAR(Garantías_TTE_AS_PR!$D$12)=2032,YEAR(Garantías_TTE_AS_PR!$D$12)=2036,YEAR(Garantías_TTE_AS_PR!$D$12)=2040,YEAR(Garantías_TTE_AS_PR!$D$12)=2044,YEAR(Garantías_TTE_AS_PR!$D$12)=2048),$BE$6,$BE$5))) -> 365 | O32: =Garantías_TTE_AS_PR!$D$18 ->  | P32: 1 | Q32: =IF(Garantías_TTE_AS_PR!$D$11="Firm",1,IF(Garantías_TTE_AS_PR!$D$11="Uninterruptible",1,1)) -> 1 | S32: PVB entry from distribution networkDaily | T32: [(0 x 2,13 x 1) / 365 + (0 x )] x 0 x 1 | AA32: PVB entry from distribution network | AB32: Individualized | AC32: PVB entry from distribution network | AF32: 0 | AG32: €/(kWh/día)/año | AH32: 0 | AI32: €/kWh | BV32: 2040-02-01 | BW32: 2040-02-29
A33: Individualized services | B33: PVB entry from distribution network | C33: Intraday | D33: =IF(Garantías_TTE_AS_PR!$D$10="","",Garantías_TTE_AS_PR!$D$10) ->  | E33: PVB entry from distribution networkIntraday | F33: [(Tfr x M x Cint + prima ) x (Qa x 24 / H) x H / den + (TV x Qa)] x FR | G33: =Garantías_TTE_AS_PR!$D$13 -> 0 | H33: =Garantías_TTE_AS_PR!$D$17 -> 0 | I33: =VLOOKUP(B33,$AA$4:$AH$219,6,FALSE) -> 0 | J33: =VLOOKUP(B33,$AA$4:$AH$219,8,FALSE) -> 0 | K33: =VLOOKUP(B33,$AC$4:$AL$219,10,FALSE) -> 0 | L33: =VLOOKUP(B33,$AC$4:$AN$220,12,FALSE) -> 0 | M33: =IF(C33="Annual",VLOOKUP(MONTH(Garantías_TTE_AS_PR!$D$12),$AS$84:$AY$95,6),(IF(C33="Quarterly",VLOOKUP(MONTH(Garantías_TTE_AS_PR!$D$12),$AS$84:$AY$95,5),(IF(C33="Monthly",VLOOKUP(MONTH(Garantías_TTE_AS_PR!$D$12),$AS$84:$AY$95,4),(IF(C33="Daily",VLOOKUP(MONTH(Garantías_TTE_AS_PR!$D$12),$AS$84:$AY$95,3),(IF(C33="Intraday",IF(O33=24,VLOOKUP(MONTH(Garantías_TTE_AS_PR!$D$12),$AS$84:$AY$95,3),VLOOKUP(MONTH(Garantías_TTE_AS_PR!$D$12),$AS$84:$AY$95,2)),""))))))))) -> 4.54 | N33: =IF(Garantías_TTE_AS_PR!$D$8="Intraday",IFERROR(_xlfn.IFS(AND(Garantías_TTE_AS_PR!$D$12>=$BX$4,Garantías_TTE_AS_PR!$D$12<$BY$4),$BE$8,AND(Garantías_TTE_AS_PR!$D$12>=$BX$5,Garantías_TTE_AS_PR!$D$12<$BY$5),$BE$8,AND(Garantías_TTE_AS_PR!$D$12>=$BX$6,Garantías_TTE_AS_PR!$D$12<$BY$6),$BE$8,AND(Garantías_TTE_AS_PR!$D$12>=$BX$7,Garantías_TTE_AS_PR!$D$12<$BY$7),$BE$8,AND(Garantías_TTE_AS_PR!$D$12>=$BX$8,Garantías_TTE_AS_PR!$D$12<$BY$8),$BE$8),$BE$7),(IF(OR(YEAR(Garantías_TTE_AS_PR!$D$12)=2020,YEAR(Garantías_TTE_AS_PR!$D$12)=2024,YEAR(Garantías_TTE_AS_PR!$D$12)=2028,YEAR(Garantías_TTE_AS_PR!$D$12)=2032,YEAR(Garantías_TTE_AS_PR!$D$12)=2036,YEAR(Garantías_TTE_AS_PR!$D$12)=2040,YEAR(Garantías_TTE_AS_PR!$D$12)=2044,YEAR(Garantías_TTE_AS_PR!$D$12)=2048),$BE$8,$BE$7))) -> 8760 | O33: =Garantías_TTE_AS_PR!$D$9 -> 0 | P33: 1 | Q33: =IF(Garantías_TTE_AS_PR!$D$11="Firm",1,IF(Garantías_TTE_AS_PR!$D$11="Uninterruptible",1,1)) -> 1 | R33: =ROUND((((I33*M33)*Q33+H33)/(N33/24)+J33)*G33*P33,2) -> 0 | S33: PVB entry from distribution networkIntraday | T33: =CONCATENATE("[(",I33," x ",M33," x ",Q33," + ", H33,")"," x (",G33," x 24 / ",O33,") x ",O33," / ", N33," + (",J33,"x",G33,")] x ",P33) -> [(0 x 4,54 x 1 + 0) x (0 x 24 / 0) x 0 / 8760 + (0x0)] x 1 | AA33: PVB exitSalida Nacional | AB33: Individualized | AC33: PVB exit | AE33: Salida Nacional | AF33: 0.091544 | AG33: €/(kWh/día)/año | AH33: 0.000137 | AI33: €/kWh | AQ33: Administración PEAJES. Regasificación
A34: Individualized services | B34: PVB exit | C34: Annual | D34: =IF(Garantías_TTE_AS_PR!$D$10="","",Garantías_TTE_AS_PR!$D$10) ->  | E34: PVB exitAnnual | F34: [(Tfl x M x Cint + prima ) / den + (Tvl x D)] x Qa x FR | G34: =Garantías_TTE_AS_PR!$D$13 -> 0 | H34: =Garantías_TTE_AS_PR!$D$17 -> 0 | I34: =VLOOKUP(CONCATENATE(B34,D34),$AA$4:$AH$219,6,FALSE) ->  | J34: =VLOOKUP(CONCATENATE(B34,D34),$AA$4:$AH$219,8,FALSE) ->  | K34: =VLOOKUP(CONCATENATE(B34,D34),$AA$4:$AL$219,12,FALSE) ->  | L34: =VLOOKUP(CONCATENATE(B34,D34),$AA$4:$AN$220,14,FALSE) ->  | M34: =IF(C34="Annual",VLOOKUP(MONTH(Garantías_TTE_AS_PR!$D$12),$AS$100:$AY$111,6),(IF(C34="Quarterly",VLOOKUP(MONTH(Garantías_TTE_AS_PR!$D$12),$AS$100:$AY$111,5),(IF(C34="Monthly",VLOOKUP(MONTH(Garantías_TTE_AS_PR!$D$12),$AS$100:$AY$111,4),(IF(C34="Daily",VLOOKUP(MONTH(Garantías_TTE_AS_PR!$D$12),$AS$100:$AY$111,3),(IF(C34="Intraday",IF(O34=24,VLOOKUP(MONTH(Garantías_TTE_AS_PR!$D$12),$AS$100:$AY$111,3),VLOOKUP(MONTH(Garantías_TTE_AS_PR!$D$12),$AS$100:$AY$111,2)),""))))))))) -> 1 | N34: =IF(Garantías_TTE_AS_PR!$D$8="Annual",IFERROR(_xlfn.IFS(AND(Garantías_TTE_AS_PR!$D$12>=$BV$4,Garantías_TTE_AS_PR!$D$12<$BW$4),$BE$6,AND(Garantías_TTE_AS_PR!$D$12>=$BV$5,Garantías_TTE_AS_PR!$D$12<$BW$5),$BE$6,AND(Garantías_TTE_AS_PR!$D$12>=$BV$6,Garantías_TTE_AS_PR!$D$12<$BW$6),$BE$6,AND(Garantías_TTE_AS_PR!$D$12>=$BV$7,Garantías_TTE_AS_PR!$D$12<$BW$7),$BE$6,AND(Garantías_TTE_AS_PR!$D$12>=$BV$8,Garantías_TTE_AS_PR!$D$12<$BW$8),$BE$6),$BE$5),(IF(OR(YEAR(Garantías_TTE_AS_PR!$D$12)=2020,YEAR(Garantías_TTE_AS_PR!$D$12)=2024,YEAR(Garantías_TTE_AS_PR!$D$12)=2028,YEAR(Garantías_TTE_AS_PR!$D$12)=2032,YEAR(Garantías_TTE_AS_PR!$D$12)=2036,YEAR(Garantías_TTE_AS_PR!$D$12)=2040,YEAR(Garantías_TTE_AS_PR!$D$12)=2044,YEAR(Garantías_TTE_AS_PR!$D$12)=2048),$BE$6,$BE$5))) -> 365 | O34: =Garantías_TTE_AS_PR!$D$18 ->  | P34: 2 | Q34: =IF(Garantías_TTE_AS_PR!$D$11="Firm",1,IF(Garantías_TTE_AS_PR!$D$11="Uninterruptible",1,1)) -> 1 | R34: =ROUND(((((I34*M34*Q34+H34)/N34)+J34)*O34*G34*P34),2) ->  | S34: PVB exitAnnual | T34: =CONCATENATE("[(",I34," x ",M34," x ",Q34,") + ",H34, ") / ",N34," + (",J34," x ",O34,")] x ",TEXT(G34,"#.##0")," x ",P34) ->  | AA34: PVB exitGNL | AB34: Individualized | AC34: PVB exit | AE34: GNL | AF34: 0.109767 | AG34: €/(kWh/día)/año | AH34: 0.000137 | AI34: €/kWh | AQ34: Productos estándar capacidad | AR34: Mes | AT34: Intraday (05) | AU34: Daily (04) | AV34: Montly (03) | AW34: Quarterly (02) | AX34: Annual (01) | AY34: Undefined
A35: Individualized services | B35: PVB exit | C35: Quarterly | D35: =IF(Garantías_TTE_AS_PR!$D$10="","",Garantías_TTE_AS_PR!$D$10) ->  | E35: PVB exitQuarterly | F35: [(Tfl x M x Cint + prima ) / den + (Tvl x D)] x Qa x FR | G35: =Garantías_TTE_AS_PR!$D$13 -> 0 | H35: =Garantías_TTE_AS_PR!$D$17 -> 0 | I35: =VLOOKUP(CONCATENATE(B35,D35),$AA$4:$AH$219,6,FALSE) ->  | J35: =VLOOKUP(CONCATENATE(B35,D35),$AA$4:$AH$219,8,FALSE) ->  | K35: =VLOOKUP(CONCATENATE(B35,D35),$AA$4:$AL$219,12,FALSE) ->  | L35: =VLOOKUP(CONCATENATE(B35,D35),$AA$4:$AN$220,14,FALSE) ->  | M35: =IF(C35="Annual",VLOOKUP(MONTH(Garantías_TTE_AS_PR!$D$12),$AS$100:$AY$111,6),(IF(C35="Quarterly",VLOOKUP(MONTH(Garantías_TTE_AS_PR!$D$12),$AS$100:$AY$111,5),(IF(C35="Monthly",VLOOKUP(MONTH(Garantías_TTE_AS_PR!$D$12),$AS$100:$AY$111,4),(IF(C35="Daily",VLOOKUP(MONTH(Garantías_TTE_AS_PR!$D$12),$AS$100:$AY$111,3),(IF(C35="Intraday",IF(O35=24,VLOOKUP(MONTH(Garantías_TTE_AS_PR!$D$12),$AS$100:$AY$111,3),VLOOKUP(MONTH(Garantías_TTE_AS_PR!$D$12),$AS$100:$AY$111,2)),""))))))))) -> 1.2 | N35: =IF(Garantías_TTE_AS_PR!$D$8="Quarterly",IFERROR(_xlfn.IFS(AND(Garantías_TTE_AS_PR!$D$12>=$BX$4,Garantías_TTE_AS_PR!$D$12<$BY$4),$BE$6,AND(Garantías_TTE_AS_PR!$D$12>=$BX$5,Garantías_TTE_AS_PR!$D$12<$BY$5),$BE$6,AND(Garantías_TTE_AS_PR!$D$12>=$BX$6,Garantías_TTE_AS_PR!$D$12<$BY$6),$BE$6,AND(Garantías_TTE_AS_PR!$D$12>=$BX$7,Garantías_TTE_AS_PR!$D$12<$BY$7),$BE$6,AND(Garantías_TTE_AS_PR!$D$12>=$BX$8,Garantías_TTE_AS_PR!$D$12<$BY$8),$BE$6),$BE$5),(IF(OR(YEAR(Garantías_TTE_AS_PR!$D$12)=2020,YEAR(Garantías_TTE_AS_PR!$D$12)=2024,YEAR(Garantías_TTE_AS_PR!$D$12)=2028,YEAR(Garantías_TTE_AS_PR!$D$12)=2032,YEAR(Garantías_TTE_AS_PR!$D$12)=2036,YEAR(Garantías_TTE_AS_PR!$D$12)=2040,YEAR(Garantías_TTE_AS_PR!$D$12)=2044,YEAR(Garantías_TTE_AS_PR!$D$12)=2048),$BE$6,$BE$5))) -> 365 | O35: =Garantías_TTE_AS_PR!$D$18 ->  | P35: 2 | Q35: =IF(Garantías_TTE_AS_PR!$D$11="Firm",1,IF(Garantías_TTE_AS_PR!$D$11="Uninterruptible",1,1)) -> 1 | S35: PVB exitQuarterly | T35: =CONCATENATE("[(",I35," x ",M35," x ",Q35,") + ",H35, ") / ",N35," + (",J35," x ",O35,")] x ",TEXT(G35,"#.##0")," x ",P35) ->  | AA35: PVB exitVIP Pirineos | AB35: Individualized | AC35: PVB exit | AE35: VIP Pirineos | AF35: 0.096673 | AG35: €/(kWh/día)/año | AH35: 0.000137 | AI35: €/kWh
A36: Individualized services | B36: PVB exit | C36: Monthly | D36: =IF(Garantías_TTE_AS_PR!$D$10="","",Garantías_TTE_AS_PR!$D$10) ->  | E36: PVB exitMonthly | F36: [(Tfl x M x Cint + prima ) / den + (Tvl x D)] x Qa x FR | G36: =Garantías_TTE_AS_PR!$D$13 -> 0 | H36: =Garantías_TTE_AS_PR!$D$17 -> 0 | I36: =VLOOKUP(CONCATENATE(B36,D36),$AA$4:$AH$219,6,FALSE) ->  | J36: =VLOOKUP(CONCATENATE(B36,D36),$AA$4:$AH$219,8,FALSE) ->  | K36: =VLOOKUP(CONCATENATE(B36,D36),$AA$4:$AL$219,12,FALSE) ->  | L36: =VLOOKUP(CONCATENATE(B36,D36),$AA$4:$AN$220,14,FALSE) ->  | M36: =IF(C36="Annual",VLOOKUP(MONTH(Garantías_TTE_AS_PR!$D$12),$AS$100:$AY$111,6),(IF(C36="Quarterly",VLOOKUP(MONTH(Garantías_TTE_AS_PR!$D$12),$AS$100:$AY$111,5),(IF(C36="Monthly",VLOOKUP(MONTH(Garantías_TTE_AS_PR!$D$12),$AS$100:$AY$111,4),(IF(C36="Daily",VLOOKUP(MONTH(Garantías_TTE_AS_PR!$D$12),$AS$100:$AY$111,3),(IF(C36="Intraday",IF(O36=24,VLOOKUP(MONTH(Garantías_TTE_AS_PR!$D$12),$AS$100:$AY$111,3),VLOOKUP(MONTH(Garantías_TTE_AS_PR!$D$12),$AS$100:$AY$111,2)),""))))))))) -> 1.3 | N36: =IF(Garantías_TTE_AS_PR!$D$8="Monthly",IFERROR(_xlfn.IFS(AND(Garantías_TTE_AS_PR!$D$12>=$BX$4,Garantías_TTE_AS_PR!$D$12<$BY$4),$BE$6,AND(Garantías_TTE_AS_PR!$D$12>=$BX$5,Garantías_TTE_AS_PR!$D$12<$BY$5),$BE$6,AND(Garantías_TTE_AS_PR!$D$12>=$BX$6,Garantías_TTE_AS_PR!$D$12<$BY$6),$BE$6,AND(Garantías_TTE_AS_PR!$D$12>=$BX$7,Garantías_TTE_AS_PR!$D$12<$BY$7),$BE$6,AND(Garantías_TTE_AS_PR!$D$12>=$BX$8,Garantías_TTE_AS_PR!$D$12<$BY$8),$BE$6),$BE$5),(IF(OR(YEAR(Garantías_TTE_AS_PR!$D$12)=2020,YEAR(Garantías_TTE_AS_PR!$D$12)=2024,YEAR(Garantías_TTE_AS_PR!$D$12)=2028,YEAR(Garantías_TTE_AS_PR!$D$12)=2032,YEAR(Garantías_TTE_AS_PR!$D$12)=2036,YEAR(Garantías_TTE_AS_PR!$D$12)=2040,YEAR(Garantías_TTE_AS_PR!$D$12)=2044,YEAR(Garantías_TTE_AS_PR!$D$12)=2048),$BE$6,$BE$5))) -> 365 | O36: =Garantías_TTE_AS_PR!$D$18 ->  | P36: 1 | Q36: =IF(Garantías_TTE_AS_PR!$D$11="Firm",1,IF(Garantías_TTE_AS_PR!$D$11="Uninterruptible",1,1)) -> 1 | S36: =B36&C36 -> PVB exitMonthly | AA36: PVB exitVIP Ibérico | AB36: Individualized | AC36: PVB exit | AE36: VIP Ibérico | AF36: 0.114937 | AG36: €/(kWh/día)/año | AH36: 0.000137 | AI36: €/kWh | AR36: January | AS36: 1 | AT36: 6 | AU36: 1.7 | AV36: 1.3 | AW36: 1.2 | AX36: 1 | AY36: 1
A37: Individualized services | B37: PVB exit | C37: Daily | D37: =IF(Garantías_TTE_AS_PR!$D$10="","",Garantías_TTE_AS_PR!$D$10) ->  | E37: PVB exitDaily | F37: [(Tfl x M x Cint + prima ) / den + (Tvl x D)] x Qa x FR | G37: =Garantías_TTE_AS_PR!$D$13 -> 0 | H37: =Garantías_TTE_AS_PR!$D$17 -> 0 | I37: =VLOOKUP(CONCATENATE(B37,D37),$AA$4:$AH$219,6,FALSE) ->  | J37: =VLOOKUP(CONCATENATE(B37,D37),$AA$4:$AH$219,8,FALSE) ->  | K37: =VLOOKUP(CONCATENATE(B37,D37),$AA$4:$AL$219,12,FALSE) ->  | L37: =VLOOKUP(CONCATENATE(B37,D37),$AA$4:$AN$220,14,FALSE) ->  | M37: =IF(C37="Annual",VLOOKUP(MONTH(Garantías_TTE_AS_PR!$D$12),$AS$100:$AY$111,6),(IF(C37="Quarterly",VLOOKUP(MONTH(Garantías_TTE_AS_PR!$D$12),$AS$100:$AY$111,5),(IF(C37="Monthly",VLOOKUP(MONTH(Garantías_TTE_AS_PR!$D$12),$AS$100:$AY$111,4),(IF(C37="Daily",VLOOKUP(MONTH(Garantías_TTE_AS_PR!$D$12),$AS$100:$AY$111,3),(IF(C37="Intraday",IF(O37=24,VLOOKUP(MONTH(Garantías_TTE_AS_PR!$D$12),$AS$100:$AY$111,3),VLOOKUP(MONTH(Garantías_TTE_AS_PR!$D$12),$AS$100:$AY$111,2)),""))))))))) -> 1.6 | N37: =IF(Garantías_TTE_AS_PR!$D$8="Daily",IFERROR(_xlfn.IFS(AND(Garantías_TTE_AS_PR!$D$12>=$BX$4,Garantías_TTE_AS_PR!$D$12<$BY$4),$BE$6,AND(Garantías_TTE_AS_PR!$D$12>=$BX$5,Garantías_TTE_AS_PR!$D$12<$BY$5),$BE$6,AND(Garantías_TTE_AS_PR!$D$12>=$BX$6,Garantías_TTE_AS_PR!$D$12<$BY$6),$BE$6,AND(Garantías_TTE_AS_PR!$D$12>=$BX$7,Garantías_TTE_AS_PR!$D$12<$BY$7),$BE$6,AND(Garantías_TTE_AS_PR!$D$12>=$BX$8,Garantías_TTE_AS_PR!$D$12<$BY$8),$BE$6),$BE$5),(IF(OR(YEAR(Garantías_TTE_AS_PR!$D$12)=2020,YEAR(Garantías_TTE_AS_PR!$D$12)=2024,YEAR(Garantías_TTE_AS_PR!$D$12)=2028,YEAR(Garantías_TTE_AS_PR!$D$12)=2032,YEAR(Garantías_TTE_AS_PR!$D$12)=2036,YEAR(Garantías_TTE_AS_PR!$D$12)=2040,YEAR(Garantías_TTE_AS_PR!$D$12)=2044,YEAR(Garantías_TTE_AS_PR!$D$12)=2048),$BE$6,$BE$5))) -> 365 | O37: =Garantías_TTE_AS_PR!$D$18 ->  | P37: 1 | Q37: =IF(Garantías_TTE_AS_PR!$D$11="Firm",1,IF(AND(Garantías_TTE_AS_PR!$D$11="Uninterruptible",D37="VIP Pirineos"),(100-4.2)/100,1)) -> 1 | S37: PVB exitDaily | AA37: PVB exitCI Tarifa | AB37: Individualized | AC37: PVB exit | AE37: CI Tarifa | AF37: 0.130142 | AG37: €/(kWh/día)/año | AH37: 0.000137 | AI37: €/kWh | AR37: February | AS37: 2 | AT37: 6 | AU37: 1.7 | AV37: 1.3 | AW37: 1.2 | AX37: 1 | AY37: 1
A38: Individualized services | B38: PVB exit | C38: Intraday | D38: =IF(Garantías_TTE_AS_PR!$D$10="","",Garantías_TTE_AS_PR!$D$10) ->  | E38: PVB exitIntraday | F38: [(Tfr x M x Cint + prima ) x (Qa x 24 / H) x H / den + (TV x Qa)] x FR | G38: =Garantías_TTE_AS_PR!$D$13 -> 0 | H38: =Garantías_TTE_AS_PR!$D$17 -> 0 | I38: =VLOOKUP(CONCATENATE(B38,D38),$AA$4:$AH$219,6,FALSE) ->  | J38: =VLOOKUP(CONCATENATE(B38,D38),$AA$4:$AH$219,8,FALSE) ->  | K38: =VLOOKUP(CONCATENATE(B38,D38),$AA$4:$AL$219,12,FALSE) ->  | L38: =VLOOKUP(CONCATENATE(B38,D38),$AA$4:$AN$220,14,FALSE) ->  | M38: =IF(C38="Annual",VLOOKUP(MONTH(Garantías_TTE_AS_PR!$D$12),$AS$100:$AY$111,6),(IF(C38="Quarterly",VLOOKUP(MONTH(Garantías_TTE_AS_PR!$D$12),$AS$100:$AY$111,5),(IF(C38="Monthly",VLOOKUP(MONTH(Garantías_TTE_AS_PR!$D$12),$AS$100:$AY$111,4),(IF(C38="Daily",VLOOKUP(MONTH(Garantías_TTE_AS_PR!$D$12),$AS$100:$AY$111,3),(IF(C38="Intraday",IF(O38=24,VLOOKUP(MONTH(Garantías_TTE_AS_PR!$D$12),$AS$100:$AY$111,3),VLOOKUP(MONTH(Garantías_TTE_AS_PR!$D$12),$AS$100:$AY$111,2)),""))))))))) -> 3.4 | N38: =IF(Garantías_TTE_AS_PR!$D$8="Intraday",IFERROR(_xlfn.IFS(AND(Garantías_TTE_AS_PR!$D$12>=$BX$4,Garantías_TTE_AS_PR!$D$12<$BY$4),$BE$8,AND(Garantías_TTE_AS_PR!$D$12>=$BX$5,Garantías_TTE_AS_PR!$D$12<$BY$5),$BE$8,AND(Garantías_TTE_AS_PR!$D$12>=$BX$6,Garantías_TTE_AS_PR!$D$12<$BY$6),$BE$8,AND(Garantías_TTE_AS_PR!$D$12>=$BX$7,Garantías_TTE_AS_PR!$D$12<$BY$7),$BE$8,AND(Garantías_TTE_AS_PR!$D$12>=$BX$8,Garantías_TTE_AS_PR!$D$12<$BY$8),$BE$8),$BE$7),(IF(OR(YEAR(Garantías_TTE_AS_PR!$D$12)=2020,YEAR(Garantías_TTE_AS_PR!$D$12)=2024,YEAR(Garantías_TTE_AS_PR!$D$12)=2028,YEAR(Garantías_TTE_AS_PR!$D$12)=2032,YEAR(Garantías_TTE_AS_PR!$D$12)=2036,YEAR(Garantías_TTE_AS_PR!$D$12)=2040,YEAR(Garantías_TTE_AS_PR!$D$12)=2044,YEAR(Garantías_TTE_AS_PR!$D$12)=2048),$BE$8,$BE$7))) -> 8760 | O38: =Garantías_TTE_AS_PR!$D$9 -> 0 | P38: 1 | Q38: =IF(Garantías_TTE_AS_PR!$D$11="Firm",1,IF(AND(Garantías_TTE_AS_PR!$D$11="Uninterruptible",D38="VIP Pirineos"),(100-8.6)/100,1)) -> 1 | R38: =ROUND((((I38*M38)*Q38+H38)/(N38/24)+J38)*G38*P38,2) ->  | S38: PVB exitIntraday | T38: =CONCATENATE("[(",I38," x ",M38," x ",Q38,") + ",H38, ") x (",G38," x 24 /",O38,") x ",O38," / ",N38," + (",J38," x ",G38,")] x ",P38) ->  | W38: Tf | X38: Tv | AA38: PVB exitAASS | AB38: Individualized | AC38: PVB exit | AE38: AASS | AF38: 0 | AG38: €/(kWh/día)/año | AH38: 0.000137 | AI38: €/kWh | AR38: March | AS38: 3 | AT38: 6 | AU38: 1.7 | AV38: 1.3 | AW38: 1.2 | AX38: 1 | AY38: 1
A39: Individualized services | B39: PVB exit to consumer | C39: Undefined - Peaje RL.1 | D39: =IF(Garantías_TTE_AS_PR!$D$10="","",Garantías_TTE_AS_PR!$D$10) ->  | E39: =B39&C39 -> PVB exit to consumerUndefined - Peaje RL.1 | F39: [((Tfrl+TfSal+OCREG)x M x Cint) / den + (TV x D)] x Qa x FR | G39: =Garantías_TTE_AS_PR!$D$13 -> 0 | H39: =Garantías_TTE_AS_PR!$D$17 -> 0 | I39: =VLOOKUP(CONCATENATE(SCON,RIGHT(C39,4)),$AA$4:$AJ$220,6,FALSE) -> 3.504214 | J39: =VLOOKUP(CONCATENATE(SCON,RIGHT(C39,4)),$AA$4:$AJ$220,8,FALSE) -> 0.002224 | K39: =VLOOKUP(CONCATENATE(SCON,RIGHT(C39,4)),$AA$4:$AL$220,12,FALSE) -> 0.551139 | L39: =VLOOKUP(CONCATENATE(SCON,RIGHT(C39,4)),$AA$4:$AN$221,14,FALSE) -> 0 | M39: =IF(LEFT(C39,SEARCH("-",C39,1)-1-1)="Undefined",VLOOKUP(MONTH(Garantías_TTE_AS_PR!$D$12),$AS$84:$AY$95,7),(IF(LEFT(C39,SEARCH("-",C39,1)-1-1)="Annual",VLOOKUP(MONTH(Garantías_TTE_AS_PR!$D$12),$AS$84:$AY$95,6),(IF(LEFT(C39,SEARCH("-",C39,1)-1-1)="Quarterly",VLOOKUP(MONTH(Garantías_TTE_AS_PR!$D$12),$AS$84:$AY$95,5),(IF(LEFT(C39,SEARCH("-",C39,1)-1-1)="Monthly",VLOOKUP(MONTH(Garantías_TTE_AS_PR!$D$12),$AS$84:$AY$95,4),(IF(LEFT(C39,SEARCH("-",C39,1)-1-1)="Daily",VLOOKUP(MONTH(Garantías_TTE_AS_PR!$D$12),$AS$84:$AY$95,3),(IF(LEFT(C39,SEARCH("-",C39,1)-1-1)="Intraday",IF(O39=24,VLOOKUP(MONTH(Garantías_TTE_AS_PR!$D$12),$AS$84:$AY$95,3),VLOOKUP(MONTH(Garantías_TTE_AS_PR!$D$12),$AS$84:$AY$95,2)),""))))))))))) -> 1 | N39: =IF(Garantías_TTE_AS_PR!$D$8="Undefined - Peaje RL.1",$BE$5,$BE$6) -> 366 | O39: =Garantías_TTE_AS_PR!$D$18 ->  | P39: =VLOOKUP(LEFT(C39,SEARCH("-",C39,1)-1-1),$BA$4:$BB$51,2,FALSE) -> 2 | Q39: =IF(Garantías_TTE_AS_PR!$D$11="Firm",1,IF(Garantías_TTE_AS_PR!$D$11="Uninterruptible",1,1)) -> 1 | R39: =ROUND((((((I39+K39+$W$39)*M39*Q39))/N39+(J39+$X$39))*O39*G39*P39),2) ->  | S39: PVB exit to consumerUndefined - Peaje RL.1 | T39: =CONCATENATE("[((",I39," + ",$W$39," + ",K39,") x ",M39," x ",Q39,") / ",N39," + (",J39," + ",$X$39," x ",O39,")] x ",TEXT(G39,"#.##0")," x ",P39) -> [((3,504214 + 0,091544 + 0,551139) x 1 x 1) / 366 + (0,002224 + 0,000137 x )] x 0 x 2 | V39: PVB exitSalida Nacional | W39: =VLOOKUP($V$39,$AA$4:$AH$219,6,FALSE) -> 0.091544 | X39: =VLOOKUP($V$39,$AA$4:$AH$219,8,FALSE) -> 0.000137 | AA39: PVB exit to consumerRL.1 | AB39: Individualized | AC39: PVB exit to consumer | AD39: RL.1 | AF39: 3.504214 | AG39: €/(kWh/día)/mes | AH39: 0.002224 | AI39: €/kWh | AL39: 0.551139 | AM39: €/kWh/día/año | AR39: April | AS39: 4 | AT39: 6 | AU39: 1.7 | AV39: 1.3 | AW39: 1.2 | AX39: 1 | AY39: 1
A40: Individualized services | B40: PVB exit to consumer | C40: Annual - Peaje RL.1 | D40: =IF(Garantías_TTE_AS_PR!$D$10="","",Garantías_TTE_AS_PR!$D$10) ->  | E40: =B40&C40 -> PVB exit to consumerAnnual - Peaje RL.1 | F40: [((Tfrl+TfSal+OCREG)x M x Cint) / den + (TV x D)] x Qa x FR | G40: =Garantías_TTE_AS_PR!$D$13 -> 0 | H40: =Garantías_TTE_AS_PR!$D$17 -> 0 | I40: 3.504214 | J40: 0.002224 | K40: 0.551139 | L40: 0 | M40: =IF(LEFT(C40,SEARCH("-",C40,1)-1-1)="Undefined",VLOOKUP(MONTH(Garantías_TTE_AS_PR!$D$12),$AS$84:$AY$95,7),(IF(LEFT(C40,SEARCH("-",C40,1)-1-1)="Annual",VLOOKUP(MONTH(Garantías_TTE_AS_PR!$D$12),$AS$84:$AY$95,6),(IF(LEFT(C40,SEARCH("-",C40,1)-1-1)="Quarterly",VLOOKUP(MONTH(Garantías_TTE_AS_PR!$D$12),$AS$84:$AY$95,5),(IF(LEFT(C40,SEARCH("-",C40,1)-1-1)="Monthly",VLOOKUP(MONTH(Garantías_TTE_AS_PR!$D$12),$AS$84:$AY$95,4),(IF(LEFT(C40,SEARCH("-",C40,1)-1-1)="Daily",VLOOKUP(MONTH(Garantías_TTE_AS_PR!$D$12),$AS$84:$AY$95,3),(IF(LEFT(C40,SEARCH("-",C40,1)-1-1)="Intraday",IF(O40=24,VLOOKUP(MONTH(Garantías_TTE_AS_PR!$D$12),$AS$84:$AY$95,3),VLOOKUP(MONTH(Garantías_TTE_AS_PR!$D$12),$AS$84:$AY$95,2)),""))))))))))) -> 1 | N40: =IF(Garantías_TTE_AS_PR!$D$8="Annual - Peaje RL.1",IFERROR(_xlfn.IFS(AND(Garantías_TTE_AS_PR!$D$12>=$BV$4,Garantías_TTE_AS_PR!$D$12<$BW$4),$BE$6,AND(Garantías_TTE_AS_PR!$D$12>=$BV$5,Garantías_TTE_AS_PR!$D$12<$BW$5),$BE$6,AND(Garantías_TTE_AS_PR!$D$12>=$BV$6,Garantías_TTE_AS_PR!$D$12<$BW$6),$BE$6,AND(Garantías_TTE_AS_PR!$D$12>=$BV$7,Garantías_TTE_AS_PR!$D$12<$BW$7),$BE$6,AND(Garantías_TTE_AS_PR!$D$12>=$BV$8,Garantías_TTE_AS_PR!$D$12<$BW$8),$BE$6),$BE$5),(IF(OR(YEAR(Garantías_TTE_AS_PR!$D$12)=2020,YEAR(Garantías_TTE_AS_PR!$D$12)=2024,YEAR(Garantías_TTE_AS_PR!$D$12)=2028,YEAR(Garantías_TTE_AS_PR!$D$12)=2032,YEAR(Garantías_TTE_AS_PR!$D$12)=2036,YEAR(Garantías_TTE_AS_PR!$D$12)=2040,YEAR(Garantías_TTE_AS_PR!$D$12)=2044,YEAR(Garantías_TTE_AS_PR!$D$12)=2048),$BE$6,$BE$5))) -> 365 | O40: =Garantías_TTE_AS_PR!$D$18 ->  | P40: 2 | Q40: =IF(Garantías_TTE_AS_PR!$D$11="Firm",1,IF(Garantías_TTE_AS_PR!$D$11="Uninterruptible",1,1)) -> 1 | R40: =ROUND((((((I40+K40+$W$39)*M40*Q40))/N40+(J40+$X$39))*O40*G40*P40),2) ->  | S40: PVB exit to consumerAnnual - Peaje RL.1 | T40: =CONCATENATE("[((",I40," + ",$W$39," + ",K40,") x ",M40," x ",Q40,") / ",N40," + (",J40," + ",$X$39," x ",O40,")] x ",TEXT(G40,"#.##0")," x ",P40) -> [((3,504214 + 0,091544 + 0,551139) x 1 x 1) / 365 + (0,002224 + 0,000137 x )] x 0 x 2 | AA40: PVB exit to consumerRL.2 | AB40: Individualized | AC40: PVB exit to consumer | AD40: RL.2 | AF40: 2.404264 | AG40: €/(kWh/día)/mes | AH40: 0.002224 | AI40: €/kWh | AL40: 0.162747 | AM40: €/kWh/día/año | AR40: May | AS40: 5 | AT40: 6 | AU40: 1.7 | AV40: 1.3 | AW40: 1.2 | AX40: 1 | AY40: 1
A41: Individualized services | B41: PVB exit to consumer | C41: Quarterly - Peaje RL.1 | D41: =IF(Garantías_TTE_AS_PR!$D$10="","",Garantías_TTE_AS_PR!$D$10) ->  | E41: PVB exit to consumerQuarterly - Peaje RL.1 | F41: [((Tfrl+TfSal+OCREG)x M x Cint) / den + (TV x D)] x Qa x FR | G41: =Garantías_TTE_AS_PR!$D$13 -> 0 | H41: =Garantías_TTE_AS_PR!$D$17 -> 0 | I41: 3.504214 | J41: 0.002224 | K41: 0.551139 | L41: 0 | M41: =IF(LEFT(C41,SEARCH("-",C41,1)-1-1)="Undefined",VLOOKUP(MONTH(Garantías_TTE_AS_PR!$D$12),$AS$84:$AY$95,7),(IF(LEFT(C41,SEARCH("-",C41,1)-1-1)="Annual",VLOOKUP(MONTH(Garantías_TTE_AS_PR!$D$12),$AS$84:$AY$95,6),(IF(LEFT(C41,SEARCH("-",C41,1)-1-1)="Quarterly",VLOOKUP(MONTH(Garantías_TTE_AS_PR!$D$12),$AS$84:$AY$95,5),(IF(LEFT(C41,SEARCH("-",C41,1)-1-1)="Monthly",VLOOKUP(MONTH(Garantías_TTE_AS_PR!$D$12),$AS$84:$AY$95,4),(IF(LEFT(C41,SEARCH("-",C41,1)-1-1)="Daily",VLOOKUP(MONTH(Garantías_TTE_AS_PR!$D$12),$AS$84:$AY$95,3),(IF(LEFT(C41,SEARCH("-",C41,1)-1-1)="Intraday",IF(O41=24,VLOOKUP(MONTH(Garantías_TTE_AS_PR!$D$12),$AS$84:$AY$95,3),VLOOKUP(MONTH(Garantías_TTE_AS_PR!$D$12),$AS$84:$AY$95,2)),""))))))))))) -> 1.35 | N41: =IF(Garantías_TTE_AS_PR!$D$8="Quarterly - Peaje RL.1",IFERROR(_xlfn.IFS(AND(Garantías_TTE_AS_PR!$D$12>=$BX$4,Garantías_TTE_AS_PR!$D$12<$BY$4),$BE$6,AND(Garantías_TTE_AS_PR!$D$12>=$BX$5,Garantías_TTE_AS_PR!$D$12<$BY$5),$BE$6,AND(Garantías_TTE_AS_PR!$D$12>=$BX$6,Garantías_TTE_AS_PR!$D$12<$BY$6),$BE$6,AND(Garantías_TTE_AS_PR!$D$12>=$BX$7,Garantías_TTE_AS_PR!$D$12<$BY$7),$BE$6,AND(Garantías_TTE_AS_PR!$D$12>=$BX$8,Garantías_TTE_AS_PR!$D$12<$BY$8),$BE$6),$BE$5),(IF(OR(YEAR(Garantías_TTE_AS_PR!$D$12)=2020,YEAR(Garantías_TTE_AS_PR!$D$12)=2024,YEAR(Garantías_TTE_AS_PR!$D$12)=2028,YEAR(Garantías_TTE_AS_PR!$D$12)=2032,YEAR(Garantías_TTE_AS_PR!$D$12)=2036,YEAR(Garantías_TTE_AS_PR!$D$12)=2040,YEAR(Garantías_TTE_AS_PR!$D$12)=2044,YEAR(Garantías_TTE_AS_PR!$D$12)=2048),$BE$6,$BE$5))) -> 365 | O41: =Garantías_TTE_AS_PR!$D$18 ->  | P41: 2 | Q41: =IF(Garantías_TTE_AS_PR!$D$11="Firm",1,IF(Garantías_TTE_AS_PR!$D$11="Uninterruptible",1,1)) -> 1 | S41: PVB exit to consumerQuarterly - Peaje RL.1 | T41: [((3,504214 + 0,091544 + 0,551139) x 1,35 x 1) / 365 + (0,002224 + 0,000137 x )] x 0 x 2 | AA41: PVB exit to consumerRL.3 | AB41: Individualized | AC41: PVB exit to consumer | AD41: RL.3 | AF41: 2.209031 | AG41: €/(kWh/día)/mes | AH41: 0.002223 | AI41: €/kWh | AL41: 0.064999 | AM41: €/kWh/día/año | AR41: June | AS41: 6 | AT41: 6 | AU41: 1.7 | AV41: 1.3 | AW41: 1.2 | AX41: 1 | AY41: 1
A42: Individualized services | B42: PVB exit to consumer | C42: Monthly - Peaje RL.1 | D42: =IF(Garantías_TTE_AS_PR!$D$10="","",Garantías_TTE_AS_PR!$D$10) ->  | E42: PVB exit to consumerMonthly - Peaje RL.1 | F42: [((Tfrl+TfSal+OCREG)x M x Cint) / den + (TV x D)] x Qa x FR | G42: =Garantías_TTE_AS_PR!$D$13 -> 0 | H42: =Garantías_TTE_AS_PR!$D$17 -> 0 | I42: 3.504214 | J42: 0.002224 | K42: 0.551139 | L42: 0 | M42: =IF(LEFT(C42,SEARCH("-",C42,1)-1-1)="Undefined",VLOOKUP(MONTH(Garantías_TTE_AS_PR!$D$12),$AS$84:$AY$95,7),(IF(LEFT(C42,SEARCH("-",C42,1)-1-1)="Annual",VLOOKUP(MONTH(Garantías_TTE_AS_PR!$D$12),$AS$84:$AY$95,6),(IF(LEFT(C42,SEARCH("-",C42,1)-1-1)="Quarterly",VLOOKUP(MONTH(Garantías_TTE_AS_PR!$D$12),$AS$84:$AY$95,5),(IF(LEFT(C42,SEARCH("-",C42,1)-1-1)="Monthly",VLOOKUP(MONTH(Garantías_TTE_AS_PR!$D$12),$AS$84:$AY$95,4),(IF(LEFT(C42,SEARCH("-",C42,1)-1-1)="Daily",VLOOKUP(MONTH(Garantías_TTE_AS_PR!$D$12),$AS$84:$AY$95,3),(IF(LEFT(C42,SEARCH("-",C42,1)-1-1)="Intraday",IF(O42=24,VLOOKUP(MONTH(Garantías_TTE_AS_PR!$D$12),$AS$84:$AY$95,3),VLOOKUP(MONTH(Garantías_TTE_AS_PR!$D$12),$AS$84:$AY$95,2)),""))))))))))) -> 1.73 | N42: =IF(Garantías_TTE_AS_PR!$D$8="Monthly - Peaje RL.1",IFERROR(_xlfn.IFS(AND(Garantías_TTE_AS_PR!$D$12>=$BX$4,Garantías_TTE_AS_PR!$D$12<$BY$4),$BE$6,AND(Garantías_TTE_AS_PR!$D$12>=$BX$5,Garantías_TTE_AS_PR!$D$12<$BY$5),$BE$6,AND(Garantías_TTE_AS_PR!$D$12>=$BX$6,Garantías_TTE_AS_PR!$D$12<$BY$6),$BE$6,AND(Garantías_TTE_AS_PR!$D$12>=$BX$7,Garantías_TTE_AS_PR!$D$12<$BY$7),$BE$6,AND(Garantías_TTE_AS_PR!$D$12>=$BX$8,Garantías_TTE_AS_PR!$D$12<$BY$8),$BE$6),$BE$5),(IF(OR(YEAR(Garantías_TTE_AS_PR!$D$12)=2020,YEAR(Garantías_TTE_AS_PR!$D$12)=2024,YEAR(Garantías_TTE_AS_PR!$D$12)=2028,YEAR(Garantías_TTE_AS_PR!$D$12)=2032,YEAR(Garantías_TTE_AS_PR!$D$12)=2036,YEAR(Garantías_TTE_AS_PR!$D$12)=2040,YEAR(Garantías_TTE_AS_PR!$D$12)=2044,YEAR(Garantías_TTE_AS_PR!$D$12)=2048),$BE$6,$BE$5))) -> 365 | O42: =Garantías_TTE_AS_PR!$D$18 ->  | P42: 1 | Q42: =IF(Garantías_TTE_AS_PR!$D$11="Firm",1,IF(Garantías_TTE_AS_PR!$D$11="Uninterruptible",1,1)) -> 1 | S42: PVB exit to consumerMonthly - Peaje RL.1 | T42: [((3,504214 + 0,091544 + 0,551139) x 1,73 x 1) / 365 + (0,002224 + 0,000137 x )] x 0 x 1 | AA42: PVB exit to consumerRL.4 | AB42: Individualized | AC42: PVB exit to consumer | AD42: RL.4 | AF42: 2.092516 | AG42: €/(kWh/día)/mes | AH42: 0.002202 | AI42: €/kWh | AL42: 0.011495 | AM42: €/kWh/día/año | AR42: July | AS42: 7 | AT42: 6 | AU42: 1.7 | AV42: 1.3 | AW42: 1.2 | AX42: 1 | AY42: 1
A43: Individualized services | B43: PVB exit to consumer | C43: Daily - Peaje RL.1 | D43: =IF(Garantías_TTE_AS_PR!$D$10="","",Garantías_TTE_AS_PR!$D$10) ->  | E43: PVB exit to consumerDaily - Peaje RL.1 | F43: [((Tfrl+TfSal+OCREG)x M x Cint) / den + (TV x D)] x Qa x FR | G43: =Garantías_TTE_AS_PR!$D$13 -> 0 | H43: =Garantías_TTE_AS_PR!$D$17 -> 0 | I43: 3.504214 | J43: 0.002224 | K43: 0.551139 | L43: 0 | M43: =IF(LEFT(C43,SEARCH("-",C43,1)-1-1)="Undefined",VLOOKUP(MONTH(Garantías_TTE_AS_PR!$D$12),$AS$84:$AY$95,7),(IF(LEFT(C43,SEARCH("-",C43,1)-1-1)="Annual",VLOOKUP(MONTH(Garantías_TTE_AS_PR!$D$12),$AS$84:$AY$95,6),(IF(LEFT(C43,SEARCH("-",C43,1)-1-1)="Quarterly",VLOOKUP(MONTH(Garantías_TTE_AS_PR!$D$12),$AS$84:$AY$95,5),(IF(LEFT(C43,SEARCH("-",C43,1)-1-1)="Monthly",VLOOKUP(MONTH(Garantías_TTE_AS_PR!$D$12),$AS$84:$AY$95,4),(IF(LEFT(C43,SEARCH("-",C43,1)-1-1)="Daily",VLOOKUP(MONTH(Garantías_TTE_AS_PR!$D$12),$AS$84:$AY$95,3),(IF(LEFT(C43,SEARCH("-",C43,1)-1-1)="Intraday",IF(O43=24,VLOOKUP(MONTH(Garantías_TTE_AS_PR!$D$12),$AS$84:$AY$95,3),VLOOKUP(MONTH(Garantías_TTE_AS_PR!$D$12),$AS$84:$AY$95,2)),""))))))))))) -> 2.13 | N43: =IF(Garantías_TTE_AS_PR!$D$8="Daily - Peaje RL.1",IFERROR(_xlfn.IFS(AND(Garantías_TTE_AS_PR!$D$12>=$BX$4,Garantías_TTE_AS_PR!$D$12<$BY$4),$BE$6,AND(Garantías_TTE_AS_PR!$D$12>=$BX$5,Garantías_TTE_AS_PR!$D$12<$BY$5),$BE$6,AND(Garantías_TTE_AS_PR!$D$12>=$BX$6,Garantías_TTE_AS_PR!$D$12<$BY$6),$BE$6,AND(Garantías_TTE_AS_PR!$D$12>=$BX$7,Garantías_TTE_AS_PR!$D$12<$BY$7),$BE$6,AND(Garantías_TTE_AS_PR!$D$12>=$BX$8,Garantías_TTE_AS_PR!$D$12<$BY$8),$BE$6),$BE$5),(IF(OR(YEAR(Garantías_TTE_AS_PR!$D$12)=2020,YEAR(Garantías_TTE_AS_PR!$D$12)=2024,YEAR(Garantías_TTE_AS_PR!$D$12)=2028,YEAR(Garantías_TTE_AS_PR!$D$12)=2032,YEAR(Garantías_TTE_AS_PR!$D$12)=2036,YEAR(Garantías_TTE_AS_PR!$D$12)=2040,YEAR(Garantías_TTE_AS_PR!$D$12)=2044,YEAR(Garantías_TTE_AS_PR!$D$12)=2048),$BE$6,$BE$5))) -> 365 | O43: =Garantías_TTE_AS_PR!$D$18 ->  | P43: 1 | Q43: =IF(Garantías_TTE_AS_PR!$D$11="Firm",1,IF(Garantías_TTE_AS_PR!$D$11="Uninterruptible",1,1)) -> 1 | S43: PVB exit to consumerDaily - Peaje RL.1 | T43: [((3,504214 + 0,091544 + 0,551139) x 2,13 x 1) / 365 + (0,002224 + 0,000137 x )] x 0 x 1 | AA43: PVB exit to consumerRLTB.5 | AB43: Individualized | AC43: PVB exit to consumer | AD43: RLTB.5 | AF43: 1.547071 | AG43: €/(kWh/día)/mes | AH43: 0.003977 | AI43: €/kWh | AL43: 0.002526 | AM43: €/kWh/día/año | AR43: August | AS43: 8 | AT43: 6 | AU43: 1.7 | AV43: 1.3 | AW43: 1.2 | AX43: 1 | AY43: 1
A44: Individualized services | B44: PVB exit to consumer | C44: Intraday - Peaje RL.1 | D44: =IF(Garantías_TTE_AS_PR!$D$10="","",Garantías_TTE_AS_PR!$D$10) ->  | E44: PVB exit to consumerIntraday - Peaje RL.1 | F44: [((Tfrl+TfSal+OCREG) x M x Cint) x (Qa x 24 / H) x H / den + (TV x Qa)] x FR | G44: =Garantías_TTE_AS_PR!$D$13 -> 0 | H44: =Garantías_TTE_AS_PR!$D$17 -> 0 | I44: 3.504214 | J44: 0.002224 | K44: 0.551139 | L44: 0 | M44: =IF(LEFT(C44,SEARCH("-",C44,1)-1-1)="Undefined",VLOOKUP(MONTH(Garantías_TTE_AS_PR!$D$12),$AS$84:$AY$95,7),(IF(LEFT(C44,SEARCH("-",C44,1)-1-1)="Annual",VLOOKUP(MONTH(Garantías_TTE_AS_PR!$D$12),$AS$84:$AY$95,6),(IF(LEFT(C44,SEARCH("-",C44,1)-1-1)="Quarterly",VLOOKUP(MONTH(Garantías_TTE_AS_PR!$D$12),$AS$84:$AY$95,5),(IF(LEFT(C44,SEARCH("-",C44,1)-1-1)="Monthly",VLOOKUP(MONTH(Garantías_TTE_AS_PR!$D$12),$AS$84:$AY$95,4),(IF(LEFT(C44,SEARCH("-",C44,1)-1-1)="Daily",VLOOKUP(MONTH(Garantías_TTE_AS_PR!$D$12),$AS$84:$AY$95,3),(IF(LEFT(C44,SEARCH("-",C44,1)-1-1)="Intraday",IF(O44=24,VLOOKUP(MONTH(Garantías_TTE_AS_PR!$D$12),$AS$84:$AY$95,3),VLOOKUP(MONTH(Garantías_TTE_AS_PR!$D$12),$AS$84:$AY$95,2)),""))))))))))) -> 4.54 | N44: =IF(Garantías_TTE_AS_PR!$D$8="Intraday - Peaje RL.1",IFERROR(_xlfn.IFS(AND(Garantías_TTE_AS_PR!$D$12>=$BX$4,Garantías_TTE_AS_PR!$D$12<$BY$4),$BE$8,AND(Garantías_TTE_AS_PR!$D$12>=$BX$5,Garantías_TTE_AS_PR!$D$12<$BY$5),$BE$8,AND(Garantías_TTE_AS_PR!$D$12>=$BX$6,Garantías_TTE_AS_PR!$D$12<$BY$6),$BE$8,AND(Garantías_TTE_AS_PR!$D$12>=$BX$7,Garantías_TTE_AS_PR!$D$12<$BY$7),$BE$8,AND(Garantías_TTE_AS_PR!$D$12>=$BX$8,Garantías_TTE_AS_PR!$D$12<$BY$8),$BE$8),$BE$7),(IF(OR(YEAR(Garantías_TTE_AS_PR!$D$12)=2020,YEAR(Garantías_TTE_AS_PR!$D$12)=2024,YEAR(Garantías_TTE_AS_PR!$D$12)=2028,YEAR(Garantías_TTE_AS_PR!$D$12)=2032,YEAR(Garantías_TTE_AS_PR!$D$12)=2036,YEAR(Garantías_TTE_AS_PR!$D$12)=2040,YEAR(Garantías_TTE_AS_PR!$D$12)=2044,YEAR(Garantías_TTE_AS_PR!$D$12)=2048),$BE$8,$BE$7))) -> 8760 | O44: =Garantías_TTE_AS_PR!$D$9 -> 0 | P44: 1 | Q44: =IF(Garantías_TTE_AS_PR!$D$11="Firm",1,IF(Garantías_TTE_AS_PR!$D$11="Uninterruptible",1,1)) -> 1 | R44: =ROUND((((I44+K44+$W$39)*M44*Q44+H44)/(N44/24)+(J44+$X$39))*G44*P44,2) -> 0 | S44: PVB exit to consumerIntraday - Peaje RL.1 | T44: =CONCATENATE("[((",I44," + ",$W$39," + ",K44,") x ",M44,") x (",Q44," / ",N44," x 24 / ",O44,") x ",O44," / ",N44," + (",J44," + ",$X$39," x ",O44,")] x ",P44) -> [((3,504214 + 0,091544 + 0,551139) x 4,54) x (1 / 8760 x 24 / 0) x 0 / 8760 + (0,002224 + 0,000137 x 0)] x 1 | AA44: =IF(AC44="","",CONCATENATE(AC44,AD44,AE44)) -> PVB exit to consumerRLTA.5 | AB44: Individualized | AC44: PVB exit to consumer | AD44: RLTA.5 | AF44: 1.703313 | AG44: €/(kWh/día)/mes | AH44: 0.001795 | AI44: €/kWh | AL44: 0.002526 | AM44: €/kWh/día/año | AR44: September | AS44: 9 | AT44: 6 | AU44: 1.7 | AV44: 1.3 | AW44: 1.2 | AX44: 1 | AY44: 1
A45: Individualized services | B45: PVB exit to consumer | C45: Undefined - Peaje RL.2 | D45: =IF(Garantías_TTE_AS_PR!$D$10="","",Garantías_TTE_AS_PR!$D$10) ->  | E45: PVB exit to consumerUndefined - Peaje RL.2 | F45: [((Tfr+OCREG)x M x Cint) / den + (TV x D)] x Qa x FR | G45: =Garantías_TTE_AS_PR!$D$13 -> 0 | H45: =Garantías_TTE_AS_PR!$D$17 -> 0 | I45: 2.404264 | J45: 0.002224 | K45: 0.162747 | L45: 0 | M45: =IF(LEFT(C45,SEARCH("-",C45,1)-1-1)="Undefined",VLOOKUP(MONTH(Garantías_TTE_AS_PR!$D$12),$AS$84:$AY$95,7),(IF(LEFT(C45,SEARCH("-",C45,1)-1-1)="Annual",VLOOKUP(MONTH(Garantías_TTE_AS_PR!$D$12),$AS$84:$AY$95,6),(IF(LEFT(C45,SEARCH("-",C45,1)-1-1)="Quarterly",VLOOKUP(MONTH(Garantías_TTE_AS_PR!$D$12),$AS$84:$AY$95,5),(IF(LEFT(C45,SEARCH("-",C45,1)-1-1)="Monthly",VLOOKUP(MONTH(Garantías_TTE_AS_PR!$D$12),$AS$84:$AY$95,4),(IF(LEFT(C45,SEARCH("-",C45,1)-1-1)="Daily",VLOOKUP(MONTH(Garantías_TTE_AS_PR!$D$12),$AS$84:$AY$95,3),(IF(LEFT(C45,SEARCH("-",C45,1)-1-1)="Intraday",IF(O45=24,VLOOKUP(MONTH(Garantías_TTE_AS_PR!$D$12),$AS$84:$AY$95,3),VLOOKUP(MONTH(Garantías_TTE_AS_PR!$D$12),$AS$84:$AY$95,2)),""))))))))))) -> 1 | N45: =IF(Garantías_TTE_AS_PR!$D$8="Undefined - Peaje RL.2",$BE$5,$BE$6) -> 366 | O45: =Garantías_TTE_AS_PR!$D$18 ->  | P45: 2 | Q45: =IF(Garantías_TTE_AS_PR!$D$11="Firm",1,IF(Garantías_TTE_AS_PR!$D$11="Uninterruptible",1,1)) -> 1 | R45: =ROUND((((((I45+K45+$W$39)*M45*Q45))/N45+(J45+$X$39))*O45*G45*P45),2) ->  | S45: PVB exit to consumerUndefined - Peaje RL.2 | T45: =CONCATENATE("[((",I45," + ",$W$39," + ",K45,") x ",M45," x ",Q45,") / ",N45," + (",J45," + ",$X$39," x ",O45,")] x ",TEXT(G45,"#.##0")," x ",P45) -> [((2,404264 + 0,091544 + 0,162747) x 1 x 1) / 366 + (0,002224 + 0,000137 x )] x 0 x 2 | AA45: PVB exit to consumerRLTB.6 | AB45: Individualized | AC45: PVB exit to consumer | AD45: RLTB.6 | AF45: 1.410899 | AG45: €/(kWh/día)/mes | AH45: 0.001626 | AI45: €/kWh | AL45: 0.000794 | AM45: €/kWh/día/año | AR45: October | AS45: 10 | AT45: 6 | AU45: 1.7 | AV45: 1.3 | AW45: 1.2 | AX45: 1 | AY45: 1
A46: Individualized services | B46: PVB exit to consumer | C46: Annual - Peaje RL.2 | D46: =IF(Garantías_TTE_AS_PR!$D$10="","",Garantías_TTE_AS_PR!$D$10) ->  | E46: PVB exit to consumerAnnual - Peaje RL.2 | F46: [((Tfr+OCREG)x M x Cint) / den + (TV x D)] x Qa x FR | G46: =Garantías_TTE_AS_PR!$D$13 -> 0 | H46: =Garantías_TTE_AS_PR!$D$17 -> 0 | I46: 2.404264 | J46: 0.002224 | K46: 0.162747 | L46: 0 | M46: =IF(LEFT(C46,SEARCH("-",C46,1)-1-1)="Undefined",VLOOKUP(MONTH(Garantías_TTE_AS_PR!$D$12),$AS$84:$AY$95,7),(IF(LEFT(C46,SEARCH("-",C46,1)-1-1)="Annual",VLOOKUP(MONTH(Garantías_TTE_AS_PR!$D$12),$AS$84:$AY$95,6),(IF(LEFT(C46,SEARCH("-",C46,1)-1-1)="Quarterly",VLOOKUP(MONTH(Garantías_TTE_AS_PR!$D$12),$AS$84:$AY$95,5),(IF(LEFT(C46,SEARCH("-",C46,1)-1-1)="Monthly",VLOOKUP(MONTH(Garantías_TTE_AS_PR!$D$12),$AS$84:$AY$95,4),(IF(LEFT(C46,SEARCH("-",C46,1)-1-1)="Daily",VLOOKUP(MONTH(Garantías_TTE_AS_PR!$D$12),$AS$84:$AY$95,3),(IF(LEFT(C46,SEARCH("-",C46,1)-1-1)="Intraday",IF(O46=24,VLOOKUP(MONTH(Garantías_TTE_AS_PR!$D$12),$AS$84:$AY$95,3),VLOOKUP(MONTH(Garantías_TTE_AS_PR!$D$12),$AS$84:$AY$95,2)),""))))))))))) -> 1 | N46: =IF(Garantías_TTE_AS_PR!$D$8="Annual - Peaje RL.2",IFERROR(_xlfn.IFS(AND(Garantías_TTE_AS_PR!$D$12>=$BV$4,Garantías_TTE_AS_PR!$D$12<$BW$4),$BE$6,AND(Garantías_TTE_AS_PR!$D$12>=$BV$5,Garantías_TTE_AS_PR!$D$12<$BW$5),$BE$6,AND(Garantías_TTE_AS_PR!$D$12>=$BV$6,Garantías_TTE_AS_PR!$D$12<$BW$6),$BE$6,AND(Garantías_TTE_AS_PR!$D$12>=$BV$7,Garantías_TTE_AS_PR!$D$12<$BW$7),$BE$6,AND(Garantías_TTE_AS_PR!$D$12>=$BV$8,Garantías_TTE_AS_PR!$D$12<$BW$8),$BE$6),$BE$5),(IF(OR(YEAR(Garantías_TTE_AS_PR!$D$12)=2020,YEAR(Garantías_TTE_AS_PR!$D$12)=2024,YEAR(Garantías_TTE_AS_PR!$D$12)=2028,YEAR(Garantías_TTE_AS_PR!$D$12)=2032,YEAR(Garantías_TTE_AS_PR!$D$12)=2036,YEAR(Garantías_TTE_AS_PR!$D$12)=2040,YEAR(Garantías_TTE_AS_PR!$D$12)=2044,YEAR(Garantías_TTE_AS_PR!$D$12)=2048),$BE$6,$BE$5))) -> 365 | O46: =Garantías_TTE_AS_PR!$D$18 ->  | P46: 2 | Q46: =IF(Garantías_TTE_AS_PR!$D$11="Firm",1,IF(Garantías_TTE_AS_PR!$D$11="Uninterruptible",1,1)) -> 1 | S46: PVB exit to consumerAnnual - Peaje RL.2 | T46: =CONCATENATE("[((",I46," + ",$W$39," + ",K46,") x ",M46," x ",Q46,") / ",N46," + (",J46," + ",$X$39," x ",O46,")] x ",TEXT(G46,"#.##0")," x ",P46) -> [((2,404264 + 0,091544 + 0,162747) x 1 x 1) / 365 + (0,002224 + 0,000137 x )] x 0 x 2 | AA46: PVB exit to consumerRLTA.6 | AB46: Individualized | AC46: PVB exit to consumer | AD46: RLTA.6 | AF46: 1.199935 | AG46: €/(kWh/día)/mes | AH46: 0.001413 | AI46: €/kWh | AL46: 0.000794 | AM46: €/kWh/día/año | AR46: November | AS46: 11 | AT46: 6 | AU46: 1.7 | AV46: 1.3 | AW46: 1.2 | AX46: 1 | AY46: 1
A47: Individualized services | B47: PVB exit to consumer | C47: Quarterly - Peaje RL.2 | D47: =IF(Garantías_TTE_AS_PR!$D$10="","",Garantías_TTE_AS_PR!$D$10) ->  | E47: PVB exit to consumerQuarterly - Peaje RL.2 | F47: [((Tfr+OCREG)x M x Cint) / den + (TV x D)] x Qa x FR | G47: =Garantías_TTE_AS_PR!$D$13 -> 0 | H47: =Garantías_TTE_AS_PR!$D$17 -> 0 | I47: 2.404264 | J47: 0.002224 | K47: 0.162747 | L47: 0 | M47: =IF(LEFT(C47,SEARCH("-",C47,1)-1-1)="Undefined",VLOOKUP(MONTH(Garantías_TTE_AS_PR!$D$12),$AS$84:$AY$95,7),(IF(LEFT(C47,SEARCH("-",C47,1)-1-1)="Annual",VLOOKUP(MONTH(Garantías_TTE_AS_PR!$D$12),$AS$84:$AY$95,6),(IF(LEFT(C47,SEARCH("-",C47,1)-1-1)="Quarterly",VLOOKUP(MONTH(Garantías_TTE_AS_PR!$D$12),$AS$84:$AY$95,5),(IF(LEFT(C47,SEARCH("-",C47,1)-1-1)="Monthly",VLOOKUP(MONTH(Garantías_TTE_AS_PR!$D$12),$AS$84:$AY$95,4),(IF(LEFT(C47,SEARCH("-",C47,1)-1-1)="Daily",VLOOKUP(MONTH(Garantías_TTE_AS_PR!$D$12),$AS$84:$AY$95,3),(IF(LEFT(C47,SEARCH("-",C47,1)-1-1)="Intraday",IF(O47=24,VLOOKUP(MONTH(Garantías_TTE_AS_PR!$D$12),$AS$84:$AY$95,3),VLOOKUP(MONTH(Garantías_TTE_AS_PR!$D$12),$AS$84:$AY$95,2)),""))))))))))) -> 1.35 | N47: =IF(Garantías_TTE_AS_PR!$D$8="Quarterly - Peaje RL.2",IFERROR(_xlfn.IFS(AND(Garantías_TTE_AS_PR!$D$12>=$BX$4,Garantías_TTE_AS_PR!$D$12<$BY$4),$BE$6,AND(Garantías_TTE_AS_PR!$D$12>=$BX$5,Garantías_TTE_AS_PR!$D$12<$BY$5),$BE$6,AND(Garantías_TTE_AS_PR!$D$12>=$BX$6,Garantías_TTE_AS_PR!$D$12<$BY$6),$BE$6,AND(Garantías_TTE_AS_PR!$D$12>=$BX$7,Garantías_TTE_AS_PR!$D$12<$BY$7),$BE$6,AND(Garantías_TTE_AS_PR!$D$12>=$BX$8,Garantías_TTE_AS_PR!$D$12<$BY$8),$BE$6),$BE$5),(IF(OR(YEAR(Garantías_TTE_AS_PR!$D$12)=2020,YEAR(Garantías_TTE_AS_PR!$D$12)=2024,YEAR(Garantías_TTE_AS_PR!$D$12)=2028,YEAR(Garantías_TTE_AS_PR!$D$12)=2032,YEAR(Garantías_TTE_AS_PR!$D$12)=2036,YEAR(Garantías_TTE_AS_PR!$D$12)=2040,YEAR(Garantías_TTE_AS_PR!$D$12)=2044,YEAR(Garantías_TTE_AS_PR!$D$12)=2048),$BE$6,$BE$5))) -> 365 | O47: =Garantías_TTE_AS_PR!$D$18 ->  | P47: 2 | Q47: =IF(Garantías_TTE_AS_PR!$D$11="Firm",1,IF(Garantías_TTE_AS_PR!$D$11="Uninterruptible",1,1)) -> 1 | S47: PVB exit to consumerQuarterly - Peaje RL.2 | T47: [((2,404264 + 0,091544 + 0,162747) x 1,35 x 1) / 365 + (0,002224 + 0,000137 x )] x 0 x 2 | AA47: PVB exit to consumerRLTB.7 | AB47: Individualized | AC47: PVB exit to consumer | AD47: RLTB.7 | AF47: 0.802414 | AG47: €/(kWh/día)/mes | AH47: 0.001079 | AI47: €/kWh | AL47: 0.000248 | AM47: €/kWh/día/año | AR47: December | AS47: 12 | AT47: 6 | AU47: 1.7 | AV47: 1.3 | AW47: 1.2 | AX47: 1 | AY47: 1
A48: Individualized services | B48: PVB exit to consumer | C48: Monthly - Peaje RL.2 | D48: =IF(Garantías_TTE_AS_PR!$D$10="","",Garantías_TTE_AS_PR!$D$10) ->  | E48: PVB exit to consumerMonthly - Peaje RL.2 | F48: [((Tfr+OCREG)x M x Cint) / den + (TV x D)] x Qa x FR | G48: =Garantías_TTE_AS_PR!$D$13 -> 0 | H48: =Garantías_TTE_AS_PR!$D$17 -> 0 | I48: 2.404264 | J48: 0.002224 | K48: 0.162747 | L48: 0 | M48: =IF(LEFT(C48,SEARCH("-",C48,1)-1-1)="Undefined",VLOOKUP(MONTH(Garantías_TTE_AS_PR!$D$12),$AS$84:$AY$95,7),(IF(LEFT(C48,SEARCH("-",C48,1)-1-1)="Annual",VLOOKUP(MONTH(Garantías_TTE_AS_PR!$D$12),$AS$84:$AY$95,6),(IF(LEFT(C48,SEARCH("-",C48,1)-1-1)="Quarterly",VLOOKUP(MONTH(Garantías_TTE_AS_PR!$D$12),$AS$84:$AY$95,5),(IF(LEFT(C48,SEARCH("-",C48,1)-1-1)="Monthly",VLOOKUP(MONTH(Garantías_TTE_AS_PR!$D$12),$AS$84:$AY$95,4),(IF(LEFT(C48,SEARCH("-",C48,1)-1-1)="Daily",VLOOKUP(MONTH(Garantías_TTE_AS_PR!$D$12),$AS$84:$AY$95,3),(IF(LEFT(C48,SEARCH("-",C48,1)-1-1)="Intraday",IF(O48=24,VLOOKUP(MONTH(Garantías_TTE_AS_PR!$D$12),$AS$84:$AY$95,3),VLOOKUP(MONTH(Garantías_TTE_AS_PR!$D$12),$AS$84:$AY$95,2)),""))))))))))) -> 1.73 | N48: =IF(Garantías_TTE_AS_PR!$D$8="Monthly - Peaje RL.2",IFERROR(_xlfn.IFS(AND(Garantías_TTE_AS_PR!$D$12>=$BX$4,Garantías_TTE_AS_PR!$D$12<$BY$4),$BE$6,AND(Garantías_TTE_AS_PR!$D$12>=$BX$5,Garantías_TTE_AS_PR!$D$12<$BY$5),$BE$6,AND(Garantías_TTE_AS_PR!$D$12>=$BX$6,Garantías_TTE_AS_PR!$D$12<$BY$6),$BE$6,AND(Garantías_TTE_AS_PR!$D$12>=$BX$7,Garantías_TTE_AS_PR!$D$12<$BY$7),$BE$6,AND(Garantías_TTE_AS_PR!$D$12>=$BX$8,Garantías_TTE_AS_PR!$D$12<$BY$8),$BE$6),$BE$5),(IF(OR(YEAR(Garantías_TTE_AS_PR!$D$12)=2020,YEAR(Garantías_TTE_AS_PR!$D$12)=2024,YEAR(Garantías_TTE_AS_PR!$D$12)=2028,YEAR(Garantías_TTE_AS_PR!$D$12)=2032,YEAR(Garantías_TTE_AS_PR!$D$12)=2036,YEAR(Garantías_TTE_AS_PR!$D$12)=2040,YEAR(Garantías_TTE_AS_PR!$D$12)=2044,YEAR(Garantías_TTE_AS_PR!$D$12)=2048),$BE$6,$BE$5))) -> 365 | O48: =Garantías_TTE_AS_PR!$D$18 ->  | P48: 1 | Q48: =IF(Garantías_TTE_AS_PR!$D$11="Firm",1,IF(Garantías_TTE_AS_PR!$D$11="Uninterruptible",1,1)) -> 1 | S48: PVB exit to consumerMonthly - Peaje RL.2 | T48: [((2,404264 + 0,091544 + 0,162747) x 1,73 x 1) / 365 + (0,002224 + 0,000137 x )] x 0 x 1 | AA48: =IF(AC48="","",CONCATENATE(AC48,AD48,AE48)) -> PVB exit to consumerRLTA.7 | AB48: Individualized | AC48: PVB exit to consumer | AD48: RLTA.7 | AF48: 0.663977 | AG48: €/(kWh/día)/mes | AH48: 0.000971 | AI48: €/kWh | AL48: 0.000248 | AM48: €/kWh/día/año
A49: Individualized services | B49: PVB exit to consumer | C49: Daily - Peaje RL.2 | D49: =IF(Garantías_TTE_AS_PR!$D$10="","",Garantías_TTE_AS_PR!$D$10) ->  | E49: PVB exit to consumerDaily - Peaje RL.2 | F49: [((Tfr+OCREG)x M x Cint) / den + (TV x D)] x Qa x FR | G49: =Garantías_TTE_AS_PR!$D$13 -> 0 | H49: =Garantías_TTE_AS_PR!$D$17 -> 0 | I49: 2.404264 | J49: 0.002224 | K49: 0.162747 | L49: 0 | M49: =IF(LEFT(C49,SEARCH("-",C49,1)-1-1)="Undefined",VLOOKUP(MONTH(Garantías_TTE_AS_PR!$D$12),$AS$84:$AY$95,7),(IF(LEFT(C49,SEARCH("-",C49,1)-1-1)="Annual",VLOOKUP(MONTH(Garantías_TTE_AS_PR!$D$12),$AS$84:$AY$95,6),(IF(LEFT(C49,SEARCH("-",C49,1)-1-1)="Quarterly",VLOOKUP(MONTH(Garantías_TTE_AS_PR!$D$12),$AS$84:$AY$95,5),(IF(LEFT(C49,SEARCH("-",C49,1)-1-1)="Monthly",VLOOKUP(MONTH(Garantías_TTE_AS_PR!$D$12),$AS$84:$AY$95,4),(IF(LEFT(C49,SEARCH("-",C49,1)-1-1)="Daily",VLOOKUP(MONTH(Garantías_TTE_AS_PR!$D$12),$AS$84:$AY$95,3),(IF(LEFT(C49,SEARCH("-",C49,1)-1-1)="Intraday",IF(O49=24,VLOOKUP(MONTH(Garantías_TTE_AS_PR!$D$12),$AS$84:$AY$95,3),VLOOKUP(MONTH(Garantías_TTE_AS_PR!$D$12),$AS$84:$AY$95,2)),""))))))))))) -> 2.13 | N49: =IF(Garantías_TTE_AS_PR!$D$8="Daily - Peaje RL.2",IFERROR(_xlfn.IFS(AND(Garantías_TTE_AS_PR!$D$12>=$BX$4,Garantías_TTE_AS_PR!$D$12<$BY$4),$BE$6,AND(Garantías_TTE_AS_PR!$D$12>=$BX$5,Garantías_TTE_AS_PR!$D$12<$BY$5),$BE$6,AND(Garantías_TTE_AS_PR!$D$12>=$BX$6,Garantías_TTE_AS_PR!$D$12<$BY$6),$BE$6,AND(Garantías_TTE_AS_PR!$D$12>=$BX$7,Garantías_TTE_AS_PR!$D$12<$BY$7),$BE$6,AND(Garantías_TTE_AS_PR!$D$12>=$BX$8,Garantías_TTE_AS_PR!$D$12<$BY$8),$BE$6),$BE$5),(IF(OR(YEAR(Garantías_TTE_AS_PR!$D$12)=2020,YEAR(Garantías_TTE_AS_PR!$D$12)=2024,YEAR(Garantías_TTE_AS_PR!$D$12)=2028,YEAR(Garantías_TTE_AS_PR!$D$12)=2032,YEAR(Garantías_TTE_AS_PR!$D$12)=2036,YEAR(Garantías_TTE_AS_PR!$D$12)=2040,YEAR(Garantías_TTE_AS_PR!$D$12)=2044,YEAR(Garantías_TTE_AS_PR!$D$12)=2048),$BE$6,$BE$5))) -> 365 | O49: =Garantías_TTE_AS_PR!$D$18 ->  | P49: 1 | Q49: =IF(Garantías_TTE_AS_PR!$D$11="Firm",1,IF(Garantías_TTE_AS_PR!$D$11="Uninterruptible",1,1)) -> 1 | S49: PVB exit to consumerDaily - Peaje RL.2 | T49: [((2,404264 + 0,091544 + 0,162747) x 2,13 x 1) / 365 + (0,002224 + 0,000137 x )] x 0 x 1 | AA49: PVB exit to consumerRL.8 | AB49: Individualized | AC49: PVB exit to consumer | AD49: RL.8 | AF49: 0.414838 | AG49: €/(kWh/día)/mes | AH49: 0.000734 | AI49: €/kWh | AL49: 7.6e-05 | AM49: €/kWh/día/año | AQ49: Administración PEAJES. Carga de cisternas
A50: Individualized services | B50: PVB exit to consumer | C50: Intraday - Peaje RL.2 | D50: =IF(Garantías_TTE_AS_PR!$D$10="","",Garantías_TTE_AS_PR!$D$10) ->  | E50: PVB exit to consumerIntraday - Peaje RL.2 | F50: [((Tfr+OCREG) x M x Cint) x (Qa x 24 / H) x H / den + (TV x Qa)] x FR | G50: =Garantías_TTE_AS_PR!$D$13 -> 0 | H50: =Garantías_TTE_AS_PR!$D$17 -> 0 | I50: 2.404264 | J50: 0.002224 | K50: 0.162747 | L50: 0 | M50: =IF(LEFT(C50,SEARCH("-",C50,1)-1-1)="Undefined",VLOOKUP(MONTH(Garantías_TTE_AS_PR!$D$12),$AS$84:$AY$95,7),(IF(LEFT(C50,SEARCH("-",C50,1)-1-1)="Annual",VLOOKUP(MONTH(Garantías_TTE_AS_PR!$D$12),$AS$84:$AY$95,6),(IF(LEFT(C50,SEARCH("-",C50,1)-1-1)="Quarterly",VLOOKUP(MONTH(Garantías_TTE_AS_PR!$D$12),$AS$84:$AY$95,5),(IF(LEFT(C50,SEARCH("-",C50,1)-1-1)="Monthly",VLOOKUP(MONTH(Garantías_TTE_AS_PR!$D$12),$AS$84:$AY$95,4),(IF(LEFT(C50,SEARCH("-",C50,1)-1-1)="Daily",VLOOKUP(MONTH(Garantías_TTE_AS_PR!$D$12),$AS$84:$AY$95,3),(IF(LEFT(C50,SEARCH("-",C50,1)-1-1)="Intraday",IF(O50=24,VLOOKUP(MONTH(Garantías_TTE_AS_PR!$D$12),$AS$84:$AY$95,3),VLOOKUP(MONTH(Garantías_TTE_AS_PR!$D$12),$AS$84:$AY$95,2)),""))))))))))) -> 4.54 | N50: =IF(Garantías_TTE_AS_PR!$D$8="Intraday - Peaje RL.2",IFERROR(_xlfn.IFS(AND(Garantías_TTE_AS_PR!$D$12>=$BX$4,Garantías_TTE_AS_PR!$D$12<$BY$4),$BE$8,AND(Garantías_TTE_AS_PR!$D$12>=$BX$5,Garantías_TTE_AS_PR!$D$12<$BY$5),$BE$8,AND(Garantías_TTE_AS_PR!$D$12>=$BX$6,Garantías_TTE_AS_PR!$D$12<$BY$6),$BE$8,AND(Garantías_TTE_AS_PR!$D$12>=$BX$7,Garantías_TTE_AS_PR!$D$12<$BY$7),$BE$8,AND(Garantías_TTE_AS_PR!$D$12>=$BX$8,Garantías_TTE_AS_PR!$D$12<$BY$8),$BE$8),$BE$7),(IF(OR(YEAR(Garantías_TTE_AS_PR!$D$12)=2020,YEAR(Garantías_TTE_AS_PR!$D$12)=2024,YEAR(Garantías_TTE_AS_PR!$D$12)=2028,YEAR(Garantías_TTE_AS_PR!$D$12)=2032,YEAR(Garantías_TTE_AS_PR!$D$12)=2036,YEAR(Garantías_TTE_AS_PR!$D$12)=2040,YEAR(Garantías_TTE_AS_PR!$D$12)=2044,YEAR(Garantías_TTE_AS_PR!$D$12)=2048),$BE$8,$BE$7))) -> 8760 | O50: =Garantías_TTE_AS_PR!$D$9 -> 0 | P50: 1 | Q50: =IF(Garantías_TTE_AS_PR!$D$11="Firm",1,IF(Garantías_TTE_AS_PR!$D$11="Uninterruptible",1,1)) -> 1 | R50: =ROUND((((I50+K50+$W$39)*M50*Q50+H50)/(N50/24)+(J50+$X$39))*G50*P50,2) -> 0 | S50: PVB exit to consumerIntraday - Peaje RL.2 | T50: =CONCATENATE("[((",I50," + ",$W$39," + ",K50,") x ",M50,") x (",Q50," / ",N50," x 24 / ",O50,") x ",O50," / ",N50," + (",J50," + ",$X$39," x ",O50,")] x ",P50) -> [((2,404264 + 0,091544 + 0,162747) x 4,54) x (1 / 8760 x 24 / 0) x 0 / 8760 + (0,002224 + 0,000137 x 0)] x 1 | AA50: PVB exit to consumerRL.9 | AB50: Individualized | AC50: PVB exit to consumer | AD50: RL.9 | AF50: 0.150377 | AG50: €/(kWh/día)/mes | AH50: 0.000495 | AI50: €/kWh | AL50: 2.9e-05 | AM50: €/kWh/día/año | AQ50: Productos estándar capacidad | AR50: Mes | AT50: Intraday (05) | AU50: Daily (04) | AV50: Montly (03) | AW50: Quarterly (02) | AX50: Annual (01) | AY50: Undefined
A51: Individualized services | B51: PVB exit to consumer | C51: Undefined - Peaje RL.3 | D51: =IF(Garantías_TTE_AS_PR!$D$10="","",Garantías_TTE_AS_PR!$D$10) ->  | E51: PVB exit to consumerUndefined - Peaje RL.3 | F51: [((Tfr+OCREG)x M x Cint) / den + (TV x D)] x Qa x FR | G51: =Garantías_TTE_AS_PR!$D$13 -> 0 | H51: =Garantías_TTE_AS_PR!$D$17 -> 0 | I51: 2.209031 | J51: 0.002223 | K51: 0.064999 | L51: 0 | M51: =IF(LEFT(C51,SEARCH("-",C51,1)-1-1)="Undefined",VLOOKUP(MONTH(Garantías_TTE_AS_PR!$D$12),$AS$84:$AY$95,7),(IF(LEFT(C51,SEARCH("-",C51,1)-1-1)="Annual",VLOOKUP(MONTH(Garantías_TTE_AS_PR!$D$12),$AS$84:$AY$95,6),(IF(LEFT(C51,SEARCH("-",C51,1)-1-1)="Quarterly",VLOOKUP(MONTH(Garantías_TTE_AS_PR!$D$12),$AS$84:$AY$95,5),(IF(LEFT(C51,SEARCH("-",C51,1)-1-1)="Monthly",VLOOKUP(MONTH(Garantías_TTE_AS_PR!$D$12),$AS$84:$AY$95,4),(IF(LEFT(C51,SEARCH("-",C51,1)-1-1)="Daily",VLOOKUP(MONTH(Garantías_TTE_AS_PR!$D$12),$AS$84:$AY$95,3),(IF(LEFT(C51,SEARCH("-",C51,1)-1-1)="Intraday",IF(O51=24,VLOOKUP(MONTH(Garantías_TTE_AS_PR!$D$12),$AS$84:$AY$95,3),VLOOKUP(MONTH(Garantías_TTE_AS_PR!$D$12),$AS$84:$AY$95,2)),""))))))))))) -> 1 | N51: =IF(Garantías_TTE_AS_PR!$D$8="Undefined - Peaje RL.3",$BE$5,$BE$6) -> 366 | O51: =Garantías_TTE_AS_PR!$D$18 ->  | P51: 2 | Q51: =IF(Garantías_TTE_AS_PR!$D$11="Firm",1,IF(Garantías_TTE_AS_PR!$D$11="Uninterruptible",1,1)) -> 1 | R51: =ROUND((((((I51+K51+$W$39)*M51*Q51))/N51+(J51+$X$39))*O51*G51*P51),2) ->  | S51: PVB exit to consumerUndefined - Peaje RL.3 | T51: =CONCATENATE("[((",I51," + ",$W$39," + ",K51,") x ",M51," x ",Q51,") / ",N51," + (",J51," + ",$X$39," x ",O51,")] x ",TEXT(G51,"#.##0")," x ",P51) -> [((2,209031 + 0,091544 + 0,064999) x 1 x 1) / 366 + (0,002223 + 0,000137 x )] x 0 x 2 | AA51: PVB exit to consumerRL.10 | AB51: Individualized | AC51: PVB exit to consumer | AD51: RL.10 | AF51: 0.150328 | AG51: €/(kWh/día)/mes | AH51: 0.000396 | AI51: €/kWh | AL51: 1.1e-05 | AM51: €/kWh/día/año
A52: Individualized services | B52: PVB exit to consumer | C52: Annual - Peaje RL.3 | D52: =IF(Garantías_TTE_AS_PR!$D$10="","",Garantías_TTE_AS_PR!$D$10) ->  | E52: PVB exit to consumerAnnual - Peaje RL.3 | F52: [((Tfr+OCREG)x M x Cint) / den + (TV x D)] x Qa x FR | G52: =Garantías_TTE_AS_PR!$D$13 -> 0 | H52: =Garantías_TTE_AS_PR!$D$17 -> 0 | I52: 2.209031 | J52: 0.002223 | K52: 0.064999 | L52: 0 | M52: =IF(LEFT(C52,SEARCH("-",C52,1)-1-1)="Undefined",VLOOKUP(MONTH(Garantías_TTE_AS_PR!$D$12),$AS$84:$AY$95,7),(IF(LEFT(C52,SEARCH("-",C52,1)-1-1)="Annual",VLOOKUP(MONTH(Garantías_TTE_AS_PR!$D$12),$AS$84:$AY$95,6),(IF(LEFT(C52,SEARCH("-",C52,1)-1-1)="Quarterly",VLOOKUP(MONTH(Garantías_TTE_AS_PR!$D$12),$AS$84:$AY$95,5),(IF(LEFT(C52,SEARCH("-",C52,1)-1-1)="Monthly",VLOOKUP(MONTH(Garantías_TTE_AS_PR!$D$12),$AS$84:$AY$95,4),(IF(LEFT(C52,SEARCH("-",C52,1)-1-1)="Daily",VLOOKUP(MONTH(Garantías_TTE_AS_PR!$D$12),$AS$84:$AY$95,3),(IF(LEFT(C52,SEARCH("-",C52,1)-1-1)="Intraday",IF(O52=24,VLOOKUP(MONTH(Garantías_TTE_AS_PR!$D$12),$AS$84:$AY$95,3),VLOOKUP(MONTH(Garantías_TTE_AS_PR!$D$12),$AS$84:$AY$95,2)),""))))))))))) -> 1 | N52: =IF(Garantías_TTE_AS_PR!$D$8="Annual - Peaje RL.3",IFERROR(_xlfn.IFS(AND(Garantías_TTE_AS_PR!$D$12>=$BV$4,Garantías_TTE_AS_PR!$D$12<$BW$4),$BE$6,AND(Garantías_TTE_AS_PR!$D$12>=$BV$5,Garantías_TTE_AS_PR!$D$12<$BW$5),$BE$6,AND(Garantías_TTE_AS_PR!$D$12>=$BV$6,Garantías_TTE_AS_PR!$D$12<$BW$6),$BE$6,AND(Garantías_TTE_AS_PR!$D$12>=$BV$7,Garantías_TTE_AS_PR!$D$12<$BW$7),$BE$6,AND(Garantías_TTE_AS_PR!$D$12>=$BV$8,Garantías_TTE_AS_PR!$D$12<$BW$8),$BE$6),$BE$5),(IF(OR(YEAR(Garantías_TTE_AS_PR!$D$12)=2020,YEAR(Garantías_TTE_AS_PR!$D$12)=2024,YEAR(Garantías_TTE_AS_PR!$D$12)=2028,YEAR(Garantías_TTE_AS_PR!$D$12)=2032,YEAR(Garantías_TTE_AS_PR!$D$12)=2036,YEAR(Garantías_TTE_AS_PR!$D$12)=2040,YEAR(Garantías_TTE_AS_PR!$D$12)=2044,YEAR(Garantías_TTE_AS_PR!$D$12)=2048),$BE$6,$BE$5))) -> 365 | O52: =Garantías_TTE_AS_PR!$D$18 ->  | P52: 2 | Q52: =IF(Garantías_TTE_AS_PR!$D$11="Firm",1,IF(Garantías_TTE_AS_PR!$D$11="Uninterruptible",1,1)) -> 1 | S52: PVB exit to consumerAnnual - Peaje RL.3 | T52: [((2,209031 + 0,091544 + 0,064999) x 1 x 1) / 365 + (0,002223 + 0,000137 x )] x 0 x 2 | AA52: PVB exit to consumerRL.11 | AB52: Individualized | AC52: PVB exit to consumer | AD52: RL.11 | AF52: 0.148124 | AG52: €/(kWh/día)/mes | AH52: 7.7e-05 | AI52: €/kWh | AL52: 1e-06 | AM52: €/kWh/día/año | AR52: January | AS52: 1 | AT52: 6.7 | AU52: 1.7 | AV52: 1.2 | AW52: 1.1 | AX52: 1 | AY52: 1
A53: Individualized services | B53: PVB exit to consumer | C53: Quarterly - Peaje RL.3 | D53: =IF(Garantías_TTE_AS_PR!$D$10="","",Garantías_TTE_AS_PR!$D$10) ->  | E53: PVB exit to consumerQuarterly - Peaje RL.3 | F53: [((Tfr+OCREG)x M x Cint) / den + (TV x D)] x Qa x FR | G53: =Garantías_TTE_AS_PR!$D$13 -> 0 | H53: =Garantías_TTE_AS_PR!$D$17 -> 0 | I53: 2.209031 | J53: 0.002223 | K53: 0.064999 | L53: 0 | M53: =IF(LEFT(C53,SEARCH("-",C53,1)-1-1)="Undefined",VLOOKUP(MONTH(Garantías_TTE_AS_PR!$D$12),$AS$84:$AY$95,7),(IF(LEFT(C53,SEARCH("-",C53,1)-1-1)="Annual",VLOOKUP(MONTH(Garantías_TTE_AS_PR!$D$12),$AS$84:$AY$95,6),(IF(LEFT(C53,SEARCH("-",C53,1)-1-1)="Quarterly",VLOOKUP(MONTH(Garantías_TTE_AS_PR!$D$12),$AS$84:$AY$95,5),(IF(LEFT(C53,SEARCH("-",C53,1)-1-1)="Monthly",VLOOKUP(MONTH(Garantías_TTE_AS_PR!$D$12),$AS$84:$AY$95,4),(IF(LEFT(C53,SEARCH("-",C53,1)-1-1)="Daily",VLOOKUP(MONTH(Garantías_TTE_AS_PR!$D$12),$AS$84:$AY$95,3),(IF(LEFT(C53,SEARCH("-",C53,1)-1-1)="Intraday",IF(O53=24,VLOOKUP(MONTH(Garantías_TTE_AS_PR!$D$12),$AS$84:$AY$95,3),VLOOKUP(MONTH(Garantías_TTE_AS_PR!$D$12),$AS$84:$AY$95,2)),""))))))))))) -> 1.35 | N53: =IF(Garantías_TTE_AS_PR!$D$8="Quarterly - Peaje RL.3",IFERROR(_xlfn.IFS(AND(Garantías_TTE_AS_PR!$D$12>=$BX$4,Garantías_TTE_AS_PR!$D$12<$BY$4),$BE$6,AND(Garantías_TTE_AS_PR!$D$12>=$BX$5,Garantías_TTE_AS_PR!$D$12<$BY$5),$BE$6,AND(Garantías_TTE_AS_PR!$D$12>=$BX$6,Garantías_TTE_AS_PR!$D$12<$BY$6),$BE$6,AND(Garantías_TTE_AS_PR!$D$12>=$BX$7,Garantías_TTE_AS_PR!$D$12<$BY$7),$BE$6,AND(Garantías_TTE_AS_PR!$D$12>=$BX$8,Garantías_TTE_AS_PR!$D$12<$BY$8),$BE$6),$BE$5),(IF(OR(YEAR(Garantías_TTE_AS_PR!$D$12)=2020,YEAR(Garantías_TTE_AS_PR!$D$12)=2024,YEAR(Garantías_TTE_AS_PR!$D$12)=2028,YEAR(Garantías_TTE_AS_PR!$D$12)=2032,YEAR(Garantías_TTE_AS_PR!$D$12)=2036,YEAR(Garantías_TTE_AS_PR!$D$12)=2040,YEAR(Garantías_TTE_AS_PR!$D$12)=2044,YEAR(Garantías_TTE_AS_PR!$D$12)=2048),$BE$6,$BE$5))) -> 365 | O53: =Garantías_TTE_AS_PR!$D$18 ->  | P53: 2 | Q53: =IF(Garantías_TTE_AS_PR!$D$11="Firm",1,IF(Garantías_TTE_AS_PR!$D$11="Uninterruptible",1,1)) -> 1 | S53: PVB exit to consumerQuarterly - Peaje RL.3 | T53: [((2,209031 + 0,091544 + 0,064999) x 1,35 x 1) / 365 + (0,002223 + 0,000137 x )] x 0 x 2 | AA53: Underground natural gas storage, injection, extraction | AB53: Bundled | AC53: Underground natural gas storage, injection, extraction | AF53: 0.002556 | AG53: €/(kWh/día)/año | AH53: 0.167925 | AI53: €/(kWh/día)/año | AR53: February | AS53: 2 | AT53: 6.7 | AU53: 1.7 | AV53: 1.2 | AW53: 1.1 | AX53: 1 | AY53: 1
A54: Individualized services | B54: PVB exit to consumer | C54: Monthly - Peaje RL.3 | D54: =IF(Garantías_TTE_AS_PR!$D$10="","",Garantías_TTE_AS_PR!$D$10) ->  | E54: PVB exit to consumerMonthly - Peaje RL.3 | F54: [((Tfr+OCREG)x M x Cint) / den + (TV x D)] x Qa x FR | G54: =Garantías_TTE_AS_PR!$D$13 -> 0 | H54: =Garantías_TTE_AS_PR!$D$17 -> 0 | I54: 2.209031 | J54: 0.002223 | K54: 0.064999 | L54: 0 | M54: =IF(LEFT(C54,SEARCH("-",C54,1)-1-1)="Undefined",VLOOKUP(MONTH(Garantías_TTE_AS_PR!$D$12),$AS$84:$AY$95,7),(IF(LEFT(C54,SEARCH("-",C54,1)-1-1)="Annual",VLOOKUP(MONTH(Garantías_TTE_AS_PR!$D$12),$AS$84:$AY$95,6),(IF(LEFT(C54,SEARCH("-",C54,1)-1-1)="Quarterly",VLOOKUP(MONTH(Garantías_TTE_AS_PR!$D$12),$AS$84:$AY$95,5),(IF(LEFT(C54,SEARCH("-",C54,1)-1-1)="Monthly",VLOOKUP(MONTH(Garantías_TTE_AS_PR!$D$12),$AS$84:$AY$95,4),(IF(LEFT(C54,SEARCH("-",C54,1)-1-1)="Daily",VLOOKUP(MONTH(Garantías_TTE_AS_PR!$D$12),$AS$84:$AY$95,3),(IF(LEFT(C54,SEARCH("-",C54,1)-1-1)="Intraday",IF(O54=24,VLOOKUP(MONTH(Garantías_TTE_AS_PR!$D$12),$AS$84:$AY$95,3),VLOOKUP(MONTH(Garantías_TTE_AS_PR!$D$12),$AS$84:$AY$95,2)),""))))))))))) -> 1.73 | N54: =IF(Garantías_TTE_AS_PR!$D$8="Monthly - Peaje RL.3",IFERROR(_xlfn.IFS(AND(Garantías_TTE_AS_PR!$D$12>=$BX$4,Garantías_TTE_AS_PR!$D$12<$BY$4),$BE$6,AND(Garantías_TTE_AS_PR!$D$12>=$BX$5,Garantías_TTE_AS_PR!$D$12<$BY$5),$BE$6,AND(Garantías_TTE_AS_PR!$D$12>=$BX$6,Garantías_TTE_AS_PR!$D$12<$BY$6),$BE$6,AND(Garantías_TTE_AS_PR!$D$12>=$BX$7,Garantías_TTE_AS_PR!$D$12<$BY$7),$BE$6,AND(Garantías_TTE_AS_PR!$D$12>=$BX$8,Garantías_TTE_AS_PR!$D$12<$BY$8),$BE$6),$BE$5),(IF(OR(YEAR(Garantías_TTE_AS_PR!$D$12)=2020,YEAR(Garantías_TTE_AS_PR!$D$12)=2024,YEAR(Garantías_TTE_AS_PR!$D$12)=2028,YEAR(Garantías_TTE_AS_PR!$D$12)=2032,YEAR(Garantías_TTE_AS_PR!$D$12)=2036,YEAR(Garantías_TTE_AS_PR!$D$12)=2040,YEAR(Garantías_TTE_AS_PR!$D$12)=2044,YEAR(Garantías_TTE_AS_PR!$D$12)=2048),$BE$6,$BE$5))) -> 365 | O54: =Garantías_TTE_AS_PR!$D$18 ->  | P54: 1 | Q54: =IF(Garantías_TTE_AS_PR!$D$11="Firm",1,IF(Garantías_TTE_AS_PR!$D$11="Uninterruptible",1,1)) -> 1 | S54: PVB exit to consumerMonthly - Peaje RL.3 | T54: [((2,209031 + 0,091544 + 0,064999) x 1,73 x 1) / 365 + (0,002223 + 0,000137 x )] x 0 x 1 | AA54: =IF(AC54="","",CONCATENATE(AC54,AE54)) ->  | AR54: March | AS54: 3 | AT54: 6.7 | AU54: 1.7 | AV54: 1.2 | AW54: 1.1 | AX54: 1 | AY54: 1
A55: Individualized services | B55: PVB exit to consumer | C55: Daily - Peaje RL.3 | D55: =IF(Garantías_TTE_AS_PR!$D$10="","",Garantías_TTE_AS_PR!$D$10) ->  | E55: PVB exit to consumerDaily - Peaje RL.3 | F55: [((Tfr+OCREG)x M x Cint) / den + (TV x D)] x Qa x FR | G55: =Garantías_TTE_AS_PR!$D$13 -> 0 | H55: =Garantías_TTE_AS_PR!$D$17 -> 0 | I55: 2.209031 | J55: 0.002223 | K55: 0.064999 | L55: 0 | M55: =IF(LEFT(C55,SEARCH("-",C55,1)-1-1)="Undefined",VLOOKUP(MONTH(Garantías_TTE_AS_PR!$D$12),$AS$84:$AY$95,7),(IF(LEFT(C55,SEARCH("-",C55,1)-1-1)="Annual",VLOOKUP(MONTH(Garantías_TTE_AS_PR!$D$12),$AS$84:$AY$95,6),(IF(LEFT(C55,SEARCH("-",C55,1)-1-1)="Quarterly",VLOOKUP(MONTH(Garantías_TTE_AS_PR!$D$12),$AS$84:$AY$95,5),(IF(LEFT(C55,SEARCH("-",C55,1)-1-1)="Monthly",VLOOKUP(MONTH(Garantías_TTE_AS_PR!$D$12),$AS$84:$AY$95,4),(IF(LEFT(C55,SEARCH("-",C55,1)-1-1)="Daily",VLOOKUP(MONTH(Garantías_TTE_AS_PR!$D$12),$AS$84:$AY$95,3),(IF(LEFT(C55,SEARCH("-",C55,1)-1-1)="Intraday",IF(O55=24,VLOOKUP(MONTH(Garantías_TTE_AS_PR!$D$12),$AS$84:$AY$95,3),VLOOKUP(MONTH(Garantías_TTE_AS_PR!$D$12),$AS$84:$AY$95,2)),""))))))))))) -> 2.13 | N55: =IF(Garantías_TTE_AS_PR!$D$8="Daily - Peaje RL.3",IFERROR(_xlfn.IFS(AND(Garantías_TTE_AS_PR!$D$12>=$BX$4,Garantías_TTE_AS_PR!$D$12<$BY$4),$BE$6,AND(Garantías_TTE_AS_PR!$D$12>=$BX$5,Garantías_TTE_AS_PR!$D$12<$BY$5),$BE$6,AND(Garantías_TTE_AS_PR!$D$12>=$BX$6,Garantías_TTE_AS_PR!$D$12<$BY$6),$BE$6,AND(Garantías_TTE_AS_PR!$D$12>=$BX$7,Garantías_TTE_AS_PR!$D$12<$BY$7),$BE$6,AND(Garantías_TTE_AS_PR!$D$12>=$BX$8,Garantías_TTE_AS_PR!$D$12<$BY$8),$BE$6),$BE$5),(IF(OR(YEAR(Garantías_TTE_AS_PR!$D$12)=2020,YEAR(Garantías_TTE_AS_PR!$D$12)=2024,YEAR(Garantías_TTE_AS_PR!$D$12)=2028,YEAR(Garantías_TTE_AS_PR!$D$12)=2032,YEAR(Garantías_TTE_AS_PR!$D$12)=2036,YEAR(Garantías_TTE_AS_PR!$D$12)=2040,YEAR(Garantías_TTE_AS_PR!$D$12)=2044,YEAR(Garantías_TTE_AS_PR!$D$12)=2048),$BE$6,$BE$5))) -> 365 | O55: =Garantías_TTE_AS_PR!$D$18 ->  | P55: 1 | Q55: =IF(Garantías_TTE_AS_PR!$D$11="Firm",1,IF(Garantías_TTE_AS_PR!$D$11="Uninterruptible",1,1)) -> 1 | S55: PVB exit to consumerDaily - Peaje RL.3 | T55: [((2,209031 + 0,091544 + 0,064999) x 2,13 x 1) / 365 + (0,002223 + 0,000137 x )] x 0 x 1 | AR55: April | AS55: 4 | AT55: 6.7 | AU55: 1.7 | AV55: 1.2 | AW55: 1.1 | AX55: 1 | AY55: 1
A56: Individualized services | B56: PVB exit to consumer | C56: Intraday - Peaje RL.3 | D56: =IF(Garantías_TTE_AS_PR!$D$10="","",Garantías_TTE_AS_PR!$D$10) ->  | E56: PVB exit to consumerIntraday - Peaje RL.3 | F56: [((Tfr+OCREG) x M x Cint) x (Qa x 24 / H) x H / den + (TV x Qa)] x FR | G56: =Garantías_TTE_AS_PR!$D$13 -> 0 | H56: =Garantías_TTE_AS_PR!$D$17 -> 0 | I56: 2.209031 | J56: 0.002223 | K56: 0.064999 | L56: 0 | M56: =IF(LEFT(C56,SEARCH("-",C56,1)-1-1)="Undefined",VLOOKUP(MONTH(Garantías_TTE_AS_PR!$D$12),$AS$84:$AY$95,7),(IF(LEFT(C56,SEARCH("-",C56,1)-1-1)="Annual",VLOOKUP(MONTH(Garantías_TTE_AS_PR!$D$12),$AS$84:$AY$95,6),(IF(LEFT(C56,SEARCH("-",C56,1)-1-1)="Quarterly",VLOOKUP(MONTH(Garantías_TTE_AS_PR!$D$12),$AS$84:$AY$95,5),(IF(LEFT(C56,SEARCH("-",C56,1)-1-1)="Monthly",VLOOKUP(MONTH(Garantías_TTE_AS_PR!$D$12),$AS$84:$AY$95,4),(IF(LEFT(C56,SEARCH("-",C56,1)-1-1)="Daily",VLOOKUP(MONTH(Garantías_TTE_AS_PR!$D$12),$AS$84:$AY$95,3),(IF(LEFT(C56,SEARCH("-",C56,1)-1-1)="Intraday",IF(O56=24,VLOOKUP(MONTH(Garantías_TTE_AS_PR!$D$12),$AS$84:$AY$95,3),VLOOKUP(MONTH(Garantías_TTE_AS_PR!$D$12),$AS$84:$AY$95,2)),""))))))))))) -> 4.54 | N56: =IF(Garantías_TTE_AS_PR!$D$8="Intraday - Peaje RL.3",IFERROR(_xlfn.IFS(AND(Garantías_TTE_AS_PR!$D$12>=$BX$4,Garantías_TTE_AS_PR!$D$12<$BY$4),$BE$8,AND(Garantías_TTE_AS_PR!$D$12>=$BX$5,Garantías_TTE_AS_PR!$D$12<$BY$5),$BE$8,AND(Garantías_TTE_AS_PR!$D$12>=$BX$6,Garantías_TTE_AS_PR!$D$12<$BY$6),$BE$8,AND(Garantías_TTE_AS_PR!$D$12>=$BX$7,Garantías_TTE_AS_PR!$D$12<$BY$7),$BE$8,AND(Garantías_TTE_AS_PR!$D$12>=$BX$8,Garantías_TTE_AS_PR!$D$12<$BY$8),$BE$8),$BE$7),(IF(OR(YEAR(Garantías_TTE_AS_PR!$D$12)=2020,YEAR(Garantías_TTE_AS_PR!$D$12)=2024,YEAR(Garantías_TTE_AS_PR!$D$12)=2028,YEAR(Garantías_TTE_AS_PR!$D$12)=2032,YEAR(Garantías_TTE_AS_PR!$D$12)=2036,YEAR(Garantías_TTE_AS_PR!$D$12)=2040,YEAR(Garantías_TTE_AS_PR!$D$12)=2044,YEAR(Garantías_TTE_AS_PR!$D$12)=2048),$BE$8,$BE$7))) -> 8760 | O56: =Garantías_TTE_AS_PR!$D$9 -> 0 | P56: 1 | Q56: =IF(Garantías_TTE_AS_PR!$D$11="Firm",1,IF(Garantías_TTE_AS_PR!$D$11="Uninterruptible",1,1)) -> 1 | R56: =ROUND((((I56+K56+$W$39)*M56*Q56+H56)/(N56/24)+(J56+$X$39))*G56*P56,2) -> 0 | S56: PVB exit to consumerIntraday - Peaje RL.3 | T56: =CONCATENATE("[((",I56," + ",$W$39," + ",K56,") x ",M56,") x (",Q56," / ",N56," x 24 / ",O56,") x ",O56," / ",N56," + (",J56," + ",$X$39," x ",O56,")] x ",P56) -> [((2,209031 + 0,091544 + 0,064999) x 4,54) x (1 / 8760 x 24 / 0) x 0 / 8760 + (0,002223 + 0,000137 x 0)] x 1 | AR56: May | AS56: 5 | AT56: 6.7 | AU56: 1.7 | AV56: 1.2 | AW56: 1.1 | AX56: 1 | AY56: 1
A57: Individualized services | B57: PVB exit to consumer | C57: Undefined - Peaje RL.4 | D57: =IF(Garantías_TTE_AS_PR!$D$10="","",Garantías_TTE_AS_PR!$D$10) ->  | E57: PVB exit to consumerUndefined - Peaje RL.4 | F57: [((Tfr+OCREG)x M x Cint) / den + (TV x D)] x Qa x FR | G57: =Garantías_TTE_AS_PR!$D$13 -> 0 | H57: =Garantías_TTE_AS_PR!$D$17 -> 0 | I57: 2.092516 | J57: 0.002202 | K57: 0.011495 | L57: 0 | M57: =IF(LEFT(C57,SEARCH("-",C57,1)-1-1)="Undefined",VLOOKUP(MONTH(Garantías_TTE_AS_PR!$D$12),$AS$84:$AY$95,7),(IF(LEFT(C57,SEARCH("-",C57,1)-1-1)="Annual",VLOOKUP(MONTH(Garantías_TTE_AS_PR!$D$12),$AS$84:$AY$95,6),(IF(LEFT(C57,SEARCH("-",C57,1)-1-1)="Quarterly",VLOOKUP(MONTH(Garantías_TTE_AS_PR!$D$12),$AS$84:$AY$95,5),(IF(LEFT(C57,SEARCH("-",C57,1)-1-1)="Monthly",VLOOKUP(MONTH(Garantías_TTE_AS_PR!$D$12),$AS$84:$AY$95,4),(IF(LEFT(C57,SEARCH("-",C57,1)-1-1)="Daily",VLOOKUP(MONTH(Garantías_TTE_AS_PR!$D$12),$AS$84:$AY$95,3),(IF(LEFT(C57,SEARCH("-",C57,1)-1-1)="Intraday",IF(O57=24,VLOOKUP(MONTH(Garantías_TTE_AS_PR!$D$12),$AS$84:$AY$95,3),VLOOKUP(MONTH(Garantías_TTE_AS_PR!$D$12),$AS$84:$AY$95,2)),""))))))))))) -> 1 | N57: =IF(Garantías_TTE_AS_PR!$D$8="Undefined - Peaje RL.4",$BE$5,$BE$6) -> 366 | O57: =Garantías_TTE_AS_PR!$D$18 ->  | P57: 2 | Q57: =IF(Garantías_TTE_AS_PR!$D$11="Firm",1,IF(Garantías_TTE_AS_PR!$D$11="Uninterruptible",1,1)) -> 1 | R57: =ROUND((((((I57+K57+$W$39)*M57*Q57))/N57+(J57+$X$39))*O57*G57*P57),2) ->  | S57: PVB exit to consumerUndefined - Peaje RL.4 | T57: =CONCATENATE("[((",I57," + ",$W$39," + ",K57,") x ",M57," x ",Q57,") / ",N57," + (",J57," + ",$X$39," x ",O57,")] x ",TEXT(G57,"#.##0")," x ",P57) -> [((2,092516 + 0,091544 + 0,011495) x 1 x 1) / 366 + (0,002202 + 0,000137 x )] x 0 x 2 | AR57: June | AS57: 6 | AT57: 6.7 | AU57: 1.7 | AV57: 1.2 | AW57: 1.1 | AX57: 1 | AY57: 1
A58: Individualized services | B58: PVB exit to consumer | C58: Annual - Peaje RL.4 | D58: =IF(Garantías_TTE_AS_PR!$D$10="","",Garantías_TTE_AS_PR!$D$10) ->  | E58: PVB exit to consumerAnnual - Peaje RL.4 | F58: [((Tfr+OCREG)x M x Cint) / den + (TV x D)] x Qa x FR | G58: =Garantías_TTE_AS_PR!$D$13 -> 0 | H58: =Garantías_TTE_AS_PR!$D$17 -> 0 | I58: 2.092516 | J58: 0.002202 | K58: 0.011495 | L58: 0 | M58: =IF(LEFT(C58,SEARCH("-",C58,1)-1-1)="Undefined",VLOOKUP(MONTH(Garantías_TTE_AS_PR!$D$12),$AS$84:$AY$95,7),(IF(LEFT(C58,SEARCH("-",C58,1)-1-1)="Annual",VLOOKUP(MONTH(Garantías_TTE_AS_PR!$D$12),$AS$84:$AY$95,6),(IF(LEFT(C58,SEARCH("-",C58,1)-1-1)="Quarterly",VLOOKUP(MONTH(Garantías_TTE_AS_PR!$D$12),$AS$84:$AY$95,5),(IF(LEFT(C58,SEARCH("-",C58,1)-1-1)="Monthly",VLOOKUP(MONTH(Garantías_TTE_AS_PR!$D$12),$AS$84:$AY$95,4),(IF(LEFT(C58,SEARCH("-",C58,1)-1-1)="Daily",VLOOKUP(MONTH(Garantías_TTE_AS_PR!$D$12),$AS$84:$AY$95,3),(IF(LEFT(C58,SEARCH("-",C58,1)-1-1)="Intraday",IF(O58=24,VLOOKUP(MONTH(Garantías_TTE_AS_PR!$D$12),$AS$84:$AY$95,3),VLOOKUP(MONTH(Garantías_TTE_AS_PR!$D$12),$AS$84:$AY$95,2)),""))))))))))) -> 1 | N58: =IF(Garantías_TTE_AS_PR!$D$8="Annual - Peaje RL.4",IFERROR(_xlfn.IFS(AND(Garantías_TTE_AS_PR!$D$12>=$BV$4,Garantías_TTE_AS_PR!$D$12<$BW$4),$BE$6,AND(Garantías_TTE_AS_PR!$D$12>=$BV$5,Garantías_TTE_AS_PR!$D$12<$BW$5),$BE$6,AND(Garantías_TTE_AS_PR!$D$12>=$BV$6,Garantías_TTE_AS_PR!$D$12<$BW$6),$BE$6,AND(Garantías_TTE_AS_PR!$D$12>=$BV$7,Garantías_TTE_AS_PR!$D$12<$BW$7),$BE$6,AND(Garantías_TTE_AS_PR!$D$12>=$BV$8,Garantías_TTE_AS_PR!$D$12<$BW$8),$BE$6),$BE$5),(IF(OR(YEAR(Garantías_TTE_AS_PR!$D$12)=2020,YEAR(Garantías_TTE_AS_PR!$D$12)=2024,YEAR(Garantías_TTE_AS_PR!$D$12)=2028,YEAR(Garantías_TTE_AS_PR!$D$12)=2032,YEAR(Garantías_TTE_AS_PR!$D$12)=2036,YEAR(Garantías_TTE_AS_PR!$D$12)=2040,YEAR(Garantías_TTE_AS_PR!$D$12)=2044,YEAR(Garantías_TTE_AS_PR!$D$12)=2048),$BE$6,$BE$5))) -> 365 | O58: =Garantías_TTE_AS_PR!$D$18 ->  | P58: 2 | Q58: =IF(Garantías_TTE_AS_PR!$D$11="Firm",1,IF(Garantías_TTE_AS_PR!$D$11="Uninterruptible",1,1)) -> 1 | S58: PVB exit to consumerAnnual - Peaje RL.4 | T58: [((2,092516 + 0,091544 + 0,011495) x 1 x 1) / 365 + (0,002202 + 0,000137 x )] x 0 x 2 | AR58: July | AS58: 7 | AT58: 6.7 | AU58: 1.7 | AV58: 1.2 | AW58: 1.1 | AX58: 1 | AY58: 1
A59: Individualized services | B59: PVB exit to consumer | C59: Quarterly - Peaje RL.4 | D59: =IF(Garantías_TTE_AS_PR!$D$10="","",Garantías_TTE_AS_PR!$D$10) ->  | E59: PVB exit to consumerQuarterly - Peaje RL.4 | F59: [((Tfr+OCREG)x M x Cint) / den + (TV x D)] x Qa x FR | G59: =Garantías_TTE_AS_PR!$D$13 -> 0 | H59: =Garantías_TTE_AS_PR!$D$17 -> 0 | I59: 2.092516 | J59: 0.002202 | K59: 0.011495 | L59: 0 | M59: =IF(LEFT(C59,SEARCH("-",C59,1)-1-1)="Undefined",VLOOKUP(MONTH(Garantías_TTE_AS_PR!$D$12),$AS$84:$AY$95,7),(IF(LEFT(C59,SEARCH("-",C59,1)-1-1)="Annual",VLOOKUP(MONTH(Garantías_TTE_AS_PR!$D$12),$AS$84:$AY$95,6),(IF(LEFT(C59,SEARCH("-",C59,1)-1-1)="Quarterly",VLOOKUP(MONTH(Garantías_TTE_AS_PR!$D$12),$AS$84:$AY$95,5),(IF(LEFT(C59,SEARCH("-",C59,1)-1-1)="Monthly",VLOOKUP(MONTH(Garantías_TTE_AS_PR!$D$12),$AS$84:$AY$95,4),(IF(LEFT(C59,SEARCH("-",C59,1)-1-1)="Daily",VLOOKUP(MONTH(Garantías_TTE_AS_PR!$D$12),$AS$84:$AY$95,3),(IF(LEFT(C59,SEARCH("-",C59,1)-1-1)="Intraday",IF(O59=24,VLOOKUP(MONTH(Garantías_TTE_AS_PR!$D$12),$AS$84:$AY$95,3),VLOOKUP(MONTH(Garantías_TTE_AS_PR!$D$12),$AS$84:$AY$95,2)),""))))))))))) -> 1.35 | N59: =IF(Garantías_TTE_AS_PR!$D$8="Quarterly - Peaje RL.4",IFERROR(_xlfn.IFS(AND(Garantías_TTE_AS_PR!$D$12>=$BX$4,Garantías_TTE_AS_PR!$D$12<$BY$4),$BE$6,AND(Garantías_TTE_AS_PR!$D$12>=$BX$5,Garantías_TTE_AS_PR!$D$12<$BY$5),$BE$6,AND(Garantías_TTE_AS_PR!$D$12>=$BX$6,Garantías_TTE_AS_PR!$D$12<$BY$6),$BE$6,AND(Garantías_TTE_AS_PR!$D$12>=$BX$7,Garantías_TTE_AS_PR!$D$12<$BY$7),$BE$6,AND(Garantías_TTE_AS_PR!$D$12>=$BX$8,Garantías_TTE_AS_PR!$D$12<$BY$8),$BE$6),$BE$5),(IF(OR(YEAR(Garantías_TTE_AS_PR!$D$12)=2020,YEAR(Garantías_TTE_AS_PR!$D$12)=2024,YEAR(Garantías_TTE_AS_PR!$D$12)=2028,YEAR(Garantías_TTE_AS_PR!$D$12)=2032,YEAR(Garantías_TTE_AS_PR!$D$12)=2036,YEAR(Garantías_TTE_AS_PR!$D$12)=2040,YEAR(Garantías_TTE_AS_PR!$D$12)=2044,YEAR(Garantías_TTE_AS_PR!$D$12)=2048),$BE$6,$BE$5))) -> 365 | O59: =Garantías_TTE_AS_PR!$D$18 ->  | P59: 2 | Q59: =IF(Garantías_TTE_AS_PR!$D$11="Firm",1,IF(Garantías_TTE_AS_PR!$D$11="Uninterruptible",1,1)) -> 1 | S59: PVB exit to consumerQuarterly - Peaje RL.4 | T59: [((2,092516 + 0,091544 + 0,011495) x 1,35 x 1) / 365 + (0,002202 + 0,000137 x )] x 0 x 2 | AR59: August | AS59: 8 | AT59: 6.7 | AU59: 1.7 | AV59: 1.2 | AW59: 1.1 | AX59: 1 | AY59: 1
A60: Individualized services | B60: PVB exit to consumer | C60: Monthly - Peaje RL.4 | D60: =IF(Garantías_TTE_AS_PR!$D$10="","",Garantías_TTE_AS_PR!$D$10) ->  | E60: PVB exit to consumerMonthly - Peaje RL.4 | F60: [((Tfr+OCREG)x M x Cint) / den + (TV x D)] x Qa x FR | G60: =Garantías_TTE_AS_PR!$D$13 -> 0 | H60: =Garantías_TTE_AS_PR!$D$17 -> 0 | I60: 2.092516 | J60: 0.002202 | K60: 0.011495 | L60: 0 | M60: =IF(LEFT(C60,SEARCH("-",C60,1)-1-1)="Undefined",VLOOKUP(MONTH(Garantías_TTE_AS_PR!$D$12),$AS$84:$AY$95,7),(IF(LEFT(C60,SEARCH("-",C60,1)-1-1)="Annual",VLOOKUP(MONTH(Garantías_TTE_AS_PR!$D$12),$AS$84:$AY$95,6),(IF(LEFT(C60,SEARCH("-",C60,1)-1-1)="Quarterly",VLOOKUP(MONTH(Garantías_TTE_AS_PR!$D$12),$AS$84:$AY$95,5),(IF(LEFT(C60,SEARCH("-",C60,1)-1-1)="Monthly",VLOOKUP(MONTH(Garantías_TTE_AS_PR!$D$12),$AS$84:$AY$95,4),(IF(LEFT(C60,SEARCH("-",C60,1)-1-1)="Daily",VLOOKUP(MONTH(Garantías_TTE_AS_PR!$D$12),$AS$84:$AY$95,3),(IF(LEFT(C60,SEARCH("-",C60,1)-1-1)="Intraday",IF(O60=24,VLOOKUP(MONTH(Garantías_TTE_AS_PR!$D$12),$AS$84:$AY$95,3),VLOOKUP(MONTH(Garantías_TTE_AS_PR!$D$12),$AS$84:$AY$95,2)),""))))))))))) -> 1.73 | N60: =IF(Garantías_TTE_AS_PR!$D$8="Monthly - Peaje RL.4",IFERROR(_xlfn.IFS(AND(Garantías_TTE_AS_PR!$D$12>=$BX$4,Garantías_TTE_AS_PR!$D$12<$BY$4),$BE$6,AND(Garantías_TTE_AS_PR!$D$12>=$BX$5,Garantías_TTE_AS_PR!$D$12<$BY$5),$BE$6,AND(Garantías_TTE_AS_PR!$D$12>=$BX$6,Garantías_TTE_AS_PR!$D$12<$BY$6),$BE$6,AND(Garantías_TTE_AS_PR!$D$12>=$BX$7,Garantías_TTE_AS_PR!$D$12<$BY$7),$BE$6,AND(Garantías_TTE_AS_PR!$D$12>=$BX$8,Garantías_TTE_AS_PR!$D$12<$BY$8),$BE$6),$BE$5),(IF(OR(YEAR(Garantías_TTE_AS_PR!$D$12)=2020,YEAR(Garantías_TTE_AS_PR!$D$12)=2024,YEAR(Garantías_TTE_AS_PR!$D$12)=2028,YEAR(Garantías_TTE_AS_PR!$D$12)=2032,YEAR(Garantías_TTE_AS_PR!$D$12)=2036,YEAR(Garantías_TTE_AS_PR!$D$12)=2040,YEAR(Garantías_TTE_AS_PR!$D$12)=2044,YEAR(Garantías_TTE_AS_PR!$D$12)=2048),$BE$6,$BE$5))) -> 365 | O60: =Garantías_TTE_AS_PR!$D$18 ->  | P60: 1 | Q60: =IF(Garantías_TTE_AS_PR!$D$11="Firm",1,IF(Garantías_TTE_AS_PR!$D$11="Uninterruptible",1,1)) -> 1 | S60: PVB exit to consumerMonthly - Peaje RL.4 | T60: [((2,092516 + 0,091544 + 0,011495) x 1,73 x 1) / 365 + (0,002202 + 0,000137 x )] x 0 x 1 | AR60: September | AS60: 9 | AT60: 6.7 | AU60: 1.7 | AV60: 1.2 | AW60: 1.1 | AX60: 1 | AY60: 1
A61: Individualized services | B61: PVB exit to consumer | C61: Daily - Peaje RL.4 | D61: =IF(Garantías_TTE_AS_PR!$D$10="","",Garantías_TTE_AS_PR!$D$10) ->  | E61: PVB exit to consumerDaily - Peaje RL.4 | F61: [((Tfr+OCREG)x M x Cint) / den + (TV x D)] x Qa x FR | G61: =Garantías_TTE_AS_PR!$D$13 -> 0 | H61: =Garantías_TTE_AS_PR!$D$17 -> 0 | I61: 2.092516 | J61: 0.002202 | K61: 0.011495 | L61: 0 | M61: =IF(LEFT(C61,SEARCH("-",C61,1)-1-1)="Undefined",VLOOKUP(MONTH(Garantías_TTE_AS_PR!$D$12),$AS$84:$AY$95,7),(IF(LEFT(C61,SEARCH("-",C61,1)-1-1)="Annual",VLOOKUP(MONTH(Garantías_TTE_AS_PR!$D$12),$AS$84:$AY$95,6),(IF(LEFT(C61,SEARCH("-",C61,1)-1-1)="Quarterly",VLOOKUP(MONTH(Garantías_TTE_AS_PR!$D$12),$AS$84:$AY$95,5),(IF(LEFT(C61,SEARCH("-",C61,1)-1-1)="Monthly",VLOOKUP(MONTH(Garantías_TTE_AS_PR!$D$12),$AS$84:$AY$95,4),(IF(LEFT(C61,SEARCH("-",C61,1)-1-1)="Daily",VLOOKUP(MONTH(Garantías_TTE_AS_PR!$D$12),$AS$84:$AY$95,3),(IF(LEFT(C61,SEARCH("-",C61,1)-1-1)="Intraday",IF(O61=24,VLOOKUP(MONTH(Garantías_TTE_AS_PR!$D$12),$AS$84:$AY$95,3),VLOOKUP(MONTH(Garantías_TTE_AS_PR!$D$12),$AS$84:$AY$95,2)),""))))))))))) -> 2.13 | N61: =IF(Garantías_TTE_AS_PR!$D$8="Daily - Peaje RL.4",IFERROR(_xlfn.IFS(AND(Garantías_TTE_AS_PR!$D$12>=$BX$4,Garantías_TTE_AS_PR!$D$12<$BY$4),$BE$6,AND(Garantías_TTE_AS_PR!$D$12>=$BX$5,Garantías_TTE_AS_PR!$D$12<$BY$5),$BE$6,AND(Garantías_TTE_AS_PR!$D$12>=$BX$6,Garantías_TTE_AS_PR!$D$12<$BY$6),$BE$6,AND(Garantías_TTE_AS_PR!$D$12>=$BX$7,Garantías_TTE_AS_PR!$D$12<$BY$7),$BE$6,AND(Garantías_TTE_AS_PR!$D$12>=$BX$8,Garantías_TTE_AS_PR!$D$12<$BY$8),$BE$6),$BE$5),(IF(OR(YEAR(Garantías_TTE_AS_PR!$D$12)=2020,YEAR(Garantías_TTE_AS_PR!$D$12)=2024,YEAR(Garantías_TTE_AS_PR!$D$12)=2028,YEAR(Garantías_TTE_AS_PR!$D$12)=2032,YEAR(Garantías_TTE_AS_PR!$D$12)=2036,YEAR(Garantías_TTE_AS_PR!$D$12)=2040,YEAR(Garantías_TTE_AS_PR!$D$12)=2044,YEAR(Garantías_TTE_AS_PR!$D$12)=2048),$BE$6,$BE$5))) -> 365 | O61: =Garantías_TTE_AS_PR!$D$18 ->  | P61: 1 | Q61: =IF(Garantías_TTE_AS_PR!$D$11="Firm",1,IF(Garantías_TTE_AS_PR!$D$11="Uninterruptible",1,1)) -> 1 | S61: PVB exit to consumerDaily - Peaje RL.4 | T61: [((2,092516 + 0,091544 + 0,011495) x 2,13 x 1) / 365 + (0,002202 + 0,000137 x )] x 0 x 1 | AR61: October | AS61: 10 | AT61: 6.7 | AU61: 1.7 | AV61: 1.2 | AW61: 1.1 | AX61: 1 | AY61: 1
A62: Individualized services | B62: PVB exit to consumer | C62: Intraday - Peaje RL.4 | D62: =IF(Garantías_TTE_AS_PR!$D$10="","",Garantías_TTE_AS_PR!$D$10) ->  | E62: PVB exit to consumerIntraday - Peaje RL.4 | F62: [((Tfr+OCREG) x M x Cint) x (Qa x 24 / H) x H / den + (TV x Qa)] x FR | G62: =Garantías_TTE_AS_PR!$D$13 -> 0 | H62: =Garantías_TTE_AS_PR!$D$17 -> 0 | I62: 2.092516 | J62: 0.002202 | K62: 0.011495 | L62: 0 | M62: =IF(LEFT(C62,SEARCH("-",C62,1)-1-1)="Undefined",VLOOKUP(MONTH(Garantías_TTE_AS_PR!$D$12),$AS$84:$AY$95,7),(IF(LEFT(C62,SEARCH("-",C62,1)-1-1)="Annual",VLOOKUP(MONTH(Garantías_TTE_AS_PR!$D$12),$AS$84:$AY$95,6),(IF(LEFT(C62,SEARCH("-",C62,1)-1-1)="Quarterly",VLOOKUP(MONTH(Garantías_TTE_AS_PR!$D$12),$AS$84:$AY$95,5),(IF(LEFT(C62,SEARCH("-",C62,1)-1-1)="Monthly",VLOOKUP(MONTH(Garantías_TTE_AS_PR!$D$12),$AS$84:$AY$95,4),(IF(LEFT(C62,SEARCH("-",C62,1)-1-1)="Daily",VLOOKUP(MONTH(Garantías_TTE_AS_PR!$D$12),$AS$84:$AY$95,3),(IF(LEFT(C62,SEARCH("-",C62,1)-1-1)="Intraday",IF(O62=24,VLOOKUP(MONTH(Garantías_TTE_AS_PR!$D$12),$AS$84:$AY$95,3),VLOOKUP(MONTH(Garantías_TTE_AS_PR!$D$12),$AS$84:$AY$95,2)),""))))))))))) -> 4.54 | N62: =IF(Garantías_TTE_AS_PR!$D$8="Intraday - Peaje RL.4",IFERROR(_xlfn.IFS(AND(Garantías_TTE_AS_PR!$D$12>=$BX$4,Garantías_TTE_AS_PR!$D$12<$BY$4),$BE$8,AND(Garantías_TTE_AS_PR!$D$12>=$BX$5,Garantías_TTE_AS_PR!$D$12<$BY$5),$BE$8,AND(Garantías_TTE_AS_PR!$D$12>=$BX$6,Garantías_TTE_AS_PR!$D$12<$BY$6),$BE$8,AND(Garantías_TTE_AS_PR!$D$12>=$BX$7,Garantías_TTE_AS_PR!$D$12<$BY$7),$BE$8,AND(Garantías_TTE_AS_PR!$D$12>=$BX$8,Garantías_TTE_AS_PR!$D$12<$BY$8),$BE$8),$BE$7),(IF(OR(YEAR(Garantías_TTE_AS_PR!$D$12)=2020,YEAR(Garantías_TTE_AS_PR!$D$12)=2024,YEAR(Garantías_TTE_AS_PR!$D$12)=2028,YEAR(Garantías_TTE_AS_PR!$D$12)=2032,YEAR(Garantías_TTE_AS_PR!$D$12)=2036,YEAR(Garantías_TTE_AS_PR!$D$12)=2040,YEAR(Garantías_TTE_AS_PR!$D$12)=2044,YEAR(Garantías_TTE_AS_PR!$D$12)=2048),$BE$8,$BE$7))) -> 8760 | O62: =Garantías_TTE_AS_PR!$D$9 -> 0 | P62: 1 | Q62: =IF(Garantías_TTE_AS_PR!$D$11="Firm",1,IF(Garantías_TTE_AS_PR!$D$11="Uninterruptible",1,1)) -> 1 | R62: =ROUND((((I62+K62+$W$39)*M62*Q62+H62)/(N62/24)+(J62+$X$39))*G62*P62,2) -> 0 | S62: PVB exit to consumerIntraday - Peaje RL.4 | T62: =CONCATENATE("[((",I62," + ",$W$39," + ",K62,") x ",M62,") x (",Q62," / ",N62," x 24 / ",O62,") x ",O62," / ",N62," + (",J62," + ",$X$39," x ",O62,")] x ",P62) -> [((2,092516 + 0,091544 + 0,011495) x 4,54) x (1 / 8760 x 24 / 0) x 0 / 8760 + (0,002202 + 0,000137 x 0)] x 1 | AR62: November | AS62: 11 | AT62: 6.7 | AU62: 1.7 | AV62: 1.2 | AW62: 1.1 | AX62: 1 | AY62: 1
A63: Individualized services | B63: PVB exit to consumer | C63: Undefined - Peaje RLTB.5 | D63: =IF(Garantías_TTE_AS_PR!$D$10="","",Garantías_TTE_AS_PR!$D$10) ->  | E63: PVB exit to consumerUndefined - Peaje RLTB.5 | F63: [((Tfr+OCREG)x M x Cint) / den + (TV x D)] x Qa x FR | G63: =Garantías_TTE_AS_PR!$D$13 -> 0 | H63: =Garantías_TTE_AS_PR!$D$17 -> 0 | I63: =VLOOKUP(CONCATENATE(SCON,RIGHT(C63,6)),$AA$4:$AJ$220,6,FALSE) -> 1.547071 | J63: =VLOOKUP(CONCATENATE(SCON,RIGHT(C63,6)),$AA$4:$AJ$220,8,FALSE) -> 0.003977 | K63: =VLOOKUP(CONCATENATE(SCON,RIGHT(C63,6)),$AA$4:$AL$220,12,FALSE) -> 0.002526 | L63: =VLOOKUP(CONCATENATE(SCON,RIGHT(C63,6)),$AA$4:$AN$221,14,FALSE) -> 0 | M63: =IF(LEFT(C63,SEARCH("-",C63,1)-1-1)="Undefined",VLOOKUP(MONTH(Garantías_TTE_AS_PR!$D$12),$AS$84:$AY$95,7),(IF(LEFT(C63,SEARCH("-",C63,1)-1-1)="Annual",VLOOKUP(MONTH(Garantías_TTE_AS_PR!$D$12),$AS$84:$AY$95,6),(IF(LEFT(C63,SEARCH("-",C63,1)-1-1)="Quarterly",VLOOKUP(MONTH(Garantías_TTE_AS_PR!$D$12),$AS$84:$AY$95,5),(IF(LEFT(C63,SEARCH("-",C63,1)-1-1)="Monthly",VLOOKUP(MONTH(Garantías_TTE_AS_PR!$D$12),$AS$84:$AY$95,4),(IF(LEFT(C63,SEARCH("-",C63,1)-1-1)="Daily",VLOOKUP(MONTH(Garantías_TTE_AS_PR!$D$12),$AS$84:$AY$95,3),(IF(LEFT(C63,SEARCH("-",C63,1)-1-1)="Intraday",IF(O63=24,VLOOKUP(MONTH(Garantías_TTE_AS_PR!$D$12),$AS$84:$AY$95,3),VLOOKUP(MONTH(Garantías_TTE_AS_PR!$D$12),$AS$84:$AY$95,2)),""))))))))))) -> 1 | N63: =IF(Garantías_TTE_AS_PR!$D$8="Undefined - Peaje RLTB.5",$BE$5,$BE$6) -> 366 | O63: =Garantías_TTE_AS_PR!$D$18 ->  | P63: 2 | Q63: =IF(Garantías_TTE_AS_PR!$D$11="Firm",1,IF(Garantías_TTE_AS_PR!$D$11="Uninterruptible",1,1)) -> 1 | R63: =ROUND((((((I63+K63+$W$39)*M63*Q63))/N63+(J63+$X$39))*O63*G63*P63),2) ->  | S63: PVB exit to consumerUndefined - Peaje RLTB.5 | T63: =CONCATENATE("[((",I63," + ",$W$39," + ",K63,") x ",M63," x ",Q63,") / ",N63," + (",J63," + ",$X$39," x ",O63,")] x ",TEXT(G63,"#.##0")," x ",P63) -> [((1,547071 + 0,091544 + 0,002526) x 1 x 1) / 366 + (0,003977 + 0,000137 x )] x 0 x 2 | AR63: December | AS63: 12 | AT63: 6.7 | AU63: 1.7 | AV63: 1.2 | AW63: 1.1 | AX63: 1 | AY63: 1
A64: Individualized services | B64: PVB exit to consumer | C64: Annual - Peaje RLTB.5 | D64: =IF(Garantías_TTE_AS_PR!$D$10="","",Garantías_TTE_AS_PR!$D$10) ->  | E64: PVB exit to consumerAnnual - Peaje RLTB.5 | F64: [((Tfr+OCREG)x M x Cint) / den + (TV x D)] x Qa x FR | G64: =Garantías_TTE_AS_PR!$D$13 -> 0 | H64: =Garantías_TTE_AS_PR!$D$17 -> 0 | I64: 1.547071 | J64: 0.003977 | K64: 0.002526 | L64: 0 | M64: =IF(LEFT(C64,SEARCH("-",C64,1)-1-1)="Undefined",VLOOKUP(MONTH(Garantías_TTE_AS_PR!$D$12),$AS$84:$AY$95,7),(IF(LEFT(C64,SEARCH("-",C64,1)-1-1)="Annual",VLOOKUP(MONTH(Garantías_TTE_AS_PR!$D$12),$AS$84:$AY$95,6),(IF(LEFT(C64,SEARCH("-",C64,1)-1-1)="Quarterly",VLOOKUP(MONTH(Garantías_TTE_AS_PR!$D$12),$AS$84:$AY$95,5),(IF(LEFT(C64,SEARCH("-",C64,1)-1-1)="Monthly",VLOOKUP(MONTH(Garantías_TTE_AS_PR!$D$12),$AS$84:$AY$95,4),(IF(LEFT(C64,SEARCH("-",C64,1)-1-1)="Daily",VLOOKUP(MONTH(Garantías_TTE_AS_PR!$D$12),$AS$84:$AY$95,3),(IF(LEFT(C64,SEARCH("-",C64,1)-1-1)="Intraday",IF(O64=24,VLOOKUP(MONTH(Garantías_TTE_AS_PR!$D$12),$AS$84:$AY$95,3),VLOOKUP(MONTH(Garantías_TTE_AS_PR!$D$12),$AS$84:$AY$95,2)),""))))))))))) -> 1 | N64: =IF(Garantías_TTE_AS_PR!$D$8="Annual - Peaje RLTB.5",IFERROR(_xlfn.IFS(AND(Garantías_TTE_AS_PR!$D$12>=$BV$4,Garantías_TTE_AS_PR!$D$12<$BW$4),$BE$6,AND(Garantías_TTE_AS_PR!$D$12>=$BV$5,Garantías_TTE_AS_PR!$D$12<$BW$5),$BE$6,AND(Garantías_TTE_AS_PR!$D$12>=$BV$6,Garantías_TTE_AS_PR!$D$12<$BW$6),$BE$6,AND(Garantías_TTE_AS_PR!$D$12>=$BV$7,Garantías_TTE_AS_PR!$D$12<$BW$7),$BE$6,AND(Garantías_TTE_AS_PR!$D$12>=$BV$8,Garantías_TTE_AS_PR!$D$12<$BW$8),$BE$6),$BE$5),(IF(OR(YEAR(Garantías_TTE_AS_PR!$D$12)=2020,YEAR(Garantías_TTE_AS_PR!$D$12)=2024,YEAR(Garantías_TTE_AS_PR!$D$12)=2028,YEAR(Garantías_TTE_AS_PR!$D$12)=2032,YEAR(Garantías_TTE_AS_PR!$D$12)=2036,YEAR(Garantías_TTE_AS_PR!$D$12)=2040,YEAR(Garantías_TTE_AS_PR!$D$12)=2044,YEAR(Garantías_TTE_AS_PR!$D$12)=2048),$BE$6,$BE$5))) -> 365 | O64: =Garantías_TTE_AS_PR!$D$18 ->  | P64: 2 | Q64: =IF(Garantías_TTE_AS_PR!$D$11="Firm",1,IF(Garantías_TTE_AS_PR!$D$11="Uninterruptible",1,1)) -> 1 | S64: PVB exit to consumerAnnual - Peaje RLTB.5 | T64: [((1,547071 + 0,091544 + 0,002526) x 1 x 1) / 365 + (0,003977 + 0,000137 x )] x 0 x 2
A65: Individualized services | B65: PVB exit to consumer | C65: Quarterly - Peaje RLTB.5 | D65: =IF(Garantías_TTE_AS_PR!$D$10="","",Garantías_TTE_AS_PR!$D$10) ->  | E65: PVB exit to consumerQuarterly - Peaje RLTB.5 | F65: [((Tfr+OCREG)x M x Cint) / den + (TV x D)] x Qa x FR | G65: =Garantías_TTE_AS_PR!$D$13 -> 0 | H65: =Garantías_TTE_AS_PR!$D$17 -> 0 | I65: 1.547071 | J65: 0.003977 | K65: 0.002526 | L65: 0 | M65: =IF(LEFT(C65,SEARCH("-",C65,1)-1-1)="Undefined",VLOOKUP(MONTH(Garantías_TTE_AS_PR!$D$12),$AS$84:$AY$95,7),(IF(LEFT(C65,SEARCH("-",C65,1)-1-1)="Annual",VLOOKUP(MONTH(Garantías_TTE_AS_PR!$D$12),$AS$84:$AY$95,6),(IF(LEFT(C65,SEARCH("-",C65,1)-1-1)="Quarterly",VLOOKUP(MONTH(Garantías_TTE_AS_PR!$D$12),$AS$84:$AY$95,5),(IF(LEFT(C65,SEARCH("-",C65,1)-1-1)="Monthly",VLOOKUP(MONTH(Garantías_TTE_AS_PR!$D$12),$AS$84:$AY$95,4),(IF(LEFT(C65,SEARCH("-",C65,1)-1-1)="Daily",VLOOKUP(MONTH(Garantías_TTE_AS_PR!$D$12),$AS$84:$AY$95,3),(IF(LEFT(C65,SEARCH("-",C65,1)-1-1)="Intraday",IF(O65=24,VLOOKUP(MONTH(Garantías_TTE_AS_PR!$D$12),$AS$84:$AY$95,3),VLOOKUP(MONTH(Garantías_TTE_AS_PR!$D$12),$AS$84:$AY$95,2)),""))))))))))) -> 1.35 | N65: =IF(Garantías_TTE_AS_PR!$D$8="Quarterly - Peaje RLTB.5",IFERROR(_xlfn.IFS(AND(Garantías_TTE_AS_PR!$D$12>=$BX$4,Garantías_TTE_AS_PR!$D$12<$BY$4),$BE$6,AND(Garantías_TTE_AS_PR!$D$12>=$BX$5,Garantías_TTE_AS_PR!$D$12<$BY$5),$BE$6,AND(Garantías_TTE_AS_PR!$D$12>=$BX$6,Garantías_TTE_AS_PR!$D$12<$BY$6),$BE$6,AND(Garantías_TTE_AS_PR!$D$12>=$BX$7,Garantías_TTE_AS_PR!$D$12<$BY$7),$BE$6,AND(Garantías_TTE_AS_PR!$D$12>=$BX$8,Garantías_TTE_AS_PR!$D$12<$BY$8),$BE$6),$BE$5),(IF(OR(YEAR(Garantías_TTE_AS_PR!$D$12)=2020,YEAR(Garantías_TTE_AS_PR!$D$12)=2024,YEAR(Garantías_TTE_AS_PR!$D$12)=2028,YEAR(Garantías_TTE_AS_PR!$D$12)=2032,YEAR(Garantías_TTE_AS_PR!$D$12)=2036,YEAR(Garantías_TTE_AS_PR!$D$12)=2040,YEAR(Garantías_TTE_AS_PR!$D$12)=2044,YEAR(Garantías_TTE_AS_PR!$D$12)=2048),$BE$6,$BE$5))) -> 365 | O65: =Garantías_TTE_AS_PR!$D$18 ->  | P65: 2 | Q65: =IF(Garantías_TTE_AS_PR!$D$11="Firm",1,IF(Garantías_TTE_AS_PR!$D$11="Uninterruptible",1,1)) -> 1 | S65: PVB exit to consumerQuarterly - Peaje RLTB.5 | T65: [((1,547071 + 0,091544 + 0,002526) x 1,35 x 1) / 365 + (0,003977 + 0,000137 x )] x 0 x 2 | AQ65: Administración PEAJES. Licuefacción virtual
A66: Individualized services | B66: PVB exit to consumer | C66: Monthly - Peaje RLTB.5 | D66: =IF(Garantías_TTE_AS_PR!$D$10="","",Garantías_TTE_AS_PR!$D$10) ->  | E66: PVB exit to consumerMonthly - Peaje RLTB.5 | F66: [((Tfr+OCREG)x M x Cint) / den + (TV x D)] x Qa x FR | G66: =Garantías_TTE_AS_PR!$D$13 -> 0 | H66: =Garantías_TTE_AS_PR!$D$17 -> 0 | I66: 1.547071 | J66: 0.003977 | K66: 0.002526 | L66: 0 | M66: =IF(LEFT(C66,SEARCH("-",C66,1)-1-1)="Undefined",VLOOKUP(MONTH(Garantías_TTE_AS_PR!$D$12),$AS$84:$AY$95,7),(IF(LEFT(C66,SEARCH("-",C66,1)-1-1)="Annual",VLOOKUP(MONTH(Garantías_TTE_AS_PR!$D$12),$AS$84:$AY$95,6),(IF(LEFT(C66,SEARCH("-",C66,1)-1-1)="Quarterly",VLOOKUP(MONTH(Garantías_TTE_AS_PR!$D$12),$AS$84:$AY$95,5),(IF(LEFT(C66,SEARCH("-",C66,1)-1-1)="Monthly",VLOOKUP(MONTH(Garantías_TTE_AS_PR!$D$12),$AS$84:$AY$95,4),(IF(LEFT(C66,SEARCH("-",C66,1)-1-1)="Daily",VLOOKUP(MONTH(Garantías_TTE_AS_PR!$D$12),$AS$84:$AY$95,3),(IF(LEFT(C66,SEARCH("-",C66,1)-1-1)="Intraday",IF(O66=24,VLOOKUP(MONTH(Garantías_TTE_AS_PR!$D$12),$AS$84:$AY$95,3),VLOOKUP(MONTH(Garantías_TTE_AS_PR!$D$12),$AS$84:$AY$95,2)),""))))))))))) -> 1.73 | N66: =IF(Garantías_TTE_AS_PR!$D$8="Monthly - Peaje RLTB.5",IFERROR(_xlfn.IFS(AND(Garantías_TTE_AS_PR!$D$12>=$BX$4,Garantías_TTE_AS_PR!$D$12<$BY$4),$BE$6,AND(Garantías_TTE_AS_PR!$D$12>=$BX$5,Garantías_TTE_AS_PR!$D$12<$BY$5),$BE$6,AND(Garantías_TTE_AS_PR!$D$12>=$BX$6,Garantías_TTE_AS_PR!$D$12<$BY$6),$BE$6,AND(Garantías_TTE_AS_PR!$D$12>=$BX$7,Garantías_TTE_AS_PR!$D$12<$BY$7),$BE$6,AND(Garantías_TTE_AS_PR!$D$12>=$BX$8,Garantías_TTE_AS_PR!$D$12<$BY$8),$BE$6),$BE$5),(IF(OR(YEAR(Garantías_TTE_AS_PR!$D$12)=2020,YEAR(Garantías_TTE_AS_PR!$D$12)=2024,YEAR(Garantías_TTE_AS_PR!$D$12)=2028,YEAR(Garantías_TTE_AS_PR!$D$12)=2032,YEAR(Garantías_TTE_AS_PR!$D$12)=2036,YEAR(Garantías_TTE_AS_PR!$D$12)=2040,YEAR(Garantías_TTE_AS_PR!$D$12)=2044,YEAR(Garantías_TTE_AS_PR!$D$12)=2048),$BE$6,$BE$5))) -> 365 | O66: =Garantías_TTE_AS_PR!$D$18 ->  | P66: 1 | Q66: =IF(Garantías_TTE_AS_PR!$D$11="Firm",1,IF(Garantías_TTE_AS_PR!$D$11="Uninterruptible",1,1)) -> 1 | S66: PVB exit to consumerMonthly - Peaje RLTB.5 | T66: [((1,547071 + 0,091544 + 0,002526) x 1,73 x 1) / 365 + (0,003977 + 0,000137 x )] x 0 x 1 | AQ66: Productos estándar capacidad | AR66: Mes | AT66: Intraday (05) | AU66: Daily (04) | AV66: Montly (03) | AW66: Quarterly (02) | AX66: Annual (01) | AY66: Undefined
A67: Individualized services | B67: PVB exit to consumer | C67: Daily - Peaje RLTB.5 | D67: =IF(Garantías_TTE_AS_PR!$D$10="","",Garantías_TTE_AS_PR!$D$10) ->  | E67: PVB exit to consumerDaily - Peaje RLTB.5 | F67: [((Tfr+OCREG)x M x Cint) / den + (TV x D)] x Qa x FR | G67: =Garantías_TTE_AS_PR!$D$13 -> 0 | H67: =Garantías_TTE_AS_PR!$D$17 -> 0 | I67: 1.547071 | J67: 0.003977 | K67: 0.002526 | L67: 0 | M67: =IF(LEFT(C67,SEARCH("-",C67,1)-1-1)="Undefined",VLOOKUP(MONTH(Garantías_TTE_AS_PR!$D$12),$AS$84:$AY$95,7),(IF(LEFT(C67,SEARCH("-",C67,1)-1-1)="Annual",VLOOKUP(MONTH(Garantías_TTE_AS_PR!$D$12),$AS$84:$AY$95,6),(IF(LEFT(C67,SEARCH("-",C67,1)-1-1)="Quarterly",VLOOKUP(MONTH(Garantías_TTE_AS_PR!$D$12),$AS$84:$AY$95,5),(IF(LEFT(C67,SEARCH("-",C67,1)-1-1)="Monthly",VLOOKUP(MONTH(Garantías_TTE_AS_PR!$D$12),$AS$84:$AY$95,4),(IF(LEFT(C67,SEARCH("-",C67,1)-1-1)="Daily",VLOOKUP(MONTH(Garantías_TTE_AS_PR!$D$12),$AS$84:$AY$95,3),(IF(LEFT(C67,SEARCH("-",C67,1)-1-1)="Intraday",IF(O67=24,VLOOKUP(MONTH(Garantías_TTE_AS_PR!$D$12),$AS$84:$AY$95,3),VLOOKUP(MONTH(Garantías_TTE_AS_PR!$D$12),$AS$84:$AY$95,2)),""))))))))))) -> 2.13 | N67: =IF(Garantías_TTE_AS_PR!$D$8="Daily - Peaje RLTB.5",IFERROR(_xlfn.IFS(AND(Garantías_TTE_AS_PR!$D$12>=$BX$4,Garantías_TTE_AS_PR!$D$12<$BY$4),$BE$6,AND(Garantías_TTE_AS_PR!$D$12>=$BX$5,Garantías_TTE_AS_PR!$D$12<$BY$5),$BE$6,AND(Garantías_TTE_AS_PR!$D$12>=$BX$6,Garantías_TTE_AS_PR!$D$12<$BY$6),$BE$6,AND(Garantías_TTE_AS_PR!$D$12>=$BX$7,Garantías_TTE_AS_PR!$D$12<$BY$7),$BE$6,AND(Garantías_TTE_AS_PR!$D$12>=$BX$8,Garantías_TTE_AS_PR!$D$12<$BY$8),$BE$6),$BE$5),(IF(OR(YEAR(Garantías_TTE_AS_PR!$D$12)=2020,YEAR(Garantías_TTE_AS_PR!$D$12)=2024,YEAR(Garantías_TTE_AS_PR!$D$12)=2028,YEAR(Garantías_TTE_AS_PR!$D$12)=2032,YEAR(Garantías_TTE_AS_PR!$D$12)=2036,YEAR(Garantías_TTE_AS_PR!$D$12)=2040,YEAR(Garantías_TTE_AS_PR!$D$12)=2044,YEAR(Garantías_TTE_AS_PR!$D$12)=2048),$BE$6,$BE$5))) -> 365 | O67: =Garantías_TTE_AS_PR!$D$18 ->  | P67: 1 | Q67: =IF(Garantías_TTE_AS_PR!$D$11="Firm",1,IF(Garantías_TTE_AS_PR!$D$11="Uninterruptible",1,1)) -> 1 | S67: PVB exit to consumerDaily - Peaje RLTB.5 | T67: [((1,547071 + 0,091544 + 0,002526) x 2,13 x 1) / 365 + (0,003977 + 0,000137 x )] x 0 x 1
A68: Individualized services | B68: PVB exit to consumer | C68: Intraday - Peaje RLTB.5 | D68: =IF(Garantías_TTE_AS_PR!$D$10="","",Garantías_TTE_AS_PR!$D$10) ->  | E68: PVB exit to consumerIntraday - Peaje RLTB.5 | F68: [((Tfr+OCREG) x M x Cint) x (Qa x 24 / H) x H / den + (TV x Qa)] x FR | G68: =Garantías_TTE_AS_PR!$D$13 -> 0 | H68: =Garantías_TTE_AS_PR!$D$17 -> 0 | I68: 1.547071 | J68: 0.003977 | K68: 0.002526 | L68: 0 | M68: =IF(LEFT(C68,SEARCH("-",C68,1)-1-1)="Undefined",VLOOKUP(MONTH(Garantías_TTE_AS_PR!$D$12),$AS$84:$AY$95,7),(IF(LEFT(C68,SEARCH("-",C68,1)-1-1)="Annual",VLOOKUP(MONTH(Garantías_TTE_AS_PR!$D$12),$AS$84:$AY$95,6),(IF(LEFT(C68,SEARCH("-",C68,1)-1-1)="Quarterly",VLOOKUP(MONTH(Garantías_TTE_AS_PR!$D$12),$AS$84:$AY$95,5),(IF(LEFT(C68,SEARCH("-",C68,1)-1-1)="Monthly",VLOOKUP(MONTH(Garantías_TTE_AS_PR!$D$12),$AS$84:$AY$95,4),(IF(LEFT(C68,SEARCH("-",C68,1)-1-1)="Daily",VLOOKUP(MONTH(Garantías_TTE_AS_PR!$D$12),$AS$84:$AY$95,3),(IF(LEFT(C68,SEARCH("-",C68,1)-1-1)="Intraday",IF(O68=24,VLOOKUP(MONTH(Garantías_TTE_AS_PR!$D$12),$AS$84:$AY$95,3),VLOOKUP(MONTH(Garantías_TTE_AS_PR!$D$12),$AS$84:$AY$95,2)),""))))))))))) -> 4.54 | N68: =IF(Garantías_TTE_AS_PR!$D$8="Intraday - Peaje RLTB.5",IFERROR(_xlfn.IFS(AND(Garantías_TTE_AS_PR!$D$12>=$BX$4,Garantías_TTE_AS_PR!$D$12<$BY$4),$BE$8,AND(Garantías_TTE_AS_PR!$D$12>=$BX$5,Garantías_TTE_AS_PR!$D$12<$BY$5),$BE$8,AND(Garantías_TTE_AS_PR!$D$12>=$BX$6,Garantías_TTE_AS_PR!$D$12<$BY$6),$BE$8,AND(Garantías_TTE_AS_PR!$D$12>=$BX$7,Garantías_TTE_AS_PR!$D$12<$BY$7),$BE$8,AND(Garantías_TTE_AS_PR!$D$12>=$BX$8,Garantías_TTE_AS_PR!$D$12<$BY$8),$BE$8),$BE$7),(IF(OR(YEAR(Garantías_TTE_AS_PR!$D$12)=2020,YEAR(Garantías_TTE_AS_PR!$D$12)=2024,YEAR(Garantías_TTE_AS_PR!$D$12)=2028,YEAR(Garantías_TTE_AS_PR!$D$12)=2032,YEAR(Garantías_TTE_AS_PR!$D$12)=2036,YEAR(Garantías_TTE_AS_PR!$D$12)=2040,YEAR(Garantías_TTE_AS_PR!$D$12)=2044,YEAR(Garantías_TTE_AS_PR!$D$12)=2048),$BE$8,$BE$7))) -> 8760 | O68: =Garantías_TTE_AS_PR!$D$9 -> 0 | P68: 1 | Q68: =IF(Garantías_TTE_AS_PR!$D$11="Firm",1,IF(Garantías_TTE_AS_PR!$D$11="Uninterruptible",1,1)) -> 1 | R68: =ROUND((((I68+K68+$W$39)*M68*Q68+H68)/(N68/24)+(J68+$X$39))*G68*P68,2) -> 0 | S68: =B68&C68 -> PVB exit to consumerIntraday - Peaje RLTB.5 | T68: =CONCATENATE("[((",I68," + ",$W$39," + ",K68,") x ",M68,") x (",Q68," / ",N68," x 24 / ",O68,") x ",O68," / ",N68," + (",J68," + ",$X$39," x ",O68,")] x ",P68) -> [((1,547071 + 0,091544 + 0,002526) x 4,54) x (1 / 8760 x 24 / 0) x 0 / 8760 + (0,003977 + 0,000137 x 0)] x 1 | AR68: January | AS68: 1 | AT68: 6 | AU68: 1.7 | AV68: 1.3 | AW68: 1.2 | AX68: 1 | AY68: 1
A69: Individualized services | B69: PVB exit to consumer | C69: Undefined - Peaje RLTA.5 | D69: =IF(Garantías_TTE_AS_PR!$D$10="","",Garantías_TTE_AS_PR!$D$10) ->  | E69: PVB exit to consumerUndefined - Peaje RLTA.5 | F69: [((Tfr+OCREG)x M x Cint) / den + (TV x D)] x Qa x FR | G69: =Garantías_TTE_AS_PR!$D$13 -> 0 | H69: =Garantías_TTE_AS_PR!$D$17 -> 0 | I69: 1.703313 | J69: 0.001795 | K69: 0.002526 | L69: 0 | M69: =IF(LEFT(C69,SEARCH("-",C69,1)-1-1)="Undefined",VLOOKUP(MONTH(Garantías_TTE_AS_PR!$D$12),$AS$84:$AY$95,7),(IF(LEFT(C69,SEARCH("-",C69,1)-1-1)="Annual",VLOOKUP(MONTH(Garantías_TTE_AS_PR!$D$12),$AS$84:$AY$95,6),(IF(LEFT(C69,SEARCH("-",C69,1)-1-1)="Quarterly",VLOOKUP(MONTH(Garantías_TTE_AS_PR!$D$12),$AS$84:$AY$95,5),(IF(LEFT(C69,SEARCH("-",C69,1)-1-1)="Monthly",VLOOKUP(MONTH(Garantías_TTE_AS_PR!$D$12),$AS$84:$AY$95,4),(IF(LEFT(C69,SEARCH("-",C69,1)-1-1)="Daily",VLOOKUP(MONTH(Garantías_TTE_AS_PR!$D$12),$AS$84:$AY$95,3),(IF(LEFT(C69,SEARCH("-",C69,1)-1-1)="Intraday",IF(O69=24,VLOOKUP(MONTH(Garantías_TTE_AS_PR!$D$12),$AS$84:$AY$95,3),VLOOKUP(MONTH(Garantías_TTE_AS_PR!$D$12),$AS$84:$AY$95,2)),""))))))))))) -> 1 | N69: =IF(Garantías_TTE_AS_PR!$D$8="Undefined - Peaje RLTA.5",$BE$5,$BE$6) -> 366 | O69: =Garantías_TTE_AS_PR!$D$18 ->  | P69: 2 | Q69: =IF(Garantías_TTE_AS_PR!$D$11="Firm",1,IF(Garantías_TTE_AS_PR!$D$11="Uninterruptible",1,1)) -> 1 | R69: =ROUND((((((I69+K69+$W$39)*M69*Q69))/N69+(J69+$X$39))*O69*G69*P69),2) ->  | S69: PVB exit to consumerUndefined - Peaje RLTA.5 | T69: =CONCATENATE("[((",I69," + ",$W$39," + ",K69,") x ",M69," x ",Q69,") / ",N69," + (",J69," + ",$X$39," x ",O69,")] x ",TEXT(G69,"#.##0")," x ",P69) -> [((1,703313 + 0,091544 + 0,002526) x 1 x 1) / 366 + (0,001795 + 0,000137 x )] x 0 x 2 | AR69: February | AS69: 2 | AT69: 6 | AU69: 1.7 | AV69: 1.3 | AW69: 1.2 | AX69: 1 | AY69: 1
A70: Individualized services | B70: PVB exit to consumer | C70: Annual - Peaje RLTA.5 | D70: =IF(Garantías_TTE_AS_PR!$D$10="","",Garantías_TTE_AS_PR!$D$10) ->  | E70: PVB exit to consumerAnnual - Peaje RLTA.5 | F70: [((Tfr+OCREG)x M x Cint) / den + (TV x D)] x Qa x FR | G70: =Garantías_TTE_AS_PR!$D$13 -> 0 | H70: =Garantías_TTE_AS_PR!$D$17 -> 0 | I70: 1.703313 | J70: 0.001795 | K70: 0.002526 | L70: 0 | M70: =IF(LEFT(C70,SEARCH("-",C70,1)-1-1)="Undefined",VLOOKUP(MONTH(Garantías_TTE_AS_PR!$D$12),$AS$84:$AY$95,7),(IF(LEFT(C70,SEARCH("-",C70,1)-1-1)="Annual",VLOOKUP(MONTH(Garantías_TTE_AS_PR!$D$12),$AS$84:$AY$95,6),(IF(LEFT(C70,SEARCH("-",C70,1)-1-1)="Quarterly",VLOOKUP(MONTH(Garantías_TTE_AS_PR!$D$12),$AS$84:$AY$95,5),(IF(LEFT(C70,SEARCH("-",C70,1)-1-1)="Monthly",VLOOKUP(MONTH(Garantías_TTE_AS_PR!$D$12),$AS$84:$AY$95,4),(IF(LEFT(C70,SEARCH("-",C70,1)-1-1)="Daily",VLOOKUP(MONTH(Garantías_TTE_AS_PR!$D$12),$AS$84:$AY$95,3),(IF(LEFT(C70,SEARCH("-",C70,1)-1-1)="Intraday",IF(O70=24,VLOOKUP(MONTH(Garantías_TTE_AS_PR!$D$12),$AS$84:$AY$95,3),VLOOKUP(MONTH(Garantías_TTE_AS_PR!$D$12),$AS$84:$AY$95,2)),""))))))))))) -> 1 | N70: =IF(Garantías_TTE_AS_PR!$D$8="Annual - Peaje RLTA.5",IFERROR(_xlfn.IFS(AND(Garantías_TTE_AS_PR!$D$12>=$BV$4,Garantías_TTE_AS_PR!$D$12<$BW$4),$BE$6,AND(Garantías_TTE_AS_PR!$D$12>=$BV$5,Garantías_TTE_AS_PR!$D$12<$BW$5),$BE$6,AND(Garantías_TTE_AS_PR!$D$12>=$BV$6,Garantías_TTE_AS_PR!$D$12<$BW$6),$BE$6,AND(Garantías_TTE_AS_PR!$D$12>=$BV$7,Garantías_TTE_AS_PR!$D$12<$BW$7),$BE$6,AND(Garantías_TTE_AS_PR!$D$12>=$BV$8,Garantías_TTE_AS_PR!$D$12<$BW$8),$BE$6),$BE$5),(IF(OR(YEAR(Garantías_TTE_AS_PR!$D$12)=2020,YEAR(Garantías_TTE_AS_PR!$D$12)=2024,YEAR(Garantías_TTE_AS_PR!$D$12)=2028,YEAR(Garantías_TTE_AS_PR!$D$12)=2032,YEAR(Garantías_TTE_AS_PR!$D$12)=2036,YEAR(Garantías_TTE_AS_PR!$D$12)=2040,YEAR(Garantías_TTE_AS_PR!$D$12)=2044,YEAR(Garantías_TTE_AS_PR!$D$12)=2048),$BE$6,$BE$5))) -> 365 | O70: =Garantías_TTE_AS_PR!$D$18 ->  | P70: 2 | Q70: =IF(Garantías_TTE_AS_PR!$D$11="Firm",1,IF(Garantías_TTE_AS_PR!$D$11="Uninterruptible",1,1)) -> 1 | S70: PVB exit to consumerAnnual - Peaje RLTA.5 | T70: [((1,703313 + 0,091544 + 0,002526) x 1 x 1) / 365 + (0,001795 + 0,000137 x )] x 0 x 2 | AA70: =IF(AC70="","",CONCATENATE(AC70,AE70)) ->  | AR70: March | AS70: 3 | AT70: 6 | AU70: 1.7 | AV70: 1.3 | AW70: 1.2 | AX70: 1 | AY70: 1
A71: Individualized services | B71: PVB exit to consumer | C71: Quarterly - Peaje RLTA.5 | D71: =IF(Garantías_TTE_AS_PR!$D$10="","",Garantías_TTE_AS_PR!$D$10) ->  | E71: PVB exit to consumerQuarterly - Peaje RLTA.5 | F71: [((Tfr+OCREG)x M x Cint) / den + (TV x D)] x Qa x FR | G71: =Garantías_TTE_AS_PR!$D$13 -> 0 | H71: =Garantías_TTE_AS_PR!$D$17 -> 0 | I71: 1.703313 | J71: 0.001795 | K71: 0.002526 | L71: 0 | M71: =IF(LEFT(C71,SEARCH("-",C71,1)-1-1)="Undefined",VLOOKUP(MONTH(Garantías_TTE_AS_PR!$D$12),$AS$84:$AY$95,7),(IF(LEFT(C71,SEARCH("-",C71,1)-1-1)="Annual",VLOOKUP(MONTH(Garantías_TTE_AS_PR!$D$12),$AS$84:$AY$95,6),(IF(LEFT(C71,SEARCH("-",C71,1)-1-1)="Quarterly",VLOOKUP(MONTH(Garantías_TTE_AS_PR!$D$12),$AS$84:$AY$95,5),(IF(LEFT(C71,SEARCH("-",C71,1)-1-1)="Monthly",VLOOKUP(MONTH(Garantías_TTE_AS_PR!$D$12),$AS$84:$AY$95,4),(IF(LEFT(C71,SEARCH("-",C71,1)-1-1)="Daily",VLOOKUP(MONTH(Garantías_TTE_AS_PR!$D$12),$AS$84:$AY$95,3),(IF(LEFT(C71,SEARCH("-",C71,1)-1-1)="Intraday",IF(O71=24,VLOOKUP(MONTH(Garantías_TTE_AS_PR!$D$12),$AS$84:$AY$95,3),VLOOKUP(MONTH(Garantías_TTE_AS_PR!$D$12),$AS$84:$AY$95,2)),""))))))))))) -> 1.35 | N71: =IF(Garantías_TTE_AS_PR!$D$8="Quarterly - Peaje RLTA.5",IFERROR(_xlfn.IFS(AND(Garantías_TTE_AS_PR!$D$12>=$BX$4,Garantías_TTE_AS_PR!$D$12<$BY$4),$BE$6,AND(Garantías_TTE_AS_PR!$D$12>=$BX$5,Garantías_TTE_AS_PR!$D$12<$BY$5),$BE$6,AND(Garantías_TTE_AS_PR!$D$12>=$BX$6,Garantías_TTE_AS_PR!$D$12<$BY$6),$BE$6,AND(Garantías_TTE_AS_PR!$D$12>=$BX$7,Garantías_TTE_AS_PR!$D$12<$BY$7),$BE$6,AND(Garantías_TTE_AS_PR!$D$12>=$BX$8,Garantías_TTE_AS_PR!$D$12<$BY$8),$BE$6),$BE$5),(IF(OR(YEAR(Garantías_TTE_AS_PR!$D$12)=2020,YEAR(Garantías_TTE_AS_PR!$D$12)=2024,YEAR(Garantías_TTE_AS_PR!$D$12)=2028,YEAR(Garantías_TTE_AS_PR!$D$12)=2032,YEAR(Garantías_TTE_AS_PR!$D$12)=2036,YEAR(Garantías_TTE_AS_PR!$D$12)=2040,YEAR(Garantías_TTE_AS_PR!$D$12)=2044,YEAR(Garantías_TTE_AS_PR!$D$12)=2048),$BE$6,$BE$5))) -> 365 | O71: =Garantías_TTE_AS_PR!$D$18 ->  | P71: =VLOOKUP(LEFT(C71,SEARCH("-",C71,1)-1-1),$BA$4:$BB$51,2,FALSE) -> 2 | Q71: =IF(Garantías_TTE_AS_PR!$D$11="Firm",1,IF(Garantías_TTE_AS_PR!$D$11="Uninterruptible",1,1)) -> 1 | S71: PVB exit to consumerQuarterly - Peaje RLTA.5 | T71: [((1,703313 + 0,091544 + 0,002526) x 1,35 x 1) / 365 + (0,001795 + 0,000137 x )] x 0 x 2 | AR71: April | AS71: 4 | AT71: 6 | AU71: 1.7 | AV71: 1.3 | AW71: 1.2 | AX71: 1 | AY71: 1
A72: Individualized services | B72: PVB exit to consumer | C72: Monthly - Peaje RLTA.5 | D72: =IF(Garantías_TTE_AS_PR!$D$10="","",Garantías_TTE_AS_PR!$D$10) ->  | E72: PVB exit to consumerMonthly - Peaje RLTA.5 | F72: [((Tfr+OCREG)x M x Cint) / den + (TV x D)] x Qa x FR | G72: =Garantías_TTE_AS_PR!$D$13 -> 0 | H72: =Garantías_TTE_AS_PR!$D$17 -> 0 | I72: 1.703313 | J72: 0.001795 | K72: 0.002526 | L72: 0 | M72: =IF(LEFT(C72,SEARCH("-",C72,1)-1-1)="Undefined",VLOOKUP(MONTH(Garantías_TTE_AS_PR!$D$12),$AS$84:$AY$95,7),(IF(LEFT(C72,SEARCH("-",C72,1)-1-1)="Annual",VLOOKUP(MONTH(Garantías_TTE_AS_PR!$D$12),$AS$84:$AY$95,6),(IF(LEFT(C72,SEARCH("-",C72,1)-1-1)="Quarterly",VLOOKUP(MONTH(Garantías_TTE_AS_PR!$D$12),$AS$84:$AY$95,5),(IF(LEFT(C72,SEARCH("-",C72,1)-1-1)="Monthly",VLOOKUP(MONTH(Garantías_TTE_AS_PR!$D$12),$AS$84:$AY$95,4),(IF(LEFT(C72,SEARCH("-",C72,1)-1-1)="Daily",VLOOKUP(MONTH(Garantías_TTE_AS_PR!$D$12),$AS$84:$AY$95,3),(IF(LEFT(C72,SEARCH("-",C72,1)-1-1)="Intraday",IF(O72=24,VLOOKUP(MONTH(Garantías_TTE_AS_PR!$D$12),$AS$84:$AY$95,3),VLOOKUP(MONTH(Garantías_TTE_AS_PR!$D$12),$AS$84:$AY$95,2)),""))))))))))) -> 1.73 | N72: =IF(Garantías_TTE_AS_PR!$D$8="Monthly - Peaje RLTA.5",IFERROR(_xlfn.IFS(AND(Garantías_TTE_AS_PR!$D$12>=$BX$4,Garantías_TTE_AS_PR!$D$12<$BY$4),$BE$6,AND(Garantías_TTE_AS_PR!$D$12>=$BX$5,Garantías_TTE_AS_PR!$D$12<$BY$5),$BE$6,AND(Garantías_TTE_AS_PR!$D$12>=$BX$6,Garantías_TTE_AS_PR!$D$12<$BY$6),$BE$6,AND(Garantías_TTE_AS_PR!$D$12>=$BX$7,Garantías_TTE_AS_PR!$D$12<$BY$7),$BE$6,AND(Garantías_TTE_AS_PR!$D$12>=$BX$8,Garantías_TTE_AS_PR!$D$12<$BY$8),$BE$6),$BE$5),(IF(OR(YEAR(Garantías_TTE_AS_PR!$D$12)=2020,YEAR(Garantías_TTE_AS_PR!$D$12)=2024,YEAR(Garantías_TTE_AS_PR!$D$12)=2028,YEAR(Garantías_TTE_AS_PR!$D$12)=2032,YEAR(Garantías_TTE_AS_PR!$D$12)=2036,YEAR(Garantías_TTE_AS_PR!$D$12)=2040,YEAR(Garantías_TTE_AS_PR!$D$12)=2044,YEAR(Garantías_TTE_AS_PR!$D$12)=2048),$BE$6,$BE$5))) -> 365 | O72: =Garantías_TTE_AS_PR!$D$18 ->  | P72: 1 | Q72: =IF(Garantías_TTE_AS_PR!$D$11="Firm",1,IF(Garantías_TTE_AS_PR!$D$11="Uninterruptible",1,1)) -> 1 | S72: PVB exit to consumerMonthly - Peaje RLTA.5 | T72: [((1,703313 + 0,091544 + 0,002526) x 1,73 x 1) / 365 + (0,001795 + 0,000137 x )] x 0 x 1 | AR72: May | AS72: 5 | AT72: 6 | AU72: 1.7 | AV72: 1.3 | AW72: 1.2 | AX72: 1 | AY72: 1
A73: Individualized services | B73: PVB exit to consumer | C73: Daily - Peaje RLTA.5 | D73: =IF(Garantías_TTE_AS_PR!$D$10="","",Garantías_TTE_AS_PR!$D$10) ->  | E73: PVB exit to consumerDaily - Peaje RLTA.5 | F73: [((Tfr+OCREG)x M x Cint) / den + (TV x D)] x Qa x FR | G73: =Garantías_TTE_AS_PR!$D$13 -> 0 | H73: =Garantías_TTE_AS_PR!$D$17 -> 0 | I73: 1.703313 | J73: 0.001795 | K73: 0.002526 | L73: 0 | M73: =IF(LEFT(C73,SEARCH("-",C73,1)-1-1)="Undefined",VLOOKUP(MONTH(Garantías_TTE_AS_PR!$D$12),$AS$84:$AY$95,7),(IF(LEFT(C73,SEARCH("-",C73,1)-1-1)="Annual",VLOOKUP(MONTH(Garantías_TTE_AS_PR!$D$12),$AS$84:$AY$95,6),(IF(LEFT(C73,SEARCH("-",C73,1)-1-1)="Quarterly",VLOOKUP(MONTH(Garantías_TTE_AS_PR!$D$12),$AS$84:$AY$95,5),(IF(LEFT(C73,SEARCH("-",C73,1)-1-1)="Monthly",VLOOKUP(MONTH(Garantías_TTE_AS_PR!$D$12),$AS$84:$AY$95,4),(IF(LEFT(C73,SEARCH("-",C73,1)-1-1)="Daily",VLOOKUP(MONTH(Garantías_TTE_AS_PR!$D$12),$AS$84:$AY$95,3),(IF(LEFT(C73,SEARCH("-",C73,1)-1-1)="Intraday",IF(O73=24,VLOOKUP(MONTH(Garantías_TTE_AS_PR!$D$12),$AS$84:$AY$95,3),VLOOKUP(MONTH(Garantías_TTE_AS_PR!$D$12),$AS$84:$AY$95,2)),""))))))))))) -> 2.13 | N73: =IF(Garantías_TTE_AS_PR!$D$8="Daily - Peaje RLTA.5",IFERROR(_xlfn.IFS(AND(Garantías_TTE_AS_PR!$D$12>=$BX$4,Garantías_TTE_AS_PR!$D$12<$BY$4),$BE$6,AND(Garantías_TTE_AS_PR!$D$12>=$BX$5,Garantías_TTE_AS_PR!$D$12<$BY$5),$BE$6,AND(Garantías_TTE_AS_PR!$D$12>=$BX$6,Garantías_TTE_AS_PR!$D$12<$BY$6),$BE$6,AND(Garantías_TTE_AS_PR!$D$12>=$BX$7,Garantías_TTE_AS_PR!$D$12<$BY$7),$BE$6,AND(Garantías_TTE_AS_PR!$D$12>=$BX$8,Garantías_TTE_AS_PR!$D$12<$BY$8),$BE$6),$BE$5),(IF(OR(YEAR(Garantías_TTE_AS_PR!$D$12)=2020,YEAR(Garantías_TTE_AS_PR!$D$12)=2024,YEAR(Garantías_TTE_AS_PR!$D$12)=2028,YEAR(Garantías_TTE_AS_PR!$D$12)=2032,YEAR(Garantías_TTE_AS_PR!$D$12)=2036,YEAR(Garantías_TTE_AS_PR!$D$12)=2040,YEAR(Garantías_TTE_AS_PR!$D$12)=2044,YEAR(Garantías_TTE_AS_PR!$D$12)=2048),$BE$6,$BE$5))) -> 365 | O73: =Garantías_TTE_AS_PR!$D$18 ->  | P73: 1 | Q73: =IF(Garantías_TTE_AS_PR!$D$11="Firm",1,IF(Garantías_TTE_AS_PR!$D$11="Uninterruptible",1,1)) -> 1 | S73: PVB exit to consumerDaily - Peaje RLTA.5 | T73: [((1,703313 + 0,091544 + 0,002526) x 2,13 x 1) / 365 + (0,001795 + 0,000137 x )] x 0 x 1 | AR73: June | AS73: 6 | AT73: 6 | AU73: 1.7 | AV73: 1.3 | AW73: 1.2 | AX73: 1 | AY73: 1
A74: Individualized services | B74: PVB exit to consumer | C74: Intraday - Peaje RLTA.5 | D74: =IF(Garantías_TTE_AS_PR!$D$10="","",Garantías_TTE_AS_PR!$D$10) ->  | E74: PVB exit to consumerIntraday - Peaje RLTA.5 | F74: [((Tfr+OCREG) x M x Cint) x (Qa x 24 / H) x H / den + (TV x Qa)] x FR | G74: =Garantías_TTE_AS_PR!$D$13 -> 0 | H74: =Garantías_TTE_AS_PR!$D$17 -> 0 | I74: 1.703313 | J74: 0.001795 | K74: 0.002526 | L74: 0 | M74: =IF(LEFT(C74,SEARCH("-",C74,1)-1-1)="Undefined",VLOOKUP(MONTH(Garantías_TTE_AS_PR!$D$12),$AS$84:$AY$95,7),(IF(LEFT(C74,SEARCH("-",C74,1)-1-1)="Annual",VLOOKUP(MONTH(Garantías_TTE_AS_PR!$D$12),$AS$84:$AY$95,6),(IF(LEFT(C74,SEARCH("-",C74,1)-1-1)="Quarterly",VLOOKUP(MONTH(Garantías_TTE_AS_PR!$D$12),$AS$84:$AY$95,5),(IF(LEFT(C74,SEARCH("-",C74,1)-1-1)="Monthly",VLOOKUP(MONTH(Garantías_TTE_AS_PR!$D$12),$AS$84:$AY$95,4),(IF(LEFT(C74,SEARCH("-",C74,1)-1-1)="Daily",VLOOKUP(MONTH(Garantías_TTE_AS_PR!$D$12),$AS$84:$AY$95,3),(IF(LEFT(C74,SEARCH("-",C74,1)-1-1)="Intraday",IF(O74=24,VLOOKUP(MONTH(Garantías_TTE_AS_PR!$D$12),$AS$84:$AY$95,3),VLOOKUP(MONTH(Garantías_TTE_AS_PR!$D$12),$AS$84:$AY$95,2)),""))))))))))) -> 4.54 | N74: =IF(Garantías_TTE_AS_PR!$D$8="Intraday - Peaje RLTA.5",IFERROR(_xlfn.IFS(AND(Garantías_TTE_AS_PR!$D$12>=$BX$4,Garantías_TTE_AS_PR!$D$12<$BY$4),$BE$8,AND(Garantías_TTE_AS_PR!$D$12>=$BX$5,Garantías_TTE_AS_PR!$D$12<$BY$5),$BE$8,AND(Garantías_TTE_AS_PR!$D$12>=$BX$6,Garantías_TTE_AS_PR!$D$12<$BY$6),$BE$8,AND(Garantías_TTE_AS_PR!$D$12>=$BX$7,Garantías_TTE_AS_PR!$D$12<$BY$7),$BE$8,AND(Garantías_TTE_AS_PR!$D$12>=$BX$8,Garantías_TTE_AS_PR!$D$12<$BY$8),$BE$8),$BE$7),(IF(OR(YEAR(Garantías_TTE_AS_PR!$D$12)=2020,YEAR(Garantías_TTE_AS_PR!$D$12)=2024,YEAR(Garantías_TTE_AS_PR!$D$12)=2028,YEAR(Garantías_TTE_AS_PR!$D$12)=2032,YEAR(Garantías_TTE_AS_PR!$D$12)=2036,YEAR(Garantías_TTE_AS_PR!$D$12)=2040,YEAR(Garantías_TTE_AS_PR!$D$12)=2044,YEAR(Garantías_TTE_AS_PR!$D$12)=2048),$BE$8,$BE$7))) -> 8760 | O74: =Garantías_TTE_AS_PR!$D$9 -> 0 | P74: 1 | Q74: =IF(Garantías_TTE_AS_PR!$D$11="Firm",1,IF(Garantías_TTE_AS_PR!$D$11="Uninterruptible",1,1)) -> 1 | R74: =ROUND((((I74+K74+$W$39)*M74*Q74+H74)/(N74/24)+(J74+$X$39))*G74*P74,2) -> 0 | S74: PVB exit to consumerIntraday - Peaje RLTA.5 | T74: =CONCATENATE("[((",I74," + ",$W$39," + ",K74,") x ",M74,") x (",Q74," / ",N74," x 24 / ",O74,") x ",O74," / ",N74," + (",J74," + ",$X$39," x ",O74,")] x ",P74) -> [((1,703313 + 0,091544 + 0,002526) x 4,54) x (1 / 8760 x 24 / 0) x 0 / 8760 + (0,001795 + 0,000137 x 0)] x 1 | AR74: July | AS74: 7 | AT74: 6 | AU74: 1.7 | AV74: 1.3 | AW74: 1.2 | AX74: 1 | AY74: 1
A75: Individualized services | B75: PVB exit to consumer | C75: Undefined - Peaje RLTB.6 | D75: =IF(Garantías_TTE_AS_PR!$D$10="","",Garantías_TTE_AS_PR!$D$10) ->  | E75: PVB exit to consumerUndefined - Peaje RLTB.6 | F75: [((Tfr+OCREG)x M x Cint) / den + (TV x D)] x Qa x FR | G75: =Garantías_TTE_AS_PR!$D$13 -> 0 | H75: =Garantías_TTE_AS_PR!$D$17 -> 0 | I75: 1.410899 | J75: 0.001626 | K75: 0.000794 | L75: 0 | M75: =IF(LEFT(C75,SEARCH("-",C75,1)-1-1)="Undefined",VLOOKUP(MONTH(Garantías_TTE_AS_PR!$D$12),$AS$84:$AY$95,7),(IF(LEFT(C75,SEARCH("-",C75,1)-1-1)="Annual",VLOOKUP(MONTH(Garantías_TTE_AS_PR!$D$12),$AS$84:$AY$95,6),(IF(LEFT(C75,SEARCH("-",C75,1)-1-1)="Quarterly",VLOOKUP(MONTH(Garantías_TTE_AS_PR!$D$12),$AS$84:$AY$95,5),(IF(LEFT(C75,SEARCH("-",C75,1)-1-1)="Monthly",VLOOKUP(MONTH(Garantías_TTE_AS_PR!$D$12),$AS$84:$AY$95,4),(IF(LEFT(C75,SEARCH("-",C75,1)-1-1)="Daily",VLOOKUP(MONTH(Garantías_TTE_AS_PR!$D$12),$AS$84:$AY$95,3),(IF(LEFT(C75,SEARCH("-",C75,1)-1-1)="Intraday",IF(O75=24,VLOOKUP(MONTH(Garantías_TTE_AS_PR!$D$12),$AS$84:$AY$95,3),VLOOKUP(MONTH(Garantías_TTE_AS_PR!$D$12),$AS$84:$AY$95,2)),""))))))))))) -> 1 | N75: =IF(Garantías_TTE_AS_PR!$D$8="Undefined - Peaje RLTB.6",$BE$5,$BE$6) -> 366 | O75: =Garantías_TTE_AS_PR!$D$18 ->  | P75: 2 | Q75: =IF(Garantías_TTE_AS_PR!$D$11="Firm",1,IF(Garantías_TTE_AS_PR!$D$11="Uninterruptible",1,1)) -> 1 | R75: =ROUND((((((I75+K75+$W$39)*M75*Q75))/N75+(J75+$X$39))*O75*G75*P75),2) ->  | S75: PVB exit to consumerUndefined - Peaje RLTB.6 | T75: =CONCATENATE("[((",I75," + ",$W$39," + ",K75,") x ",M75," x ",Q75,") / ",N75," + (",J75," + ",$X$39," x ",O75,")] x ",TEXT(G75,"#.##0")," x ",P75) -> [((1,410899 + 0,091544 + 0,000794) x 1 x 1) / 366 + (0,001626 + 0,000137 x )] x 0 x 2 | AR75: August | AS75: 8 | AT75: 6 | AU75: 1.7 | AV75: 1.3 | AW75: 1.2 | AX75: 1 | AY75: 1
A76: Individualized services | B76: PVB exit to consumer | C76: Annual - Peaje RLTB.6 | D76: =IF(Garantías_TTE_AS_PR!$D$10="","",Garantías_TTE_AS_PR!$D$10) ->  | E76: PVB exit to consumerAnnual - Peaje RLTB.6 | F76: [((Tfr+OCREG)x M x Cint) / den + (TV x D)] x Qa x FR | G76: =Garantías_TTE_AS_PR!$D$13 -> 0 | H76: =Garantías_TTE_AS_PR!$D$17 -> 0 | I76: 1.410899 | J76: 0.001626 | K76: 0.000794 | L76: 0 | M76: =IF(LEFT(C76,SEARCH("-",C76,1)-1-1)="Undefined",VLOOKUP(MONTH(Garantías_TTE_AS_PR!$D$12),$AS$84:$AY$95,7),(IF(LEFT(C76,SEARCH("-",C76,1)-1-1)="Annual",VLOOKUP(MONTH(Garantías_TTE_AS_PR!$D$12),$AS$84:$AY$95,6),(IF(LEFT(C76,SEARCH("-",C76,1)-1-1)="Quarterly",VLOOKUP(MONTH(Garantías_TTE_AS_PR!$D$12),$AS$84:$AY$95,5),(IF(LEFT(C76,SEARCH("-",C76,1)-1-1)="Monthly",VLOOKUP(MONTH(Garantías_TTE_AS_PR!$D$12),$AS$84:$AY$95,4),(IF(LEFT(C76,SEARCH("-",C76,1)-1-1)="Daily",VLOOKUP(MONTH(Garantías_TTE_AS_PR!$D$12),$AS$84:$AY$95,3),(IF(LEFT(C76,SEARCH("-",C76,1)-1-1)="Intraday",IF(O76=24,VLOOKUP(MONTH(Garantías_TTE_AS_PR!$D$12),$AS$84:$AY$95,3),VLOOKUP(MONTH(Garantías_TTE_AS_PR!$D$12),$AS$84:$AY$95,2)),""))))))))))) -> 1 | N76: =IF(Garantías_TTE_AS_PR!$D$8="Annual - Peaje RLTB.6",IFERROR(_xlfn.IFS(AND(Garantías_TTE_AS_PR!$D$12>=$BV$4,Garantías_TTE_AS_PR!$D$12<$BW$4),$BE$6,AND(Garantías_TTE_AS_PR!$D$12>=$BV$5,Garantías_TTE_AS_PR!$D$12<$BW$5),$BE$6,AND(Garantías_TTE_AS_PR!$D$12>=$BV$6,Garantías_TTE_AS_PR!$D$12<$BW$6),$BE$6,AND(Garantías_TTE_AS_PR!$D$12>=$BV$7,Garantías_TTE_AS_PR!$D$12<$BW$7),$BE$6,AND(Garantías_TTE_AS_PR!$D$12>=$BV$8,Garantías_TTE_AS_PR!$D$12<$BW$8),$BE$6),$BE$5),(IF(OR(YEAR(Garantías_TTE_AS_PR!$D$12)=2020,YEAR(Garantías_TTE_AS_PR!$D$12)=2024,YEAR(Garantías_TTE_AS_PR!$D$12)=2028,YEAR(Garantías_TTE_AS_PR!$D$12)=2032,YEAR(Garantías_TTE_AS_PR!$D$12)=2036,YEAR(Garantías_TTE_AS_PR!$D$12)=2040,YEAR(Garantías_TTE_AS_PR!$D$12)=2044,YEAR(Garantías_TTE_AS_PR!$D$12)=2048),$BE$6,$BE$5))) -> 365 | O76: =Garantías_TTE_AS_PR!$D$18 ->  | P76: 2 | Q76: =IF(Garantías_TTE_AS_PR!$D$11="Firm",1,IF(Garantías_TTE_AS_PR!$D$11="Uninterruptible",1,1)) -> 1 | S76: PVB exit to consumerAnnual - Peaje RLTB.6 | T76: [((1,410899 + 0,091544 + 0,000794) x 1 x 1) / 365 + (0,001626 + 0,000137 x )] x 0 x 2 | AR76: September | AS76: 9 | AT76: 6 | AU76: 1.7 | AV76: 1.3 | AW76: 1.2 | AX76: 1 | AY76: 1
A77: Individualized services | B77: PVB exit to consumer | C77: Quarterly - Peaje RLTB.6 | D77: =IF(Garantías_TTE_AS_PR!$D$10="","",Garantías_TTE_AS_PR!$D$10) ->  | E77: PVB exit to consumerQuarterly - Peaje RLTB.6 | F77: [((Tfr+OCREG)x M x Cint) / den + (TV x D)] x Qa x FR | G77: =Garantías_TTE_AS_PR!$D$13 -> 0 | H77: =Garantías_TTE_AS_PR!$D$17 -> 0 | I77: 1.410899 | J77: 0.001626 | K77: 0.000794 | L77: 0 | M77: =IF(LEFT(C77,SEARCH("-",C77,1)-1-1)="Undefined",VLOOKUP(MONTH(Garantías_TTE_AS_PR!$D$12),$AS$84:$AY$95,7),(IF(LEFT(C77,SEARCH("-",C77,1)-1-1)="Annual",VLOOKUP(MONTH(Garantías_TTE_AS_PR!$D$12),$AS$84:$AY$95,6),(IF(LEFT(C77,SEARCH("-",C77,1)-1-1)="Quarterly",VLOOKUP(MONTH(Garantías_TTE_AS_PR!$D$12),$AS$84:$AY$95,5),(IF(LEFT(C77,SEARCH("-",C77,1)-1-1)="Monthly",VLOOKUP(MONTH(Garantías_TTE_AS_PR!$D$12),$AS$84:$AY$95,4),(IF(LEFT(C77,SEARCH("-",C77,1)-1-1)="Daily",VLOOKUP(MONTH(Garantías_TTE_AS_PR!$D$12),$AS$84:$AY$95,3),(IF(LEFT(C77,SEARCH("-",C77,1)-1-1)="Intraday",IF(O77=24,VLOOKUP(MONTH(Garantías_TTE_AS_PR!$D$12),$AS$84:$AY$95,3),VLOOKUP(MONTH(Garantías_TTE_AS_PR!$D$12),$AS$84:$AY$95,2)),""))))))))))) -> 1.35 | N77: =IF(Garantías_TTE_AS_PR!$D$8="Quarterly - Peaje RLTB.6",IFERROR(_xlfn.IFS(AND(Garantías_TTE_AS_PR!$D$12>=$BX$4,Garantías_TTE_AS_PR!$D$12<$BY$4),$BE$6,AND(Garantías_TTE_AS_PR!$D$12>=$BX$5,Garantías_TTE_AS_PR!$D$12<$BY$5),$BE$6,AND(Garantías_TTE_AS_PR!$D$12>=$BX$6,Garantías_TTE_AS_PR!$D$12<$BY$6),$BE$6,AND(Garantías_TTE_AS_PR!$D$12>=$BX$7,Garantías_TTE_AS_PR!$D$12<$BY$7),$BE$6,AND(Garantías_TTE_AS_PR!$D$12>=$BX$8,Garantías_TTE_AS_PR!$D$12<$BY$8),$BE$6),$BE$5),(IF(OR(YEAR(Garantías_TTE_AS_PR!$D$12)=2020,YEAR(Garantías_TTE_AS_PR!$D$12)=2024,YEAR(Garantías_TTE_AS_PR!$D$12)=2028,YEAR(Garantías_TTE_AS_PR!$D$12)=2032,YEAR(Garantías_TTE_AS_PR!$D$12)=2036,YEAR(Garantías_TTE_AS_PR!$D$12)=2040,YEAR(Garantías_TTE_AS_PR!$D$12)=2044,YEAR(Garantías_TTE_AS_PR!$D$12)=2048),$BE$6,$BE$5))) -> 365 | O77: =Garantías_TTE_AS_PR!$D$18 ->  | P77: 2 | Q77: =IF(Garantías_TTE_AS_PR!$D$11="Firm",1,IF(Garantías_TTE_AS_PR!$D$11="Uninterruptible",1,1)) -> 1 | S77: PVB exit to consumerQuarterly - Peaje RLTB.6 | T77: [((1,410899 + 0,091544 + 0,000794) x 1,35 x 1) / 365 + (0,001626 + 0,000137 x )] x 0 x 2 | AR77: October | AS77: 10 | AT77: 6 | AU77: 1.7 | AV77: 1.3 | AW77: 1.2 | AX77: 1 | AY77: 1
A78: Individualized services | B78: PVB exit to consumer | C78: Monthly - Peaje RLTB.6 | D78: =IF(Garantías_TTE_AS_PR!$D$10="","",Garantías_TTE_AS_PR!$D$10) ->  | E78: PVB exit to consumerMonthly - Peaje RLTB.6 | F78: [((Tfr+OCREG)x M x Cint) / den + (TV x D)] x Qa x FR | G78: =Garantías_TTE_AS_PR!$D$13 -> 0 | H78: =Garantías_TTE_AS_PR!$D$17 -> 0 | I78: 1.410899 | J78: 0.001626 | K78: 0.000794 | L78: 0 | M78: =IF(LEFT(C78,SEARCH("-",C78,1)-1-1)="Undefined",VLOOKUP(MONTH(Garantías_TTE_AS_PR!$D$12),$AS$84:$AY$95,7),(IF(LEFT(C78,SEARCH("-",C78,1)-1-1)="Annual",VLOOKUP(MONTH(Garantías_TTE_AS_PR!$D$12),$AS$84:$AY$95,6),(IF(LEFT(C78,SEARCH("-",C78,1)-1-1)="Quarterly",VLOOKUP(MONTH(Garantías_TTE_AS_PR!$D$12),$AS$84:$AY$95,5),(IF(LEFT(C78,SEARCH("-",C78,1)-1-1)="Monthly",VLOOKUP(MONTH(Garantías_TTE_AS_PR!$D$12),$AS$84:$AY$95,4),(IF(LEFT(C78,SEARCH("-",C78,1)-1-1)="Daily",VLOOKUP(MONTH(Garantías_TTE_AS_PR!$D$12),$AS$84:$AY$95,3),(IF(LEFT(C78,SEARCH("-",C78,1)-1-1)="Intraday",IF(O78=24,VLOOKUP(MONTH(Garantías_TTE_AS_PR!$D$12),$AS$84:$AY$95,3),VLOOKUP(MONTH(Garantías_TTE_AS_PR!$D$12),$AS$84:$AY$95,2)),""))))))))))) -> 1.73 | N78: =IF(Garantías_TTE_AS_PR!$D$8="Monthly - Peaje RLTB.6",IFERROR(_xlfn.IFS(AND(Garantías_TTE_AS_PR!$D$12>=$BX$4,Garantías_TTE_AS_PR!$D$12<$BY$4),$BE$6,AND(Garantías_TTE_AS_PR!$D$12>=$BX$5,Garantías_TTE_AS_PR!$D$12<$BY$5),$BE$6,AND(Garantías_TTE_AS_PR!$D$12>=$BX$6,Garantías_TTE_AS_PR!$D$12<$BY$6),$BE$6,AND(Garantías_TTE_AS_PR!$D$12>=$BX$7,Garantías_TTE_AS_PR!$D$12<$BY$7),$BE$6,AND(Garantías_TTE_AS_PR!$D$12>=$BX$8,Garantías_TTE_AS_PR!$D$12<$BY$8),$BE$6),$BE$5),(IF(OR(YEAR(Garantías_TTE_AS_PR!$D$12)=2020,YEAR(Garantías_TTE_AS_PR!$D$12)=2024,YEAR(Garantías_TTE_AS_PR!$D$12)=2028,YEAR(Garantías_TTE_AS_PR!$D$12)=2032,YEAR(Garantías_TTE_AS_PR!$D$12)=2036,YEAR(Garantías_TTE_AS_PR!$D$12)=2040,YEAR(Garantías_TTE_AS_PR!$D$12)=2044,YEAR(Garantías_TTE_AS_PR!$D$12)=2048),$BE$6,$BE$5))) -> 365 | O78: =Garantías_TTE_AS_PR!$D$18 ->  | P78: 1 | Q78: =IF(Garantías_TTE_AS_PR!$D$11="Firm",1,IF(Garantías_TTE_AS_PR!$D$11="Uninterruptible",1,1)) -> 1 | S78: PVB exit to consumerMonthly - Peaje RLTB.6 | T78: [((1,410899 + 0,091544 + 0,000794) x 1,73 x 1) / 365 + (0,001626 + 0,000137 x )] x 0 x 1 | AR78: November | AS78: 11 | AT78: 6 | AU78: 1.7 | AV78: 1.3 | AW78: 1.2 | AX78: 1 | AY78: 1
A79: Individualized services | B79: PVB exit to consumer | C79: Daily - Peaje RLTB.6 | D79: =IF(Garantías_TTE_AS_PR!$D$10="","",Garantías_TTE_AS_PR!$D$10) ->  | E79: PVB exit to consumerDaily - Peaje RLTB.6 | F79: [((Tfr+OCREG)x M x Cint) / den + (TV x D)] x Qa x FR | G79: =Garantías_TTE_AS_PR!$D$13 -> 0 | H79: =Garantías_TTE_AS_PR!$D$17 -> 0 | I79: 1.410899 | J79: 0.001626 | K79: 0.000794 | L79: 0 | M79: =IF(LEFT(C79,SEARCH("-",C79,1)-1-1)="Undefined",VLOOKUP(MONTH(Garantías_TTE_AS_PR!$D$12),$AS$84:$AY$95,7),(IF(LEFT(C79,SEARCH("-",C79,1)-1-1)="Annual",VLOOKUP(MONTH(Garantías_TTE_AS_PR!$D$12),$AS$84:$AY$95,6),(IF(LEFT(C79,SEARCH("-",C79,1)-1-1)="Quarterly",VLOOKUP(MONTH(Garantías_TTE_AS_PR!$D$12),$AS$84:$AY$95,5),(IF(LEFT(C79,SEARCH("-",C79,1)-1-1)="Monthly",VLOOKUP(MONTH(Garantías_TTE_AS_PR!$D$12),$AS$84:$AY$95,4),(IF(LEFT(C79,SEARCH("-",C79,1)-1-1)="Daily",VLOOKUP(MONTH(Garantías_TTE_AS_PR!$D$12),$AS$84:$AY$95,3),(IF(LEFT(C79,SEARCH("-",C79,1)-1-1)="Intraday",IF(O79=24,VLOOKUP(MONTH(Garantías_TTE_AS_PR!$D$12),$AS$84:$AY$95,3),VLOOKUP(MONTH(Garantías_TTE_AS_PR!$D$12),$AS$84:$AY$95,2)),""))))))))))) -> 2.13 | N79: =IF(Garantías_TTE_AS_PR!$D$8="Daily - Peaje RLTB.6",IFERROR(_xlfn.IFS(AND(Garantías_TTE_AS_PR!$D$12>=$BX$4,Garantías_TTE_AS_PR!$D$12<$BY$4),$BE$6,AND(Garantías_TTE_AS_PR!$D$12>=$BX$5,Garantías_TTE_AS_PR!$D$12<$BY$5),$BE$6,AND(Garantías_TTE_AS_PR!$D$12>=$BX$6,Garantías_TTE_AS_PR!$D$12<$BY$6),$BE$6,AND(Garantías_TTE_AS_PR!$D$12>=$BX$7,Garantías_TTE_AS_PR!$D$12<$BY$7),$BE$6,AND(Garantías_TTE_AS_PR!$D$12>=$BX$8,Garantías_TTE_AS_PR!$D$12<$BY$8),$BE$6),$BE$5),(IF(OR(YEAR(Garantías_TTE_AS_PR!$D$12)=2020,YEAR(Garantías_TTE_AS_PR!$D$12)=2024,YEAR(Garantías_TTE_AS_PR!$D$12)=2028,YEAR(Garantías_TTE_AS_PR!$D$12)=2032,YEAR(Garantías_TTE_AS_PR!$D$12)=2036,YEAR(Garantías_TTE_AS_PR!$D$12)=2040,YEAR(Garantías_TTE_AS_PR!$D$12)=2044,YEAR(Garantías_TTE_AS_PR!$D$12)=2048),$BE$6,$BE$5))) -> 365 | O79: =Garantías_TTE_AS_PR!$D$18 ->  | P79: 1 | Q79: =IF(Garantías_TTE_AS_PR!$D$11="Firm",1,IF(Garantías_TTE_AS_PR!$D$11="Uninterruptible",1,1)) -> 1 | S79: PVB exit to consumerDaily - Peaje RLTB.6 | T79: [((1,410899 + 0,091544 + 0,000794) x 2,13 x 1) / 365 + (0,001626 + 0,000137 x )] x 0 x 1 | AR79: December | AS79: 12 | AT79: 6 | AU79: 1.7 | AV79: 1.3 | AW79: 1.2 | AX79: 1 | AY79: 1
A80: Individualized services | B80: PVB exit to consumer | C80: Intraday - Peaje RLTB.6 | D80: =IF(Garantías_TTE_AS_PR!$D$10="","",Garantías_TTE_AS_PR!$D$10) ->  | E80: PVB exit to consumerIntraday - Peaje RLTB.6 | F80: [((Tfr+OCREG) x M x Cint) x (Qa x 24 / H) x H / den + (TV x Qa)] x FR | G80: =Garantías_TTE_AS_PR!$D$13 -> 0 | H80: =Garantías_TTE_AS_PR!$D$17 -> 0 | I80: 1.410899 | J80: 0.001626 | K80: 0.000794 | L80: 0 | M80: =IF(LEFT(C80,SEARCH("-",C80,1)-1-1)="Undefined",VLOOKUP(MONTH(Garantías_TTE_AS_PR!$D$12),$AS$84:$AY$95,7),(IF(LEFT(C80,SEARCH("-",C80,1)-1-1)="Annual",VLOOKUP(MONTH(Garantías_TTE_AS_PR!$D$12),$AS$84:$AY$95,6),(IF(LEFT(C80,SEARCH("-",C80,1)-1-1)="Quarterly",VLOOKUP(MONTH(Garantías_TTE_AS_PR!$D$12),$AS$84:$AY$95,5),(IF(LEFT(C80,SEARCH("-",C80,1)-1-1)="Monthly",VLOOKUP(MONTH(Garantías_TTE_AS_PR!$D$12),$AS$84:$AY$95,4),(IF(LEFT(C80,SEARCH("-",C80,1)-1-1)="Daily",VLOOKUP(MONTH(Garantías_TTE_AS_PR!$D$12),$AS$84:$AY$95,3),(IF(LEFT(C80,SEARCH("-",C80,1)-1-1)="Intraday",IF(O80=24,VLOOKUP(MONTH(Garantías_TTE_AS_PR!$D$12),$AS$84:$AY$95,3),VLOOKUP(MONTH(Garantías_TTE_AS_PR!$D$12),$AS$84:$AY$95,2)),""))))))))))) -> 4.54 | N80: =IF(Garantías_TTE_AS_PR!$D$8="Intraday - Peaje RLTB.6",IFERROR(_xlfn.IFS(AND(Garantías_TTE_AS_PR!$D$12>=$BX$4,Garantías_TTE_AS_PR!$D$12<$BY$4),$BE$8,AND(Garantías_TTE_AS_PR!$D$12>=$BX$5,Garantías_TTE_AS_PR!$D$12<$BY$5),$BE$8,AND(Garantías_TTE_AS_PR!$D$12>=$BX$6,Garantías_TTE_AS_PR!$D$12<$BY$6),$BE$8,AND(Garantías_TTE_AS_PR!$D$12>=$BX$7,Garantías_TTE_AS_PR!$D$12<$BY$7),$BE$8,AND(Garantías_TTE_AS_PR!$D$12>=$BX$8,Garantías_TTE_AS_PR!$D$12<$BY$8),$BE$8),$BE$7),(IF(OR(YEAR(Garantías_TTE_AS_PR!$D$12)=2020,YEAR(Garantías_TTE_AS_PR!$D$12)=2024,YEAR(Garantías_TTE_AS_PR!$D$12)=2028,YEAR(Garantías_TTE_AS_PR!$D$12)=2032,YEAR(Garantías_TTE_AS_PR!$D$12)=2036,YEAR(Garantías_TTE_AS_PR!$D$12)=2040,YEAR(Garantías_TTE_AS_PR!$D$12)=2044,YEAR(Garantías_TTE_AS_PR!$D$12)=2048),$BE$8,$BE$7))) -> 8760 | O80: =Garantías_TTE_AS_PR!$D$9 -> 0 | P80: 1 | Q80: =IF(Garantías_TTE_AS_PR!$D$11="Firm",1,IF(Garantías_TTE_AS_PR!$D$11="Uninterruptible",1,1)) -> 1 | R80: =ROUND((((I80+K80+$W$39)*M80*Q80+H80)/(N80/24)+(J80+$X$39))*G80*P80,2) -> 0 | S80: PVB exit to consumerIntraday - Peaje RLTB.6 | T80: =CONCATENATE("[((",I80," + ",$W$39," + ",K80,") x ",M80,") x (",Q80," / ",N80," x 24 / ",O80,") x ",O80," / ",N80," + (",J80," + ",$X$39," x ",O80,")] x ",P80) -> [((1,410899 + 0,091544 + 0,000794) x 4,54) x (1 / 8760 x 24 / 0) x 0 / 8760 + (0,001626 + 0,000137 x 0)] x 1
A81: Individualized services | B81: PVB exit to consumer | C81: Undefined - Peaje RLTA.6 | D81: =IF(Garantías_TTE_AS_PR!$D$10="","",Garantías_TTE_AS_PR!$D$10) ->  | E81: PVB exit to consumerUndefined - Peaje RLTA.6 | F81: [((Tfr+OCREG)x M x Cint) / den + (TV x D)] x Qa x FR | G81: =Garantías_TTE_AS_PR!$D$13 -> 0 | H81: =Garantías_TTE_AS_PR!$D$17 -> 0 | I81: 1.199935 | J81: 0.001413 | K81: 0.000794 | L81: 0 | M81: =IF(LEFT(C81,SEARCH("-",C81,1)-1-1)="Undefined",VLOOKUP(MONTH(Garantías_TTE_AS_PR!$D$12),$AS$84:$AY$95,7),(IF(LEFT(C81,SEARCH("-",C81,1)-1-1)="Annual",VLOOKUP(MONTH(Garantías_TTE_AS_PR!$D$12),$AS$84:$AY$95,6),(IF(LEFT(C81,SEARCH("-",C81,1)-1-1)="Quarterly",VLOOKUP(MONTH(Garantías_TTE_AS_PR!$D$12),$AS$84:$AY$95,5),(IF(LEFT(C81,SEARCH("-",C81,1)-1-1)="Monthly",VLOOKUP(MONTH(Garantías_TTE_AS_PR!$D$12),$AS$84:$AY$95,4),(IF(LEFT(C81,SEARCH("-",C81,1)-1-1)="Daily",VLOOKUP(MONTH(Garantías_TTE_AS_PR!$D$12),$AS$84:$AY$95,3),(IF(LEFT(C81,SEARCH("-",C81,1)-1-1)="Intraday",IF(O81=24,VLOOKUP(MONTH(Garantías_TTE_AS_PR!$D$12),$AS$84:$AY$95,3),VLOOKUP(MONTH(Garantías_TTE_AS_PR!$D$12),$AS$84:$AY$95,2)),""))))))))))) -> 1 | N81: =IF(Garantías_TTE_AS_PR!$D$8="Undefined - Peaje RLTA.6",$BE$5,$BE$6) -> 366 | O81: =Garantías_TTE_AS_PR!$D$18 ->  | P81: 2 | Q81: =IF(Garantías_TTE_AS_PR!$D$11="Firm",1,IF(Garantías_TTE_AS_PR!$D$11="Uninterruptible",1,1)) -> 1 | R81: =ROUND((((((I81+K81+$W$39)*M81*Q81))/N81+(J81+$X$39))*O81*G81*P81),2) ->  | S81: PVB exit to consumerUndefined - Peaje RLTA.6 | T81: =CONCATENATE("[((",I81," + ",$W$39," + ",K81,") x ",M81," x ",Q81,") / ",N81," + (",J81," + ",$X$39," x ",O81,")] x ",TEXT(G81,"#.##0")," x ",P81) -> [((1,199935 + 0,091544 + 0,000794) x 1 x 1) / 366 + (0,001413 + 0,000137 x )] x 0 x 2 | AQ81: Administración PEAJES. Salida de Transporte a distribución
A82: Individualized services | B82: PVB exit to consumer | C82: Annual - Peaje RLTA.6 | D82: =IF(Garantías_TTE_AS_PR!$D$10="","",Garantías_TTE_AS_PR!$D$10) ->  | E82: PVB exit to consumerAnnual - Peaje RLTA.6 | F82: [((Tfr+OCREG)x M x Cint) / den + (TV x D)] x Qa x FR | G82: =Garantías_TTE_AS_PR!$D$13 -> 0 | H82: =Garantías_TTE_AS_PR!$D$17 -> 0 | I82: 1.199935 | J82: 0.001413 | K82: 0.000794 | L82: 0 | M82: =IF(LEFT(C82,SEARCH("-",C82,1)-1-1)="Undefined",VLOOKUP(MONTH(Garantías_TTE_AS_PR!$D$12),$AS$84:$AY$95,7),(IF(LEFT(C82,SEARCH("-",C82,1)-1-1)="Annual",VLOOKUP(MONTH(Garantías_TTE_AS_PR!$D$12),$AS$84:$AY$95,6),(IF(LEFT(C82,SEARCH("-",C82,1)-1-1)="Quarterly",VLOOKUP(MONTH(Garantías_TTE_AS_PR!$D$12),$AS$84:$AY$95,5),(IF(LEFT(C82,SEARCH("-",C82,1)-1-1)="Monthly",VLOOKUP(MONTH(Garantías_TTE_AS_PR!$D$12),$AS$84:$AY$95,4),(IF(LEFT(C82,SEARCH("-",C82,1)-1-1)="Daily",VLOOKUP(MONTH(Garantías_TTE_AS_PR!$D$12),$AS$84:$AY$95,3),(IF(LEFT(C82,SEARCH("-",C82,1)-1-1)="Intraday",IF(O82=24,VLOOKUP(MONTH(Garantías_TTE_AS_PR!$D$12),$AS$84:$AY$95,3),VLOOKUP(MONTH(Garantías_TTE_AS_PR!$D$12),$AS$84:$AY$95,2)),""))))))))))) -> 1 | N82: =IF(Garantías_TTE_AS_PR!$D$8="Annual - Peaje RLTA.6",IFERROR(_xlfn.IFS(AND(Garantías_TTE_AS_PR!$D$12>=$BV$4,Garantías_TTE_AS_PR!$D$12<$BW$4),$BE$6,AND(Garantías_TTE_AS_PR!$D$12>=$BV$5,Garantías_TTE_AS_PR!$D$12<$BW$5),$BE$6,AND(Garantías_TTE_AS_PR!$D$12>=$BV$6,Garantías_TTE_AS_PR!$D$12<$BW$6),$BE$6,AND(Garantías_TTE_AS_PR!$D$12>=$BV$7,Garantías_TTE_AS_PR!$D$12<$BW$7),$BE$6,AND(Garantías_TTE_AS_PR!$D$12>=$BV$8,Garantías_TTE_AS_PR!$D$12<$BW$8),$BE$6),$BE$5),(IF(OR(YEAR(Garantías_TTE_AS_PR!$D$12)=2020,YEAR(Garantías_TTE_AS_PR!$D$12)=2024,YEAR(Garantías_TTE_AS_PR!$D$12)=2028,YEAR(Garantías_TTE_AS_PR!$D$12)=2032,YEAR(Garantías_TTE_AS_PR!$D$12)=2036,YEAR(Garantías_TTE_AS_PR!$D$12)=2040,YEAR(Garantías_TTE_AS_PR!$D$12)=2044,YEAR(Garantías_TTE_AS_PR!$D$12)=2048),$BE$6,$BE$5))) -> 365 | O82: =Garantías_TTE_AS_PR!$D$18 ->  | P82: 2 | Q82: =IF(Garantías_TTE_AS_PR!$D$11="Firm",1,IF(Garantías_TTE_AS_PR!$D$11="Uninterruptible",1,1)) -> 1 | S82: PVB exit to consumerAnnual - Peaje RLTA.6 | T82: [((1,199935 + 0,091544 + 0,000794) x 1 x 1) / 365 + (0,001413 + 0,000137 x )] x 0 x 2 | AQ82: Productos estándar capacidad | AR82: Mes | AT82: Intraday (05) | AU82: Daily (04) | AV82: Montly (03) | AW82: Quarterly (02) | AX82: Annual (01) | AY82: Undefined
A83: Individualized services | B83: PVB exit to consumer | C83: Quarterly - Peaje RLTA.6 | D83: =IF(Garantías_TTE_AS_PR!$D$10="","",Garantías_TTE_AS_PR!$D$10) ->  | E83: PVB exit to consumerQuarterly - Peaje RLTA.6 | F83: [((Tfr+OCREG)x M x Cint) / den + (TV x D)] x Qa x FR | G83: =Garantías_TTE_AS_PR!$D$13 -> 0 | H83: =Garantías_TTE_AS_PR!$D$17 -> 0 | I83: 1.199935 | J83: 0.001413 | K83: 0.000794 | L83: 0 | M83: =IF(LEFT(C83,SEARCH("-",C83,1)-1-1)="Undefined",VLOOKUP(MONTH(Garantías_TTE_AS_PR!$D$12),$AS$84:$AY$95,7),(IF(LEFT(C83,SEARCH("-",C83,1)-1-1)="Annual",VLOOKUP(MONTH(Garantías_TTE_AS_PR!$D$12),$AS$84:$AY$95,6),(IF(LEFT(C83,SEARCH("-",C83,1)-1-1)="Quarterly",VLOOKUP(MONTH(Garantías_TTE_AS_PR!$D$12),$AS$84:$AY$95,5),(IF(LEFT(C83,SEARCH("-",C83,1)-1-1)="Monthly",VLOOKUP(MONTH(Garantías_TTE_AS_PR!$D$12),$AS$84:$AY$95,4),(IF(LEFT(C83,SEARCH("-",C83,1)-1-1)="Daily",VLOOKUP(MONTH(Garantías_TTE_AS_PR!$D$12),$AS$84:$AY$95,3),(IF(LEFT(C83,SEARCH("-",C83,1)-1-1)="Intraday",IF(O83=24,VLOOKUP(MONTH(Garantías_TTE_AS_PR!$D$12),$AS$84:$AY$95,3),VLOOKUP(MONTH(Garantías_TTE_AS_PR!$D$12),$AS$84:$AY$95,2)),""))))))))))) -> 1.35 | N83: =IF(Garantías_TTE_AS_PR!$D$8="Quarterly - Peaje RLTA.6",IFERROR(_xlfn.IFS(AND(Garantías_TTE_AS_PR!$D$12>=$BX$4,Garantías_TTE_AS_PR!$D$12<$BY$4),$BE$6,AND(Garantías_TTE_AS_PR!$D$12>=$BX$5,Garantías_TTE_AS_PR!$D$12<$BY$5),$BE$6,AND(Garantías_TTE_AS_PR!$D$12>=$BX$6,Garantías_TTE_AS_PR!$D$12<$BY$6),$BE$6,AND(Garantías_TTE_AS_PR!$D$12>=$BX$7,Garantías_TTE_AS_PR!$D$12<$BY$7),$BE$6,AND(Garantías_TTE_AS_PR!$D$12>=$BX$8,Garantías_TTE_AS_PR!$D$12<$BY$8),$BE$6),$BE$5),(IF(OR(YEAR(Garantías_TTE_AS_PR!$D$12)=2020,YEAR(Garantías_TTE_AS_PR!$D$12)=2024,YEAR(Garantías_TTE_AS_PR!$D$12)=2028,YEAR(Garantías_TTE_AS_PR!$D$12)=2032,YEAR(Garantías_TTE_AS_PR!$D$12)=2036,YEAR(Garantías_TTE_AS_PR!$D$12)=2040,YEAR(Garantías_TTE_AS_PR!$D$12)=2044,YEAR(Garantías_TTE_AS_PR!$D$12)=2048),$BE$6,$BE$5))) -> 365 | O83: =Garantías_TTE_AS_PR!$D$18 ->  | P83: 2 | Q83: =IF(Garantías_TTE_AS_PR!$D$11="Firm",1,IF(Garantías_TTE_AS_PR!$D$11="Uninterruptible",1,1)) -> 1 | S83: PVB exit to consumerQuarterly - Peaje RLTA.6 | T83: [((1,199935 + 0,091544 + 0,000794) x 1,35 x 1) / 365 + (0,001413 + 0,000137 x )] x 0 x 2
A84: Individualized services | B84: PVB exit to consumer | C84: Monthly - Peaje RLTA.6 | D84: =IF(Garantías_TTE_AS_PR!$D$10="","",Garantías_TTE_AS_PR!$D$10) ->  | E84: PVB exit to consumerMonthly - Peaje RLTA.6 | F84: [((Tfr+OCREG)x M x Cint) / den + (TV x D)] x Qa x FR | G84: =Garantías_TTE_AS_PR!$D$13 -> 0 | H84: =Garantías_TTE_AS_PR!$D$17 -> 0 | I84: 1.199935 | J84: 0.001413 | K84: 0.000794 | L84: 0 | M84: =IF(LEFT(C84,SEARCH("-",C84,1)-1-1)="Undefined",VLOOKUP(MONTH(Garantías_TTE_AS_PR!$D$12),$AS$84:$AY$95,7),(IF(LEFT(C84,SEARCH("-",C84,1)-1-1)="Annual",VLOOKUP(MONTH(Garantías_TTE_AS_PR!$D$12),$AS$84:$AY$95,6),(IF(LEFT(C84,SEARCH("-",C84,1)-1-1)="Quarterly",VLOOKUP(MONTH(Garantías_TTE_AS_PR!$D$12),$AS$84:$AY$95,5),(IF(LEFT(C84,SEARCH("-",C84,1)-1-1)="Monthly",VLOOKUP(MONTH(Garantías_TTE_AS_PR!$D$12),$AS$84:$AY$95,4),(IF(LEFT(C84,SEARCH("-",C84,1)-1-1)="Daily",VLOOKUP(MONTH(Garantías_TTE_AS_PR!$D$12),$AS$84:$AY$95,3),(IF(LEFT(C84,SEARCH("-",C84,1)-1-1)="Intraday",IF(O84=24,VLOOKUP(MONTH(Garantías_TTE_AS_PR!$D$12),$AS$84:$AY$95,3),VLOOKUP(MONTH(Garantías_TTE_AS_PR!$D$12),$AS$84:$AY$95,2)),""))))))))))) -> 1.73 | N84: =IF(Garantías_TTE_AS_PR!$D$8="Monthly - Peaje RLTA.6",IFERROR(_xlfn.IFS(AND(Garantías_TTE_AS_PR!$D$12>=$BX$4,Garantías_TTE_AS_PR!$D$12<$BY$4),$BE$6,AND(Garantías_TTE_AS_PR!$D$12>=$BX$5,Garantías_TTE_AS_PR!$D$12<$BY$5),$BE$6,AND(Garantías_TTE_AS_PR!$D$12>=$BX$6,Garantías_TTE_AS_PR!$D$12<$BY$6),$BE$6,AND(Garantías_TTE_AS_PR!$D$12>=$BX$7,Garantías_TTE_AS_PR!$D$12<$BY$7),$BE$6,AND(Garantías_TTE_AS_PR!$D$12>=$BX$8,Garantías_TTE_AS_PR!$D$12<$BY$8),$BE$6),$BE$5),(IF(OR(YEAR(Garantías_TTE_AS_PR!$D$12)=2020,YEAR(Garantías_TTE_AS_PR!$D$12)=2024,YEAR(Garantías_TTE_AS_PR!$D$12)=2028,YEAR(Garantías_TTE_AS_PR!$D$12)=2032,YEAR(Garantías_TTE_AS_PR!$D$12)=2036,YEAR(Garantías_TTE_AS_PR!$D$12)=2040,YEAR(Garantías_TTE_AS_PR!$D$12)=2044,YEAR(Garantías_TTE_AS_PR!$D$12)=2048),$BE$6,$BE$5))) -> 365 | O84: =Garantías_TTE_AS_PR!$D$18 ->  | P84: 1 | Q84: =IF(Garantías_TTE_AS_PR!$D$11="Firm",1,IF(Garantías_TTE_AS_PR!$D$11="Uninterruptible",1,1)) -> 1 | S84: PVB exit to consumerMonthly - Peaje RLTA.6 | T84: [((1,199935 + 0,091544 + 0,000794) x 1,73 x 1) / 365 + (0,001413 + 0,000137 x )] x 0 x 1 | AR84: January | AS84: 1 | AT84: 4.54 | AU84: 2.13 | AV84: 1.73 | AW84: 1.35 | AX84: 1 | AY84: 1
A85: Individualized services | B85: PVB exit to consumer | C85: Daily - Peaje RLTA.6 | D85: =IF(Garantías_TTE_AS_PR!$D$10="","",Garantías_TTE_AS_PR!$D$10) ->  | E85: PVB exit to consumerDaily - Peaje RLTA.6 | F85: [((Tfr+OCREG)x M x Cint) / den + (TV x D)] x Qa x FR | G85: =Garantías_TTE_AS_PR!$D$13 -> 0 | H85: =Garantías_TTE_AS_PR!$D$17 -> 0 | I85: 1.199935 | J85: 0.001413 | K85: 0.000794 | L85: 0 | M85: =IF(LEFT(C85,SEARCH("-",C85,1)-1-1)="Undefined",VLOOKUP(MONTH(Garantías_TTE_AS_PR!$D$12),$AS$84:$AY$95,7),(IF(LEFT(C85,SEARCH("-",C85,1)-1-1)="Annual",VLOOKUP(MONTH(Garantías_TTE_AS_PR!$D$12),$AS$84:$AY$95,6),(IF(LEFT(C85,SEARCH("-",C85,1)-1-1)="Quarterly",VLOOKUP(MONTH(Garantías_TTE_AS_PR!$D$12),$AS$84:$AY$95,5),(IF(LEFT(C85,SEARCH("-",C85,1)-1-1)="Monthly",VLOOKUP(MONTH(Garantías_TTE_AS_PR!$D$12),$AS$84:$AY$95,4),(IF(LEFT(C85,SEARCH("-",C85,1)-1-1)="Daily",VLOOKUP(MONTH(Garantías_TTE_AS_PR!$D$12),$AS$84:$AY$95,3),(IF(LEFT(C85,SEARCH("-",C85,1)-1-1)="Intraday",IF(O85=24,VLOOKUP(MONTH(Garantías_TTE_AS_PR!$D$12),$AS$84:$AY$95,3),VLOOKUP(MONTH(Garantías_TTE_AS_PR!$D$12),$AS$84:$AY$95,2)),""))))))))))) -> 2.13 | N85: =IF(Garantías_TTE_AS_PR!$D$8="Daily - Peaje RLTA.6",IFERROR(_xlfn.IFS(AND(Garantías_TTE_AS_PR!$D$12>=$BX$4,Garantías_TTE_AS_PR!$D$12<$BY$4),$BE$6,AND(Garantías_TTE_AS_PR!$D$12>=$BX$5,Garantías_TTE_AS_PR!$D$12<$BY$5),$BE$6,AND(Garantías_TTE_AS_PR!$D$12>=$BX$6,Garantías_TTE_AS_PR!$D$12<$BY$6),$BE$6,AND(Garantías_TTE_AS_PR!$D$12>=$BX$7,Garantías_TTE_AS_PR!$D$12<$BY$7),$BE$6,AND(Garantías_TTE_AS_PR!$D$12>=$BX$8,Garantías_TTE_AS_PR!$D$12<$BY$8),$BE$6),$BE$5),(IF(OR(YEAR(Garantías_TTE_AS_PR!$D$12)=2020,YEAR(Garantías_TTE_AS_PR!$D$12)=2024,YEAR(Garantías_TTE_AS_PR!$D$12)=2028,YEAR(Garantías_TTE_AS_PR!$D$12)=2032,YEAR(Garantías_TTE_AS_PR!$D$12)=2036,YEAR(Garantías_TTE_AS_PR!$D$12)=2040,YEAR(Garantías_TTE_AS_PR!$D$12)=2044,YEAR(Garantías_TTE_AS_PR!$D$12)=2048),$BE$6,$BE$5))) -> 365 | O85: =Garantías_TTE_AS_PR!$D$18 ->  | P85: 1 | Q85: =IF(Garantías_TTE_AS_PR!$D$11="Firm",1,IF(Garantías_TTE_AS_PR!$D$11="Uninterruptible",1,1)) -> 1 | S85: PVB exit to consumerDaily - Peaje RLTA.6 | T85: [((1,199935 + 0,091544 + 0,000794) x 2,13 x 1) / 365 + (0,001413 + 0,000137 x )] x 0 x 1 | AR85: February | AS85: 2 | AT85: 3.68 | AU85: 1.73 | AV85: 1.41 | AW85: 1.35 | AX85: 1 | AY85: 1
A86: Individualized services | B86: PVB exit to consumer | C86: Intraday - Peaje RLTA.6 | D86: =IF(Garantías_TTE_AS_PR!$D$10="","",Garantías_TTE_AS_PR!$D$10) ->  | E86: PVB exit to consumerIntraday - Peaje RLTA.6 | F86: [((Tfr+OCREG) x M x Cint) x (Qa x 24 / H) x H / den + (TV x Qa)] x FR | G86: =Garantías_TTE_AS_PR!$D$13 -> 0 | H86: =Garantías_TTE_AS_PR!$D$17 -> 0 | I86: 1.199935 | J86: 0.001413 | K86: 0.000794 | L86: 0 | M86: =IF(LEFT(C86,SEARCH("-",C86,1)-1-1)="Undefined",VLOOKUP(MONTH(Garantías_TTE_AS_PR!$D$12),$AS$84:$AY$95,7),(IF(LEFT(C86,SEARCH("-",C86,1)-1-1)="Annual",VLOOKUP(MONTH(Garantías_TTE_AS_PR!$D$12),$AS$84:$AY$95,6),(IF(LEFT(C86,SEARCH("-",C86,1)-1-1)="Quarterly",VLOOKUP(MONTH(Garantías_TTE_AS_PR!$D$12),$AS$84:$AY$95,5),(IF(LEFT(C86,SEARCH("-",C86,1)-1-1)="Monthly",VLOOKUP(MONTH(Garantías_TTE_AS_PR!$D$12),$AS$84:$AY$95,4),(IF(LEFT(C86,SEARCH("-",C86,1)-1-1)="Daily",VLOOKUP(MONTH(Garantías_TTE_AS_PR!$D$12),$AS$84:$AY$95,3),(IF(LEFT(C86,SEARCH("-",C86,1)-1-1)="Intraday",IF(O86=24,VLOOKUP(MONTH(Garantías_TTE_AS_PR!$D$12),$AS$84:$AY$95,3),VLOOKUP(MONTH(Garantías_TTE_AS_PR!$D$12),$AS$84:$AY$95,2)),""))))))))))) -> 4.54 | N86: =IF(Garantías_TTE_AS_PR!$D$8="Intraday - Peaje RLTA.6",IFERROR(_xlfn.IFS(AND(Garantías_TTE_AS_PR!$D$12>=$BX$4,Garantías_TTE_AS_PR!$D$12<$BY$4),$BE$8,AND(Garantías_TTE_AS_PR!$D$12>=$BX$5,Garantías_TTE_AS_PR!$D$12<$BY$5),$BE$8,AND(Garantías_TTE_AS_PR!$D$12>=$BX$6,Garantías_TTE_AS_PR!$D$12<$BY$6),$BE$8,AND(Garantías_TTE_AS_PR!$D$12>=$BX$7,Garantías_TTE_AS_PR!$D$12<$BY$7),$BE$8,AND(Garantías_TTE_AS_PR!$D$12>=$BX$8,Garantías_TTE_AS_PR!$D$12<$BY$8),$BE$8),$BE$7),(IF(OR(YEAR(Garantías_TTE_AS_PR!$D$12)=2020,YEAR(Garantías_TTE_AS_PR!$D$12)=2024,YEAR(Garantías_TTE_AS_PR!$D$12)=2028,YEAR(Garantías_TTE_AS_PR!$D$12)=2032,YEAR(Garantías_TTE_AS_PR!$D$12)=2036,YEAR(Garantías_TTE_AS_PR!$D$12)=2040,YEAR(Garantías_TTE_AS_PR!$D$12)=2044,YEAR(Garantías_TTE_AS_PR!$D$12)=2048),$BE$8,$BE$7))) -> 8760 | O86: =Garantías_TTE_AS_PR!$D$9 -> 0 | P86: 1 | Q86: =IF(Garantías_TTE_AS_PR!$D$11="Firm",1,IF(Garantías_TTE_AS_PR!$D$11="Uninterruptible",1,1)) -> 1 | R86: =ROUND((((I86+K86+$W$39)*M86*Q86+H86)/(N86/24)+(J86+$X$39))*G86*P86,2) -> 0 | S86: PVB exit to consumerIntraday - Peaje RLTA.6 | T86: =CONCATENATE("[((",I86," + ",$W$39," + ",K86,") x ",M86,") x (",Q86," / ",N86," x 24 / ",O86,") x ",O86," / ",N86," + (",J86," + ",$X$39," x ",O86,")] x ",P86) -> [((1,199935 + 0,091544 + 0,000794) x 4,54) x (1 / 8760 x 24 / 0) x 0 / 8760 + (0,001413 + 0,000137 x 0)] x 1 | AR86: March | AS86: 3 | AT86: 3.51 | AU86: 1.65 | AV86: 1.34 | AW86: 1.35 | AX86: 1 | AY86: 1
A87: Individualized services | B87: PVB exit to consumer | C87: Undefined - Peaje RLTB.7 | D87: =IF(Garantías_TTE_AS_PR!$D$10="","",Garantías_TTE_AS_PR!$D$10) ->  | E87: PVB exit to consumerUndefined - Peaje RLTB.7 | F87: [((Tfr+OCREG)x M x Cint) / den + (TV x D)] x Qa x FR | G87: =Garantías_TTE_AS_PR!$D$13 -> 0 | H87: =Garantías_TTE_AS_PR!$D$17 -> 0 | I87: 0.802414 | J87: 0.001079 | K87: 0.000248 | L87: 0 | M87: =IF(LEFT(C87,SEARCH("-",C87,1)-1-1)="Undefined",VLOOKUP(MONTH(Garantías_TTE_AS_PR!$D$12),$AS$84:$AY$95,7),(IF(LEFT(C87,SEARCH("-",C87,1)-1-1)="Annual",VLOOKUP(MONTH(Garantías_TTE_AS_PR!$D$12),$AS$84:$AY$95,6),(IF(LEFT(C87,SEARCH("-",C87,1)-1-1)="Quarterly",VLOOKUP(MONTH(Garantías_TTE_AS_PR!$D$12),$AS$84:$AY$95,5),(IF(LEFT(C87,SEARCH("-",C87,1)-1-1)="Monthly",VLOOKUP(MONTH(Garantías_TTE_AS_PR!$D$12),$AS$84:$AY$95,4),(IF(LEFT(C87,SEARCH("-",C87,1)-1-1)="Daily",VLOOKUP(MONTH(Garantías_TTE_AS_PR!$D$12),$AS$84:$AY$95,3),(IF(LEFT(C87,SEARCH("-",C87,1)-1-1)="Intraday",IF(O87=24,VLOOKUP(MONTH(Garantías_TTE_AS_PR!$D$12),$AS$84:$AY$95,3),VLOOKUP(MONTH(Garantías_TTE_AS_PR!$D$12),$AS$84:$AY$95,2)),""))))))))))) -> 1 | N87: =IF(Garantías_TTE_AS_PR!$D$8="Undefined - Peaje RLTB.7",$BE$5,$BE$6) -> 366 | O87: =Garantías_TTE_AS_PR!$D$18 ->  | P87: 2 | Q87: =IF(Garantías_TTE_AS_PR!$D$11="Firm",1,IF(Garantías_TTE_AS_PR!$D$11="Uninterruptible",1,1)) -> 1 | R87: =ROUND((((((I87+K87+$W$39)*M87*Q87))/N87+(J87+$X$39))*O87*G87*P87),2) ->  | S87: PVB exit to consumerUndefined - Peaje RLTB.7 | T87: =CONCATENATE("[((",I87," + ",$W$39," + ",K87,") x ",M87," x ",Q87,") / ",N87," + (",J87," + ",$X$39," x ",O87,")] x ",TEXT(G87,"#.##0")," x ",P87) -> [((0,802414 + 0,091544 + 0,000248) x 1 x 1) / 366 + (0,001079 + 0,000137 x )] x 0 x 2 | AR87: April | AS87: 4 | AT87: 2.82 | AU87: 1.32 | AV87: 1.08 | AW87: 1.01 | AX87: 1 | AY87: 1
A88: Individualized services | B88: PVB exit to consumer | C88: Annual - Peaje RLTB.7 | D88: =IF(Garantías_TTE_AS_PR!$D$10="","",Garantías_TTE_AS_PR!$D$10) ->  | E88: PVB exit to consumerAnnual - Peaje RLTB.7 | F88: [((Tfr+OCREG)x M x Cint) / den + (TV x D)] x Qa x FR | G88: =Garantías_TTE_AS_PR!$D$13 -> 0 | H88: =Garantías_TTE_AS_PR!$D$17 -> 0 | I88: 0.802414 | J88: 0.001079 | K88: 0.000248 | L88: 0 | M88: =IF(LEFT(C88,SEARCH("-",C88,1)-1-1)="Undefined",VLOOKUP(MONTH(Garantías_TTE_AS_PR!$D$12),$AS$84:$AY$95,7),(IF(LEFT(C88,SEARCH("-",C88,1)-1-1)="Annual",VLOOKUP(MONTH(Garantías_TTE_AS_PR!$D$12),$AS$84:$AY$95,6),(IF(LEFT(C88,SEARCH("-",C88,1)-1-1)="Quarterly",VLOOKUP(MONTH(Garantías_TTE_AS_PR!$D$12),$AS$84:$AY$95,5),(IF(LEFT(C88,SEARCH("-",C88,1)-1-1)="Monthly",VLOOKUP(MONTH(Garantías_TTE_AS_PR!$D$12),$AS$84:$AY$95,4),(IF(LEFT(C88,SEARCH("-",C88,1)-1-1)="Daily",VLOOKUP(MONTH(Garantías_TTE_AS_PR!$D$12),$AS$84:$AY$95,3),(IF(LEFT(C88,SEARCH("-",C88,1)-1-1)="Intraday",IF(O88=24,VLOOKUP(MONTH(Garantías_TTE_AS_PR!$D$12),$AS$84:$AY$95,3),VLOOKUP(MONTH(Garantías_TTE_AS_PR!$D$12),$AS$84:$AY$95,2)),""))))))))))) -> 1 | N88: =IF(Garantías_TTE_AS_PR!$D$8="Annual - Peaje RLTB.7",IFERROR(_xlfn.IFS(AND(Garantías_TTE_AS_PR!$D$12>=$BV$4,Garantías_TTE_AS_PR!$D$12<$BW$4),$BE$6,AND(Garantías_TTE_AS_PR!$D$12>=$BV$5,Garantías_TTE_AS_PR!$D$12<$BW$5),$BE$6,AND(Garantías_TTE_AS_PR!$D$12>=$BV$6,Garantías_TTE_AS_PR!$D$12<$BW$6),$BE$6,AND(Garantías_TTE_AS_PR!$D$12>=$BV$7,Garantías_TTE_AS_PR!$D$12<$BW$7),$BE$6,AND(Garantías_TTE_AS_PR!$D$12>=$BV$8,Garantías_TTE_AS_PR!$D$12<$BW$8),$BE$6),$BE$5),(IF(OR(YEAR(Garantías_TTE_AS_PR!$D$12)=2020,YEAR(Garantías_TTE_AS_PR!$D$12)=2024,YEAR(Garantías_TTE_AS_PR!$D$12)=2028,YEAR(Garantías_TTE_AS_PR!$D$12)=2032,YEAR(Garantías_TTE_AS_PR!$D$12)=2036,YEAR(Garantías_TTE_AS_PR!$D$12)=2040,YEAR(Garantías_TTE_AS_PR!$D$12)=2044,YEAR(Garantías_TTE_AS_PR!$D$12)=2048),$BE$6,$BE$5))) -> 365 | O88: =Garantías_TTE_AS_PR!$D$18 ->  | P88: 2 | Q88: =IF(Garantías_TTE_AS_PR!$D$11="Firm",1,IF(Garantías_TTE_AS_PR!$D$11="Uninterruptible",1,1)) -> 1 | S88: PVB exit to consumerAnnual - Peaje RLTB.7 | T88: [((0,802414 + 0,091544 + 0,000248) x 1 x 1) / 365 + (0,001079 + 0,000137 x )] x 0 x 2 | AR88: May | AS88: 5 | AT88: 2.62 | AU88: 1.23 | AV88: 1 | AW88: 1.01 | AX88: 1 | AY88: 1
A89: Individualized services | B89: PVB exit to consumer | C89: Quarterly - Peaje RLTB.7 | D89: =IF(Garantías_TTE_AS_PR!$D$10="","",Garantías_TTE_AS_PR!$D$10) ->  | E89: PVB exit to consumerQuarterly - Peaje RLTB.7 | F89: [((Tfr+OCREG)x M x Cint) / den + (TV x D)] x Qa x FR | G89: =Garantías_TTE_AS_PR!$D$13 -> 0 | H89: =Garantías_TTE_AS_PR!$D$17 -> 0 | I89: 0.802414 | J89: 0.001079 | K89: 0.000248 | L89: 0 | M89: =IF(LEFT(C89,SEARCH("-",C89,1)-1-1)="Undefined",VLOOKUP(MONTH(Garantías_TTE_AS_PR!$D$12),$AS$84:$AY$95,7),(IF(LEFT(C89,SEARCH("-",C89,1)-1-1)="Annual",VLOOKUP(MONTH(Garantías_TTE_AS_PR!$D$12),$AS$84:$AY$95,6),(IF(LEFT(C89,SEARCH("-",C89,1)-1-1)="Quarterly",VLOOKUP(MONTH(Garantías_TTE_AS_PR!$D$12),$AS$84:$AY$95,5),(IF(LEFT(C89,SEARCH("-",C89,1)-1-1)="Monthly",VLOOKUP(MONTH(Garantías_TTE_AS_PR!$D$12),$AS$84:$AY$95,4),(IF(LEFT(C89,SEARCH("-",C89,1)-1-1)="Daily",VLOOKUP(MONTH(Garantías_TTE_AS_PR!$D$12),$AS$84:$AY$95,3),(IF(LEFT(C89,SEARCH("-",C89,1)-1-1)="Intraday",IF(O89=24,VLOOKUP(MONTH(Garantías_TTE_AS_PR!$D$12),$AS$84:$AY$95,3),VLOOKUP(MONTH(Garantías_TTE_AS_PR!$D$12),$AS$84:$AY$95,2)),""))))))))))) -> 1.35 | N89: =IF(Garantías_TTE_AS_PR!$D$8="Quarterly - Peaje RLTB.7",IFERROR(_xlfn.IFS(AND(Garantías_TTE_AS_PR!$D$12>=$BX$4,Garantías_TTE_AS_PR!$D$12<$BY$4),$BE$6,AND(Garantías_TTE_AS_PR!$D$12>=$BX$5,Garantías_TTE_AS_PR!$D$12<$BY$5),$BE$6,AND(Garantías_TTE_AS_PR!$D$12>=$BX$6,Garantías_TTE_AS_PR!$D$12<$BY$6),$BE$6,AND(Garantías_TTE_AS_PR!$D$12>=$BX$7,Garantías_TTE_AS_PR!$D$12<$BY$7),$BE$6,AND(Garantías_TTE_AS_PR!$D$12>=$BX$8,Garantías_TTE_AS_PR!$D$12<$BY$8),$BE$6),$BE$5),(IF(OR(YEAR(Garantías_TTE_AS_PR!$D$12)=2020,YEAR(Garantías_TTE_AS_PR!$D$12)=2024,YEAR(Garantías_TTE_AS_PR!$D$12)=2028,YEAR(Garantías_TTE_AS_PR!$D$12)=2032,YEAR(Garantías_TTE_AS_PR!$D$12)=2036,YEAR(Garantías_TTE_AS_PR!$D$12)=2040,YEAR(Garantías_TTE_AS_PR!$D$12)=2044,YEAR(Garantías_TTE_AS_PR!$D$12)=2048),$BE$6,$BE$5))) -> 365 | O89: =Garantías_TTE_AS_PR!$D$18 ->  | P89: 2 | Q89: =IF(Garantías_TTE_AS_PR!$D$11="Firm",1,IF(Garantías_TTE_AS_PR!$D$11="Uninterruptible",1,1)) -> 1 | S89: PVB exit to consumerQuarterly - Peaje RLTB.7 | T89: [((0,802414 + 0,091544 + 0,000248) x 1,35 x 1) / 365 + (0,001079 + 0,000137 x )] x 0 x 2 | AR89: June | AS89: 6 | AT89: 2.94 | AU89: 1.39 | AV89: 1.13 | AW89: 1.01 | AX89: 1 | AY89: 1
A90: Individualized services | B90: PVB exit to consumer | C90: Monthly - Peaje RLTB.7 | D90: =IF(Garantías_TTE_AS_PR!$D$10="","",Garantías_TTE_AS_PR!$D$10) ->  | E90: PVB exit to consumerMonthly - Peaje RLTB.7 | F90: [((Tfr+OCREG)x M x Cint) / den + (TV x D)] x Qa x FR | G90: =Garantías_TTE_AS_PR!$D$13 -> 0 | H90: =Garantías_TTE_AS_PR!$D$17 -> 0 | I90: 0.802414 | J90: 0.001079 | K90: 0.000248 | L90: 0 | M90: =IF(LEFT(C90,SEARCH("-",C90,1)-1-1)="Undefined",VLOOKUP(MONTH(Garantías_TTE_AS_PR!$D$12),$AS$84:$AY$95,7),(IF(LEFT(C90,SEARCH("-",C90,1)-1-1)="Annual",VLOOKUP(MONTH(Garantías_TTE_AS_PR!$D$12),$AS$84:$AY$95,6),(IF(LEFT(C90,SEARCH("-",C90,1)-1-1)="Quarterly",VLOOKUP(MONTH(Garantías_TTE_AS_PR!$D$12),$AS$84:$AY$95,5),(IF(LEFT(C90,SEARCH("-",C90,1)-1-1)="Monthly",VLOOKUP(MONTH(Garantías_TTE_AS_PR!$D$12),$AS$84:$AY$95,4),(IF(LEFT(C90,SEARCH("-",C90,1)-1-1)="Daily",VLOOKUP(MONTH(Garantías_TTE_AS_PR!$D$12),$AS$84:$AY$95,3),(IF(LEFT(C90,SEARCH("-",C90,1)-1-1)="Intraday",IF(O90=24,VLOOKUP(MONTH(Garantías_TTE_AS_PR!$D$12),$AS$84:$AY$95,3),VLOOKUP(MONTH(Garantías_TTE_AS_PR!$D$12),$AS$84:$AY$95,2)),""))))))))))) -> 1.73 | N90: =IF(Garantías_TTE_AS_PR!$D$8="Monthly - Peaje RLTB.7",IFERROR(_xlfn.IFS(AND(Garantías_TTE_AS_PR!$D$12>=$BX$4,Garantías_TTE_AS_PR!$D$12<$BY$4),$BE$6,AND(Garantías_TTE_AS_PR!$D$12>=$BX$5,Garantías_TTE_AS_PR!$D$12<$BY$5),$BE$6,AND(Garantías_TTE_AS_PR!$D$12>=$BX$6,Garantías_TTE_AS_PR!$D$12<$BY$6),$BE$6,AND(Garantías_TTE_AS_PR!$D$12>=$BX$7,Garantías_TTE_AS_PR!$D$12<$BY$7),$BE$6,AND(Garantías_TTE_AS_PR!$D$12>=$BX$8,Garantías_TTE_AS_PR!$D$12<$BY$8),$BE$6),$BE$5),(IF(OR(YEAR(Garantías_TTE_AS_PR!$D$12)=2020,YEAR(Garantías_TTE_AS_PR!$D$12)=2024,YEAR(Garantías_TTE_AS_PR!$D$12)=2028,YEAR(Garantías_TTE_AS_PR!$D$12)=2032,YEAR(Garantías_TTE_AS_PR!$D$12)=2036,YEAR(Garantías_TTE_AS_PR!$D$12)=2040,YEAR(Garantías_TTE_AS_PR!$D$12)=2044,YEAR(Garantías_TTE_AS_PR!$D$12)=2048),$BE$6,$BE$5))) -> 365 | O90: =Garantías_TTE_AS_PR!$D$18 ->  | P90: 1 | Q90: =IF(Garantías_TTE_AS_PR!$D$11="Firm",1,IF(Garantías_TTE_AS_PR!$D$11="Uninterruptible",1,1)) -> 1 | S90: PVB exit to consumerMonthly - Peaje RLTB.7 | T90: [((0,802414 + 0,091544 + 0,000248) x 1,73 x 1) / 365 + (0,001079 + 0,000137 x )] x 0 x 1 | AR90: July | AS90: 7 | AT90: 3.24 | AU90: 1.52 | AV90: 1.24 | AW90: 1.15 | AX90: 1 | AY90: 1
A91: Individualized services | B91: PVB exit to consumer | C91: Daily - Peaje RLTB.7 | D91: =IF(Garantías_TTE_AS_PR!$D$10="","",Garantías_TTE_AS_PR!$D$10) ->  | E91: PVB exit to consumerDaily - Peaje RLTB.7 | F91: [((Tfr+OCREG)x M x Cint) / den + (TV x D)] x Qa x FR | G91: =Garantías_TTE_AS_PR!$D$13 -> 0 | H91: =Garantías_TTE_AS_PR!$D$17 -> 0 | I91: 0.802414 | J91: 0.001079 | K91: 0.000248 | L91: 0 | M91: =IF(LEFT(C91,SEARCH("-",C91,1)-1-1)="Undefined",VLOOKUP(MONTH(Garantías_TTE_AS_PR!$D$12),$AS$84:$AY$95,7),(IF(LEFT(C91,SEARCH("-",C91,1)-1-1)="Annual",VLOOKUP(MONTH(Garantías_TTE_AS_PR!$D$12),$AS$84:$AY$95,6),(IF(LEFT(C91,SEARCH("-",C91,1)-1-1)="Quarterly",VLOOKUP(MONTH(Garantías_TTE_AS_PR!$D$12),$AS$84:$AY$95,5),(IF(LEFT(C91,SEARCH("-",C91,1)-1-1)="Monthly",VLOOKUP(MONTH(Garantías_TTE_AS_PR!$D$12),$AS$84:$AY$95,4),(IF(LEFT(C91,SEARCH("-",C91,1)-1-1)="Daily",VLOOKUP(MONTH(Garantías_TTE_AS_PR!$D$12),$AS$84:$AY$95,3),(IF(LEFT(C91,SEARCH("-",C91,1)-1-1)="Intraday",IF(O91=24,VLOOKUP(MONTH(Garantías_TTE_AS_PR!$D$12),$AS$84:$AY$95,3),VLOOKUP(MONTH(Garantías_TTE_AS_PR!$D$12),$AS$84:$AY$95,2)),""))))))))))) -> 2.13 | N91: =IF(Garantías_TTE_AS_PR!$D$8="Daily - Peaje RLTB.7",IFERROR(_xlfn.IFS(AND(Garantías_TTE_AS_PR!$D$12>=$BX$4,Garantías_TTE_AS_PR!$D$12<$BY$4),$BE$6,AND(Garantías_TTE_AS_PR!$D$12>=$BX$5,Garantías_TTE_AS_PR!$D$12<$BY$5),$BE$6,AND(Garantías_TTE_AS_PR!$D$12>=$BX$6,Garantías_TTE_AS_PR!$D$12<$BY$6),$BE$6,AND(Garantías_TTE_AS_PR!$D$12>=$BX$7,Garantías_TTE_AS_PR!$D$12<$BY$7),$BE$6,AND(Garantías_TTE_AS_PR!$D$12>=$BX$8,Garantías_TTE_AS_PR!$D$12<$BY$8),$BE$6),$BE$5),(IF(OR(YEAR(Garantías_TTE_AS_PR!$D$12)=2020,YEAR(Garantías_TTE_AS_PR!$D$12)=2024,YEAR(Garantías_TTE_AS_PR!$D$12)=2028,YEAR(Garantías_TTE_AS_PR!$D$12)=2032,YEAR(Garantías_TTE_AS_PR!$D$12)=2036,YEAR(Garantías_TTE_AS_PR!$D$12)=2040,YEAR(Garantías_TTE_AS_PR!$D$12)=2044,YEAR(Garantías_TTE_AS_PR!$D$12)=2048),$BE$6,$BE$5))) -> 365 | O91: =Garantías_TTE_AS_PR!$D$18 ->  | P91: 1 | Q91: =IF(Garantías_TTE_AS_PR!$D$11="Firm",1,IF(Garantías_TTE_AS_PR!$D$11="Uninterruptible",1,1)) -> 1 | S91: PVB exit to consumerDaily - Peaje RLTB.7 | T91: [((0,802414 + 0,091544 + 0,000248) x 2,13 x 1) / 365 + (0,001079 + 0,000137 x )] x 0 x 1 | AR91: August | AS91: 8 | AT91: 2.98 | AU91: 1.4 | AV91: 1.14 | AW91: 1.15 | AX91: 1 | AY91: 1
A92: Individualized services | B92: PVB exit to consumer | C92: Intraday - Peaje RLTB.7 | D92: =IF(Garantías_TTE_AS_PR!$D$10="","",Garantías_TTE_AS_PR!$D$10) ->  | E92: PVB exit to consumerIntraday - Peaje RLTB.7 | F92: [((Tfr+OCREG) x M x Cint) x (Qa x 24 / H) x H / den + (TV x Qa)] x FR | G92: =Garantías_TTE_AS_PR!$D$13 -> 0 | H92: =Garantías_TTE_AS_PR!$D$17 -> 0 | I92: 0.802414 | J92: 0.001079 | K92: 0.000248 | L92: 0 | M92: =IF(LEFT(C92,SEARCH("-",C92,1)-1-1)="Undefined",VLOOKUP(MONTH(Garantías_TTE_AS_PR!$D$12),$AS$84:$AY$95,7),(IF(LEFT(C92,SEARCH("-",C92,1)-1-1)="Annual",VLOOKUP(MONTH(Garantías_TTE_AS_PR!$D$12),$AS$84:$AY$95,6),(IF(LEFT(C92,SEARCH("-",C92,1)-1-1)="Quarterly",VLOOKUP(MONTH(Garantías_TTE_AS_PR!$D$12),$AS$84:$AY$95,5),(IF(LEFT(C92,SEARCH("-",C92,1)-1-1)="Monthly",VLOOKUP(MONTH(Garantías_TTE_AS_PR!$D$12),$AS$84:$AY$95,4),(IF(LEFT(C92,SEARCH("-",C92,1)-1-1)="Daily",VLOOKUP(MONTH(Garantías_TTE_AS_PR!$D$12),$AS$84:$AY$95,3),(IF(LEFT(C92,SEARCH("-",C92,1)-1-1)="Intraday",IF(O92=24,VLOOKUP(MONTH(Garantías_TTE_AS_PR!$D$12),$AS$84:$AY$95,3),VLOOKUP(MONTH(Garantías_TTE_AS_PR!$D$12),$AS$84:$AY$95,2)),""))))))))))) -> 4.54 | N92: =IF(Garantías_TTE_AS_PR!$D$8="Intraday - Peaje RLTB.7",IFERROR(_xlfn.IFS(AND(Garantías_TTE_AS_PR!$D$12>=$BX$4,Garantías_TTE_AS_PR!$D$12<$BY$4),$BE$8,AND(Garantías_TTE_AS_PR!$D$12>=$BX$5,Garantías_TTE_AS_PR!$D$12<$BY$5),$BE$8,AND(Garantías_TTE_AS_PR!$D$12>=$BX$6,Garantías_TTE_AS_PR!$D$12<$BY$6),$BE$8,AND(Garantías_TTE_AS_PR!$D$12>=$BX$7,Garantías_TTE_AS_PR!$D$12<$BY$7),$BE$8,AND(Garantías_TTE_AS_PR!$D$12>=$BX$8,Garantías_TTE_AS_PR!$D$12<$BY$8),$BE$8),$BE$7),(IF(OR(YEAR(Garantías_TTE_AS_PR!$D$12)=2020,YEAR(Garantías_TTE_AS_PR!$D$12)=2024,YEAR(Garantías_TTE_AS_PR!$D$12)=2028,YEAR(Garantías_TTE_AS_PR!$D$12)=2032,YEAR(Garantías_TTE_AS_PR!$D$12)=2036,YEAR(Garantías_TTE_AS_PR!$D$12)=2040,YEAR(Garantías_TTE_AS_PR!$D$12)=2044,YEAR(Garantías_TTE_AS_PR!$D$12)=2048),$BE$8,$BE$7))) -> 8760 | O92: =Garantías_TTE_AS_PR!$D$9 -> 0 | P92: =VLOOKUP(LEFT(C92,SEARCH("-",C92,1)-1-1),$BA$4:$BB$51,2,FALSE) -> 1 | Q92: =IF(Garantías_TTE_AS_PR!$D$11="Firm",1,IF(Garantías_TTE_AS_PR!$D$11="Uninterruptible",1,1)) -> 1 | R92: =ROUND((((I92+K92+$W$39)*M92*Q92+H92)/(N92/24)+(J92+$X$39))*G92*P92,2) -> 0 | S92: =B92&C92 -> PVB exit to consumerIntraday - Peaje RLTB.7 | T92: =CONCATENATE("[((",I92," + ",$W$39," + ",K92,") x ",M92,") x (",Q92," / ",N92," x 24 / ",O92,") x ",O92," / ",N92," + (",J92," + ",$X$39," x ",O92,")] x ",P92) -> [((0,802414 + 0,091544 + 0,000248) x 4,54) x (1 / 8760 x 24 / 0) x 0 / 8760 + (0,001079 + 0,000137 x 0)] x 1 | AR92: September | AS92: 9 | AT92: 3.14 | AU92: 1.48 | AV92: 1.2 | AW92: 1.15 | AX92: 1 | AY92: 1
A93: Individualized services | B93: PVB exit to consumer | C93: Undefined - Peaje RLTA.7 | D93: =IF(Garantías_TTE_AS_PR!$D$10="","",Garantías_TTE_AS_PR!$D$10) ->  | E93: PVB exit to consumerUndefined - Peaje RLTA.7 | F93: [((Tfr+OCREG)x M x Cint) / den + (TV x D)] x Qa x FR | G93: =Garantías_TTE_AS_PR!$D$13 -> 0 | H93: =Garantías_TTE_AS_PR!$D$17 -> 0 | I93: 0.663977 | J93: 0.000971 | K93: 0.000248 | L93: 0 | M93: =IF(LEFT(C93,SEARCH("-",C93,1)-1-1)="Undefined",VLOOKUP(MONTH(Garantías_TTE_AS_PR!$D$12),$AS$84:$AY$95,7),(IF(LEFT(C93,SEARCH("-",C93,1)-1-1)="Annual",VLOOKUP(MONTH(Garantías_TTE_AS_PR!$D$12),$AS$84:$AY$95,6),(IF(LEFT(C93,SEARCH("-",C93,1)-1-1)="Quarterly",VLOOKUP(MONTH(Garantías_TTE_AS_PR!$D$12),$AS$84:$AY$95,5),(IF(LEFT(C93,SEARCH("-",C93,1)-1-1)="Monthly",VLOOKUP(MONTH(Garantías_TTE_AS_PR!$D$12),$AS$84:$AY$95,4),(IF(LEFT(C93,SEARCH("-",C93,1)-1-1)="Daily",VLOOKUP(MONTH(Garantías_TTE_AS_PR!$D$12),$AS$84:$AY$95,3),(IF(LEFT(C93,SEARCH("-",C93,1)-1-1)="Intraday",IF(O93=24,VLOOKUP(MONTH(Garantías_TTE_AS_PR!$D$12),$AS$84:$AY$95,3),VLOOKUP(MONTH(Garantías_TTE_AS_PR!$D$12),$AS$84:$AY$95,2)),""))))))))))) -> 1 | N93: =IF(Garantías_TTE_AS_PR!$D$8="Undefined - Peaje RLTA.7",$BE$5,$BE$6) -> 366 | O93: =Garantías_TTE_AS_PR!$D$18 ->  | P93: 2 | Q93: =IF(Garantías_TTE_AS_PR!$D$11="Firm",1,IF(Garantías_TTE_AS_PR!$D$11="Uninterruptible",1,1)) -> 1 | R93: =ROUND((((((I93+K93+$W$39)*M93*Q93))/N93+(J93+$X$39))*O93*G93*P93),2) ->  | S93: PVB exit to consumerUndefined - Peaje RLTA.7 | T93: =CONCATENATE("[((",I93," + ",$W$39," + ",K93,") x ",M93," x ",Q93,") / ",N93," + (",J93," + ",$X$39," x ",O93,")] x ",TEXT(G93,"#.##0")," x ",P93) -> [((0,663977 + 0,091544 + 0,000248) x 1 x 1) / 366 + (0,000971 + 0,000137 x )] x 0 x 2 | AR93: October | AS93: 10 | AT93: 3.36 | AU93: 1.58 | AV93: 1.29 | AW93: 1.3 | AX93: 1 | AY93: 1
A94: Individualized services | B94: PVB exit to consumer | C94: Annual - Peaje RLTA.7 | D94: =IF(Garantías_TTE_AS_PR!$D$10="","",Garantías_TTE_AS_PR!$D$10) ->  | E94: PVB exit to consumerAnnual - Peaje RLTA.7 | F94: [((Tfr+OCREG)x M x Cint) / den + (TV x D)] x Qa x FR | G94: =Garantías_TTE_AS_PR!$D$13 -> 0 | H94: =Garantías_TTE_AS_PR!$D$17 -> 0 | I94: 0.663977 | J94: 0.000971 | K94: 0.000248 | L94: 0 | M94: =IF(LEFT(C94,SEARCH("-",C94,1)-1-1)="Undefined",VLOOKUP(MONTH(Garantías_TTE_AS_PR!$D$12),$AS$84:$AY$95,7),(IF(LEFT(C94,SEARCH("-",C94,1)-1-1)="Annual",VLOOKUP(MONTH(Garantías_TTE_AS_PR!$D$12),$AS$84:$AY$95,6),(IF(LEFT(C94,SEARCH("-",C94,1)-1-1)="Quarterly",VLOOKUP(MONTH(Garantías_TTE_AS_PR!$D$12),$AS$84:$AY$95,5),(IF(LEFT(C94,SEARCH("-",C94,1)-1-1)="Monthly",VLOOKUP(MONTH(Garantías_TTE_AS_PR!$D$12),$AS$84:$AY$95,4),(IF(LEFT(C94,SEARCH("-",C94,1)-1-1)="Daily",VLOOKUP(MONTH(Garantías_TTE_AS_PR!$D$12),$AS$84:$AY$95,3),(IF(LEFT(C94,SEARCH("-",C94,1)-1-1)="Intraday",IF(O94=24,VLOOKUP(MONTH(Garantías_TTE_AS_PR!$D$12),$AS$84:$AY$95,3),VLOOKUP(MONTH(Garantías_TTE_AS_PR!$D$12),$AS$84:$AY$95,2)),""))))))))))) -> 1 | N94: =IF(Garantías_TTE_AS_PR!$D$8="Annual - Peaje RLTA.7",IFERROR(_xlfn.IFS(AND(Garantías_TTE_AS_PR!$D$12>=$BV$4,Garantías_TTE_AS_PR!$D$12<$BW$4),$BE$6,AND(Garantías_TTE_AS_PR!$D$12>=$BV$5,Garantías_TTE_AS_PR!$D$12<$BW$5),$BE$6,AND(Garantías_TTE_AS_PR!$D$12>=$BV$6,Garantías_TTE_AS_PR!$D$12<$BW$6),$BE$6,AND(Garantías_TTE_AS_PR!$D$12>=$BV$7,Garantías_TTE_AS_PR!$D$12<$BW$7),$BE$6,AND(Garantías_TTE_AS_PR!$D$12>=$BV$8,Garantías_TTE_AS_PR!$D$12<$BW$8),$BE$6),$BE$5),(IF(OR(YEAR(Garantías_TTE_AS_PR!$D$12)=2020,YEAR(Garantías_TTE_AS_PR!$D$12)=2024,YEAR(Garantías_TTE_AS_PR!$D$12)=2028,YEAR(Garantías_TTE_AS_PR!$D$12)=2032,YEAR(Garantías_TTE_AS_PR!$D$12)=2036,YEAR(Garantías_TTE_AS_PR!$D$12)=2040,YEAR(Garantías_TTE_AS_PR!$D$12)=2044,YEAR(Garantías_TTE_AS_PR!$D$12)=2048),$BE$6,$BE$5))) -> 365 | O94: =Garantías_TTE_AS_PR!$D$18 ->  | P94: 2 | Q94: =IF(Garantías_TTE_AS_PR!$D$11="Firm",1,IF(Garantías_TTE_AS_PR!$D$11="Uninterruptible",1,1)) -> 1 | S94: PVB exit to consumerAnnual - Peaje RLTA.7 | T94: [((0,663977 + 0,091544 + 0,000248) x 1 x 1) / 365 + (0,000971 + 0,000137 x )] x 0 x 2 | AR94: November | AS94: 11 | AT94: 3.98 | AU94: 1.88 | AV94: 1.52 | AW94: 1.3 | AX94: 1 | AY94: 1
A95: Individualized services | B95: PVB exit to consumer | C95: Quarterly - Peaje RLTA.7 | D95: =IF(Garantías_TTE_AS_PR!$D$10="","",Garantías_TTE_AS_PR!$D$10) ->  | E95: PVB exit to consumerQuarterly - Peaje RLTA.7 | F95: [((Tfr+OCREG)x M x Cint) / den + (TV x D)] x Qa x FR | G95: =Garantías_TTE_AS_PR!$D$13 -> 0 | H95: =Garantías_TTE_AS_PR!$D$17 -> 0 | I95: 0.663977 | J95: 0.000971 | K95: 0.000248 | L95: 0 | M95: =IF(LEFT(C95,SEARCH("-",C95,1)-1-1)="Undefined",VLOOKUP(MONTH(Garantías_TTE_AS_PR!$D$12),$AS$84:$AY$95,7),(IF(LEFT(C95,SEARCH("-",C95,1)-1-1)="Annual",VLOOKUP(MONTH(Garantías_TTE_AS_PR!$D$12),$AS$84:$AY$95,6),(IF(LEFT(C95,SEARCH("-",C95,1)-1-1)="Quarterly",VLOOKUP(MONTH(Garantías_TTE_AS_PR!$D$12),$AS$84:$AY$95,5),(IF(LEFT(C95,SEARCH("-",C95,1)-1-1)="Monthly",VLOOKUP(MONTH(Garantías_TTE_AS_PR!$D$12),$AS$84:$AY$95,4),(IF(LEFT(C95,SEARCH("-",C95,1)-1-1)="Daily",VLOOKUP(MONTH(Garantías_TTE_AS_PR!$D$12),$AS$84:$AY$95,3),(IF(LEFT(C95,SEARCH("-",C95,1)-1-1)="Intraday",IF(O95=24,VLOOKUP(MONTH(Garantías_TTE_AS_PR!$D$12),$AS$84:$AY$95,3),VLOOKUP(MONTH(Garantías_TTE_AS_PR!$D$12),$AS$84:$AY$95,2)),""))))))))))) -> 1.35 | N95: =IF(Garantías_TTE_AS_PR!$D$8="Quarterly - Peaje RLTA.7",IFERROR(_xlfn.IFS(AND(Garantías_TTE_AS_PR!$D$12>=$BX$4,Garantías_TTE_AS_PR!$D$12<$BY$4),$BE$6,AND(Garantías_TTE_AS_PR!$D$12>=$BX$5,Garantías_TTE_AS_PR!$D$12<$BY$5),$BE$6,AND(Garantías_TTE_AS_PR!$D$12>=$BX$6,Garantías_TTE_AS_PR!$D$12<$BY$6),$BE$6,AND(Garantías_TTE_AS_PR!$D$12>=$BX$7,Garantías_TTE_AS_PR!$D$12<$BY$7),$BE$6,AND(Garantías_TTE_AS_PR!$D$12>=$BX$8,Garantías_TTE_AS_PR!$D$12<$BY$8),$BE$6),$BE$5),(IF(OR(YEAR(Garantías_TTE_AS_PR!$D$12)=2020,YEAR(Garantías_TTE_AS_PR!$D$12)=2024,YEAR(Garantías_TTE_AS_PR!$D$12)=2028,YEAR(Garantías_TTE_AS_PR!$D$12)=2032,YEAR(Garantías_TTE_AS_PR!$D$12)=2036,YEAR(Garantías_TTE_AS_PR!$D$12)=2040,YEAR(Garantías_TTE_AS_PR!$D$12)=2044,YEAR(Garantías_TTE_AS_PR!$D$12)=2048),$BE$6,$BE$5))) -> 365 | O95: =Garantías_TTE_AS_PR!$D$18 ->  | P95: 2 | Q95: =IF(Garantías_TTE_AS_PR!$D$11="Firm",1,IF(Garantías_TTE_AS_PR!$D$11="Uninterruptible",1,1)) -> 1 | S95: PVB exit to consumerQuarterly - Peaje RLTA.7 | T95: [((0,663977 + 0,091544 + 0,000248) x 1,35 x 1) / 365 + (0,000971 + 0,000137 x )] x 0 x 2 | AR95: December | AS95: 12 | AT95: 4 | AU95: 1.88 | AV95: 1.53 | AW95: 1.3 | AX95: 1 | AY95: 1
A96: Individualized services | B96: PVB exit to consumer | C96: Monthly - Peaje RLTA.7 | D96: =IF(Garantías_TTE_AS_PR!$D$10="","",Garantías_TTE_AS_PR!$D$10) ->  | E96: PVB exit to consumerMonthly - Peaje RLTA.7 | F96: [((Tfr+OCREG)x M x Cint) / den + (TV x D)] x Qa x FR | G96: =Garantías_TTE_AS_PR!$D$13 -> 0 | H96: =Garantías_TTE_AS_PR!$D$17 -> 0 | I96: 0.663977 | J96: 0.000971 | K96: 0.000248 | L96: 0 | M96: =IF(LEFT(C96,SEARCH("-",C96,1)-1-1)="Undefined",VLOOKUP(MONTH(Garantías_TTE_AS_PR!$D$12),$AS$84:$AY$95,7),(IF(LEFT(C96,SEARCH("-",C96,1)-1-1)="Annual",VLOOKUP(MONTH(Garantías_TTE_AS_PR!$D$12),$AS$84:$AY$95,6),(IF(LEFT(C96,SEARCH("-",C96,1)-1-1)="Quarterly",VLOOKUP(MONTH(Garantías_TTE_AS_PR!$D$12),$AS$84:$AY$95,5),(IF(LEFT(C96,SEARCH("-",C96,1)-1-1)="Monthly",VLOOKUP(MONTH(Garantías_TTE_AS_PR!$D$12),$AS$84:$AY$95,4),(IF(LEFT(C96,SEARCH("-",C96,1)-1-1)="Daily",VLOOKUP(MONTH(Garantías_TTE_AS_PR!$D$12),$AS$84:$AY$95,3),(IF(LEFT(C96,SEARCH("-",C96,1)-1-1)="Intraday",IF(O96=24,VLOOKUP(MONTH(Garantías_TTE_AS_PR!$D$12),$AS$84:$AY$95,3),VLOOKUP(MONTH(Garantías_TTE_AS_PR!$D$12),$AS$84:$AY$95,2)),""))))))))))) -> 1.73 | N96: =IF(Garantías_TTE_AS_PR!$D$8="Monthly - Peaje RLTA.7",IFERROR(_xlfn.IFS(AND(Garantías_TTE_AS_PR!$D$12>=$BX$4,Garantías_TTE_AS_PR!$D$12<$BY$4),$BE$6,AND(Garantías_TTE_AS_PR!$D$12>=$BX$5,Garantías_TTE_AS_PR!$D$12<$BY$5),$BE$6,AND(Garantías_TTE_AS_PR!$D$12>=$BX$6,Garantías_TTE_AS_PR!$D$12<$BY$6),$BE$6,AND(Garantías_TTE_AS_PR!$D$12>=$BX$7,Garantías_TTE_AS_PR!$D$12<$BY$7),$BE$6,AND(Garantías_TTE_AS_PR!$D$12>=$BX$8,Garantías_TTE_AS_PR!$D$12<$BY$8),$BE$6),$BE$5),(IF(OR(YEAR(Garantías_TTE_AS_PR!$D$12)=2020,YEAR(Garantías_TTE_AS_PR!$D$12)=2024,YEAR(Garantías_TTE_AS_PR!$D$12)=2028,YEAR(Garantías_TTE_AS_PR!$D$12)=2032,YEAR(Garantías_TTE_AS_PR!$D$12)=2036,YEAR(Garantías_TTE_AS_PR!$D$12)=2040,YEAR(Garantías_TTE_AS_PR!$D$12)=2044,YEAR(Garantías_TTE_AS_PR!$D$12)=2048),$BE$6,$BE$5))) -> 365 | O96: =Garantías_TTE_AS_PR!$D$18 ->  | P96: 1 | Q96: =IF(Garantías_TTE_AS_PR!$D$11="Firm",1,IF(Garantías_TTE_AS_PR!$D$11="Uninterruptible",1,1)) -> 1 | S96: PVB exit to consumerMonthly - Peaje RLTA.7 | T96: [((0,663977 + 0,091544 + 0,000248) x 1,73 x 1) / 365 + (0,000971 + 0,000137 x )] x 0 x 1
A97: Individualized services | B97: PVB exit to consumer | C97: Daily - Peaje RLTA.7 | D97: =IF(Garantías_TTE_AS_PR!$D$10="","",Garantías_TTE_AS_PR!$D$10) ->  | E97: PVB exit to consumerDaily - Peaje RLTA.7 | F97: [((Tfr+OCREG)x M x Cint) / den + (TV x D)] x Qa x FR | G97: =Garantías_TTE_AS_PR!$D$13 -> 0 | H97: =Garantías_TTE_AS_PR!$D$17 -> 0 | I97: 0.663977 | J97: 0.000971 | K97: 0.000248 | L97: 0 | M97: =IF(LEFT(C97,SEARCH("-",C97,1)-1-1)="Undefined",VLOOKUP(MONTH(Garantías_TTE_AS_PR!$D$12),$AS$84:$AY$95,7),(IF(LEFT(C97,SEARCH("-",C97,1)-1-1)="Annual",VLOOKUP(MONTH(Garantías_TTE_AS_PR!$D$12),$AS$84:$AY$95,6),(IF(LEFT(C97,SEARCH("-",C97,1)-1-1)="Quarterly",VLOOKUP(MONTH(Garantías_TTE_AS_PR!$D$12),$AS$84:$AY$95,5),(IF(LEFT(C97,SEARCH("-",C97,1)-1-1)="Monthly",VLOOKUP(MONTH(Garantías_TTE_AS_PR!$D$12),$AS$84:$AY$95,4),(IF(LEFT(C97,SEARCH("-",C97,1)-1-1)="Daily",VLOOKUP(MONTH(Garantías_TTE_AS_PR!$D$12),$AS$84:$AY$95,3),(IF(LEFT(C97,SEARCH("-",C97,1)-1-1)="Intraday",IF(O97=24,VLOOKUP(MONTH(Garantías_TTE_AS_PR!$D$12),$AS$84:$AY$95,3),VLOOKUP(MONTH(Garantías_TTE_AS_PR!$D$12),$AS$84:$AY$95,2)),""))))))))))) -> 2.13 | N97: =IF(Garantías_TTE_AS_PR!$D$8="Daily - Peaje RLTA.7",IFERROR(_xlfn.IFS(AND(Garantías_TTE_AS_PR!$D$12>=$BX$4,Garantías_TTE_AS_PR!$D$12<$BY$4),$BE$6,AND(Garantías_TTE_AS_PR!$D$12>=$BX$5,Garantías_TTE_AS_PR!$D$12<$BY$5),$BE$6,AND(Garantías_TTE_AS_PR!$D$12>=$BX$6,Garantías_TTE_AS_PR!$D$12<$BY$6),$BE$6,AND(Garantías_TTE_AS_PR!$D$12>=$BX$7,Garantías_TTE_AS_PR!$D$12<$BY$7),$BE$6,AND(Garantías_TTE_AS_PR!$D$12>=$BX$8,Garantías_TTE_AS_PR!$D$12<$BY$8),$BE$6),$BE$5),(IF(OR(YEAR(Garantías_TTE_AS_PR!$D$12)=2020,YEAR(Garantías_TTE_AS_PR!$D$12)=2024,YEAR(Garantías_TTE_AS_PR!$D$12)=2028,YEAR(Garantías_TTE_AS_PR!$D$12)=2032,YEAR(Garantías_TTE_AS_PR!$D$12)=2036,YEAR(Garantías_TTE_AS_PR!$D$12)=2040,YEAR(Garantías_TTE_AS_PR!$D$12)=2044,YEAR(Garantías_TTE_AS_PR!$D$12)=2048),$BE$6,$BE$5))) -> 365 | O97: =Garantías_TTE_AS_PR!$D$18 ->  | P97: 1 | Q97: =IF(Garantías_TTE_AS_PR!$D$11="Firm",1,IF(Garantías_TTE_AS_PR!$D$11="Uninterruptible",1,1)) -> 1 | S97: PVB exit to consumerDaily - Peaje RLTA.7 | T97: [((0,663977 + 0,091544 + 0,000248) x 2,13 x 1) / 365 + (0,000971 + 0,000137 x )] x 0 x 1 | AQ97: Administración PEAJES. Salida de transporte no distribución
A98: Individualized services | B98: PVB exit to consumer | C98: Intraday - Peaje RLTA.7 | D98: =IF(Garantías_TTE_AS_PR!$D$10="","",Garantías_TTE_AS_PR!$D$10) ->  | E98: PVB exit to consumerIntraday - Peaje RLTA.7 | F98: [((Tfr+OCREG) x M x Cint) x (Qa x 24 / H) x H / den + (TV x Qa)] x FR | G98: =Garantías_TTE_AS_PR!$D$13 -> 0 | H98: =Garantías_TTE_AS_PR!$D$17 -> 0 | I98: 0.663977 | J98: 0.000971 | K98: 0.000248 | L98: 0 | M98: =IF(LEFT(C98,SEARCH("-",C98,1)-1-1)="Undefined",VLOOKUP(MONTH(Garantías_TTE_AS_PR!$D$12),$AS$84:$AY$95,7),(IF(LEFT(C98,SEARCH("-",C98,1)-1-1)="Annual",VLOOKUP(MONTH(Garantías_TTE_AS_PR!$D$12),$AS$84:$AY$95,6),(IF(LEFT(C98,SEARCH("-",C98,1)-1-1)="Quarterly",VLOOKUP(MONTH(Garantías_TTE_AS_PR!$D$12),$AS$84:$AY$95,5),(IF(LEFT(C98,SEARCH("-",C98,1)-1-1)="Monthly",VLOOKUP(MONTH(Garantías_TTE_AS_PR!$D$12),$AS$84:$AY$95,4),(IF(LEFT(C98,SEARCH("-",C98,1)-1-1)="Daily",VLOOKUP(MONTH(Garantías_TTE_AS_PR!$D$12),$AS$84:$AY$95,3),(IF(LEFT(C98,SEARCH("-",C98,1)-1-1)="Intraday",IF(O98=24,VLOOKUP(MONTH(Garantías_TTE_AS_PR!$D$12),$AS$84:$AY$95,3),VLOOKUP(MONTH(Garantías_TTE_AS_PR!$D$12),$AS$84:$AY$95,2)),""))))))))))) -> 4.54 | N98: =IF(Garantías_TTE_AS_PR!$D$8="Intraday - Peaje RLTA.7",IFERROR(_xlfn.IFS(AND(Garantías_TTE_AS_PR!$D$12>=$BX$4,Garantías_TTE_AS_PR!$D$12<$BY$4),$BE$8,AND(Garantías_TTE_AS_PR!$D$12>=$BX$5,Garantías_TTE_AS_PR!$D$12<$BY$5),$BE$8,AND(Garantías_TTE_AS_PR!$D$12>=$BX$6,Garantías_TTE_AS_PR!$D$12<$BY$6),$BE$8,AND(Garantías_TTE_AS_PR!$D$12>=$BX$7,Garantías_TTE_AS_PR!$D$12<$BY$7),$BE$8,AND(Garantías_TTE_AS_PR!$D$12>=$BX$8,Garantías_TTE_AS_PR!$D$12<$BY$8),$BE$8),$BE$7),(IF(OR(YEAR(Garantías_TTE_AS_PR!$D$12)=2020,YEAR(Garantías_TTE_AS_PR!$D$12)=2024,YEAR(Garantías_TTE_AS_PR!$D$12)=2028,YEAR(Garantías_TTE_AS_PR!$D$12)=2032,YEAR(Garantías_TTE_AS_PR!$D$12)=2036,YEAR(Garantías_TTE_AS_PR!$D$12)=2040,YEAR(Garantías_TTE_AS_PR!$D$12)=2044,YEAR(Garantías_TTE_AS_PR!$D$12)=2048),$BE$8,$BE$7))) -> 8760 | O98: =Garantías_TTE_AS_PR!$D$9 -> 0 | P98: 1 | Q98: =IF(Garantías_TTE_AS_PR!$D$11="Firm",1,IF(Garantías_TTE_AS_PR!$D$11="Uninterruptible",1,1)) -> 1 | R98: =ROUND((((I98+K98+$W$39)*M98*Q98+H98)/(N98/24)+(J98+$X$39))*G98*P98,2) -> 0 | S98: PVB exit to consumerIntraday - Peaje RLTA.7 | T98: =CONCATENATE("[((",I98," + ",$W$39," + ",K98,") x ",M98,") x (",Q98," / ",N98," x 24 / ",O98,") x ",O98," / ",N98," + (",J98," + ",$X$39," x ",O98,")] x ",P98) -> [((0,663977 + 0,091544 + 0,000248) x 4,54) x (1 / 8760 x 24 / 0) x 0 / 8760 + (0,000971 + 0,000137 x 0)] x 1 | AQ98: Productos estándar capacidad | AR98: Mes | AT98: Intraday (05) | AU98: Daily (04) | AV98: Montly (03) | AW98: Quarterly (02) | AX98: Annual (01) | AY98: Undefined
A99: Individualized services | B99: PVB exit to consumer | C99: Undefined - Peaje RL.8 | D99: =IF(Garantías_TTE_AS_PR!$D$10="","",Garantías_TTE_AS_PR!$D$10) ->  | E99: PVB exit to consumerUndefined - Peaje RL.8 | F99: [((Tfr+OCREG)x M x Cint) / den + (TV x D)] x Qa x FR | G99: =Garantías_TTE_AS_PR!$D$13 -> 0 | H99: =Garantías_TTE_AS_PR!$D$17 -> 0 | I99: =VLOOKUP(CONCATENATE(SCON,RIGHT(C99,4)),$AA$4:$AJ$220,6,FALSE) -> 0.414838 | J99: =VLOOKUP(CONCATENATE(SCON,RIGHT(C99,4)),$AA$4:$AJ$220,8,FALSE) -> 0.000734 | K99: =VLOOKUP(CONCATENATE(SCON,RIGHT(C99,4)),$AA$4:$AL$220,12,FALSE) -> 7.6e-05 | L99: =VLOOKUP(CONCATENATE(SCON,RIGHT(C99,4)),$AA$4:$AN$221,14,FALSE) -> 0 | M99: =IF(LEFT(C99,SEARCH("-",C99,1)-1-1)="Undefined",VLOOKUP(MONTH(Garantías_TTE_AS_PR!$D$12),$AS$84:$AY$95,7),(IF(LEFT(C99,SEARCH("-",C99,1)-1-1)="Annual",VLOOKUP(MONTH(Garantías_TTE_AS_PR!$D$12),$AS$84:$AY$95,6),(IF(LEFT(C99,SEARCH("-",C99,1)-1-1)="Quarterly",VLOOKUP(MONTH(Garantías_TTE_AS_PR!$D$12),$AS$84:$AY$95,5),(IF(LEFT(C99,SEARCH("-",C99,1)-1-1)="Monthly",VLOOKUP(MONTH(Garantías_TTE_AS_PR!$D$12),$AS$84:$AY$95,4),(IF(LEFT(C99,SEARCH("-",C99,1)-1-1)="Daily",VLOOKUP(MONTH(Garantías_TTE_AS_PR!$D$12),$AS$84:$AY$95,3),(IF(LEFT(C99,SEARCH("-",C99,1)-1-1)="Intraday",IF(O99=24,VLOOKUP(MONTH(Garantías_TTE_AS_PR!$D$12),$AS$84:$AY$95,3),VLOOKUP(MONTH(Garantías_TTE_AS_PR!$D$12),$AS$84:$AY$95,2)),""))))))))))) -> 1 | N99: =IF(Garantías_TTE_AS_PR!$D$8="Undefined - Peaje RL.8",$BE$5,$BE$6) -> 366 | O99: =Garantías_TTE_AS_PR!$D$18 ->  | P99: 2 | Q99: =IF(Garantías_TTE_AS_PR!$D$11="Firm",1,IF(Garantías_TTE_AS_PR!$D$11="Uninterruptible",1,1)) -> 1 | R99: =ROUND((((((I99+K99+$W$39)*M99*Q99))/N99+(J99+$X$39))*O99*G99*P99),2) ->  | S99: PVB exit to consumerUndefined - Peaje RL.8 | T99: =CONCATENATE("[((",I99," + ",$W$39," + ",K99,") x ",M99," x ",Q99,") / ",N99," + (",J99," + ",$X$39," x ",O99,")] x ",TEXT(G99,"#.##0")," x ",P99) -> [((0,414838 + 0,091544 + 0,000076) x 1 x 1) / 366 + (0,000734 + 0,000137 x )] x 0 x 2
A100: Individualized services | B100: PVB exit to consumer | C100: Annual - Peaje RL.8 | D100: =IF(Garantías_TTE_AS_PR!$D$10="","",Garantías_TTE_AS_PR!$D$10) ->  | E100: PVB exit to consumerAnnual - Peaje RL.8 | F100: [((Tfr+OCREG)x M x Cint) / den + (TV x D)] x Qa x FR | G100: =Garantías_TTE_AS_PR!$D$13 -> 0 | H100: =Garantías_TTE_AS_PR!$D$17 -> 0 | I100: 0.414838 | J100: 0.000734 | K100: 7.6e-05 | L100: 0 | M100: =IF(LEFT(C100,SEARCH("-",C100,1)-1-1)="Undefined",VLOOKUP(MONTH(Garantías_TTE_AS_PR!$D$12),$AS$84:$AY$95,7),(IF(LEFT(C100,SEARCH("-",C100,1)-1-1)="Annual",VLOOKUP(MONTH(Garantías_TTE_AS_PR!$D$12),$AS$84:$AY$95,6),(IF(LEFT(C100,SEARCH("-",C100,1)-1-1)="Quarterly",VLOOKUP(MONTH(Garantías_TTE_AS_PR!$D$12),$AS$84:$AY$95,5),(IF(LEFT(C100,SEARCH("-",C100,1)-1-1)="Monthly",VLOOKUP(MONTH(Garantías_TTE_AS_PR!$D$12),$AS$84:$AY$95,4),(IF(LEFT(C100,SEARCH("-",C100,1)-1-1)="Daily",VLOOKUP(MONTH(Garantías_TTE_AS_PR!$D$12),$AS$84:$AY$95,3),(IF(LEFT(C100,SEARCH("-",C100,1)-1-1)="Intraday",IF(O100=24,VLOOKUP(MONTH(Garantías_TTE_AS_PR!$D$12),$AS$84:$AY$95,3),VLOOKUP(MONTH(Garantías_TTE_AS_PR!$D$12),$AS$84:$AY$95,2)),""))))))))))) -> 1 | N100: =IF(Garantías_TTE_AS_PR!$D$8="Annual - Peaje RL.8",IFERROR(_xlfn.IFS(AND(Garantías_TTE_AS_PR!$D$12>=$BV$4,Garantías_TTE_AS_PR!$D$12<$BW$4),$BE$6,AND(Garantías_TTE_AS_PR!$D$12>=$BV$5,Garantías_TTE_AS_PR!$D$12<$BW$5),$BE$6,AND(Garantías_TTE_AS_PR!$D$12>=$BV$6,Garantías_TTE_AS_PR!$D$12<$BW$6),$BE$6,AND(Garantías_TTE_AS_PR!$D$12>=$BV$7,Garantías_TTE_AS_PR!$D$12<$BW$7),$BE$6,AND(Garantías_TTE_AS_PR!$D$12>=$BV$8,Garantías_TTE_AS_PR!$D$12<$BW$8),$BE$6),$BE$5),(IF(OR(YEAR(Garantías_TTE_AS_PR!$D$12)=2020,YEAR(Garantías_TTE_AS_PR!$D$12)=2024,YEAR(Garantías_TTE_AS_PR!$D$12)=2028,YEAR(Garantías_TTE_AS_PR!$D$12)=2032,YEAR(Garantías_TTE_AS_PR!$D$12)=2036,YEAR(Garantías_TTE_AS_PR!$D$12)=2040,YEAR(Garantías_TTE_AS_PR!$D$12)=2044,YEAR(Garantías_TTE_AS_PR!$D$12)=2048),$BE$6,$BE$5))) -> 365 | O100: =Garantías_TTE_AS_PR!$D$18 ->  | P100: 2 | Q100: =IF(Garantías_TTE_AS_PR!$D$11="Firm",1,IF(Garantías_TTE_AS_PR!$D$11="Uninterruptible",1,1)) -> 1 | S100: PVB exit to consumerAnnual - Peaje RL.8 | T100: [((0,414838 + 0,091544 + 0,000076) x 1 x 1) / 365 + (0,000734 + 0,000137 x )] x 0 x 2 | AR100: January | AS100: 1 | AT100: 3.4 | AU100: 1.6 | AV100: 1.3 | AW100: 1.2 | AX100: 1 | AY100: 1
A101: Individualized services | B101: PVB exit to consumer | C101: Quarterly - Peaje RL.8 | D101: =IF(Garantías_TTE_AS_PR!$D$10="","",Garantías_TTE_AS_PR!$D$10) ->  | E101: PVB exit to consumerQuarterly - Peaje RL.8 | F101: [((Tfr+OCREG)x M x Cint) / den + (TV x D)] x Qa x FR | G101: =Garantías_TTE_AS_PR!$D$13 -> 0 | H101: =Garantías_TTE_AS_PR!$D$17 -> 0 | I101: 0.414838 | J101: 0.000734 | K101: 7.6e-05 | L101: 0 | M101: =IF(LEFT(C101,SEARCH("-",C101,1)-1-1)="Undefined",VLOOKUP(MONTH(Garantías_TTE_AS_PR!$D$12),$AS$84:$AY$95,7),(IF(LEFT(C101,SEARCH("-",C101,1)-1-1)="Annual",VLOOKUP(MONTH(Garantías_TTE_AS_PR!$D$12),$AS$84:$AY$95,6),(IF(LEFT(C101,SEARCH("-",C101,1)-1-1)="Quarterly",VLOOKUP(MONTH(Garantías_TTE_AS_PR!$D$12),$AS$84:$AY$95,5),(IF(LEFT(C101,SEARCH("-",C101,1)-1-1)="Monthly",VLOOKUP(MONTH(Garantías_TTE_AS_PR!$D$12),$AS$84:$AY$95,4),(IF(LEFT(C101,SEARCH("-",C101,1)-1-1)="Daily",VLOOKUP(MONTH(Garantías_TTE_AS_PR!$D$12),$AS$84:$AY$95,3),(IF(LEFT(C101,SEARCH("-",C101,1)-1-1)="Intraday",IF(O101=24,VLOOKUP(MONTH(Garantías_TTE_AS_PR!$D$12),$AS$84:$AY$95,3),VLOOKUP(MONTH(Garantías_TTE_AS_PR!$D$12),$AS$84:$AY$95,2)),""))))))))))) -> 1.35 | N101: =IF(Garantías_TTE_AS_PR!$D$8="Quarterly - Peaje RL.8",IFERROR(_xlfn.IFS(AND(Garantías_TTE_AS_PR!$D$12>=$BX$4,Garantías_TTE_AS_PR!$D$12<$BY$4),$BE$6,AND(Garantías_TTE_AS_PR!$D$12>=$BX$5,Garantías_TTE_AS_PR!$D$12<$BY$5),$BE$6,AND(Garantías_TTE_AS_PR!$D$12>=$BX$6,Garantías_TTE_AS_PR!$D$12<$BY$6),$BE$6,AND(Garantías_TTE_AS_PR!$D$12>=$BX$7,Garantías_TTE_AS_PR!$D$12<$BY$7),$BE$6,AND(Garantías_TTE_AS_PR!$D$12>=$BX$8,Garantías_TTE_AS_PR!$D$12<$BY$8),$BE$6),$BE$5),(IF(OR(YEAR(Garantías_TTE_AS_PR!$D$12)=2020,YEAR(Garantías_TTE_AS_PR!$D$12)=2024,YEAR(Garantías_TTE_AS_PR!$D$12)=2028,YEAR(Garantías_TTE_AS_PR!$D$12)=2032,YEAR(Garantías_TTE_AS_PR!$D$12)=2036,YEAR(Garantías_TTE_AS_PR!$D$12)=2040,YEAR(Garantías_TTE_AS_PR!$D$12)=2044,YEAR(Garantías_TTE_AS_PR!$D$12)=2048),$BE$6,$BE$5))) -> 365 | O101: =Garantías_TTE_AS_PR!$D$18 ->  | P101: 2 | Q101: =IF(Garantías_TTE_AS_PR!$D$11="Firm",1,IF(Garantías_TTE_AS_PR!$D$11="Uninterruptible",1,1)) -> 1 | S101: PVB exit to consumerQuarterly - Peaje RL.8 | T101: [((0,414838 + 0,091544 + 0,000076) x 1,35 x 1) / 365 + (0,000734 + 0,000137 x )] x 0 x 2 | AR101: February | AS101: 2 | AT101: 3.4 | AU101: 1.6 | AV101: 1.3 | AW101: 1.2 | AX101: 1 | AY101: 1
A102: Individualized services | B102: PVB exit to consumer | C102: Monthly - Peaje RL.8 | D102: =IF(Garantías_TTE_AS_PR!$D$10="","",Garantías_TTE_AS_PR!$D$10) ->  | E102: PVB exit to consumerMonthly - Peaje RL.8 | F102: [((Tfr+OCREG)x M x Cint) / den + (TV x D)] x Qa x FR | G102: =Garantías_TTE_AS_PR!$D$13 -> 0 | H102: =Garantías_TTE_AS_PR!$D$17 -> 0 | I102: 0.414838 | J102: 0.000734 | K102: 7.6e-05 | L102: 0 | M102: =IF(LEFT(C102,SEARCH("-",C102,1)-1-1)="Undefined",VLOOKUP(MONTH(Garantías_TTE_AS_PR!$D$12),$AS$84:$AY$95,7),(IF(LEFT(C102,SEARCH("-",C102,1)-1-1)="Annual",VLOOKUP(MONTH(Garantías_TTE_AS_PR!$D$12),$AS$84:$AY$95,6),(IF(LEFT(C102,SEARCH("-",C102,1)-1-1)="Quarterly",VLOOKUP(MONTH(Garantías_TTE_AS_PR!$D$12),$AS$84:$AY$95,5),(IF(LEFT(C102,SEARCH("-",C102,1)-1-1)="Monthly",VLOOKUP(MONTH(Garantías_TTE_AS_PR!$D$12),$AS$84:$AY$95,4),(IF(LEFT(C102,SEARCH("-",C102,1)-1-1)="Daily",VLOOKUP(MONTH(Garantías_TTE_AS_PR!$D$12),$AS$84:$AY$95,3),(IF(LEFT(C102,SEARCH("-",C102,1)-1-1)="Intraday",IF(O102=24,VLOOKUP(MONTH(Garantías_TTE_AS_PR!$D$12),$AS$84:$AY$95,3),VLOOKUP(MONTH(Garantías_TTE_AS_PR!$D$12),$AS$84:$AY$95,2)),""))))))))))) -> 1.73 | N102: =IF(Garantías_TTE_AS_PR!$D$8="Monthly - Peaje RL.8",IFERROR(_xlfn.IFS(AND(Garantías_TTE_AS_PR!$D$12>=$BX$4,Garantías_TTE_AS_PR!$D$12<$BY$4),$BE$6,AND(Garantías_TTE_AS_PR!$D$12>=$BX$5,Garantías_TTE_AS_PR!$D$12<$BY$5),$BE$6,AND(Garantías_TTE_AS_PR!$D$12>=$BX$6,Garantías_TTE_AS_PR!$D$12<$BY$6),$BE$6,AND(Garantías_TTE_AS_PR!$D$12>=$BX$7,Garantías_TTE_AS_PR!$D$12<$BY$7),$BE$6,AND(Garantías_TTE_AS_PR!$D$12>=$BX$8,Garantías_TTE_AS_PR!$D$12<$BY$8),$BE$6),$BE$5),(IF(OR(YEAR(Garantías_TTE_AS_PR!$D$12)=2020,YEAR(Garantías_TTE_AS_PR!$D$12)=2024,YEAR(Garantías_TTE_AS_PR!$D$12)=2028,YEAR(Garantías_TTE_AS_PR!$D$12)=2032,YEAR(Garantías_TTE_AS_PR!$D$12)=2036,YEAR(Garantías_TTE_AS_PR!$D$12)=2040,YEAR(Garantías_TTE_AS_PR!$D$12)=2044,YEAR(Garantías_TTE_AS_PR!$D$12)=2048),$BE$6,$BE$5))) -> 365 | O102: =Garantías_TTE_AS_PR!$D$18 ->  | P102: 1 | Q102: =IF(Garantías_TTE_AS_PR!$D$11="Firm",1,IF(Garantías_TTE_AS_PR!$D$11="Uninterruptible",1,1)) -> 1 | S102: PVB exit to consumerMonthly - Peaje RL.8 | T102: [((0,414838 + 0,091544 + 0,000076) x 1,73 x 1) / 365 + (0,000734 + 0,000137 x )] x 0 x 1 | AA102: =IF(AC102="","",CONCATENATE(AC102,AE102)) ->  | AR102: March | AS102: 3 | AT102: 3.4 | AU102: 1.6 | AV102: 1.3 | AW102: 1.2 | AX102: 1 | AY102: 1
A103: Individualized services | B103: PVB exit to consumer | C103: Daily - Peaje RL.8 | D103: =IF(Garantías_TTE_AS_PR!$D$10="","",Garantías_TTE_AS_PR!$D$10) ->  | E103: PVB exit to consumerDaily - Peaje RL.8 | F103: [((Tfr+OCREG)x M x Cint) / den + (TV x D)] x Qa x FR | G103: =Garantías_TTE_AS_PR!$D$13 -> 0 | H103: =Garantías_TTE_AS_PR!$D$17 -> 0 | I103: 0.414838 | J103: 0.000734 | K103: 7.6e-05 | L103: 0 | M103: =IF(LEFT(C103,SEARCH("-",C103,1)-1-1)="Undefined",VLOOKUP(MONTH(Garantías_TTE_AS_PR!$D$12),$AS$84:$AY$95,7),(IF(LEFT(C103,SEARCH("-",C103,1)-1-1)="Annual",VLOOKUP(MONTH(Garantías_TTE_AS_PR!$D$12),$AS$84:$AY$95,6),(IF(LEFT(C103,SEARCH("-",C103,1)-1-1)="Quarterly",VLOOKUP(MONTH(Garantías_TTE_AS_PR!$D$12),$AS$84:$AY$95,5),(IF(LEFT(C103,SEARCH("-",C103,1)-1-1)="Monthly",VLOOKUP(MONTH(Garantías_TTE_AS_PR!$D$12),$AS$84:$AY$95,4),(IF(LEFT(C103,SEARCH("-",C103,1)-1-1)="Daily",VLOOKUP(MONTH(Garantías_TTE_AS_PR!$D$12),$AS$84:$AY$95,3),(IF(LEFT(C103,SEARCH("-",C103,1)-1-1)="Intraday",IF(O103=24,VLOOKUP(MONTH(Garantías_TTE_AS_PR!$D$12),$AS$84:$AY$95,3),VLOOKUP(MONTH(Garantías_TTE_AS_PR!$D$12),$AS$84:$AY$95,2)),""))))))))))) -> 2.13 | N103: =IF(Garantías_TTE_AS_PR!$D$8="Daily - Peaje RL.8",IFERROR(_xlfn.IFS(AND(Garantías_TTE_AS_PR!$D$12>=$BX$4,Garantías_TTE_AS_PR!$D$12<$BY$4),$BE$6,AND(Garantías_TTE_AS_PR!$D$12>=$BX$5,Garantías_TTE_AS_PR!$D$12<$BY$5),$BE$6,AND(Garantías_TTE_AS_PR!$D$12>=$BX$6,Garantías_TTE_AS_PR!$D$12<$BY$6),$BE$6,AND(Garantías_TTE_AS_PR!$D$12>=$BX$7,Garantías_TTE_AS_PR!$D$12<$BY$7),$BE$6,AND(Garantías_TTE_AS_PR!$D$12>=$BX$8,Garantías_TTE_AS_PR!$D$12<$BY$8),$BE$6),$BE$5),(IF(OR(YEAR(Garantías_TTE_AS_PR!$D$12)=2020,YEAR(Garantías_TTE_AS_PR!$D$12)=2024,YEAR(Garantías_TTE_AS_PR!$D$12)=2028,YEAR(Garantías_TTE_AS_PR!$D$12)=2032,YEAR(Garantías_TTE_AS_PR!$D$12)=2036,YEAR(Garantías_TTE_AS_PR!$D$12)=2040,YEAR(Garantías_TTE_AS_PR!$D$12)=2044,YEAR(Garantías_TTE_AS_PR!$D$12)=2048),$BE$6,$BE$5))) -> 365 | O103: =Garantías_TTE_AS_PR!$D$18 ->  | P103: 1 | Q103: =IF(Garantías_TTE_AS_PR!$D$11="Firm",1,IF(Garantías_TTE_AS_PR!$D$11="Uninterruptible",1,1)) -> 1 | S103: PVB exit to consumerDaily - Peaje RL.8 | T103: [((0,414838 + 0,091544 + 0,000076) x 2,13 x 1) / 365 + (0,000734 + 0,000137 x )] x 0 x 1 | AR103: April | AS103: 4 | AT103: 3.4 | AU103: 1.6 | AV103: 1.3 | AW103: 1.2 | AX103: 1 | AY103: 1
A104: Individualized services | B104: PVB exit to consumer | C104: Intraday - Peaje RL.8 | D104: =IF(Garantías_TTE_AS_PR!$D$10="","",Garantías_TTE_AS_PR!$D$10) ->  | E104: =B104&C104 -> PVB exit to consumerIntraday - Peaje RL.8 | F104: [((Tfr+OCREG) x M x Cint) x (Qa x 24 / H) x H / den + (TV x Qa)] x FR | G104: =Garantías_TTE_AS_PR!$D$13 -> 0 | H104: =Garantías_TTE_AS_PR!$D$17 -> 0 | I104: 0.414838 | J104: 0.000734 | K104: 7.6e-05 | L104: 0 | M104: =IF(LEFT(C104,SEARCH("-",C104,1)-1-1)="Undefined",VLOOKUP(MONTH(Garantías_TTE_AS_PR!$D$12),$AS$84:$AY$95,7),(IF(LEFT(C104,SEARCH("-",C104,1)-1-1)="Annual",VLOOKUP(MONTH(Garantías_TTE_AS_PR!$D$12),$AS$84:$AY$95,6),(IF(LEFT(C104,SEARCH("-",C104,1)-1-1)="Quarterly",VLOOKUP(MONTH(Garantías_TTE_AS_PR!$D$12),$AS$84:$AY$95,5),(IF(LEFT(C104,SEARCH("-",C104,1)-1-1)="Monthly",VLOOKUP(MONTH(Garantías_TTE_AS_PR!$D$12),$AS$84:$AY$95,4),(IF(LEFT(C104,SEARCH("-",C104,1)-1-1)="Daily",VLOOKUP(MONTH(Garantías_TTE_AS_PR!$D$12),$AS$84:$AY$95,3),(IF(LEFT(C104,SEARCH("-",C104,1)-1-1)="Intraday",IF(O104=24,VLOOKUP(MONTH(Garantías_TTE_AS_PR!$D$12),$AS$84:$AY$95,3),VLOOKUP(MONTH(Garantías_TTE_AS_PR!$D$12),$AS$84:$AY$95,2)),""))))))))))) -> 4.54 | N104: =IF(Garantías_TTE_AS_PR!$D$8="Intraday - Peaje RL.8",IFERROR(_xlfn.IFS(AND(Garantías_TTE_AS_PR!$D$12>=$BX$4,Garantías_TTE_AS_PR!$D$12<$BY$4),$BE$8,AND(Garantías_TTE_AS_PR!$D$12>=$BX$5,Garantías_TTE_AS_PR!$D$12<$BY$5),$BE$8,AND(Garantías_TTE_AS_PR!$D$12>=$BX$6,Garantías_TTE_AS_PR!$D$12<$BY$6),$BE$8,AND(Garantías_TTE_AS_PR!$D$12>=$BX$7,Garantías_TTE_AS_PR!$D$12<$BY$7),$BE$8,AND(Garantías_TTE_AS_PR!$D$12>=$BX$8,Garantías_TTE_AS_PR!$D$12<$BY$8),$BE$8),$BE$7),(IF(OR(YEAR(Garantías_TTE_AS_PR!$D$12)=2020,YEAR(Garantías_TTE_AS_PR!$D$12)=2024,YEAR(Garantías_TTE_AS_PR!$D$12)=2028,YEAR(Garantías_TTE_AS_PR!$D$12)=2032,YEAR(Garantías_TTE_AS_PR!$D$12)=2036,YEAR(Garantías_TTE_AS_PR!$D$12)=2040,YEAR(Garantías_TTE_AS_PR!$D$12)=2044,YEAR(Garantías_TTE_AS_PR!$D$12)=2048),$BE$8,$BE$7))) -> 8760 | O104: =Garantías_TTE_AS_PR!$D$9 -> 0 | P104: 1 | Q104: =IF(Garantías_TTE_AS_PR!$D$11="Firm",1,IF(Garantías_TTE_AS_PR!$D$11="Uninterruptible",1,1)) -> 1 | R104: =ROUND((((I104+K104+$W$39)*M104*Q104+H104)/(N104/24)+(J104+$X$39))*G104*P104,2) -> 0 | S104: PVB exit to consumerIntraday - Peaje RL.8 | T104: =CONCATENATE("[((",I104," + ",$W$39," + ",K104,") x ",M104,") x (",Q104," / ",N104," x 24 / ",O104,") x ",O104," / ",N104," + (",J104," + ",$X$39," x ",O104,")] x ",P104) -> [((0,414838 + 0,091544 + 0,000076) x 4,54) x (1 / 8760 x 24 / 0) x 0 / 8760 + (0,000734 + 0,000137 x 0)] x 1 | AR104: May | AS104: 5 | AT104: 3.4 | AU104: 1.6 | AV104: 1.3 | AW104: 1.2 | AX104: 1 | AY104: 1
A105: Individualized services | B105: PVB exit to consumer | C105: Undefined - Peaje RL.9 | D105: =IF(Garantías_TTE_AS_PR!$D$10="","",Garantías_TTE_AS_PR!$D$10) ->  | E105: PVB exit to consumerUndefined - Peaje RL.9 | F105: [((Tfr+OCREG)x M x Cint) / den + (TV x D)] x Qa x FR | G105: =Garantías_TTE_AS_PR!$D$13 -> 0 | H105: =Garantías_TTE_AS_PR!$D$17 -> 0 | I105: 0.150377 | J105: 0.000495 | K105: 2.9e-05 | L105: 0 | M105: =IF(LEFT(C105,SEARCH("-",C105,1)-1-1)="Undefined",VLOOKUP(MONTH(Garantías_TTE_AS_PR!$D$12),$AS$84:$AY$95,7),(IF(LEFT(C105,SEARCH("-",C105,1)-1-1)="Annual",VLOOKUP(MONTH(Garantías_TTE_AS_PR!$D$12),$AS$84:$AY$95,6),(IF(LEFT(C105,SEARCH("-",C105,1)-1-1)="Quarterly",VLOOKUP(MONTH(Garantías_TTE_AS_PR!$D$12),$AS$84:$AY$95,5),(IF(LEFT(C105,SEARCH("-",C105,1)-1-1)="Monthly",VLOOKUP(MONTH(Garantías_TTE_AS_PR!$D$12),$AS$84:$AY$95,4),(IF(LEFT(C105,SEARCH("-",C105,1)-1-1)="Daily",VLOOKUP(MONTH(Garantías_TTE_AS_PR!$D$12),$AS$84:$AY$95,3),(IF(LEFT(C105,SEARCH("-",C105,1)-1-1)="Intraday",IF(O105=24,VLOOKUP(MONTH(Garantías_TTE_AS_PR!$D$12),$AS$84:$AY$95,3),VLOOKUP(MONTH(Garantías_TTE_AS_PR!$D$12),$AS$84:$AY$95,2)),""))))))))))) -> 1 | N105: =IF(Garantías_TTE_AS_PR!$D$8="Undefined - Peaje RL.9",$BE$5,$BE$6) -> 366 | O105: =Garantías_TTE_AS_PR!$D$18 ->  | P105: 2 | Q105: =IF(Garantías_TTE_AS_PR!$D$11="Firm",1,IF(Garantías_TTE_AS_PR!$D$11="Uninterruptible",1,1)) -> 1 | R105: =ROUND((((((I105+K105+$W$39)*M105*Q105))/N105+(J105+$X$39))*O105*G105*P105),2) ->  | S105: PVB exit to consumerUndefined - Peaje RL.9 | T105: =CONCATENATE("[((",I105," + ",$W$39," + ",K105,") x ",M105," x ",Q105,") / ",N105," + (",J105," + ",$X$39," x ",O105,")] x ",TEXT(G105,"#.##0")," x ",P105) -> [((0,150377 + 0,091544 + 0,000029) x 1 x 1) / 366 + (0,000495 + 0,000137 x )] x 0 x 2 | AR105: June | AS105: 6 | AT105: 3.4 | AU105: 1.6 | AV105: 1.3 | AW105: 1.2 | AX105: 1 | AY105: 1
A106: Individualized services | B106: PVB exit to consumer | C106: Annual - Peaje RL.9 | D106: =IF(Garantías_TTE_AS_PR!$D$10="","",Garantías_TTE_AS_PR!$D$10) ->  | E106: PVB exit to consumerAnnual - Peaje RL.9 | F106: [((Tfr+OCREG)x M x Cint) / den + (TV x D)] x Qa x FR | G106: =Garantías_TTE_AS_PR!$D$13 -> 0 | H106: =Garantías_TTE_AS_PR!$D$17 -> 0 | I106: 0.150377 | J106: 0.000495 | K106: 2.9e-05 | L106: 0 | M106: =IF(LEFT(C106,SEARCH("-",C106,1)-1-1)="Undefined",VLOOKUP(MONTH(Garantías_TTE_AS_PR!$D$12),$AS$84:$AY$95,7),(IF(LEFT(C106,SEARCH("-",C106,1)-1-1)="Annual",VLOOKUP(MONTH(Garantías_TTE_AS_PR!$D$12),$AS$84:$AY$95,6),(IF(LEFT(C106,SEARCH("-",C106,1)-1-1)="Quarterly",VLOOKUP(MONTH(Garantías_TTE_AS_PR!$D$12),$AS$84:$AY$95,5),(IF(LEFT(C106,SEARCH("-",C106,1)-1-1)="Monthly",VLOOKUP(MONTH(Garantías_TTE_AS_PR!$D$12),$AS$84:$AY$95,4),(IF(LEFT(C106,SEARCH("-",C106,1)-1-1)="Daily",VLOOKUP(MONTH(Garantías_TTE_AS_PR!$D$12),$AS$84:$AY$95,3),(IF(LEFT(C106,SEARCH("-",C106,1)-1-1)="Intraday",IF(O106=24,VLOOKUP(MONTH(Garantías_TTE_AS_PR!$D$12),$AS$84:$AY$95,3),VLOOKUP(MONTH(Garantías_TTE_AS_PR!$D$12),$AS$84:$AY$95,2)),""))))))))))) -> 1 | N106: =IF(Garantías_TTE_AS_PR!$D$8="Annual - Peaje RL.9",IFERROR(_xlfn.IFS(AND(Garantías_TTE_AS_PR!$D$12>=$BV$4,Garantías_TTE_AS_PR!$D$12<$BW$4),$BE$6,AND(Garantías_TTE_AS_PR!$D$12>=$BV$5,Garantías_TTE_AS_PR!$D$12<$BW$5),$BE$6,AND(Garantías_TTE_AS_PR!$D$12>=$BV$6,Garantías_TTE_AS_PR!$D$12<$BW$6),$BE$6,AND(Garantías_TTE_AS_PR!$D$12>=$BV$7,Garantías_TTE_AS_PR!$D$12<$BW$7),$BE$6,AND(Garantías_TTE_AS_PR!$D$12>=$BV$8,Garantías_TTE_AS_PR!$D$12<$BW$8),$BE$6),$BE$5),(IF(OR(YEAR(Garantías_TTE_AS_PR!$D$12)=2020,YEAR(Garantías_TTE_AS_PR!$D$12)=2024,YEAR(Garantías_TTE_AS_PR!$D$12)=2028,YEAR(Garantías_TTE_AS_PR!$D$12)=2032,YEAR(Garantías_TTE_AS_PR!$D$12)=2036,YEAR(Garantías_TTE_AS_PR!$D$12)=2040,YEAR(Garantías_TTE_AS_PR!$D$12)=2044,YEAR(Garantías_TTE_AS_PR!$D$12)=2048),$BE$6,$BE$5))) -> 365 | O106: =Garantías_TTE_AS_PR!$D$18 ->  | P106: 2 | Q106: =IF(Garantías_TTE_AS_PR!$D$11="Firm",1,IF(Garantías_TTE_AS_PR!$D$11="Uninterruptible",1,1)) -> 1 | S106: =B106&C106 -> PVB exit to consumerAnnual - Peaje RL.9 | T106: [((0,150377 + 0,091544 + 0,000029) x 1 x 1) / 365 + (0,000495 + 0,000137 x )] x 0 x 2 | AR106: July | AS106: 7 | AT106: 3.4 | AU106: 1.6 | AV106: 1.3 | AW106: 1.2 | AX106: 1 | AY106: 1
A107: Individualized services | B107: PVB exit to consumer | C107: Quarterly - Peaje RL.9 | D107: =IF(Garantías_TTE_AS_PR!$D$10="","",Garantías_TTE_AS_PR!$D$10) ->  | E107: PVB exit to consumerQuarterly - Peaje RL.9 | F107: [((Tfr+OCREG)x M x Cint) / den + (TV x D)] x Qa x FR | G107: =Garantías_TTE_AS_PR!$D$13 -> 0 | H107: =Garantías_TTE_AS_PR!$D$17 -> 0 | I107: 0.150377 | J107: 0.000495 | K107: 2.9e-05 | L107: 0 | M107: =IF(LEFT(C107,SEARCH("-",C107,1)-1-1)="Undefined",VLOOKUP(MONTH(Garantías_TTE_AS_PR!$D$12),$AS$84:$AY$95,7),(IF(LEFT(C107,SEARCH("-",C107,1)-1-1)="Annual",VLOOKUP(MONTH(Garantías_TTE_AS_PR!$D$12),$AS$84:$AY$95,6),(IF(LEFT(C107,SEARCH("-",C107,1)-1-1)="Quarterly",VLOOKUP(MONTH(Garantías_TTE_AS_PR!$D$12),$AS$84:$AY$95,5),(IF(LEFT(C107,SEARCH("-",C107,1)-1-1)="Monthly",VLOOKUP(MONTH(Garantías_TTE_AS_PR!$D$12),$AS$84:$AY$95,4),(IF(LEFT(C107,SEARCH("-",C107,1)-1-1)="Daily",VLOOKUP(MONTH(Garantías_TTE_AS_PR!$D$12),$AS$84:$AY$95,3),(IF(LEFT(C107,SEARCH("-",C107,1)-1-1)="Intraday",IF(O107=24,VLOOKUP(MONTH(Garantías_TTE_AS_PR!$D$12),$AS$84:$AY$95,3),VLOOKUP(MONTH(Garantías_TTE_AS_PR!$D$12),$AS$84:$AY$95,2)),""))))))))))) -> 1.35 | N107: =IF(Garantías_TTE_AS_PR!$D$8="Quarterly - Peaje RL.9",IFERROR(_xlfn.IFS(AND(Garantías_TTE_AS_PR!$D$12>=$BX$4,Garantías_TTE_AS_PR!$D$12<$BY$4),$BE$6,AND(Garantías_TTE_AS_PR!$D$12>=$BX$5,Garantías_TTE_AS_PR!$D$12<$BY$5),$BE$6,AND(Garantías_TTE_AS_PR!$D$12>=$BX$6,Garantías_TTE_AS_PR!$D$12<$BY$6),$BE$6,AND(Garantías_TTE_AS_PR!$D$12>=$BX$7,Garantías_TTE_AS_PR!$D$12<$BY$7),$BE$6,AND(Garantías_TTE_AS_PR!$D$12>=$BX$8,Garantías_TTE_AS_PR!$D$12<$BY$8),$BE$6),$BE$5),(IF(OR(YEAR(Garantías_TTE_AS_PR!$D$12)=2020,YEAR(Garantías_TTE_AS_PR!$D$12)=2024,YEAR(Garantías_TTE_AS_PR!$D$12)=2028,YEAR(Garantías_TTE_AS_PR!$D$12)=2032,YEAR(Garantías_TTE_AS_PR!$D$12)=2036,YEAR(Garantías_TTE_AS_PR!$D$12)=2040,YEAR(Garantías_TTE_AS_PR!$D$12)=2044,YEAR(Garantías_TTE_AS_PR!$D$12)=2048),$BE$6,$BE$5))) -> 365 | O107: =Garantías_TTE_AS_PR!$D$18 ->  | P107: 2 | Q107: =IF(Garantías_TTE_AS_PR!$D$11="Firm",1,IF(Garantías_TTE_AS_PR!$D$11="Uninterruptible",1,1)) -> 1 | S107: PVB exit to consumerQuarterly - Peaje RL.9 | T107: [((0,150377 + 0,091544 + 0,000029) x 1,35 x 1) / 365 + (0,000495 + 0,000137 x )] x 0 x 2 | AR107: August | AS107: 8 | AT107: 3.4 | AU107: 1.6 | AV107: 1.3 | AW107: 1.2 | AX107: 1 | AY107: 1
A108: Individualized services | B108: PVB exit to consumer | C108: Monthly - Peaje RL.9 | D108: =IF(Garantías_TTE_AS_PR!$D$10="","",Garantías_TTE_AS_PR!$D$10) ->  | E108: PVB exit to consumerMonthly - Peaje RL.9 | F108: [((Tfr+OCREG)x M x Cint) / den + (TV x D)] x Qa x FR | G108: =Garantías_TTE_AS_PR!$D$13 -> 0 | H108: =Garantías_TTE_AS_PR!$D$17 -> 0 | I108: 0.150377 | J108: 0.000495 | K108: 2.9e-05 | L108: 0 | M108: =IF(LEFT(C108,SEARCH("-",C108,1)-1-1)="Undefined",VLOOKUP(MONTH(Garantías_TTE_AS_PR!$D$12),$AS$84:$AY$95,7),(IF(LEFT(C108,SEARCH("-",C108,1)-1-1)="Annual",VLOOKUP(MONTH(Garantías_TTE_AS_PR!$D$12),$AS$84:$AY$95,6),(IF(LEFT(C108,SEARCH("-",C108,1)-1-1)="Quarterly",VLOOKUP(MONTH(Garantías_TTE_AS_PR!$D$12),$AS$84:$AY$95,5),(IF(LEFT(C108,SEARCH("-",C108,1)-1-1)="Monthly",VLOOKUP(MONTH(Garantías_TTE_AS_PR!$D$12),$AS$84:$AY$95,4),(IF(LEFT(C108,SEARCH("-",C108,1)-1-1)="Daily",VLOOKUP(MONTH(Garantías_TTE_AS_PR!$D$12),$AS$84:$AY$95,3),(IF(LEFT(C108,SEARCH("-",C108,1)-1-1)="Intraday",IF(O108=24,VLOOKUP(MONTH(Garantías_TTE_AS_PR!$D$12),$AS$84:$AY$95,3),VLOOKUP(MONTH(Garantías_TTE_AS_PR!$D$12),$AS$84:$AY$95,2)),""))))))))))) -> 1.73 | N108: =IF(Garantías_TTE_AS_PR!$D$8="Monthly - Peaje RL.9",IFERROR(_xlfn.IFS(AND(Garantías_TTE_AS_PR!$D$12>=$BX$4,Garantías_TTE_AS_PR!$D$12<$BY$4),$BE$6,AND(Garantías_TTE_AS_PR!$D$12>=$BX$5,Garantías_TTE_AS_PR!$D$12<$BY$5),$BE$6,AND(Garantías_TTE_AS_PR!$D$12>=$BX$6,Garantías_TTE_AS_PR!$D$12<$BY$6),$BE$6,AND(Garantías_TTE_AS_PR!$D$12>=$BX$7,Garantías_TTE_AS_PR!$D$12<$BY$7),$BE$6,AND(Garantías_TTE_AS_PR!$D$12>=$BX$8,Garantías_TTE_AS_PR!$D$12<$BY$8),$BE$6),$BE$5),(IF(OR(YEAR(Garantías_TTE_AS_PR!$D$12)=2020,YEAR(Garantías_TTE_AS_PR!$D$12)=2024,YEAR(Garantías_TTE_AS_PR!$D$12)=2028,YEAR(Garantías_TTE_AS_PR!$D$12)=2032,YEAR(Garantías_TTE_AS_PR!$D$12)=2036,YEAR(Garantías_TTE_AS_PR!$D$12)=2040,YEAR(Garantías_TTE_AS_PR!$D$12)=2044,YEAR(Garantías_TTE_AS_PR!$D$12)=2048),$BE$6,$BE$5))) -> 365 | O108: =Garantías_TTE_AS_PR!$D$18 ->  | P108: 1 | Q108: =IF(Garantías_TTE_AS_PR!$D$11="Firm",1,IF(Garantías_TTE_AS_PR!$D$11="Uninterruptible",1,1)) -> 1 | S108: PVB exit to consumerMonthly - Peaje RL.9 | T108: [((0,150377 + 0,091544 + 0,000029) x 1,73 x 1) / 365 + (0,000495 + 0,000137 x )] x 0 x 1 | AR108: September | AS108: 9 | AT108: 3.4 | AU108: 1.6 | AV108: 1.3 | AW108: 1.2 | AX108: 1 | AY108: 1
A109: Individualized services | B109: PVB exit to consumer | C109: Daily - Peaje RL.9 | D109: =IF(Garantías_TTE_AS_PR!$D$10="","",Garantías_TTE_AS_PR!$D$10) ->  | E109: PVB exit to consumerDaily - Peaje RL.9 | F109: [((Tfr+OCREG)x M x Cint) / den + (TV x D)] x Qa x FR | G109: =Garantías_TTE_AS_PR!$D$13 -> 0 | H109: =Garantías_TTE_AS_PR!$D$17 -> 0 | I109: 0.150377 | J109: 0.000495 | K109: 2.9e-05 | L109: 0 | M109: =IF(LEFT(C109,SEARCH("-",C109,1)-1-1)="Undefined",VLOOKUP(MONTH(Garantías_TTE_AS_PR!$D$12),$AS$84:$AY$95,7),(IF(LEFT(C109,SEARCH("-",C109,1)-1-1)="Annual",VLOOKUP(MONTH(Garantías_TTE_AS_PR!$D$12),$AS$84:$AY$95,6),(IF(LEFT(C109,SEARCH("-",C109,1)-1-1)="Quarterly",VLOOKUP(MONTH(Garantías_TTE_AS_PR!$D$12),$AS$84:$AY$95,5),(IF(LEFT(C109,SEARCH("-",C109,1)-1-1)="Monthly",VLOOKUP(MONTH(Garantías_TTE_AS_PR!$D$12),$AS$84:$AY$95,4),(IF(LEFT(C109,SEARCH("-",C109,1)-1-1)="Daily",VLOOKUP(MONTH(Garantías_TTE_AS_PR!$D$12),$AS$84:$AY$95,3),(IF(LEFT(C109,SEARCH("-",C109,1)-1-1)="Intraday",IF(O109=24,VLOOKUP(MONTH(Garantías_TTE_AS_PR!$D$12),$AS$84:$AY$95,3),VLOOKUP(MONTH(Garantías_TTE_AS_PR!$D$12),$AS$84:$AY$95,2)),""))))))))))) -> 2.13 | N109: =IF(Garantías_TTE_AS_PR!$D$8="Daily - Peaje RL.9",IFERROR(_xlfn.IFS(AND(Garantías_TTE_AS_PR!$D$12>=$BX$4,Garantías_TTE_AS_PR!$D$12<$BY$4),$BE$6,AND(Garantías_TTE_AS_PR!$D$12>=$BX$5,Garantías_TTE_AS_PR!$D$12<$BY$5),$BE$6,AND(Garantías_TTE_AS_PR!$D$12>=$BX$6,Garantías_TTE_AS_PR!$D$12<$BY$6),$BE$6,AND(Garantías_TTE_AS_PR!$D$12>=$BX$7,Garantías_TTE_AS_PR!$D$12<$BY$7),$BE$6,AND(Garantías_TTE_AS_PR!$D$12>=$BX$8,Garantías_TTE_AS_PR!$D$12<$BY$8),$BE$6),$BE$5),(IF(OR(YEAR(Garantías_TTE_AS_PR!$D$12)=2020,YEAR(Garantías_TTE_AS_PR!$D$12)=2024,YEAR(Garantías_TTE_AS_PR!$D$12)=2028,YEAR(Garantías_TTE_AS_PR!$D$12)=2032,YEAR(Garantías_TTE_AS_PR!$D$12)=2036,YEAR(Garantías_TTE_AS_PR!$D$12)=2040,YEAR(Garantías_TTE_AS_PR!$D$12)=2044,YEAR(Garantías_TTE_AS_PR!$D$12)=2048),$BE$6,$BE$5))) -> 365 | O109: =Garantías_TTE_AS_PR!$D$18 ->  | P109: =VLOOKUP(LEFT(C109,SEARCH("-",C109,1)-1-1),$BA$4:$BB$51,2,FALSE) -> 1 | Q109: =IF(Garantías_TTE_AS_PR!$D$11="Firm",1,IF(Garantías_TTE_AS_PR!$D$11="Uninterruptible",1,1)) -> 1 | R109: =ROUND((((((I109+K109+$W$39)*M109*Q109))/N109+(J109+$X$39))*O109*G109*P109),2) ->  | S109: PVB exit to consumerDaily - Peaje RL.9 | T109: [((0,150377 + 0,091544 + 0,000029) x 2,13 x 1) / 365 + (0,000495 + 0,000137 x )] x 0 x 1 | AR109: October | AS109: 10 | AT109: 3.4 | AU109: 1.6 | AV109: 1.3 | AW109: 1.2 | AX109: 1 | AY109: 1
A110: Individualized services | B110: PVB exit to consumer | C110: Intraday - Peaje RL.9 | D110: =IF(Garantías_TTE_AS_PR!$D$10="","",Garantías_TTE_AS_PR!$D$10) ->  | E110: PVB exit to consumerIntraday - Peaje RL.9 | F110: [((Tfr+OCREG) x M x Cint) x (Qa x 24 / H) x H / den + (TV x Qa)] x FR | G110: =Garantías_TTE_AS_PR!$D$13 -> 0 | H110: =Garantías_TTE_AS_PR!$D$17 -> 0 | I110: 0.150377 | J110: 0.000495 | K110: 2.9e-05 | L110: 0 | M110: =IF(LEFT(C110,SEARCH("-",C110,1)-1-1)="Undefined",VLOOKUP(MONTH(Garantías_TTE_AS_PR!$D$12),$AS$84:$AY$95,7),(IF(LEFT(C110,SEARCH("-",C110,1)-1-1)="Annual",VLOOKUP(MONTH(Garantías_TTE_AS_PR!$D$12),$AS$84:$AY$95,6),(IF(LEFT(C110,SEARCH("-",C110,1)-1-1)="Quarterly",VLOOKUP(MONTH(Garantías_TTE_AS_PR!$D$12),$AS$84:$AY$95,5),(IF(LEFT(C110,SEARCH("-",C110,1)-1-1)="Monthly",VLOOKUP(MONTH(Garantías_TTE_AS_PR!$D$12),$AS$84:$AY$95,4),(IF(LEFT(C110,SEARCH("-",C110,1)-1-1)="Daily",VLOOKUP(MONTH(Garantías_TTE_AS_PR!$D$12),$AS$84:$AY$95,3),(IF(LEFT(C110,SEARCH("-",C110,1)-1-1)="Intraday",IF(O110=24,VLOOKUP(MONTH(Garantías_TTE_AS_PR!$D$12),$AS$84:$AY$95,3),VLOOKUP(MONTH(Garantías_TTE_AS_PR!$D$12),$AS$84:$AY$95,2)),""))))))))))) -> 4.54 | N110: =IF(Garantías_TTE_AS_PR!$D$8="Intraday - Peaje RL.9",IFERROR(_xlfn.IFS(AND(Garantías_TTE_AS_PR!$D$12>=$BX$4,Garantías_TTE_AS_PR!$D$12<$BY$4),$BE$8,AND(Garantías_TTE_AS_PR!$D$12>=$BX$5,Garantías_TTE_AS_PR!$D$12<$BY$5),$BE$8,AND(Garantías_TTE_AS_PR!$D$12>=$BX$6,Garantías_TTE_AS_PR!$D$12<$BY$6),$BE$8,AND(Garantías_TTE_AS_PR!$D$12>=$BX$7,Garantías_TTE_AS_PR!$D$12<$BY$7),$BE$8,AND(Garantías_TTE_AS_PR!$D$12>=$BX$8,Garantías_TTE_AS_PR!$D$12<$BY$8),$BE$8),$BE$7),(IF(OR(YEAR(Garantías_TTE_AS_PR!$D$12)=2020,YEAR(Garantías_TTE_AS_PR!$D$12)=2024,YEAR(Garantías_TTE_AS_PR!$D$12)=2028,YEAR(Garantías_TTE_AS_PR!$D$12)=2032,YEAR(Garantías_TTE_AS_PR!$D$12)=2036,YEAR(Garantías_TTE_AS_PR!$D$12)=2040,YEAR(Garantías_TTE_AS_PR!$D$12)=2044,YEAR(Garantías_TTE_AS_PR!$D$12)=2048),$BE$8,$BE$7))) -> 8760 | O110: =Garantías_TTE_AS_PR!$D$9 -> 0 | P110: 1 | Q110: =IF(Garantías_TTE_AS_PR!$D$11="Firm",1,IF(Garantías_TTE_AS_PR!$D$11="Uninterruptible",1,1)) -> 1 | R110: =ROUND((((I110+K110+$W$39)*M110*Q110+H110)/(N110/24)+(J110+$X$39))*G110*P110,2) -> 0 | S110: PVB exit to consumerIntraday - Peaje RL.9 | T110: =CONCATENATE("[((",I110," + ",$W$39," + ",K110,") x ",M110,") x (",Q110," / ",N110," x 24 / ",O110,") x ",O110," / ",N110," + (",J110," + ",$X$39," x ",O110,")] x ",P110) -> [((0,150377 + 0,091544 + 0,000029) x 4,54) x (1 / 8760 x 24 / 0) x 0 / 8760 + (0,000495 + 0,000137 x 0)] x 1 | AR110: November | AS110: 11 | AT110: 3.4 | AU110: 1.6 | AV110: 1.3 | AW110: 1.2 | AX110: 1 | AY110: 1
A111: Individualized services | B111: PVB exit to consumer | C111: Undefined - Peaje RL.10 | D111: =IF(Garantías_TTE_AS_PR!$D$10="","",Garantías_TTE_AS_PR!$D$10) ->  | E111: PVB exit to consumerUndefined - Peaje RL.10 | F111: [((Tfr+OCREG)x M x Cint) / den + (TV x D)] x Qa x FR | G111: =Garantías_TTE_AS_PR!$D$13 -> 0 | H111: =Garantías_TTE_AS_PR!$D$17 -> 0 | I111: =VLOOKUP(CONCATENATE(SCON,RIGHT(C111,5)),$AA$4:$AJ$220,6,FALSE) -> 0.150328 | J111: =VLOOKUP(CONCATENATE(SCON,RIGHT(C111,5)),$AA$4:$AJ$220,8,FALSE) -> 0.000396 | K111: =VLOOKUP(CONCATENATE(SCON,RIGHT(C111,5)),$AA$4:$AL$220,12,FALSE) -> 1.1e-05 | L111: =VLOOKUP(CONCATENATE(SCON,RIGHT(C111,5)),$AA$4:$AN$221,14,FALSE) -> 0 | M111: =IF(LEFT(C111,SEARCH("-",C111,1)-1-1)="Undefined",VLOOKUP(MONTH(Garantías_TTE_AS_PR!$D$12),$AS$84:$AY$95,7),(IF(LEFT(C111,SEARCH("-",C111,1)-1-1)="Annual",VLOOKUP(MONTH(Garantías_TTE_AS_PR!$D$12),$AS$84:$AY$95,6),(IF(LEFT(C111,SEARCH("-",C111,1)-1-1)="Quarterly",VLOOKUP(MONTH(Garantías_TTE_AS_PR!$D$12),$AS$84:$AY$95,5),(IF(LEFT(C111,SEARCH("-",C111,1)-1-1)="Monthly",VLOOKUP(MONTH(Garantías_TTE_AS_PR!$D$12),$AS$84:$AY$95,4),(IF(LEFT(C111,SEARCH("-",C111,1)-1-1)="Daily",VLOOKUP(MONTH(Garantías_TTE_AS_PR!$D$12),$AS$84:$AY$95,3),(IF(LEFT(C111,SEARCH("-",C111,1)-1-1)="Intraday",IF(O111=24,VLOOKUP(MONTH(Garantías_TTE_AS_PR!$D$12),$AS$84:$AY$95,3),VLOOKUP(MONTH(Garantías_TTE_AS_PR!$D$12),$AS$84:$AY$95,2)),""))))))))))) -> 1 | N111: =IF(Garantías_TTE_AS_PR!$D$8="Undefined - Peaje RL.10",$BE$5,$BE$6) -> 366 | O111: =Garantías_TTE_AS_PR!$D$18 ->  | P111: 2 | Q111: =IF(Garantías_TTE_AS_PR!$D$11="Firm",1,IF(Garantías_TTE_AS_PR!$D$11="Uninterruptible",1,1)) -> 1 | R111: =ROUND((((((I111+K111+$W$39)*M111*Q111))/N111+(J111+$X$39))*O111*G111*P111),2) ->  | S111: PVB exit to consumerUndefined - Peaje RL.10 | T111: =CONCATENATE("[((",I111," + ",$W$39," + ",K111,") x ",M111," x ",Q111,") / ",N111," + (",J111," + ",$X$39," x ",O111,")] x ",TEXT(G111,"#.##0")," x ",P111) -> [((0,150328 + 0,091544 + 0,000011) x 1 x 1) / 366 + (0,000396 + 0,000137 x )] x 0 x 2 | AR111: December | AS111: 12 | AT111: 3.4 | AU111: 1.6 | AV111: 1.3 | AW111: 1.2 | AX111: 1 | AY111: 1
A112: Individualized services | B112: PVB exit to consumer | C112: Annual - Peaje RL.10 | D112: =IF(Garantías_TTE_AS_PR!$D$10="","",Garantías_TTE_AS_PR!$D$10) ->  | E112: PVB exit to consumerAnnual - Peaje RL.10 | F112: [((Tfr+OCREG)x M x Cint) / den + (TV x D)] x Qa x FR | G112: =Garantías_TTE_AS_PR!$D$13 -> 0 | H112: =Garantías_TTE_AS_PR!$D$17 -> 0 | I112: 0.150328 | J112: 0.000396 | K112: 1.1e-05 | L112: 0 | M112: =IF(LEFT(C112,SEARCH("-",C112,1)-1-1)="Undefined",VLOOKUP(MONTH(Garantías_TTE_AS_PR!$D$12),$AS$84:$AY$95,7),(IF(LEFT(C112,SEARCH("-",C112,1)-1-1)="Annual",VLOOKUP(MONTH(Garantías_TTE_AS_PR!$D$12),$AS$84:$AY$95,6),(IF(LEFT(C112,SEARCH("-",C112,1)-1-1)="Quarterly",VLOOKUP(MONTH(Garantías_TTE_AS_PR!$D$12),$AS$84:$AY$95,5),(IF(LEFT(C112,SEARCH("-",C112,1)-1-1)="Monthly",VLOOKUP(MONTH(Garantías_TTE_AS_PR!$D$12),$AS$84:$AY$95,4),(IF(LEFT(C112,SEARCH("-",C112,1)-1-1)="Daily",VLOOKUP(MONTH(Garantías_TTE_AS_PR!$D$12),$AS$84:$AY$95,3),(IF(LEFT(C112,SEARCH("-",C112,1)-1-1)="Intraday",IF(O112=24,VLOOKUP(MONTH(Garantías_TTE_AS_PR!$D$12),$AS$84:$AY$95,3),VLOOKUP(MONTH(Garantías_TTE_AS_PR!$D$12),$AS$84:$AY$95,2)),""))))))))))) -> 1 | N112: =IF(Garantías_TTE_AS_PR!$D$8="Annual - Peaje RL.10",IFERROR(_xlfn.IFS(AND(Garantías_TTE_AS_PR!$D$12>=$BV$4,Garantías_TTE_AS_PR!$D$12<$BW$4),$BE$6,AND(Garantías_TTE_AS_PR!$D$12>=$BV$5,Garantías_TTE_AS_PR!$D$12<$BW$5),$BE$6,AND(Garantías_TTE_AS_PR!$D$12>=$BV$6,Garantías_TTE_AS_PR!$D$12<$BW$6),$BE$6,AND(Garantías_TTE_AS_PR!$D$12>=$BV$7,Garantías_TTE_AS_PR!$D$12<$BW$7),$BE$6,AND(Garantías_TTE_AS_PR!$D$12>=$BV$8,Garantías_TTE_AS_PR!$D$12<$BW$8),$BE$6),$BE$5),(IF(OR(YEAR(Garantías_TTE_AS_PR!$D$12)=2020,YEAR(Garantías_TTE_AS_PR!$D$12)=2024,YEAR(Garantías_TTE_AS_PR!$D$12)=2028,YEAR(Garantías_TTE_AS_PR!$D$12)=2032,YEAR(Garantías_TTE_AS_PR!$D$12)=2036,YEAR(Garantías_TTE_AS_PR!$D$12)=2040,YEAR(Garantías_TTE_AS_PR!$D$12)=2044,YEAR(Garantías_TTE_AS_PR!$D$12)=2048),$BE$6,$BE$5))) -> 365 | O112: =Garantías_TTE_AS_PR!$D$18 ->  | P112: 2 | Q112: =IF(Garantías_TTE_AS_PR!$D$11="Firm",1,IF(Garantías_TTE_AS_PR!$D$11="Uninterruptible",1,1)) -> 1 | S112: PVB exit to consumerAnnual - Peaje RL.10 | T112: [((0,150328 + 0,091544 + 0,000011) x 1 x 1) / 365 + (0,000396 + 0,000137 x )] x 0 x 2
A113: Individualized services | B113: PVB exit to consumer | C113: Quarterly - Peaje RL.10 | D113: =IF(Garantías_TTE_AS_PR!$D$10="","",Garantías_TTE_AS_PR!$D$10) ->  | E113: PVB exit to consumerQuarterly - Peaje RL.10 | F113: [((Tfr+OCREG)x M x Cint) / den + (TV x D)] x Qa x FR | G113: =Garantías_TTE_AS_PR!$D$13 -> 0 | H113: =Garantías_TTE_AS_PR!$D$17 -> 0 | I113: 0.150328 | J113: 0.000396 | K113: 1.1e-05 | L113: 0 | M113: =IF(LEFT(C113,SEARCH("-",C113,1)-1-1)="Undefined",VLOOKUP(MONTH(Garantías_TTE_AS_PR!$D$12),$AS$84:$AY$95,7),(IF(LEFT(C113,SEARCH("-",C113,1)-1-1)="Annual",VLOOKUP(MONTH(Garantías_TTE_AS_PR!$D$12),$AS$84:$AY$95,6),(IF(LEFT(C113,SEARCH("-",C113,1)-1-1)="Quarterly",VLOOKUP(MONTH(Garantías_TTE_AS_PR!$D$12),$AS$84:$AY$95,5),(IF(LEFT(C113,SEARCH("-",C113,1)-1-1)="Monthly",VLOOKUP(MONTH(Garantías_TTE_AS_PR!$D$12),$AS$84:$AY$95,4),(IF(LEFT(C113,SEARCH("-",C113,1)-1-1)="Daily",VLOOKUP(MONTH(Garantías_TTE_AS_PR!$D$12),$AS$84:$AY$95,3),(IF(LEFT(C113,SEARCH("-",C113,1)-1-1)="Intraday",IF(O113=24,VLOOKUP(MONTH(Garantías_TTE_AS_PR!$D$12),$AS$84:$AY$95,3),VLOOKUP(MONTH(Garantías_TTE_AS_PR!$D$12),$AS$84:$AY$95,2)),""))))))))))) -> 1.35 | N113: =IF(Garantías_TTE_AS_PR!$D$8="Quarterly - Peaje RL.10",IFERROR(_xlfn.IFS(AND(Garantías_TTE_AS_PR!$D$12>=$BX$4,Garantías_TTE_AS_PR!$D$12<$BY$4),$BE$6,AND(Garantías_TTE_AS_PR!$D$12>=$BX$5,Garantías_TTE_AS_PR!$D$12<$BY$5),$BE$6,AND(Garantías_TTE_AS_PR!$D$12>=$BX$6,Garantías_TTE_AS_PR!$D$12<$BY$6),$BE$6,AND(Garantías_TTE_AS_PR!$D$12>=$BX$7,Garantías_TTE_AS_PR!$D$12<$BY$7),$BE$6,AND(Garantías_TTE_AS_PR!$D$12>=$BX$8,Garantías_TTE_AS_PR!$D$12<$BY$8),$BE$6),$BE$5),(IF(OR(YEAR(Garantías_TTE_AS_PR!$D$12)=2020,YEAR(Garantías_TTE_AS_PR!$D$12)=2024,YEAR(Garantías_TTE_AS_PR!$D$12)=2028,YEAR(Garantías_TTE_AS_PR!$D$12)=2032,YEAR(Garantías_TTE_AS_PR!$D$12)=2036,YEAR(Garantías_TTE_AS_PR!$D$12)=2040,YEAR(Garantías_TTE_AS_PR!$D$12)=2044,YEAR(Garantías_TTE_AS_PR!$D$12)=2048),$BE$6,$BE$5))) -> 365 | O113: =Garantías_TTE_AS_PR!$D$18 ->  | P113: =VLOOKUP(LEFT(C113,SEARCH("-",C113,1)-1-1),$BA$4:$BB$51,2,FALSE) -> 2 | Q113: =IF(Garantías_TTE_AS_PR!$D$11="Firm",1,IF(Garantías_TTE_AS_PR!$D$11="Uninterruptible",1,1)) -> 1 | S113: PVB exit to consumerQuarterly - Peaje RL.10 | T113: [((0,150328 + 0,091544 + 0,000011) x 1,35 x 1) / 365 + (0,000396 + 0,000137 x )] x 0 x 2 | AQ113: Administración PEAJES. Entrada a transporte
A114: Individualized services | B114: PVB exit to consumer | C114: Monthly - Peaje RL.10 | D114: =IF(Garantías_TTE_AS_PR!$D$10="","",Garantías_TTE_AS_PR!$D$10) ->  | E114: PVB exit to consumerMonthly - Peaje RL.10 | F114: [((Tfr+OCREG)x M x Cint) / den + (TV x D)] x Qa x FR | G114: =Garantías_TTE_AS_PR!$D$13 -> 0 | H114: =Garantías_TTE_AS_PR!$D$17 -> 0 | I114: 0.150328 | J114: 0.000396 | K114: 1.1e-05 | L114: 0 | M114: =IF(LEFT(C114,SEARCH("-",C114,1)-1-1)="Undefined",VLOOKUP(MONTH(Garantías_TTE_AS_PR!$D$12),$AS$84:$AY$95,7),(IF(LEFT(C114,SEARCH("-",C114,1)-1-1)="Annual",VLOOKUP(MONTH(Garantías_TTE_AS_PR!$D$12),$AS$84:$AY$95,6),(IF(LEFT(C114,SEARCH("-",C114,1)-1-1)="Quarterly",VLOOKUP(MONTH(Garantías_TTE_AS_PR!$D$12),$AS$84:$AY$95,5),(IF(LEFT(C114,SEARCH("-",C114,1)-1-1)="Monthly",VLOOKUP(MONTH(Garantías_TTE_AS_PR!$D$12),$AS$84:$AY$95,4),(IF(LEFT(C114,SEARCH("-",C114,1)-1-1)="Daily",VLOOKUP(MONTH(Garantías_TTE_AS_PR!$D$12),$AS$84:$AY$95,3),(IF(LEFT(C114,SEARCH("-",C114,1)-1-1)="Intraday",IF(O114=24,VLOOKUP(MONTH(Garantías_TTE_AS_PR!$D$12),$AS$84:$AY$95,3),VLOOKUP(MONTH(Garantías_TTE_AS_PR!$D$12),$AS$84:$AY$95,2)),""))))))))))) -> 1.73 | N114: =IF(Garantías_TTE_AS_PR!$D$8="Monthly - Peaje RL.10",IFERROR(_xlfn.IFS(AND(Garantías_TTE_AS_PR!$D$12>=$BX$4,Garantías_TTE_AS_PR!$D$12<$BY$4),$BE$6,AND(Garantías_TTE_AS_PR!$D$12>=$BX$5,Garantías_TTE_AS_PR!$D$12<$BY$5),$BE$6,AND(Garantías_TTE_AS_PR!$D$12>=$BX$6,Garantías_TTE_AS_PR!$D$12<$BY$6),$BE$6,AND(Garantías_TTE_AS_PR!$D$12>=$BX$7,Garantías_TTE_AS_PR!$D$12<$BY$7),$BE$6,AND(Garantías_TTE_AS_PR!$D$12>=$BX$8,Garantías_TTE_AS_PR!$D$12<$BY$8),$BE$6),$BE$5),(IF(OR(YEAR(Garantías_TTE_AS_PR!$D$12)=2020,YEAR(Garantías_TTE_AS_PR!$D$12)=2024,YEAR(Garantías_TTE_AS_PR!$D$12)=2028,YEAR(Garantías_TTE_AS_PR!$D$12)=2032,YEAR(Garantías_TTE_AS_PR!$D$12)=2036,YEAR(Garantías_TTE_AS_PR!$D$12)=2040,YEAR(Garantías_TTE_AS_PR!$D$12)=2044,YEAR(Garantías_TTE_AS_PR!$D$12)=2048),$BE$6,$BE$5))) -> 365 | O114: =Garantías_TTE_AS_PR!$D$18 ->  | P114: 1 | Q114: =IF(Garantías_TTE_AS_PR!$D$11="Firm",1,IF(Garantías_TTE_AS_PR!$D$11="Uninterruptible",1,1)) -> 1 | S114: PVB exit to consumerMonthly - Peaje RL.10 | T114: [((0,150328 + 0,091544 + 0,000011) x 1,73 x 1) / 365 + (0,000396 + 0,000137 x )] x 0 x 1 | AQ114: Productos estándar capacidad | AR114: Mes | AT114: Intraday (05) | AU114: Daily (04) | AV114: Montly (03) | AW114: Quarterly (02) | AX114: Annual (01) | AY114: Undefined
A115: Individualized services | B115: PVB exit to consumer | C115: Daily - Peaje RL.10 | D115: =IF(Garantías_TTE_AS_PR!$D$10="","",Garantías_TTE_AS_PR!$D$10) ->  | E115: PVB exit to consumerDaily - Peaje RL.10 | F115: [((Tfr+OCREG)x M x Cint) / den + (TV x D)] x Qa x FR | G115: =Garantías_TTE_AS_PR!$D$13 -> 0 | H115: =Garantías_TTE_AS_PR!$D$17 -> 0 | I115: 0.150328 | J115: 0.000396 | K115: 1.1e-05 | L115: 0 | M115: =IF(LEFT(C115,SEARCH("-",C115,1)-1-1)="Undefined",VLOOKUP(MONTH(Garantías_TTE_AS_PR!$D$12),$AS$84:$AY$95,7),(IF(LEFT(C115,SEARCH("-",C115,1)-1-1)="Annual",VLOOKUP(MONTH(Garantías_TTE_AS_PR!$D$12),$AS$84:$AY$95,6),(IF(LEFT(C115,SEARCH("-",C115,1)-1-1)="Quarterly",VLOOKUP(MONTH(Garantías_TTE_AS_PR!$D$12),$AS$84:$AY$95,5),(IF(LEFT(C115,SEARCH("-",C115,1)-1-1)="Monthly",VLOOKUP(MONTH(Garantías_TTE_AS_PR!$D$12),$AS$84:$AY$95,4),(IF(LEFT(C115,SEARCH("-",C115,1)-1-1)="Daily",VLOOKUP(MONTH(Garantías_TTE_AS_PR!$D$12),$AS$84:$AY$95,3),(IF(LEFT(C115,SEARCH("-",C115,1)-1-1)="Intraday",IF(O115=24,VLOOKUP(MONTH(Garantías_TTE_AS_PR!$D$12),$AS$84:$AY$95,3),VLOOKUP(MONTH(Garantías_TTE_AS_PR!$D$12),$AS$84:$AY$95,2)),""))))))))))) -> 2.13 | N115: =IF(Garantías_TTE_AS_PR!$D$8="Daily - Peaje RL.10",IFERROR(_xlfn.IFS(AND(Garantías_TTE_AS_PR!$D$12>=$BX$4,Garantías_TTE_AS_PR!$D$12<$BY$4),$BE$6,AND(Garantías_TTE_AS_PR!$D$12>=$BX$5,Garantías_TTE_AS_PR!$D$12<$BY$5),$BE$6,AND(Garantías_TTE_AS_PR!$D$12>=$BX$6,Garantías_TTE_AS_PR!$D$12<$BY$6),$BE$6,AND(Garantías_TTE_AS_PR!$D$12>=$BX$7,Garantías_TTE_AS_PR!$D$12<$BY$7),$BE$6,AND(Garantías_TTE_AS_PR!$D$12>=$BX$8,Garantías_TTE_AS_PR!$D$12<$BY$8),$BE$6),$BE$5),(IF(OR(YEAR(Garantías_TTE_AS_PR!$D$12)=2020,YEAR(Garantías_TTE_AS_PR!$D$12)=2024,YEAR(Garantías_TTE_AS_PR!$D$12)=2028,YEAR(Garantías_TTE_AS_PR!$D$12)=2032,YEAR(Garantías_TTE_AS_PR!$D$12)=2036,YEAR(Garantías_TTE_AS_PR!$D$12)=2040,YEAR(Garantías_TTE_AS_PR!$D$12)=2044,YEAR(Garantías_TTE_AS_PR!$D$12)=2048),$BE$6,$BE$5))) -> 365 | O115: =Garantías_TTE_AS_PR!$D$18 ->  | P115: 1 | Q115: =IF(Garantías_TTE_AS_PR!$D$11="Firm",1,IF(Garantías_TTE_AS_PR!$D$11="Uninterruptible",1,1)) -> 1 | S115: PVB exit to consumerDaily - Peaje RL.10 | T115: =CONCATENATE("[((",I115," + ",$W$39," + ",K115,") x ",M115," x ",Q115,") / ",N115," + (",J115," + ",$X$39," x ",O115,")] x ",TEXT(G115,"#.##0")," x ",P115) -> [((0,150328 + 0,091544 + 0,000011) x 2,13 x 1) / 365 + (0,000396 + 0,000137 x )] x 0 x 1
A116: Individualized services | B116: PVB exit to consumer | C116: Intraday - Peaje RL.10 | D116: =IF(Garantías_TTE_AS_PR!$D$10="","",Garantías_TTE_AS_PR!$D$10) ->  | E116: PVB exit to consumerIntraday - Peaje RL.10 | F116: [((Tfr+OCREG) x M x Cint) x (Qa x 24 / H) x H / den + (TV x Qa)] x FR | G116: =Garantías_TTE_AS_PR!$D$13 -> 0 | H116: =Garantías_TTE_AS_PR!$D$17 -> 0 | I116: 0.150328 | J116: 0.000396 | K116: 1.1e-05 | L116: 0 | M116: =IF(LEFT(C116,SEARCH("-",C116,1)-1-1)="Undefined",VLOOKUP(MONTH(Garantías_TTE_AS_PR!$D$12),$AS$84:$AY$95,7),(IF(LEFT(C116,SEARCH("-",C116,1)-1-1)="Annual",VLOOKUP(MONTH(Garantías_TTE_AS_PR!$D$12),$AS$84:$AY$95,6),(IF(LEFT(C116,SEARCH("-",C116,1)-1-1)="Quarterly",VLOOKUP(MONTH(Garantías_TTE_AS_PR!$D$12),$AS$84:$AY$95,5),(IF(LEFT(C116,SEARCH("-",C116,1)-1-1)="Monthly",VLOOKUP(MONTH(Garantías_TTE_AS_PR!$D$12),$AS$84:$AY$95,4),(IF(LEFT(C116,SEARCH("-",C116,1)-1-1)="Daily",VLOOKUP(MONTH(Garantías_TTE_AS_PR!$D$12),$AS$84:$AY$95,3),(IF(LEFT(C116,SEARCH("-",C116,1)-1-1)="Intraday",IF(O116=24,VLOOKUP(MONTH(Garantías_TTE_AS_PR!$D$12),$AS$84:$AY$95,3),VLOOKUP(MONTH(Garantías_TTE_AS_PR!$D$12),$AS$84:$AY$95,2)),""))))))))))) -> 4.54 | N116: =IF(Garantías_TTE_AS_PR!$D$8="Intraday - Peaje RL.10",IFERROR(_xlfn.IFS(AND(Garantías_TTE_AS_PR!$D$12>=$BX$4,Garantías_TTE_AS_PR!$D$12<$BY$4),$BE$8,AND(Garantías_TTE_AS_PR!$D$12>=$BX$5,Garantías_TTE_AS_PR!$D$12<$BY$5),$BE$8,AND(Garantías_TTE_AS_PR!$D$12>=$BX$6,Garantías_TTE_AS_PR!$D$12<$BY$6),$BE$8,AND(Garantías_TTE_AS_PR!$D$12>=$BX$7,Garantías_TTE_AS_PR!$D$12<$BY$7),$BE$8,AND(Garantías_TTE_AS_PR!$D$12>=$BX$8,Garantías_TTE_AS_PR!$D$12<$BY$8),$BE$8),$BE$7),(IF(OR(YEAR(Garantías_TTE_AS_PR!$D$12)=2020,YEAR(Garantías_TTE_AS_PR!$D$12)=2024,YEAR(Garantías_TTE_AS_PR!$D$12)=2028,YEAR(Garantías_TTE_AS_PR!$D$12)=2032,YEAR(Garantías_TTE_AS_PR!$D$12)=2036,YEAR(Garantías_TTE_AS_PR!$D$12)=2040,YEAR(Garantías_TTE_AS_PR!$D$12)=2044,YEAR(Garantías_TTE_AS_PR!$D$12)=2048),$BE$8,$BE$7))) -> 8760 | O116: =Garantías_TTE_AS_PR!$D$9 -> 0 | P116: 1 | Q116: =IF(Garantías_TTE_AS_PR!$D$11="Firm",1,IF(Garantías_TTE_AS_PR!$D$11="Uninterruptible",1,1)) -> 1 | R116: =ROUND((((I116+K116+$W$39)*M116*Q116+H116)/(N116/24)+(J116+$X$39))*G116*P116,2) -> 0 | S116: PVB exit to consumerIntraday - Peaje RL.10 | T116: =CONCATENATE("[((",I116," + ",$W$39," + ",K116,") x ",M116,") x (",Q116," / ",N116," x 24 / ",O116,") x ",O116," / ",N116," + (",J116," + ",$X$39," x ",O116,")] x ",P116) -> [((0,150328 + 0,091544 + 0,000011) x 4,54) x (1 / 8760 x 24 / 0) x 0 / 8760 + (0,000396 + 0,000137 x 0)] x 1 | AR116: January | AS116: 1 | AT116: 5.6 | AU116: 1.6 | AV116: 1.2 | AW116: 1.1 | AX116: 1 | AY116: 1
A117: Individualized services | B117: PVB exit to consumer | C117: Undefined - Peaje RL.11 | D117: =IF(Garantías_TTE_AS_PR!$D$10="","",Garantías_TTE_AS_PR!$D$10) ->  | E117: PVB exit to consumerUndefined - Peaje RL.11 | F117: [((Tfr+OCREG)x M x Cint) / den + (TV x D)] x Qa x FR | G117: =Garantías_TTE_AS_PR!$D$13 -> 0 | H117: =Garantías_TTE_AS_PR!$D$17 -> 0 | I117: 0.148124 | J117: 7.7e-05 | K117: 1e-06 | L117: 0 | M117: =IF(LEFT(C117,SEARCH("-",C117,1)-1-1)="Undefined",VLOOKUP(MONTH(Garantías_TTE_AS_PR!$D$12),$AS$84:$AY$95,7),(IF(LEFT(C117,SEARCH("-",C117,1)-1-1)="Annual",VLOOKUP(MONTH(Garantías_TTE_AS_PR!$D$12),$AS$84:$AY$95,6),(IF(LEFT(C117,SEARCH("-",C117,1)-1-1)="Quarterly",VLOOKUP(MONTH(Garantías_TTE_AS_PR!$D$12),$AS$84:$AY$95,5),(IF(LEFT(C117,SEARCH("-",C117,1)-1-1)="Monthly",VLOOKUP(MONTH(Garantías_TTE_AS_PR!$D$12),$AS$84:$AY$95,4),(IF(LEFT(C117,SEARCH("-",C117,1)-1-1)="Daily",VLOOKUP(MONTH(Garantías_TTE_AS_PR!$D$12),$AS$84:$AY$95,3),(IF(LEFT(C117,SEARCH("-",C117,1)-1-1)="Intraday",IF(O117=24,VLOOKUP(MONTH(Garantías_TTE_AS_PR!$D$12),$AS$84:$AY$95,3),VLOOKUP(MONTH(Garantías_TTE_AS_PR!$D$12),$AS$84:$AY$95,2)),""))))))))))) -> 1 | N117: =IF(Garantías_TTE_AS_PR!$D$8="Undefined - Peaje RL.11",$BE$5,$BE$6) -> 366 | O117: =Garantías_TTE_AS_PR!$D$18 ->  | P117: 2 | Q117: =IF(Garantías_TTE_AS_PR!$D$11="Firm",1,IF(Garantías_TTE_AS_PR!$D$11="Uninterruptible",1,1)) -> 1 | R117: =ROUND((((((I117+K117+$W$39)*M117*Q117))/N117+(J117+$X$39))*O117*G117*P117),2) ->  | S117: PVB exit to consumerUndefined - Peaje RL.11 | T117: =CONCATENATE("[((",I117," + ",$W$39," + ",K117,") x ",M117," x ",Q117,") / ",N117," + (",J117," + ",$X$39," x ",O117,")] x ",TEXT(G117,"#.##0")," x ",P117) -> [((0,148124 + 0,091544 + 0,000001) x 1 x 1) / 366 + (0,000077 + 0,000137 x )] x 0 x 2 | AR117: February | AS117: 2 | AT117: 5.6 | AU117: 1.6 | AV117: 1.2 | AW117: 1.1 | AX117: 1 | AY117: 1
A118: Individualized services | B118: PVB exit to consumer | C118: Annual - Peaje RL.11 | D118: =IF(Garantías_TTE_AS_PR!$D$10="","",Garantías_TTE_AS_PR!$D$10) ->  | E118: PVB exit to consumerAnnual - Peaje RL.11 | F118: [((Tfr+OCREG)x M x Cint) / den + (TV x D)] x Qa x FR | G118: =Garantías_TTE_AS_PR!$D$13 -> 0 | H118: =Garantías_TTE_AS_PR!$D$17 -> 0 | I118: 0.148124 | J118: 7.7e-05 | K118: 1e-06 | L118: 0 | M118: =IF(LEFT(C118,SEARCH("-",C118,1)-1-1)="Undefined",VLOOKUP(MONTH(Garantías_TTE_AS_PR!$D$12),$AS$84:$AY$95,7),(IF(LEFT(C118,SEARCH("-",C118,1)-1-1)="Annual",VLOOKUP(MONTH(Garantías_TTE_AS_PR!$D$12),$AS$84:$AY$95,6),(IF(LEFT(C118,SEARCH("-",C118,1)-1-1)="Quarterly",VLOOKUP(MONTH(Garantías_TTE_AS_PR!$D$12),$AS$84:$AY$95,5),(IF(LEFT(C118,SEARCH("-",C118,1)-1-1)="Monthly",VLOOKUP(MONTH(Garantías_TTE_AS_PR!$D$12),$AS$84:$AY$95,4),(IF(LEFT(C118,SEARCH("-",C118,1)-1-1)="Daily",VLOOKUP(MONTH(Garantías_TTE_AS_PR!$D$12),$AS$84:$AY$95,3),(IF(LEFT(C118,SEARCH("-",C118,1)-1-1)="Intraday",IF(O118=24,VLOOKUP(MONTH(Garantías_TTE_AS_PR!$D$12),$AS$84:$AY$95,3),VLOOKUP(MONTH(Garantías_TTE_AS_PR!$D$12),$AS$84:$AY$95,2)),""))))))))))) -> 1 | N118: =IF(Garantías_TTE_AS_PR!$D$8="Annual - Peaje RL.11",IFERROR(_xlfn.IFS(AND(Garantías_TTE_AS_PR!$D$12>=$BV$4,Garantías_TTE_AS_PR!$D$12<$BW$4),$BE$6,AND(Garantías_TTE_AS_PR!$D$12>=$BV$5,Garantías_TTE_AS_PR!$D$12<$BW$5),$BE$6,AND(Garantías_TTE_AS_PR!$D$12>=$BV$6,Garantías_TTE_AS_PR!$D$12<$BW$6),$BE$6,AND(Garantías_TTE_AS_PR!$D$12>=$BV$7,Garantías_TTE_AS_PR!$D$12<$BW$7),$BE$6,AND(Garantías_TTE_AS_PR!$D$12>=$BV$8,Garantías_TTE_AS_PR!$D$12<$BW$8),$BE$6),$BE$5),(IF(OR(YEAR(Garantías_TTE_AS_PR!$D$12)=2020,YEAR(Garantías_TTE_AS_PR!$D$12)=2024,YEAR(Garantías_TTE_AS_PR!$D$12)=2028,YEAR(Garantías_TTE_AS_PR!$D$12)=2032,YEAR(Garantías_TTE_AS_PR!$D$12)=2036,YEAR(Garantías_TTE_AS_PR!$D$12)=2040,YEAR(Garantías_TTE_AS_PR!$D$12)=2044,YEAR(Garantías_TTE_AS_PR!$D$12)=2048),$BE$6,$BE$5))) -> 365 | O118: =Garantías_TTE_AS_PR!$D$18 ->  | P118: 2 | Q118: =IF(Garantías_TTE_AS_PR!$D$11="Firm",1,IF(Garantías_TTE_AS_PR!$D$11="Uninterruptible",1,1)) -> 1 | S118: PVB exit to consumerAnnual - Peaje RL.11 | T118: [((0,148124 + 0,091544 + 0,000001) x 1 x 1) / 365 + (0,000077 + 0,000137 x )] x 0 x 2 | AR118: March | AS118: 3 | AT118: 5.6 | AU118: 1.6 | AV118: 1.2 | AW118: 1.1 | AX118: 1 | AY118: 1
A119: Individualized services | B119: PVB exit to consumer | C119: Quarterly - Peaje RL.11 | D119: =IF(Garantías_TTE_AS_PR!$D$10="","",Garantías_TTE_AS_PR!$D$10) ->  | E119: PVB exit to consumerQuarterly - Peaje RL.11 | F119: [((Tfr+OCREG)x M x Cint) / den + (TV x D)] x Qa x FR | G119: =Garantías_TTE_AS_PR!$D$13 -> 0 | H119: =Garantías_TTE_AS_PR!$D$17 -> 0 | I119: 0.148124 | J119: 7.7e-05 | K119: 1e-06 | L119: 0 | M119: =IF(LEFT(C119,SEARCH("-",C119,1)-1-1)="Undefined",VLOOKUP(MONTH(Garantías_TTE_AS_PR!$D$12),$AS$84:$AY$95,7),(IF(LEFT(C119,SEARCH("-",C119,1)-1-1)="Annual",VLOOKUP(MONTH(Garantías_TTE_AS_PR!$D$12),$AS$84:$AY$95,6),(IF(LEFT(C119,SEARCH("-",C119,1)-1-1)="Quarterly",VLOOKUP(MONTH(Garantías_TTE_AS_PR!$D$12),$AS$84:$AY$95,5),(IF(LEFT(C119,SEARCH("-",C119,1)-1-1)="Monthly",VLOOKUP(MONTH(Garantías_TTE_AS_PR!$D$12),$AS$84:$AY$95,4),(IF(LEFT(C119,SEARCH("-",C119,1)-1-1)="Daily",VLOOKUP(MONTH(Garantías_TTE_AS_PR!$D$12),$AS$84:$AY$95,3),(IF(LEFT(C119,SEARCH("-",C119,1)-1-1)="Intraday",IF(O119=24,VLOOKUP(MONTH(Garantías_TTE_AS_PR!$D$12),$AS$84:$AY$95,3),VLOOKUP(MONTH(Garantías_TTE_AS_PR!$D$12),$AS$84:$AY$95,2)),""))))))))))) -> 1.35 | N119: =IF(Garantías_TTE_AS_PR!$D$8="Quarterly - Peaje RL.11",IFERROR(_xlfn.IFS(AND(Garantías_TTE_AS_PR!$D$12>=$BX$4,Garantías_TTE_AS_PR!$D$12<$BY$4),$BE$6,AND(Garantías_TTE_AS_PR!$D$12>=$BX$5,Garantías_TTE_AS_PR!$D$12<$BY$5),$BE$6,AND(Garantías_TTE_AS_PR!$D$12>=$BX$6,Garantías_TTE_AS_PR!$D$12<$BY$6),$BE$6,AND(Garantías_TTE_AS_PR!$D$12>=$BX$7,Garantías_TTE_AS_PR!$D$12<$BY$7),$BE$6,AND(Garantías_TTE_AS_PR!$D$12>=$BX$8,Garantías_TTE_AS_PR!$D$12<$BY$8),$BE$6),$BE$5),(IF(OR(YEAR(Garantías_TTE_AS_PR!$D$12)=2020,YEAR(Garantías_TTE_AS_PR!$D$12)=2024,YEAR(Garantías_TTE_AS_PR!$D$12)=2028,YEAR(Garantías_TTE_AS_PR!$D$12)=2032,YEAR(Garantías_TTE_AS_PR!$D$12)=2036,YEAR(Garantías_TTE_AS_PR!$D$12)=2040,YEAR(Garantías_TTE_AS_PR!$D$12)=2044,YEAR(Garantías_TTE_AS_PR!$D$12)=2048),$BE$6,$BE$5))) -> 365 | O119: =Garantías_TTE_AS_PR!$D$18 ->  | P119: 2 | Q119: =IF(Garantías_TTE_AS_PR!$D$11="Firm",1,IF(Garantías_TTE_AS_PR!$D$11="Uninterruptible",1,1)) -> 1 | S119: PVB exit to consumerQuarterly - Peaje RL.11 | T119: [((0,148124 + 0,091544 + 0,000001) x 1,35 x 1) / 365 + (0,000077 + 0,000137 x )] x 0 x 2 | AR119: April | AS119: 4 | AT119: 5.6 | AU119: 1.6 | AV119: 1.2 | AW119: 1.1 | AX119: 1 | AY119: 1
A120: Individualized services | B120: PVB exit to consumer | C120: Monthly - Peaje RL.11 | D120: =IF(Garantías_TTE_AS_PR!$D$10="","",Garantías_TTE_AS_PR!$D$10) ->  | E120: PVB exit to consumerMonthly - Peaje RL.11 | F120: [((Tfr+OCREG)x M x Cint) / den + (TV x D)] x Qa x FR | G120: =Garantías_TTE_AS_PR!$D$13 -> 0 | H120: =Garantías_TTE_AS_PR!$D$17 -> 0 | I120: 0.148124 | J120: 7.7e-05 | K120: 1e-06 | L120: 0 | M120: =IF(LEFT(C120,SEARCH("-",C120,1)-1-1)="Undefined",VLOOKUP(MONTH(Garantías_TTE_AS_PR!$D$12),$AS$84:$AY$95,7),(IF(LEFT(C120,SEARCH("-",C120,1)-1-1)="Annual",VLOOKUP(MONTH(Garantías_TTE_AS_PR!$D$12),$AS$84:$AY$95,6),(IF(LEFT(C120,SEARCH("-",C120,1)-1-1)="Quarterly",VLOOKUP(MONTH(Garantías_TTE_AS_PR!$D$12),$AS$84:$AY$95,5),(IF(LEFT(C120,SEARCH("-",C120,1)-1-1)="Monthly",VLOOKUP(MONTH(Garantías_TTE_AS_PR!$D$12),$AS$84:$AY$95,4),(IF(LEFT(C120,SEARCH("-",C120,1)-1-1)="Daily",VLOOKUP(MONTH(Garantías_TTE_AS_PR!$D$12),$AS$84:$AY$95,3),(IF(LEFT(C120,SEARCH("-",C120,1)-1-1)="Intraday",IF(O120=24,VLOOKUP(MONTH(Garantías_TTE_AS_PR!$D$12),$AS$84:$AY$95,3),VLOOKUP(MONTH(Garantías_TTE_AS_PR!$D$12),$AS$84:$AY$95,2)),""))))))))))) -> 1.73 | N120: =IF(Garantías_TTE_AS_PR!$D$8="Monthly - Peaje RL.11",IFERROR(_xlfn.IFS(AND(Garantías_TTE_AS_PR!$D$12>=$BX$4,Garantías_TTE_AS_PR!$D$12<$BY$4),$BE$6,AND(Garantías_TTE_AS_PR!$D$12>=$BX$5,Garantías_TTE_AS_PR!$D$12<$BY$5),$BE$6,AND(Garantías_TTE_AS_PR!$D$12>=$BX$6,Garantías_TTE_AS_PR!$D$12<$BY$6),$BE$6,AND(Garantías_TTE_AS_PR!$D$12>=$BX$7,Garantías_TTE_AS_PR!$D$12<$BY$7),$BE$6,AND(Garantías_TTE_AS_PR!$D$12>=$BX$8,Garantías_TTE_AS_PR!$D$12<$BY$8),$BE$6),$BE$5),(IF(OR(YEAR(Garantías_TTE_AS_PR!$D$12)=2020,YEAR(Garantías_TTE_AS_PR!$D$12)=2024,YEAR(Garantías_TTE_AS_PR!$D$12)=2028,YEAR(Garantías_TTE_AS_PR!$D$12)=2032,YEAR(Garantías_TTE_AS_PR!$D$12)=2036,YEAR(Garantías_TTE_AS_PR!$D$12)=2040,YEAR(Garantías_TTE_AS_PR!$D$12)=2044,YEAR(Garantías_TTE_AS_PR!$D$12)=2048),$BE$6,$BE$5))) -> 365 | O120: =Garantías_TTE_AS_PR!$D$18 ->  | P120: 1 | Q120: =IF(Garantías_TTE_AS_PR!$D$11="Firm",1,IF(Garantías_TTE_AS_PR!$D$11="Uninterruptible",1,1)) -> 1 | S120: PVB exit to consumerMonthly - Peaje RL.11 | T120: [((0,148124 + 0,091544 + 0,000001) x 1,73 x 1) / 365 + (0,000077 + 0,000137 x )] x 0 x 1 | AR120: May | AS120: 5 | AT120: 5.6 | AU120: 1.6 | AV120: 1.2 | AW120: 1.1 | AX120: 1 | AY120: 1
A121: Individualized services | B121: PVB exit to consumer | C121: Daily - Peaje RL.11 | D121: =IF(Garantías_TTE_AS_PR!$D$10="","",Garantías_TTE_AS_PR!$D$10) ->  | E121: PVB exit to consumerDaily - Peaje RL.11 | F121: [((Tfr+OCREG)x M x Cint) / den + (TV x D)] x Qa x FR | G121: =Garantías_TTE_AS_PR!$D$13 -> 0 | H121: =Garantías_TTE_AS_PR!$D$17 -> 0 | I121: 0.148124 | J121: 7.7e-05 | K121: 1e-06 | L121: 0 | M121: =IF(LEFT(C121,SEARCH("-",C121,1)-1-1)="Undefined",VLOOKUP(MONTH(Garantías_TTE_AS_PR!$D$12),$AS$84:$AY$95,7),(IF(LEFT(C121,SEARCH("-",C121,1)-1-1)="Annual",VLOOKUP(MONTH(Garantías_TTE_AS_PR!$D$12),$AS$84:$AY$95,6),(IF(LEFT(C121,SEARCH("-",C121,1)-1-1)="Quarterly",VLOOKUP(MONTH(Garantías_TTE_AS_PR!$D$12),$AS$84:$AY$95,5),(IF(LEFT(C121,SEARCH("-",C121,1)-1-1)="Monthly",VLOOKUP(MONTH(Garantías_TTE_AS_PR!$D$12),$AS$84:$AY$95,4),(IF(LEFT(C121,SEARCH("-",C121,1)-1-1)="Daily",VLOOKUP(MONTH(Garantías_TTE_AS_PR!$D$12),$AS$84:$AY$95,3),(IF(LEFT(C121,SEARCH("-",C121,1)-1-1)="Intraday",IF(O121=24,VLOOKUP(MONTH(Garantías_TTE_AS_PR!$D$12),$AS$84:$AY$95,3),VLOOKUP(MONTH(Garantías_TTE_AS_PR!$D$12),$AS$84:$AY$95,2)),""))))))))))) -> 2.13 | N121: =IF(Garantías_TTE_AS_PR!$D$8="Daily - Peaje RL.11",IFERROR(_xlfn.IFS(AND(Garantías_TTE_AS_PR!$D$12>=$BX$4,Garantías_TTE_AS_PR!$D$12<$BY$4),$BE$6,AND(Garantías_TTE_AS_PR!$D$12>=$BX$5,Garantías_TTE_AS_PR!$D$12<$BY$5),$BE$6,AND(Garantías_TTE_AS_PR!$D$12>=$BX$6,Garantías_TTE_AS_PR!$D$12<$BY$6),$BE$6,AND(Garantías_TTE_AS_PR!$D$12>=$BX$7,Garantías_TTE_AS_PR!$D$12<$BY$7),$BE$6,AND(Garantías_TTE_AS_PR!$D$12>=$BX$8,Garantías_TTE_AS_PR!$D$12<$BY$8),$BE$6),$BE$5),(IF(OR(YEAR(Garantías_TTE_AS_PR!$D$12)=2020,YEAR(Garantías_TTE_AS_PR!$D$12)=2024,YEAR(Garantías_TTE_AS_PR!$D$12)=2028,YEAR(Garantías_TTE_AS_PR!$D$12)=2032,YEAR(Garantías_TTE_AS_PR!$D$12)=2036,YEAR(Garantías_TTE_AS_PR!$D$12)=2040,YEAR(Garantías_TTE_AS_PR!$D$12)=2044,YEAR(Garantías_TTE_AS_PR!$D$12)=2048),$BE$6,$BE$5))) -> 365 | O121: =Garantías_TTE_AS_PR!$D$18 ->  | P121: 1 | Q121: =IF(Garantías_TTE_AS_PR!$D$11="Firm",1,IF(Garantías_TTE_AS_PR!$D$11="Uninterruptible",1,1)) -> 1 | S121: PVB exit to consumerDaily - Peaje RL.11 | T121: [((0,148124 + 0,091544 + 0,000001) x 2,13 x 1) / 365 + (0,000077 + 0,000137 x )] x 0 x 1 | AR121: June | AS121: 6 | AT121: 5.6 | AU121: 1.6 | AV121: 1.2 | AW121: 1.1 | AX121: 1 | AY121: 1
A122: Individualized services | B122: PVB exit to consumer | C122: Intraday - Peaje RL.11 | D122: =IF(Garantías_TTE_AS_PR!$D$10="","",Garantías_TTE_AS_PR!$D$10) ->  | E122: PVB exit to consumerIntraday - Peaje RL.11 | F122: [((Tfr+OCREG) x M x Cint) x (Qa x 24 / H) x H / den + (TV x Qa)] x FR | G122: =Garantías_TTE_AS_PR!$D$13 -> 0 | H122: =Garantías_TTE_AS_PR!$D$17 -> 0 | I122: 0.148124 | J122: 7.7e-05 | K122: 1e-06 | L122: 0 | M122: =IF(LEFT(C122,SEARCH("-",C122,1)-1-1)="Undefined",VLOOKUP(MONTH(Garantías_TTE_AS_PR!$D$12),$AS$84:$AY$95,7),(IF(LEFT(C122,SEARCH("-",C122,1)-1-1)="Annual",VLOOKUP(MONTH(Garantías_TTE_AS_PR!$D$12),$AS$84:$AY$95,6),(IF(LEFT(C122,SEARCH("-",C122,1)-1-1)="Quarterly",VLOOKUP(MONTH(Garantías_TTE_AS_PR!$D$12),$AS$84:$AY$95,5),(IF(LEFT(C122,SEARCH("-",C122,1)-1-1)="Monthly",VLOOKUP(MONTH(Garantías_TTE_AS_PR!$D$12),$AS$84:$AY$95,4),(IF(LEFT(C122,SEARCH("-",C122,1)-1-1)="Daily",VLOOKUP(MONTH(Garantías_TTE_AS_PR!$D$12),$AS$84:$AY$95,3),(IF(LEFT(C122,SEARCH("-",C122,1)-1-1)="Intraday",IF(O122=24,VLOOKUP(MONTH(Garantías_TTE_AS_PR!$D$12),$AS$84:$AY$95,3),VLOOKUP(MONTH(Garantías_TTE_AS_PR!$D$12),$AS$84:$AY$95,2)),""))))))))))) -> 4.54 | N122: =IF(Garantías_TTE_AS_PR!$D$8="Intraday - Peaje RL.11",IFERROR(_xlfn.IFS(AND(Garantías_TTE_AS_PR!$D$12>=$BX$4,Garantías_TTE_AS_PR!$D$12<$BY$4),$BE$8,AND(Garantías_TTE_AS_PR!$D$12>=$BX$5,Garantías_TTE_AS_PR!$D$12<$BY$5),$BE$8,AND(Garantías_TTE_AS_PR!$D$12>=$BX$6,Garantías_TTE_AS_PR!$D$12<$BY$6),$BE$8,AND(Garantías_TTE_AS_PR!$D$12>=$BX$7,Garantías_TTE_AS_PR!$D$12<$BY$7),$BE$8,AND(Garantías_TTE_AS_PR!$D$12>=$BX$8,Garantías_TTE_AS_PR!$D$12<$BY$8),$BE$8),$BE$7),(IF(OR(YEAR(Garantías_TTE_AS_PR!$D$12)=2020,YEAR(Garantías_TTE_AS_PR!$D$12)=2024,YEAR(Garantías_TTE_AS_PR!$D$12)=2028,YEAR(Garantías_TTE_AS_PR!$D$12)=2032,YEAR(Garantías_TTE_AS_PR!$D$12)=2036,YEAR(Garantías_TTE_AS_PR!$D$12)=2040,YEAR(Garantías_TTE_AS_PR!$D$12)=2044,YEAR(Garantías_TTE_AS_PR!$D$12)=2048),$BE$8,$BE$7))) -> 8760 | O122: =Garantías_TTE_AS_PR!$D$9 -> 0 | P122: 1 | Q122: =IF(Garantías_TTE_AS_PR!$D$11="Firm",1,IF(Garantías_TTE_AS_PR!$D$11="Uninterruptible",1,1)) -> 1 | R122: =ROUND((((I122+K122+$W$39)*M122*Q122+H122)/(N122/24)+(J122+$X$39))*G122*P122,2) -> 0 | S122: PVB exit to consumerIntraday - Peaje RL.11 | T122: =CONCATENATE("[((",I122," + ",$W$39," + ",K122,") x ",M122,") x (",Q122," / ",N122," x 24 / ",O122,") x ",O122," / ",N122," + (",J122," + ",$X$39," x ",O122,")] x ",P122) -> [((0,148124 + 0,091544 + 0,000001) x 4,54) x (1 / 8760 x 24 / 0) x 0 / 8760 + (0,000077 + 0,000137 x 0)] x 1 | AR122: July | AS122: 7 | AT122: 5.6 | AU122: 1.6 | AV122: 1.2 | AW122: 1.1 | AX122: 1 | AY122: 1
A123: Individualized services | B123: Underground natural gas storage | C123: Daily | D123: =IF(Garantías_TTE_AS_PR!$D$10="","",Garantías_TTE_AS_PR!$D$10) ->  | E123: Underground natural gas storageDaily | F123: [(Canonalm x M + prima) / den] x Qa x D x FR | G123: =Garantías_TTE_AS_PR!$D$13 -> 0 | H123: =Garantías_TTE_AS_PR!$D$17 -> 0 | I123: =VLOOKUP(B123,$AC$4:$AH$219,4,FALSE) -> 0.002556 | J123: =VLOOKUP(B123,$AC$4:$AH$219,6,FALSE) -> 0 | M123: =IF(C123="Annual",VLOOKUP(MONTH(Garantías_TTE_AS_PR!$D$12),$AS$4:$AY$15,6),(IF(C123="Quarterly",VLOOKUP(MONTH(Garantías_TTE_AS_PR!$D$12),$AS$4:$AY$15,5),(IF(C123="Monthly",VLOOKUP(MONTH(Garantías_TTE_AS_PR!$D$12),$AS$4:$AY$15,4),(IF(OR(C123="Daily",C123="Intraday. 24h duration"),VLOOKUP(MONTH(Garantías_TTE_AS_PR!$D$12),$AS$4:$AY$15,3),(IF(OR(C123="Intraday",C123="Intraday. ≤23h duration"),VLOOKUP(MONTH(Garantías_TTE_AS_PR!$D$12),$AS$4:$AY$15,2),""))))))))) -> 1.6 | N123: =IF(Garantías_TTE_AS_PR!$D$8="Daily",IFERROR(_xlfn.IFS(AND(Garantías_TTE_AS_PR!$D$12>=$BX$4,Garantías_TTE_AS_PR!$D$12<$BY$4),$BE$6,AND(Garantías_TTE_AS_PR!$D$12>=$BX$5,Garantías_TTE_AS_PR!$D$12<$BY$5),$BE$6,AND(Garantías_TTE_AS_PR!$D$12>=$BX$6,Garantías_TTE_AS_PR!$D$12<$BY$6),$BE$6,AND(Garantías_TTE_AS_PR!$D$12>=$BX$7,Garantías_TTE_AS_PR!$D$12<$BY$7),$BE$6,AND(Garantías_TTE_AS_PR!$D$12>=$BX$8,Garantías_TTE_AS_PR!$D$12<$BY$8),$BE$6),$BE$5),(IF(OR(YEAR(Garantías_TTE_AS_PR!$D$12)=2020,YEAR(Garantías_TTE_AS_PR!$D$12)=2024,YEAR(Garantías_TTE_AS_PR!$D$12)=2028,YEAR(Garantías_TTE_AS_PR!$D$12)=2032,YEAR(Garantías_TTE_AS_PR!$D$12)=2036,YEAR(Garantías_TTE_AS_PR!$D$12)=2040,YEAR(Garantías_TTE_AS_PR!$D$12)=2044,YEAR(Garantías_TTE_AS_PR!$D$12)=2048),$BE$6,$BE$5))) -> 365 | O123: =Garantías_TTE_AS_PR!$D$18 ->  | P123: =VLOOKUP(C123,$BA$4:$BB$51,2,FALSE) -> 1 | Q123: =IF(Garantías_TTE_AS_PR!$D$11="Firm",1,IF(Garantías_TTE_AS_PR!$D$11="Uninterruptible",1,1)) -> 1 | R123: =ROUND((((I123*M123)*Q123+H123)*O123/N123+J123)*G123*P123,2) ->  | S123: Underground natural gas storageDaily | T123: =CONCATENATE("[(",I123," x ",M123," + ",H123,")", " / ",N123,")] x ",TEXT(G123,"#.##0")," x ",O123," x ",P123) -> [(0,002556 x 1,6 + 0) / 365)] x 0 x x 1 | W123: 0.003699 | AR123: August | AS123: 8 | AT123: 5.6 | AU123: 1.6 | AV123: 1.2 | AW123: 1.1 | AX123: 1 | AY123: 1
A124: Individualized services | B124: Underground natural gas storage | C124: Intraday | D124: =IF(Garantías_TTE_AS_PR!$D$10="","",Garantías_TTE_AS_PR!$D$10) ->  | E124: Underground natural gas storageIntraday | F124: [(CanonalmAASS x M + prima) x (Qa x 24 / H) x H / den] x FR | G124: =Garantías_TTE_AS_PR!$D$13 -> 0 | H124: =Garantías_TTE_AS_PR!$D$17 -> 0 | I124: 0.002556 | J124: 0 | M124: =IF(C124="Annual",VLOOKUP(MONTH(Garantías_TTE_AS_PR!$D$12),$AS$4:$AY$15,6),(IF(C124="Quarterly",VLOOKUP(MONTH(Garantías_TTE_AS_PR!$D$12),$AS$4:$AY$15,5),(IF(C124="Monthly",VLOOKUP(MONTH(Garantías_TTE_AS_PR!$D$12),$AS$4:$AY$15,4),(IF(OR(C124="Daily",C124="Intraday. 24h duration"),VLOOKUP(MONTH(Garantías_TTE_AS_PR!$D$12),$AS$4:$AY$15,3),(IF(OR(C124="Intraday",C124="Intraday. ≤23h duration"),VLOOKUP(MONTH(Garantías_TTE_AS_PR!$D$12),$AS$4:$AY$15,2),""))))))))) -> 2.4 | N124: =IF(Garantías_TTE_AS_PR!$D$8="Intraday",IFERROR(_xlfn.IFS(AND(Garantías_TTE_AS_PR!$D$12>=$BX$4,Garantías_TTE_AS_PR!$D$12<$BY$4),$BE$8,AND(Garantías_TTE_AS_PR!$D$12>=$BX$5,Garantías_TTE_AS_PR!$D$12<$BY$5),$BE$8,AND(Garantías_TTE_AS_PR!$D$12>=$BX$6,Garantías_TTE_AS_PR!$D$12<$BY$6),$BE$8,AND(Garantías_TTE_AS_PR!$D$12>=$BX$7,Garantías_TTE_AS_PR!$D$12<$BY$7),$BE$8,AND(Garantías_TTE_AS_PR!$D$12>=$BX$8,Garantías_TTE_AS_PR!$D$12<$BY$8),$BE$8),$BE$7),(IF(OR(YEAR(Garantías_TTE_AS_PR!$D$12)=2020,YEAR(Garantías_TTE_AS_PR!$D$12)=2024,YEAR(Garantías_TTE_AS_PR!$D$12)=2028,YEAR(Garantías_TTE_AS_PR!$D$12)=2032,YEAR(Garantías_TTE_AS_PR!$D$12)=2036,YEAR(Garantías_TTE_AS_PR!$D$12)=2040,YEAR(Garantías_TTE_AS_PR!$D$12)=2044,YEAR(Garantías_TTE_AS_PR!$D$12)=2048),$BE$8,$BE$7))) -> 8760 | O124: =Garantías_TTE_AS_PR!$D$9 -> 0 | P124: 1 | Q124: =IF(Garantías_TTE_AS_PR!$D$11="Firm",1,IF(Garantías_TTE_AS_PR!$D$11="Uninterruptible",1,1)) -> 1 | R124: =ROUND((((I124*M124)*Q124+H124)/(N124/24)+J124)*G124*P124,2) -> 0 | S124: Underground natural gas storageIntraday | T124: =CONCATENATE("[(",I124," x ",M124," + ",H124,")"," x (",TEXT(G124,"#.##0")," x 24 / ",O124, ") x ",O124," / ",N124,"] x ",P124) -> [(0,002556 x 2,4 + 0) x (0 x 24 / 0) x 0 / 8760] x 1 | AR124: September | AS124: 9 | AT124: 5.6 | AU124: 1.6 | AV124: 1.2 | AW124: 1.1 | AX124: 1 | AY124: 1
A125: Individualized services | B125: Injection | C125: Daily | D125: =IF(Garantías_TTE_AS_PR!$D$10="","",Garantías_TTE_AS_PR!$D$10) ->  | E125: InjectionDaily | F125: [(Canoniny x M + prima) / den] x Qa x D x FR | G125: =Garantías_TTE_AS_PR!$D$13 -> 0 | H125: =Garantías_TTE_AS_PR!$D$17 -> 0 | I125: 0.096387 | J125: 0 | M125: =IF(C125="Annual",VLOOKUP(MONTH(Garantías_TTE_AS_PR!$D$12),$AS$132:$AY$143,6),(IF(C125="Quarterly",VLOOKUP(MONTH(Garantías_TTE_AS_PR!$D$12),$AS$132:$AY$143,5),(IF(C125="Monthly",VLOOKUP(MONTH(Garantías_TTE_AS_PR!$D$12),$AS$132:$AY$143,4),(IF(OR(C125="Daily",C125="Intraday. 24h duration"),IF(VLOOKUP(MONTH(Garantías_TTE_AS_PR!$D$12),$BS$4:$BT$15,2)="Extraction",1,VLOOKUP(MONTH(Garantías_TTE_AS_PR!$D$12),$AS$132:$AY$143,3)),(IF(OR(C125="Intraday",C125="Intraday. ≤23h duration"),IF(VLOOKUP(MONTH(Garantías_TTE_AS_PR!$D$12),$BS$4:$BT$15,2)="Extraction",1,VLOOKUP(MONTH(Garantías_TTE_AS_PR!$D$12),$AS$132:$AY$143,2)),""))))))))) -> 1 | N125: =IF(Garantías_TTE_AS_PR!$D$8="Daily",IFERROR(_xlfn.IFS(AND(Garantías_TTE_AS_PR!$D$12>=$BX$4,Garantías_TTE_AS_PR!$D$12<$BY$4),$BE$6,AND(Garantías_TTE_AS_PR!$D$12>=$BX$5,Garantías_TTE_AS_PR!$D$12<$BY$5),$BE$6,AND(Garantías_TTE_AS_PR!$D$12>=$BX$6,Garantías_TTE_AS_PR!$D$12<$BY$6),$BE$6,AND(Garantías_TTE_AS_PR!$D$12>=$BX$7,Garantías_TTE_AS_PR!$D$12<$BY$7),$BE$6,AND(Garantías_TTE_AS_PR!$D$12>=$BX$8,Garantías_TTE_AS_PR!$D$12<$BY$8),$BE$6),$BE$5),(IF(OR(YEAR(Garantías_TTE_AS_PR!$D$12)=2020,YEAR(Garantías_TTE_AS_PR!$D$12)=2024,YEAR(Garantías_TTE_AS_PR!$D$12)=2028,YEAR(Garantías_TTE_AS_PR!$D$12)=2032,YEAR(Garantías_TTE_AS_PR!$D$12)=2036,YEAR(Garantías_TTE_AS_PR!$D$12)=2040,YEAR(Garantías_TTE_AS_PR!$D$12)=2044,YEAR(Garantías_TTE_AS_PR!$D$12)=2048),$BE$6,$BE$5))) -> 365 | O125: =Garantías_TTE_AS_PR!$D$18 ->  | P125: 1 | Q125: =IF(Garantías_TTE_AS_PR!$D$11="Firm",1,IF(Garantías_TTE_AS_PR!$D$11="Uninterruptible",1,1)) -> 1 | S125: InjectionDaily | T125: =CONCATENATE("[(",I125," x ",M125," + ",H125,")", " / ",N125,")] x ",TEXT(G125,"#.##0")," x ",O125," x ",P125) -> [(0,096387 x 1 + 0) / 365)] x 0 x x 1 | AR125: October | AS125: 10 | AT125: 5.6 | AU125: 1.6 | AV125: 1.2 | AW125: 1.1 | AX125: 1 | AY125: 1
A126: Individualized services | B126: Injection | C126: Intraday | D126: =IF(Garantías_TTE_AS_PR!$D$10="","",Garantías_TTE_AS_PR!$D$10) ->  | E126: InjectionIntraday | F126: [(Canoniny x M + prima) x (Qa x 24 / H) x H / den] x FR | G126: =Garantías_TTE_AS_PR!$D$13 -> 0 | H126: =Garantías_TTE_AS_PR!$D$17 -> 0 | I126: 0.096387 | J126: 0 | M126: =IF(C126="Annual",VLOOKUP(MONTH(Garantías_TTE_AS_PR!$D$12),$AS$132:$AY$143,6),(IF(C126="Quarterly",VLOOKUP(MONTH(Garantías_TTE_AS_PR!$D$12),$AS$132:$AY$143,5),(IF(C126="Monthly",VLOOKUP(MONTH(Garantías_TTE_AS_PR!$D$12),$AS$132:$AY$143,4),(IF(OR(C126="Daily",C126="Intraday. 24h duration",AND(C126="Intraday",O126=24)),IF(VLOOKUP(MONTH(Garantías_TTE_AS_PR!$D$12),$BS$4:$BT$15,2)="Extraction",1,VLOOKUP(MONTH(Garantías_TTE_AS_PR!$D$12),$AS$132:$AY$143,3)),(IF(OR(C126="Intraday",C126="Intraday. ≤23h duration"),IF(VLOOKUP(MONTH(Garantías_TTE_AS_PR!$D$12),$BS$4:$BT$15,2)="Extraction",1,VLOOKUP(MONTH(Garantías_TTE_AS_PR!$D$12),$AS$132:$AY$143,2)),""))))))))) -> 1 | N126: =IF(Garantías_TTE_AS_PR!$D$8="Intraday",IFERROR(_xlfn.IFS(AND(Garantías_TTE_AS_PR!$D$12>=$BX$4,Garantías_TTE_AS_PR!$D$12<$BY$4),$BE$8,AND(Garantías_TTE_AS_PR!$D$12>=$BX$5,Garantías_TTE_AS_PR!$D$12<$BY$5),$BE$8,AND(Garantías_TTE_AS_PR!$D$12>=$BX$6,Garantías_TTE_AS_PR!$D$12<$BY$6),$BE$8,AND(Garantías_TTE_AS_PR!$D$12>=$BX$7,Garantías_TTE_AS_PR!$D$12<$BY$7),$BE$8,AND(Garantías_TTE_AS_PR!$D$12>=$BX$8,Garantías_TTE_AS_PR!$D$12<$BY$8),$BE$8),$BE$7),(IF(OR(YEAR(Garantías_TTE_AS_PR!$D$12)=2020,YEAR(Garantías_TTE_AS_PR!$D$12)=2024,YEAR(Garantías_TTE_AS_PR!$D$12)=2028,YEAR(Garantías_TTE_AS_PR!$D$12)=2032,YEAR(Garantías_TTE_AS_PR!$D$12)=2036,YEAR(Garantías_TTE_AS_PR!$D$12)=2040,YEAR(Garantías_TTE_AS_PR!$D$12)=2044,YEAR(Garantías_TTE_AS_PR!$D$12)=2048),$BE$8,$BE$7))) -> 8760 | O126: =Garantías_TTE_AS_PR!$D$9 -> 0 | P126: 1 | Q126: =IF(Garantías_TTE_AS_PR!$D$11="Firm",1,IF(Garantías_TTE_AS_PR!$D$11="Uninterruptible",1,1)) -> 1 | R126: =ROUND((((I126*M126)*Q126+H126)/(N126/24)+J126)*G126*P126,2) -> 0 | S126: InjectionIntraday | T126: =CONCATENATE("[(",I126," x ",M126," + ",H126,")"," x (",TEXT(G126,"#.##0")," x 24 / ",O126, ") x ",O126," / ",N126,"] x ",P126) -> [(0,096387 x 1 + 0) x (0 x 24 / 0) x 0 / 8760] x 1 | AR126: November | AS126: 11 | AT126: 5.6 | AU126: 1.6 | AV126: 1.2 | AW126: 1.1 | AX126: 1 | AY126: 1
A127: Individualized services | B127: Extraction | C127: Daily | D127: =IF(Garantías_TTE_AS_PR!$D$10="","",Garantías_TTE_AS_PR!$D$10) ->  | E127: ExtractionDaily | F127: [(Canonext x M + prima) / den] x Qa x D x FR | G127: =Garantías_TTE_AS_PR!$D$13 -> 0 | H127: =Garantías_TTE_AS_PR!$D$17 -> 0 | I127: 0,071538 | J127: 0 | M127: =IF(C127="Annual",VLOOKUP(MONTH(Garantías_TTE_AS_PR!$D$12),$AS$132:$AY$143,6),(IF(C127="Quarterly",VLOOKUP(MONTH(Garantías_TTE_AS_PR!$D$12),$AS$132:$AY$143,5),(IF(C127="Monthly",VLOOKUP(MONTH(Garantías_TTE_AS_PR!$D$12),$AS$132:$AY$143,4),(IF(OR(C127="Daily",C127="Intraday. 24h duration"),IF(VLOOKUP(MONTH(Garantías_TTE_AS_PR!$D$12),$BS$4:$BT$15,2)="Injection",1,VLOOKUP(MONTH(Garantías_TTE_AS_PR!$D$12),$AS$132:$AY$143,3)),(IF(OR(C127="Intraday",C127="Intraday. ≤23h duration"),IF(VLOOKUP(MONTH(Garantías_TTE_AS_PR!$D$12),$BS$4:$BT$15,2)="Injection",1,VLOOKUP(MONTH(Garantías_TTE_AS_PR!$D$12),$AS$132:$AY$143,2)),""))))))))) -> 1 | N127: =IF(Garantías_TTE_AS_PR!$D$8="Daily",IFERROR(_xlfn.IFS(AND(Garantías_TTE_AS_PR!$D$12>=$BX$4,Garantías_TTE_AS_PR!$D$12<$BY$4),$BE$6,AND(Garantías_TTE_AS_PR!$D$12>=$BX$5,Garantías_TTE_AS_PR!$D$12<$BY$5),$BE$6,AND(Garantías_TTE_AS_PR!$D$12>=$BX$6,Garantías_TTE_AS_PR!$D$12<$BY$6),$BE$6,AND(Garantías_TTE_AS_PR!$D$12>=$BX$7,Garantías_TTE_AS_PR!$D$12<$BY$7),$BE$6,AND(Garantías_TTE_AS_PR!$D$12>=$BX$8,Garantías_TTE_AS_PR!$D$12<$BY$8),$BE$6),$BE$5),(IF(OR(YEAR(Garantías_TTE_AS_PR!$D$12)=2020,YEAR(Garantías_TTE_AS_PR!$D$12)=2024,YEAR(Garantías_TTE_AS_PR!$D$12)=2028,YEAR(Garantías_TTE_AS_PR!$D$12)=2032,YEAR(Garantías_TTE_AS_PR!$D$12)=2036,YEAR(Garantías_TTE_AS_PR!$D$12)=2040,YEAR(Garantías_TTE_AS_PR!$D$12)=2044,YEAR(Garantías_TTE_AS_PR!$D$12)=2048),$BE$6,$BE$5))) -> 365 | O127: =Garantías_TTE_AS_PR!$D$18 ->  | P127: 1 | Q127: =IF(Garantías_TTE_AS_PR!$D$11="Firm",1,IF(Garantías_TTE_AS_PR!$D$11="Uninterruptible",1,1)) -> 1 | R127: =ROUND((((I127*M127)*Q127+H127)/N127+J127)*O127*G127*P127,2) ->  | S127: ExtractionDaily | T127: =CONCATENATE("[(",I127," x ",M127," + ",H127,")", " / ",N127,")] x ",TEXT(G127,"#.##0")," x ",O127," x ",P127) -> [(0,071538 x 1 + 0) / 365)] x 0 x x 1 | AR127: December | AS127: 12 | AT127: 5.6 | AU127: 1.6 | AV127: 1.2 | AW127: 1.1 | AX127: 1 | AY127: 1
